Workbook

Sheet Change
A1: =RIGHT(CELL("filename", A1), LEN(CELL("filename", A1)) - SEARCH("]", CELL("filename", A1))) -> Change | V1: InpS_Ann | W1: =Time!W$51 -> 2036-01-31 | X1: =Time!X$51 -> 2037-01-31 | Y1: =Time!Y$51 -> 2038-01-31 | Z1: =Time!Z$51 -> 2039-01-31 | AA1: =Time!AA$51 -> 2040-01-31 | AB1: =Time!AB$51 -> 2041-01-31 | AC1: =Time!AC$51 -> 2042-01-31 | AD1: =Time!AD$51 -> 2043-01-31 | AE1: =Time!AE$51 -> 2044-01-31 | AF1: =Time!AF$51 -> 2045-01-31 | AG1: =Time!AG$51 -> 2046-01-31 | AH1: =Time!AH$51 -> 2047-01-31 | AI1: =Time!AI$51 -> 2048-01-31 | AJ1: =Time!AJ$51 -> 2049-01-31 | AK1: =Time!AK$51 -> 2050-01-31 | AL1: =Time!AL$51 -> 2051-01-31 | AM1: =Time!AM$51 -> 2052-01-31 | AN1: =Time!AN$51 -> 2053-01-31 | AO1: =Time!AO$51 -> 2054-01-31 | AP1: =Time!AP$51 -> 2055-01-31 | AQ1: =Time!AQ$51 -> 2056-01-31 | AR1: =Time!AR$51 -> 2057-01-31 | AS1: =Time!AS$51 -> 2058-01-31 | AT1: =Time!AT$51 -> 2059-01-31 | AU1: =Time!AU$51 -> 2060-01-31 | AV1: =Time!AV$51 -> 2061-01-31 | AW1: =Time!AW$51 -> 2062-01-31 | AX1: =Time!AX$51 -> 2063-01-31 | AY1: =Time!AY$51 -> 2064-01-31 | AZ1: =Time!AZ$51 -> 2065-01-31 | BA1: =Time!BA$51 -> 2066-01-31 | BB1: =Time!BB$51 -> 2067-01-31 | BC1: =Time!BC$51 -> 2068-01-31 | BD1: =Time!BD$51 -> 2069-01-31 | BE1: =Time!BE$51 -> 2070-01-31 | BF1: =Time!BF$51 -> 2071-01-31 | BG1: =Time!BG$51 -> 2072-01-31 | BH1: =Time!BH$51 -> 2073-01-31 | BI1: =Time!BI$51 -> 2074-01-31 | BJ1: =Time!BJ$51 -> 2075-01-31 | BK1: =Time!BK$51 -> 2076-01-31 | BL1: =Time!BL$51 -> 2077-01-31 | BM1: =Time!BM$51 -> 2078-01-31 | BN1: =Time!BN$51 -> 2079-01-31 | BO1: =Time!BO$51 -> 2080-01-31 | BP1: =Time!BP$51 -> 2081-01-31 | BQ1: =Time!BQ$51 -> 2082-01-31
V2: InpS_Ann | W2: =Time!W$56 -> Operations | X2: =Time!X$56 -> Operations | Y2: =Time!Y$56 -> Operations | Z2: =Time!Z$56 -> Operations | AA2: =Time!AA$56 -> Operations | AB2: =Time!AB$56 -> Operations | AC2: =Time!AC$56 -> Operations | AD2: =Time!AD$56 -> Operations | AE2: =Time!AE$56 -> Operations | AF2: =Time!AF$56 -> Pre-fcst | AG2: =Time!AG$56 -> Pre-fcst | AH2: =Time!AH$56 -> Pre-fcst | AI2: =Time!AI$56 -> Pre-fcst | AJ2: =Time!AJ$56 -> Pre-fcst | AK2: =Time!AK$56 -> Pre-fcst | AL2: =Time!AL$56 -> Pre-fcst | AM2: =Time!AM$56 -> Pre-fcst | AN2: =Time!AN$56 -> Pre-fcst | AO2: =Time!AO$56 -> Pre-fcst | AP2: =Time!AP$56 -> Pre-fcst | AQ2: =Time!AQ$56 -> Pre-fcst | AR2: =Time!AR$56 -> Pre-fcst | AS2: =Time!AS$56 -> Pre-fcst | AT2: =Time!AT$56 -> Pre-fcst | AU2: =Time!AU$56 -> Pre-fcst | AV2: =Time!AV$56 -> Pre-fcst | AW2: =Time!AW$56 -> Pre-fcst | AX2: =Time!AX$56 -> Pre-fcst | AY2: =Time!AY$56 -> Pre-fcst | AZ2: =Time!AZ$56 -> Pre-fcst | BA2: =Time!BA$56 -> Pre-fcst | BB2: =Time!BB$56 -> Pre-fcst | BC2: =Time!BC$56 -> Pre-fcst | BD2: =Time!BD$56 -> 0 | BE2: =Time!BE$56 -> 0 | BF2: =Time!BF$56 -> 0 | BG2: =Time!BG$56 -> 0 | BH2: =Time!BH$56 -> 0 | BI2: =Time!BI$56 -> 0 | BJ2: =Time!BJ$56 -> 0 | BK2: =Time!BK$56 -> 0 | BL2: =Time!BL$56 -> 0 | BM2: =Time!BM$56 -> 0 | BN2: =Time!BN$56 -> 0 | BO2: =Time!BO$56 -> 0 | BP2: =Time!BP$56 -> 0 | BQ2: =Time!BQ$56 -> 0
F3: =TODAY() -> 2021-11-30 | G3: =NOW() -> 44530.5188 | H3: [Template issued stamp line] | O3: [Add Link and format] | P3: [Add Link and format] | Q3: [Add Link and format] | R3: [Add Link and format] | S3: [Add Link and format]
H4: [Template change line] | O4: =O3 -> [Add Link and format] | P4: =P3 -> [Add Link and format] | Q4: [Add Link and format] | R4: [Add Link and format] | S4: [Add Link and format] | V4: InpS_Qtr | W4: =Time!W$27 -> 2024-02-29 | X4: =Time!X$27 -> 2024-03-31 | Y4: =Time!Y$27 -> 2024-04-30 | Z4: =Time!Z$27 -> 2024-05-31 | AA4: =Time!AA$27 -> 2024-06-30 | AB4: =Time!AB$27 -> 2024-07-31 | AC4: =Time!AC$27 -> 2024-08-31 | AD4: =Time!AD$27 -> 2024-09-30 | AE4: =Time!AE$27 -> 2024-10-31 | AF4: =Time!AF$27 -> 2024-11-30 | AG4: =Time!AG$27 -> 2024-12-31 | AH4: =Time!AH$27 -> 2025-01-31 | AI4: =Time!AI$27 -> 2025-02-28 | AJ4: =Time!AJ$27 -> 2025-03-31 | AK4: =Time!AK$27 -> 2025-04-30 | AL4: =Time!AL$27 -> 2025-05-31 | AM4: =Time!AM$27 -> 2025-06-30 | AN4: =Time!AN$27 -> 2025-07-31 | AO4: =Time!AO$27 -> 2025-08-31 | AP4: =Time!AP$27 -> 2025-09-30 | AQ4: =Time!AQ$27 -> 2025-10-31 | AR4: =Time!AR$27 -> 2025-11-30 | AS4: =Time!AS$27 -> 2025-12-31 | AT4: =Time!AT$27 -> 2026-01-31 | AU4: =Time!AU$27 -> 2026-02-28 | AV4: =Time!AV$27 -> 2026-03-31 | AW4: =Time!AW$27 -> 2026-04-30 | AX4: =Time!AX$27 -> 2026-05-31 | AY4: =Time!AY$27 -> 2026-06-30 | AZ4: =Time!AZ$27 -> 2026-07-31 | BA4: =Time!BA$27 -> 2026-08-31 | BB4: =Time!BB$27 -> 2026-09-30 | BC4: =Time!BC$27 -> 2026-10-31 | BD4: =Time!BD$27 -> 2026-11-30 | BE4: =Time!BE$27 -> 2026-12-31 | BF4: =Time!BF$27 -> 2027-01-31 | BG4: =Time!BG$27 -> 2027-02-28 | BH4: =Time!BH$27 -> 2027-03-31 | BI4: =Time!BI$27 -> 2027-04-30 | BJ4: =Time!BJ$27 -> 2027-05-31 | BK4: =Time!BK$27 -> 2027-06-30 | BL4: =Time!BL$27 -> 2027-07-31 | BM4: =Time!BM$27 -> 2027-08-31 | BN4: =Time!BN$27 -> 2027-09-30 | BO4: =Time!BO$27 -> 2027-10-31 | BP4: =Time!BP$27 -> 2027-11-30 | BQ4: =Time!BQ$27 -> 2027-12-31 | BR4: =Time!BR$27 -> 2028-01-31 | BS4: =Time!BS$27 -> 2028-02-29 | BT4: =Time!BT$27 -> 2028-03-31 | BU4: =Time!BU$27 -> 2028-04-30 | BV4: =Time!BV$27 -> 2028-05-31 | BW4: =Time!BW$27 -> 2028-06-30 | BX4: =Time!BX$27 -> 2028-07-31 | BY4: =Time!BY$27 -> 2028-08-31 | BZ4: =Time!BZ$27 -> 2028-09-30 | CA4: =Time!CA$27 -> 2028-10-31 | CB4: =Time!CB$27 -> 2028-11-30 | CC4: =Time!CC$27 -> 2028-12-31 | CD4: =Time!CD$27 -> 2029-01-31 | CE4: =Time!CE$27 -> 2029-02-28 | CF4: =Time!CF$27 -> 2029-03-31 | CG4: =Time!CG$27 -> 2029-04-30 | CH4: =Time!CH$27 -> 2029-05-31 | CI4: =Time!CI$27 -> 2029-06-30 | CJ4: =Time!CJ$27 -> 2029-07-31 | CK4: =Time!CK$27 -> 2029-08-31 | CL4: =Time!CL$27 -> 2029-09-30 | CM4: =Time!CM$27 -> 2029-10-31 | CN4: =Time!CN$27 -> 2029-11-30 | CO4: =Time!CO$27 -> 2029-12-31 | CP4: =Time!CP$27 -> 2030-01-31 | CQ4: =Time!CQ$27 -> 2030-02-28 | CR4: =Time!CR$27 -> 2030-03-31 | CS4: =Time!CS$27 -> 2030-04-30 | CT4: =Time!CT$27 -> 2030-05-31 | CU4: =Time!CU$27 -> 2030-06-30 | CV4: =Time!CV$27 -> 2030-07-31 | CW4: =Time!CW$27 -> 2030-08-31 | CX4: =Time!CX$27 -> 2030-09-30 | CY4: =Time!CY$27 -> 2030-10-31 | CZ4: =Time!CZ$27 -> 2030-11-30 | DA4: =Time!DA$27 -> 2030-12-31 | DB4: =Time!DB$27 -> 2031-01-31 | DC4: =Time!DC$27 -> 2031-02-28 | DD4: =Time!DD$27 -> 2031-03-31 | DE4: =Time!DE$27 -> 2031-04-30 | DF4: =Time!DF$27 -> 2031-05-31 | DG4: =Time!DG$27 -> 2031-06-30 | DH4: =Time!DH$27 -> 2031-07-31 | DI4: =Time!DI$27 -> 2031-08-31 | DJ4: =Time!DJ$27 -> 2031-09-30 | DK4: =Time!DK$27 -> 2031-10-31 | DL4: =Time!DL$27 -> 2031-11-30 | DM4: =Time!DM$27 -> 2031-12-31 | DN4: =Time!DN$27 -> 2032-01-31 | DO4: =Time!DO$27 -> 2032-02-29 | DP4: =Time!DP$27 -> 2032-03-31 | DQ4: =Time!DQ$27 -> 2032-04-30 | DR4: =Time!DR$27 -> 2032-05-31 | DS4: =Time!DS$27 -> 2032-06-30 | DT4: =Time!DT$27 -> 2032-07-31 | DU4: =Time!DU$27 -> 2032-08-31 | DV4: =Time!DV$27 -> 2032-09-30 | DW4: =Time!DW$27 -> 2032-10-31 | DX4: =Time!DX$27 -> 2032-11-30 | DY4: =Time!DY$27 -> 2032-12-31 | DZ4: =Time!DZ$27 -> 2033-01-31 | EA4: =Time!EA$27 -> 2033-02-28 | EB4: =Time!EB$27 -> 2033-03-31 | EC4: =Time!EC$27 -> 2033-04-30 | ED4: =Time!ED$27 -> 2033-05-31 | EE4: =Time!EE$27 -> 2033-06-30 | EF4: =Time!EF$27 -> 2033-07-31 | EG4: =Time!EG$27 -> 2033-08-31 | EH4: =Time!EH$27 -> 2033-09-30 | EI4: =Time!EI$27 -> 2033-10-31 | EJ4: =Time!EJ$27 -> 2033-11-30 | EK4: =Time!EK$27 -> 2033-12-31 | EL4: =Time!EL$27 -> 2034-01-31 | EM4: =Time!EM$27 -> 2034-02-28 | EN4: =Time!EN$27 -> 2034-03-31 | EO4: =Time!EO$27 -> 2034-04-30 | EP4: =Time!EP$27 -> 2034-05-31 | EQ4: =Time!EQ$27 -> 2034-06-30 | ER4: =Time!ER$27 -> 2034-07-31 | ES4: =Time!ES$27 -> 2034-08-31 | ET4: =Time!ET$27 -> 2034-09-30 | EU4: =Time!EU$27 -> 2034-10-31 | EV4: =Time!EV$27 -> 2034-11-30 | EW4: =Time!EW$27 -> 2034-12-31 | EX4: =Time!EX$27 -> 2035-01-31 | EY4: =Time!EY$27 -> 2035-02-28 | EZ4: =Time!EZ$27 -> 2035-03-31 | FA4: =Time!FA$27 -> 2035-04-30 | FB4: =Time!FB$27 -> 2035-05-31 | FC4: =Time!FC$27 -> 2035-06-30 | FD4: =Time!FD$27 -> 2035-07-31 | FE4: =Time!FE$27 -> 2035-08-31 | FF4: =Time!FF$27 -> 2035-09-30 | FG4: =Time!FG$27 -> 2035-10-31 | FH4: =Time!FH$27 -> 2035-11-30 | FI4: =Time!FI$27 -> 2035-12-31 | FJ4: =Time!FJ$27 -> 2036-01-31 | FK4: =Time!FK$27 -> 2036-02-29 | FL4: =Time!FL$27 -> 2036-03-31 | FM4: =Time!FM$27 -> 2036-04-30 | FN4: =Time!FN$27 -> 2036-05-31 | FO4: =Time!FO$27 -> 2036-06-30 | FP4: =Time!FP$27 -> 2036-07-31 | FQ4: =Time!FQ$27 -> 2036-08-31 | FR4: =Time!FR$27 -> 2036-09-30 | FS4: =Time!FS$27 -> 2036-10-31 | FT4: =Time!FT$27 -> 2036-11-30 | FU4: =Time!FU$27 -> 2036-12-31 | FV4: =Time!FV$27 -> 2037-01-31 | FW4: =Time!FW$27 -> 2037-02-28 | FX4: =Time!FX$27 -> 2037-03-31 | FY4: =Time!FY$27 -> 2037-04-30 | FZ4: =Time!FZ$27 -> 2037-05-31 | GA4: =Time!GA$27 -> 2037-06-30 | GB4: =Time!GB$27 -> 2037-07-31 | GC4: =Time!GC$27 -> 2037-08-31 | GD4: =Time!GD$27 -> 2037-09-30 | GE4: =Time!GE$27 -> 2037-10-31 | GF4: =Time!GF$27 -> 2037-11-30 | GG4: =Time!GG$27 -> 2037-12-31 | GH4: =Time!GH$27 -> 2038-01-31 | GI4: =Time!GI$27 -> 2038-02-28 | GJ4: =Time!GJ$27 -> 2038-03-31
E5: Version | F5: Date | G5: Time | H5: Description | I5: Label link | J5: Current value | K5: Previous value | L5: Requested by | M5: Additional details | N5: Scenario | O5: Metric 1 | P5: Metric 2 | Q5: Metric 3 | R5: Metric 4 | S5: Metric 5 | V5: InpS_Qtr | W5: =Time!W$71 -> Construction | X5: =Time!X$71 -> Construction | Y5: =Time!Y$71 -> Construction | Z5: =Time!Z$71 -> Construction | AA5: =Time!AA$71 -> Construction | AB5: =Time!AB$71 -> Construction | AC5: =Time!AC$71 -> Construction | AD5: =Time!AD$71 -> Construction | AE5: =Time!AE$71 -> Construction | AF5: =Time!AF$71 -> Construction | AG5: =Time!AG$71 -> Construction | AH5: =Time!AH$71 -> Operations | AI5: =Time!AI$71 -> Operations | AJ5: =Time!AJ$71 -> Operations | AK5: =Time!AK$71 -> Operations | AL5: =Time!AL$71 -> Operations | AM5: =Time!AM$71 -> Operations | AN5: =Time!AN$71 -> Operations | AO5: =Time!AO$71 -> Operations | AP5: =Time!AP$71 -> Operations | AQ5: =Time!AQ$71 -> Operations | AR5: =Time!AR$71 -> Operations | AS5: =Time!AS$71 -> Operations | AT5: =Time!AT$71 -> Operations | AU5: =Time!AU$71 -> Operations | AV5: =Time!AV$71 -> Operations | AW5: =Time!AW$71 -> Operations | AX5: =Time!AX$71 -> Operations | AY5: =Time!AY$71 -> Operations | AZ5: =Time!AZ$71 -> Operations | BA5: =Time!BA$71 -> Operations | BB5: =Time!BB$71 -> Operations | BC5: =Time!BC$71 -> Operations | BD5: =Time!BD$71 -> Operations | BE5: =Time!BE$71 -> Operations | BF5: =Time!BF$71 -> Operations | BG5: =Time!BG$71 -> Operations | BH5: =Time!BH$71 -> Operations | BI5: =Time!BI$71 -> Operations | BJ5: =Time!BJ$71 -> Operations | BK5: =Time!BK$71 -> Operations | BL5: =Time!BL$71 -> Operations | BM5: =Time!BM$71 -> Operations | BN5: =Time!BN$71 -> Operations | BO5: =Time!BO$71 -> Operations | BP5: =Time!BP$71 -> Operations | BQ5: =Time!BQ$71 -> Operations | BR5: =Time!BR$71 -> Operations | BS5: =Time!BS$71 -> Operations | BT5: =Time!BT$71 -> Operations | BU5: =Time!BU$71 -> Operations | BV5: =Time!BV$71 -> Operations | BW5: =Time!BW$71 -> Operations | BX5: =Time!BX$71 -> Operations | BY5: =Time!BY$71 -> Operations | BZ5: =Time!BZ$71 -> Operations | CA5: =Time!CA$71 -> Operations | CB5: =Time!CB$71 -> Operations | CC5: =Time!CC$71 -> Operations | CD5: =Time!CD$71 -> Operations | CE5: =Time!CE$71 -> Operations | CF5: =Time!CF$71 -> Operations | CG5: =Time!CG$71 -> Operations | CH5: =Time!CH$71 -> Operations | CI5: =Time!CI$71 -> Operations | CJ5: =Time!CJ$71 -> Operations | CK5: =Time!CK$71 -> Operations | CL5: =Time!CL$71 -> Operations | CM5: =Time!CM$71 -> Operations | CN5: =Time!CN$71 -> Operations | CO5: =Time!CO$71 -> Operations | CP5: =Time!CP$71 -> Operations | CQ5: =Time!CQ$71 -> Operations | CR5: =Time!CR$71 -> Operations | CS5: =Time!CS$71 -> Operations | CT5: =Time!CT$71 -> Operations | CU5: =Time!CU$71 -> Operations | CV5: =Time!CV$71 -> Operations | CW5: =Time!CW$71 -> Operations | CX5: =Time!CX$71 -> Operations | CY5: =Time!CY$71 -> Operations | CZ5: =Time!CZ$71 -> Operations | DA5: =Time!DA$71 -> Operations | DB5: =Time!DB$71 -> Operations | DC5: =Time!DC$71 -> Operations | DD5: =Time!DD$71 -> Operations | DE5: =Time!DE$71 -> Operations | DF5: =Time!DF$71 -> Operations | DG5: =Time!DG$71 -> Operations | DH5: =Time!DH$71 -> Operations | DI5: =Time!DI$71 -> Operations | DJ5: =Time!DJ$71 -> Operations | DK5: =Time!DK$71 -> Operations | DL5: =Time!DL$71 -> Operations | DM5: =Time!DM$71 -> Operations | DN5: =Time!DN$71 -> Operations | DO5: =Time!DO$71 -> Operations | DP5: =Time!DP$71 -> Operations | DQ5: =Time!DQ$71 -> Operations | DR5: =Time!DR$71 -> Operations | DS5: =Time!DS$71 -> Operations | DT5: =Time!DT$71 -> Operations | DU5: =Time!DU$71 -> Operations | DV5: =Time!DV$71 -> Operations | DW5: =Time!DW$71 -> Operations | DX5: =Time!DX$71 -> Operations | DY5: =Time!DY$71 -> Operations | DZ5: =Time!DZ$71 -> Operations | EA5: =Time!EA$71 -> Operations | EB5: =Time!EB$71 -> Operations | EC5: =Time!EC$71 -> Operations | ED5: =Time!ED$71 -> Operations | EE5: =Time!EE$71 -> Operations | EF5: =Time!EF$71 -> Operations | EG5: =Time!EG$71 -> Operations | EH5: =Time!EH$71 -> Operations | EI5: =Time!EI$71 -> Operations | EJ5: =Time!EJ$71 -> Operations | EK5: =Time!EK$71 -> Operations | EL5: =Time!EL$71 -> Operations | EM5: =Time!EM$71 -> Operations | EN5: =Time!EN$71 -> Operations | EO5: =Time!EO$71 -> Operations | EP5: =Time!EP$71 -> Operations | EQ5: =Time!EQ$71 -> Operations | ER5: =Time!ER$71 -> Operations | ES5: =Time!ES$71 -> Operations | ET5: =Time!ET$71 -> Operations | EU5: =Time!EU$71 -> Operations | EV5: =Time!EV$71 -> Operations | EW5: =Time!EW$71 -> Operations | EX5: =Time!EX$71 -> Operations | EY5: =Time!EY$71 -> Operations | EZ5: =Time!EZ$71 -> Operations | FA5: =Time!FA$71 -> Operations | FB5: =Time!FB$71 -> Operations | FC5: =Time!FC$71 -> Operations | FD5: =Time!FD$71 -> Operations | FE5: =Time!FE$71 -> Operations | FF5: =Time!FF$71 -> Operations | FG5: =Time!FG$71 -> Operations | FH5: =Time!FH$71 -> Operations | FI5: =Time!FI$71 -> Operations | FJ5: =Time!FJ$71 -> Operations | FK5: =Time!FK$71 -> Operations | FL5: =Time!FL$71 -> Operations | FM5: =Time!FM$71 -> Operations | FN5: =Time!FN$71 -> Operations | FO5: =Time!FO$71 -> Operations | FP5: =Time!FP$71 -> Operations | FQ5: =Time!FQ$71 -> Operations | FR5: =Time!FR$71 -> Operations | FS5: =Time!FS$71 -> Operations | FT5: =Time!FT$71 -> Operations | FU5: =Time!FU$71 -> Operations | FV5: =Time!FV$71 -> Operations | FW5: =Time!FW$71 -> Operations | FX5: =Time!FX$71 -> Operations | FY5: =Time!FY$71 -> Operations | FZ5: =Time!FZ$71 -> Operations | GA5: =Time!GA$71 -> Operations | GB5: =Time!GB$71 -> Operations | GC5: =Time!GC$71 -> Operations | GD5: =Time!GD$71 -> Operations | GE5: =Time!GE$71 -> Operations | GF5: =Time!GF$71 -> Operations | GG5: =Time!GG$71 -> Operations | GH5: =Time!GH$71 -> Operations | GI5: =Time!GI$71 -> Operations | GJ5: =Time!GJ$71 -> Operations
A7: NOTE: CHANGES ARE LISTED IN REVERSE ORDER WITH MOST RECENT CHANGES AT THE TOP

Sheet InpC
A1: =RIGHT(CELL("filename", A1), LEN(CELL("filename", A1)) - SEARCH("]", CELL("filename", A1))) & " - " & $F$3 -> InpC - Base case 1
K2: =IF(K4 = $F4, "q", "") -> q
F3: =INDEX(J3:S3,MATCH(F4,J4:S4)) -> Base case 1 | K3: Base case 1 | L3: Base case 2 | M3: Base case 3 | O3: Scenario 1 | P3: Scenario 2 | Q3: Scenario 3 | R3: Scenario 4
E4: Active scenario | F4: 1 | I4: =MATCH(F4, $J$4:$S$4) -> 2 | K4: 1 | L4: 2 | M4: 3 | O4: 5 | P4: 6 | Q4: 7 | R4: 8
E5: Comparison scenario | F5: 1 | I5: =MATCH(F5, $J$4:$S$4) -> 2
E6: Base case | F6: =INDEX(J6:S6,MATCH(F4,J4:S4,0)) -> 1 | I6: =MATCH(F6, $J$4:$S$4) -> 2 | K6: 1 | L6: 2 | M6: 3 | O6: 1 | P6: 1 | Q6: 2 | R6: 2
E7: Input differences | F7: =COUNTIF(I10:I108, "tu") -> 0 | K7: =IF(K6 = $F$6, "Base case", "") -> Base case | L7: =IF(L6 = $F$6, "Base case", "") ->  | M7: =IF(M6 = $F$6, "Base case", "") -> 
F9: Constant | G9: Unit | H9: Source
A11: TIMING ASSUMPTIONS
E13: Financial Close Date | F13: =IF( INDEX(J13:S13, $I$4) = "", INDEX(J13:R13, $I$6), INDEX(J13:S13, $I$4)) -> 2023-01-01 | G13: date | I13: =IF( INDEX(J13:S13, I$5) = "", IF( INDEX(J13:S13, I$6) = F13, "vw", "tu"), IF(INDEX(J13:S13, I$5) = F13, "vw", "tu")) -> vw | K13: 2023-01-01
E14: Annual year end date of first operating period | F14: 2023-01-01 | G14: date | I14: =IF( INDEX(J14:S14, I$5) = "", IF( INDEX(J14:S14, I$6) = F14, "vw", "tu"), IF(INDEX(J14:S14, I$5) = F14, "vw", "tu")) -> vw | K14: 2023-01-01
E15: Financial year end month number | F15: 12 | G15: month # | I15: =IF( INDEX(J15:S15, I$5) = "", IF( INDEX(J15:S15, I$6) = F15, "vw", "tu"), IF(INDEX(J15:S15, I$5) = F15, "vw", "tu")) -> vw | K15: 12
E16: Construction Start | F16: 2023-01-01 | G16: date | I16: =IF( INDEX(J16:S16, I$5) = "", IF( INDEX(J16:S16, I$6) = F16, "vw", "tu"), IF(INDEX(J16:S16, I$5) = F16, "vw", "tu")) -> vw | K16: 2023-01-01
E17: Construction period | F17: 24 | G17: months | I17: =IF( INDEX(J17:S17, I$5) = "", IF( INDEX(J17:S17, I$6) = F17, "vw", "tu"), IF(INDEX(J17:S17, I$5) = F17, "vw", "tu")) -> vw | K17: 24
E18: Construction period end | F18: 2024-12-01 | G18: date | K18: =EDATE(K16,K17-1) -> 2024-12-01
E19: Commercial operation date | F19: =IF( INDEX(J19:S19, $I$4) = "", INDEX(J19:R19, $I$6), INDEX(J19:S19, $I$4)) -> 2025-01-01 | G19: date | I19: =IF( INDEX(J19:S19, I$5) = "", IF( INDEX(J19:S19, I$6) = F19, "vw", "tu"), IF(INDEX(J19:S19, I$5) = F19, "vw", "tu")) -> vw | K19: =EDATE(K16,K17) -> 2025-01-01
E20: Decommision date | F20: 2055-01-01 | G20: date | K20: =EDATE(K19,K27*months) -> 2055-01-01
E21: Commercial operation end date | F21: 2054-12-31 | G21: date | K21: =EOMONTH(EDATE(K20,-1),0) -> 2054-12-31
E23: Months in period pre-COD | F23: =IF( INDEX(J23:S23, $I$4) = "", INDEX(J23:R23, $I$6), INDEX(J23:S23, $I$4)) -> 1 | G23: months | I23: =IF( INDEX(J23:S23, I$5) = "", IF( INDEX(J23:S23, I$6) = F23, "vw", "tu"), IF(INDEX(J23:S23, I$5) = F23, "vw", "tu")) -> vw | K23: 1
E25: Acquisition date | F25: =IF( INDEX(J25:S25, $I$4) = "", INDEX(J25:R25, $I$6), INDEX(J25:S25, $I$4)) -> 2023-01-01 | G25: date | I25: =IF( INDEX(J25:S25, I$5) = "", IF( INDEX(J25:S25, I$6) = F25, "vw", "tu"), IF(INDEX(J25:S25, I$5) = F25, "vw", "tu")) -> vw | K25: 2023-01-01
E27: Operating years remaining | F27: =IF( INDEX(J27:S27, $I$4) = "", INDEX(J27:R27, $I$6), INDEX(J27:S27, $I$4)) -> 30 | G27: years | I27: =IF( INDEX(J27:S27, I$5) = "", IF( INDEX(J27:S27, I$6) = F27, "vw", "tu"), IF(INDEX(J27:S27, I$5) = F27, "vw", "tu")) -> vw | K27: 30
E28: Contract extension | F28: =IF( INDEX(J28:S28, $I$4) = "", INDEX(J28:R28, $I$6), INDEX(J28:S28, $I$4)) -> 0 | G28: years | I28: =IF( INDEX(J28:S28, I$5) = "", IF( INDEX(J28:S28, I$6) = F28, "vw", "tu"), IF(INDEX(J28:S28, I$5) = F28, "vw", "tu")) -> vw | K28: 0
A30: Solar plant details
E32: Capacity of plant | F32: =IF( INDEX(J32:S32, $I$4) = "", INDEX(J32:R32, $I$6), INDEX(J32:S32, $I$4)) -> 60 | G32: MWp | K32: 60
E34: Apply P50 (1 = yes, 0 = no) | F34: =IF( INDEX(J34:S34, $I$4) = "", INDEX(J34:R34, $I$6), INDEX(J34:S34, $I$4)) -> 1 | G34: Flag | K34: 1
E36: P50 plant yield - annual | F36: =IF( INDEX(J36:S36, $I$4) = "", INDEX(J36:R36, $I$6), INDEX(J36:S36, $I$4)) -> 2477 | G36: MWh/MWp | K36: 2477
E37: P90 plant yield - annual | F37: =IF( INDEX(J37:S37, $I$4) = "", INDEX(J37:R37, $I$6), INDEX(J37:S37, $I$4)) -> 2373 | G37: MWh/MWp | K37: 2373
E38: P90 vs P50 | F38: =IF( INDEX(J38:S38, $I$4) = "", INDEX(J38:R38, $I$6), INDEX(J38:S38, $I$4)) -> 0.9580137263 | G38: % | K38: =K37/K36 -> 0.9580137263
E40: Plant availability factor | F40: =IF( INDEX(J40:S40, $I$4) = "", INDEX(J40:R40, $I$6), INDEX(J40:S40, $I$4)) -> 0.99 | G40: % | K40: 0.99
E41: Degradation | F41: =IF( INDEX(J41:S41, $I$4) = "", INDEX(J41:R41, $I$6), INDEX(J41:S41, $I$4)) -> 0.005 | G41: % p.a. | K41: 0.005
A43: Revenues
E45: PPA term contract | F45: =IF( INDEX(J45:S45, $I$4) = "", INDEX(J45:R45, $I$6), INDEX(J45:S45, $I$4)) -> 30 | G45: Years | K45: 30
E46: Offtake amount | F46: 1 | G46: % | K46: 1
E47: Power price for offtake (in USD 2021) | F47: 40 | G47: USD/MWh | K47: 40
E48: Apply PPA inflation | F48: 1 | G48: 1 = yes, 0 = no | K48: 1
E49: Start date for inflation | F49: 2021-01-01 | G49: Date | K49: 2021-01-01
E50: PPA inflation rate from COD | F50: 0.025 | G50: % p.a. | K50: 0.025
E52: Revenues arrear collection | F52: =IF( INDEX(J52:S52, $I$4) = "", INDEX(J52:R52, $I$6), INDEX(J52:S52, $I$4)) -> 2 | G52: Months | K52: 2
A54: Operation and maintenance
E56: Land lease | F56: =IF( INDEX(J56:S56, $I$4) = "", INDEX(J56:R56, $I$6), INDEX(J56:S56, $I$4)) -> 300 | G56: $ 000s / Yr | K56: 300
E57: Land lease inflated switch | F57: 0 | G57: 1 = yes; 0 = no | K57: 0
E58: Land lease inflation start | F58: 2023-01-01 | G58: Date | K58: 2023-01-01 | N58: 2023-01-01 | S58: 2023-01-01
E59: Land lease inflation if applied | F59: 0.025 | G59: % p.a. | K59: 0.025
E61: O&M inflation | F61: =IF( INDEX(J61:S61, $I$4) = "", INDEX(J61:R61, $I$6), INDEX(J61:S61, $I$4)) -> 0.025 | G61: % p.a. | K61: 0.025
E63: O&M per year - initial | F63: =IF( INDEX(J63:S63, $I$4) = "", INDEX(J63:R63, $I$6), INDEX(J63:S63, $I$4)) -> 7 | G63: $ 000s / MWp - Yr | K63: 7
E64: Initial period for O&M | F64: 5 | G64: Years | K64: 5
E65: O&M per Year after initial period | F65: 5 | G65: USD 000s / MWp | K65: 5
E67: Insurance during operation | F67: =IF( INDEX(J67:S67, $I$4) = "", INDEX(J67:R67, $I$6), INDEX(J67:S67, $I$4)) -> 5 | G67: $ 000s / MWp - Yr | K67: 5
E68: Asset management charge | F68: 18 | G68: $ 000s / Yr | K68: 18
E69: Security Services | F69: 20 | G69: $ 000s / Yr | K69: 20
E70: Additional OpEx | F70: 30 | G70: $ 000s / Yr | K70: 30
E72: Operations and maintenance payement arrears | F72: =IF( INDEX(J72:S72, $I$4) = "", INDEX(J72:R72, $I$6), INDEX(J72:S72, $I$4)) -> 2 | G72: Months | K72: 2
A74: Capital expenditures
E76: Developer bonus | F76: =IF( INDEX(J76:S76, $I$4) = "", INDEX(J76:R76, $I$6), INDEX(J76:S76, $I$4)) -> 3600 | G76: =SMU -> $ 000s | K76: 3600
E77: Date of developer bonus payment | F77: 2023-01-01 | G77: Date | K77: 2023-01-01
E78: EPC contractor | F78: 750 | G78: USD 000s / MWp | K78: 750
E79: Contingency | F79: 0.005 | G79: % | K79: 0.005
E80: Additional costs | F80: 1500 | G80: =SMU -> $ 000s | K80: 1500
E81: Insurance | F81: 10 | G81: $ 000s / MW p.a. | K81: 10
A83: Taxes and capital allowance
E84: Capital allowance | F84: =IF( INDEX(J84:S84, $I$4) = "", INDEX(J84:R84, $I$6), INDEX(J84:S84, $I$4)) -> 0.2 | G84: % p.a. | K84: 0.2
E85: Tax rate | F85: 0.2 | G85: % | K85: 0.2
A87: Funding
C88: Senior debt
E89: Debt | F89: =IF( INDEX(J89:S89, $I$4) = "", INDEX(J89:R89, $I$6), INDEX(J89:S89, $I$4)) -> 0.8 | G89: % | K89: 0.8
E90: Equity | F90: 0.2 | G90: % | K90: =1-K89 -> 0.2
E91: Maximum debt sizing | F91: 0.8 | G91: % | K91: 0.8
E92: DSCR target | F92: 1.25 | G92: Factor | K92: 1.25
E94: Debt repayment start date | F94: =IF( INDEX(J94:S94, $I$4) = "", INDEX(J94:R94, $I$6), INDEX(J94:S94, $I$4)) -> 2025-01-01 | G94: date | I94: =IF( INDEX(J94:S94, I$5) = "", IF( INDEX(J94:S94, I$6) = F94, "vw", "tu"), IF(INDEX(J94:S94, I$5) = F94, "vw", "tu")) -> vw | K94: 2025-01-01
E95: Debt tenor | F95: 18 | G95: Years | K95: 18
E96: End of debt repayment | F96: 2042-12-01 | G96: Date | K96: =EDATE(K19,K95*months-1) -> 2042-12-01
E97: Interest and principal repayment timing | F97: 6 | G97: Months | K97: 6
E99: Annual interest rate | F99: 0.025 | G99: % p.a. | K99: 0.025
C101: Shareholders loan
E102: Shareholder loan as percent of equity | F102: =IF( INDEX(J102:S102, $I$4) = "", INDEX(J102:R102, $I$6), INDEX(J102:S102, $I$4)) -> 0 | G102: % | K102: 0
E103: Shareholder loan interest rate | F103: 0.08 | G103: % p.a. | K103: 0.08
E104: Capitalize interest on shareholder loan | F104: 1 | G104: 1 = yes; 0 = no | K104: 1
E105: Allow SHL interest deduction in Taxes | F105: 0 | G105: 1 = yes; 0 = no | K105: 0
E106: Cash flow sweep percent | F106: 0 | G106: % | K106: 0
A108: MODEL TECHNICAL INPUTS - DO NOT CHANGE
E110: Model track tolerance level | F110: 0.001 | G110: tolerance
E111: Model check tolerance level | F111: 0.001 | G111: tolerance
E112: Months in year | F112: 12 | G112: months
E113: Number of periods in a year | F113: 2 | G113: periods
E114: Standard Monetary Unit | F114: $ 000s | G114: named "SMU"
E115: US$c / US$ | F115: 100 | G115: US$c / US$
E116: Units in a thousand | F116: 1000 | G116: units
E117: Months in period for Semi-Annual Model | F117: 6 | G117: months
E118: Months in period pre-COD | F118: 1 | G118: months
E119: Days in a Year | F119: 365 | G119: days
B121: Timeline label
E122: Financial Close | F122: Fin Close | G122: label
E123: Construction | F123: Construction | G123: label
E124: Operations | F124: Operations | G124: label
E125: Post ops | F125: Post ops | G125: label
E127: Input row template for relocation macro | F127: =IF( INDEX(J127:S127, $I$4) = "", INDEX(J127:R127, $I$6), INDEX(J127:S127, $I$4)) -> 0 | G127: unit | I127: =IF( INDEX(J127:S127, I$5) = "", IF( INDEX(J127:S127, I$6) = F127, "vw", "tu"), IF(INDEX(J127:S127, I$5) = F127, "vw", "tu")) -> vw
A130: END
E132: Financial close code | F132: =IF( INDEX(J132:S132, $I$4) = "", INDEX(J132:R132, $I$6), INDEX(J132:S132, $I$4)) -> 1 | G132: Code | I132: =IF( INDEX(J132:S132, I$5) = "", IF( INDEX(J132:S132, I$6) = F132, "vw", "tu"), IF(INDEX(J132:S132, I$5) = F132, "vw", "tu")) -> vw | K132: 1 | L132: 1 | M132: 1
E134: Construction period code | F134: =IF( INDEX(J134:S134, $I$4) = "", INDEX(J134:R134, $I$6), INDEX(J134:S134, $I$4)) -> 2 | G134: Code | I134: =IF( INDEX(J134:S134, I$5) = "", IF( INDEX(J134:S134, I$6) = F134, "vw", "tu"), IF(INDEX(J134:S134, I$5) = F134, "vw", "tu")) -> vw | K134: 2 | L134: 2 | M134: 2
E136: Operating period code | F136: =IF( INDEX(J136:S136, $I$4) = "", INDEX(J136:R136, $I$6), INDEX(J136:S136, $I$4)) -> 3 | G136: code | I136: =IF( INDEX(J136:S136, I$5) = "", IF( INDEX(J136:S136, I$6) = F136, "vw", "tu"), IF(INDEX(J136:S136, I$5) = F136, "vw", "tu")) -> vw | K136: 3 | L136: 3 | M136: 3
E138: Post operating period code | F138: =IF( INDEX(J138:S138, $I$4) = "", INDEX(J138:R138, $I$6), INDEX(J138:S138, $I$4)) -> 4 | G138: code | I138: =IF( INDEX(J138:S138, I$5) = "", IF( INDEX(J138:S138, I$6) = F138, "vw", "tu"), IF(INDEX(J138:S138, I$5) = F138, "vw", "tu")) -> vw | K138: 4 | L138: 4 | M138: 4
E140: Model start date | F140: =IF( INDEX(J140:S140, $I$4) = "", INDEX(J140:R140, $I$6), INDEX(J140:S140, $I$4)) -> 2023-01-01 | G140: date | I140: =IF( INDEX(J140:S140, I$5) = "", IF( INDEX(J140:S140, I$6) = F140, "vw", "tu"), IF(INDEX(J140:S140, I$5) = F140, "vw", "tu")) -> vw | K140: 2023-01-01 | L140: 2023-01-01 | M140: 2023-01-01

Sheet InpS
A1: =RIGHT(CELL("filename", A1), LEN(CELL("filename", A1)) - SEARCH("]", CELL("filename", A1))) & " - " & InpC!F3 -> InpS - Base case 1
E2: =Time!E5 -> Model period ending | F2: =Check!$F$9 -> 0 | G2: Error chks | J2: =Time!J5 -> 2023-01-31 | K2: =Time!K5 -> 2023-02-28 | L2: =Time!L5 -> 2023-03-31 | M2: =Time!M5 -> 2023-04-30 | N2: =Time!N5 -> 2023-05-31 | O2: =Time!O5 -> 2023-06-30 | P2: =Time!P5 -> 2023-07-31 | Q2: =Time!Q5 -> 2023-08-31 | R2: =Time!R5 -> 2023-09-30 | S2: =Time!S5 -> 2023-10-31 | T2: =Time!T5 -> 2023-11-30 | U2: =Time!U5 -> 2023-12-31 | V2: =Time!V5 -> 2024-01-31 | W2: =Time!W5 -> 2024-02-29 | X2: =Time!X5 -> 2024-03-31 | Y2: =Time!Y5 -> 2024-04-30 | Z2: =Time!Z5 -> 2024-05-31 | AA2: =Time!AA5 -> 2024-06-30 | AB2: =Time!AB5 -> 2024-07-31 | AC2: =Time!AC5 -> 2024-08-31 | AD2: =Time!AD5 -> 2024-09-30 | AE2: =Time!AE5 -> 2024-10-31 | AF2: =Time!AF5 -> 2024-11-30 | AG2: =Time!AG5 -> 2024-12-31 | AH2: =Time!AH5 -> 2025-01-31 | AI2: =Time!AI5 -> 2025-02-28 | AJ2: =Time!AJ5 -> 2025-03-31 | AK2: =Time!AK5 -> 2025-04-30 | AL2: =Time!AL5 -> 2025-05-31 | AM2: =Time!AM5 -> 2025-06-30 | AN2: =Time!AN5 -> 2025-07-31 | AO2: =Time!AO5 -> 2025-08-31 | AP2: =Time!AP5 -> 2025-09-30 | AQ2: =Time!AQ5 -> 2025-10-31 | AR2: =Time!AR5 -> 2025-11-30 | AS2: =Time!AS5 -> 2025-12-31 | AT2: =Time!AT5 -> 2026-01-31 | AU2: =Time!AU5 -> 2026-02-28 | AV2: =Time!AV5 -> 2026-03-31 | AW2: =Time!AW5 -> 2026-04-30 | AX2: =Time!AX5 -> 2026-05-31 | AY2: =Time!AY5 -> 2026-06-30 | AZ2: =Time!AZ5 -> 2026-07-31 | BA2: =Time!BA5 -> 2026-08-31 | BB2: =Time!BB5 -> 2026-09-30 | BC2: =Time!BC5 -> 2026-10-31 | BD2: =Time!BD5 -> 2026-11-30 | BE2: =Time!BE5 -> 2026-12-31 | BF2: =Time!BF5 -> 2027-01-31 | BG2: =Time!BG5 -> 2027-02-28 | BH2: =Time!BH5 -> 2027-03-31 | BI2: =Time!BI5 -> 2027-04-30 | BJ2: =Time!BJ5 -> 2027-05-31 | BK2: =Time!BK5 -> 2027-06-30 | BL2: =Time!BL5 -> 2027-07-31 | BM2: =Time!BM5 -> 2027-08-31 | BN2: =Time!BN5 -> 2027-09-30 | BO2: =Time!BO5 -> 2027-10-31 | BP2: =Time!BP5 -> 2027-11-30 | BQ2: =Time!BQ5 -> 2027-12-31 | BR2: =Time!BR5 -> 2028-01-31 | BS2: =Time!BS5 -> 2028-02-29 | BT2: =Time!BT5 -> 2028-03-31 | BU2: =Time!BU5 -> 2028-04-30 | BV2: =Time!BV5 -> 2028-05-31 | BW2: =Time!BW5 -> 2028-06-30 | BX2: =Time!BX5 -> 2028-07-31 | BY2: =Time!BY5 -> 2028-08-31 | BZ2: =Time!BZ5 -> 2028-09-30 | CA2: =Time!CA5 -> 2028-10-31 | CB2: =Time!CB5 -> 2028-11-30 | CC2: =Time!CC5 -> 2028-12-31 | CD2: =Time!CD5 -> 2029-01-31 | CE2: =Time!CE5 -> 2029-02-28 | CF2: =Time!CF5 -> 2029-03-31 | CG2: =Time!CG5 -> 2029-04-30 | CH2: =Time!CH5 -> 2029-05-31 | CI2: =Time!CI5 -> 2029-06-30 | CJ2: =Time!CJ5 -> 2029-07-31 | CK2: =Time!CK5 -> 2029-08-31 | CL2: =Time!CL5 -> 2029-09-30 | CM2: =Time!CM5 -> 2029-10-31 | CN2: =Time!CN5 -> 2029-11-30 | CO2: =Time!CO5 -> 2029-12-31 | CP2: =Time!CP5 -> 2030-01-31 | CQ2: =Time!CQ5 -> 2030-02-28 | CR2: =Time!CR5 -> 2030-03-31 | CS2: =Time!CS5 -> 2030-04-30 | CT2: =Time!CT5 -> 2030-05-31 | CU2: =Time!CU5 -> 2030-06-30 | CV2: =Time!CV5 -> 2030-07-31 | CW2: =Time!CW5 -> 2030-08-31 | CX2: =Time!CX5 -> 2030-09-30 | CY2: =Time!CY5 -> 2030-10-31 | CZ2: =Time!CZ5 -> 2030-11-30 | DA2: =Time!DA5 -> 2030-12-31 | DB2: =Time!DB5 -> 2031-01-31 | DC2: =Time!DC5 -> 2031-02-28 | DD2: =Time!DD5 -> 2031-03-31 | DE2: =Time!DE5 -> 2031-04-30 | DF2: =Time!DF5 -> 2031-05-31 | DG2: =Time!DG5 -> 2031-06-30 | DH2: =Time!DH5 -> 2031-07-31 | DI2: =Time!DI5 -> 2031-08-31 | DJ2: =Time!DJ5 -> 2031-09-30 | DK2: =Time!DK5 -> 2031-10-31 | DL2: =Time!DL5 -> 2031-11-30 | DM2: =Time!DM5 -> 2031-12-31 | DN2: =Time!DN5 -> 2032-01-31 | DO2: =Time!DO5 -> 2032-02-29 | DP2: =Time!DP5 -> 2032-03-31 | DQ2: =Time!DQ5 -> 2032-04-30 | DR2: =Time!DR5 -> 2032-05-31 | DS2: =Time!DS5 -> 2032-06-30 | DT2: =Time!DT5 -> 2032-07-31 | DU2: =Time!DU5 -> 2032-08-31 | DV2: =Time!DV5 -> 2032-09-30 | DW2: =Time!DW5 -> 2032-10-31 | DX2: =Time!DX5 -> 2032-11-30 | DY2: =Time!DY5 -> 2032-12-31 | DZ2: =Time!DZ5 -> 2033-01-31 | EA2: =Time!EA5 -> 2033-02-28 | EB2: =Time!EB5 -> 2033-03-31 | EC2: =Time!EC5 -> 2033-04-30 | ED2: =Time!ED5 -> 2033-05-31 | EE2: =Time!EE5 -> 2033-06-30 | EF2: =Time!EF5 -> 2033-07-31 | EG2: =Time!EG5 -> 2033-08-31 | EH2: =Time!EH5 -> 2033-09-30 | EI2: =Time!EI5 -> 2033-10-31 | EJ2: =Time!EJ5 -> 2033-11-30 | EK2: =Time!EK5 -> 2033-12-31 | EL2: =Time!EL5 -> 2034-01-31 | EM2: =Time!EM5 -> 2034-02-28 | EN2: =Time!EN5 -> 2034-03-31 | EO2: =Time!EO5 -> 2034-04-30 | EP2: =Time!EP5 -> 2034-05-31 | EQ2: =Time!EQ5 -> 2034-06-30 | ER2: =Time!ER5 -> 2034-07-31 | ES2: =Time!ES5 -> 2034-08-31 | ET2: =Time!ET5 -> 2034-09-30 | EU2: =Time!EU5 -> 2034-10-31 | EV2: =Time!EV5 -> 2034-11-30 | EW2: =Time!EW5 -> 2034-12-31 | EX2: =Time!EX5 -> 2035-01-31 | EY2: =Time!EY5 -> 2035-02-28 | EZ2: =Time!EZ5 -> 2035-03-31 | FA2: =Time!FA5 -> 2035-04-30 | FB2: =Time!FB5 -> 2035-05-31 | FC2: =Time!FC5 -> 2035-06-30 | FD2: =Time!FD5 -> 2035-07-31 | FE2: =Time!FE5 -> 2035-08-31 | FF2: =Time!FF5 -> 2035-09-30 | FG2: =Time!FG5 -> 2035-10-31 | FH2: =Time!FH5 -> 2035-11-30 | FI2: =Time!FI5 -> 2035-12-31 | FJ2: =Time!FJ5 -> 2036-01-31 | FK2: =Time!FK5 -> 2036-02-29 | FL2: =Time!FL5 -> 2036-03-31 | FM2: =Time!FM5 -> 2036-04-30 | FN2: =Time!FN5 -> 2036-05-31 | FO2: =Time!FO5 -> 2036-06-30 | FP2: =Time!FP5 -> 2036-07-31 | FQ2: =Time!FQ5 -> 2036-08-31 | FR2: =Time!FR5 -> 2036-09-30 | FS2: =Time!FS5 -> 2036-10-31 | FT2: =Time!FT5 -> 2036-11-30 | FU2: =Time!FU5 -> 2036-12-31 | FV2: =Time!FV5 -> 2037-01-31 | FW2: =Time!FW5 -> 2037-02-28 | FX2: =Time!FX5 -> 2037-03-31 | FY2: =Time!FY5 -> 2037-04-30 | FZ2: =Time!FZ5 -> 2037-05-31 | GA2: =Time!GA5 -> 2037-06-30 | GB2: =Time!GB5 -> 2037-07-31 | GC2: =Time!GC5 -> 2037-08-31 | GD2: =Time!GD5 -> 2037-09-30 | GE2: =Time!GE5 -> 2037-10-31 | GF2: =Time!GF5 -> 2037-11-30 | GG2: =Time!GG5 -> 2037-12-31 | GH2: =Time!GH5 -> 2038-01-31 | GI2: =Time!GI5 -> 2038-02-28 | GJ2: =Time!GJ5 -> 2038-03-31 | GK2: =Time!GK5 -> 2038-04-30 | GL2: =Time!GL5 -> 2038-05-31 | GM2: =Time!GM5 -> 2038-06-30 | GN2: =Time!GN5 -> 2038-07-31 | GO2: =Time!GO5 -> 2038-08-31 | GP2: =Time!GP5 -> 2038-09-30 | GQ2: =Time!GQ5 -> 2038-10-31 | GR2: =Time!GR5 -> 2038-11-30 | GS2: =Time!GS5 -> 2038-12-31 | GT2: =Time!GT5 -> 2039-01-31 | GU2: =Time!GU5 -> 2039-02-28 | GV2: =Time!GV5 -> 2039-03-31 | GW2: =Time!GW5 -> 2039-04-30 | GX2: =Time!GX5 -> 2039-05-31 | GY2: =Time!GY5 -> 2039-06-30 | GZ2: =Time!GZ5 -> 2039-07-31 | HA2: =Time!HA5 -> 2039-08-31 | HB2: =Time!HB5 -> 2039-09-30 | HC2: =Time!HC5 -> 2039-10-31 | HD2: =Time!HD5 -> 2039-11-30 | HE2: =Time!HE5 -> 2039-12-31 | HF2: =Time!HF5 -> 2040-01-31 | HG2: =Time!HG5 -> 2040-02-29 | HH2: =Time!HH5 -> 2040-03-31 | HI2: =Time!HI5 -> 2040-04-30 | HJ2: =Time!HJ5 -> 2040-05-31 | HK2: =Time!HK5 -> 2040-06-30 | HL2: =Time!HL5 -> 2040-07-31 | HM2: =Time!HM5 -> 2040-08-31 | HN2: =Time!HN5 -> 2040-09-30 | HO2: =Time!HO5 -> 2040-10-31 | HP2: =Time!HP5 -> 2040-11-30 | HQ2: =Time!HQ5 -> 2040-12-31 | HR2: =Time!HR5 -> 2041-01-31 | HS2: =Time!HS5 -> 2041-02-28 | HT2: =Time!HT5 -> 2041-03-31 | HU2: =Time!HU5 -> 2041-04-30 | HV2: =Time!HV5 -> 2041-05-31 | HW2: =Time!HW5 -> 2041-06-30 | HX2: =Time!HX5 -> 2041-07-31 | HY2: =Time!HY5 -> 2041-08-31 | HZ2: =Time!HZ5 -> 2041-09-30 | IA2: =Time!IA5 -> 2041-10-31 | IB2: =Time!IB5 -> 2041-11-30 | IC2: =Time!IC5 -> 2041-12-31 | ID2: =Time!ID5 -> 2042-01-31 | IE2: =Time!IE5 -> 2042-02-28 | IF2: =Time!IF5 -> 2042-03-31 | IG2: =Time!IG5 -> 2042-04-30 | IH2: =Time!IH5 -> 2042-05-31 | II2: =Time!II5 -> 2042-06-30 | IJ2: =Time!IJ5 -> 2042-07-31 | IK2: =Time!IK5 -> 2042-08-31 | IL2: =Time!IL5 -> 2042-09-30 | IM2: =Time!IM5 -> 2042-10-31 | IN2: =Time!IN5 -> 2042-11-30 | IO2: =Time!IO5 -> 2042-12-31 | IP2: =Time!IP5 -> 2043-01-31 | IQ2: =Time!IQ5 -> 2043-02-28 | IR2: =Time!IR5 -> 2043-03-31 | IS2: =Time!IS5 -> 2043-04-30 | IT2: =Time!IT5 -> 2043-05-31 | IU2: =Time!IU5 -> 2043-06-30 | IV2: =Time!IV5 -> 2043-07-31 | IW2: =Time!IW5 -> 2043-08-31 | IX2: =Time!IX5 -> 2043-09-30 | IY2: =Time!IY5 -> 2043-10-31 | IZ2: =Time!IZ5 -> 2043-11-30 | JA2: =Time!JA5 -> 2043-12-31 | JB2: =Time!JB5 -> 2044-01-31 | JC2: =Time!JC5 -> 2044-02-29 | JD2: =Time!JD5 -> 2044-03-31 | JE2: =Time!JE5 -> 2044-04-30 | JF2: =Time!JF5 -> 2044-05-31 | JG2: =Time!JG5 -> 2044-06-30 | JH2: =Time!JH5 -> 2044-07-31 | JI2: =Time!JI5 -> 2044-08-31 | JJ2: =Time!JJ5 -> 2044-09-30 | JK2: =Time!JK5 -> 2044-10-31 | JL2: =Time!JL5 -> 2044-11-30 | JM2: =Time!JM5 -> 2044-12-31 | JN2: =Time!JN5 -> 2045-01-31 | JO2: =Time!JO5 -> 2045-02-28 | JP2: =Time!JP5 -> 2045-03-31 | JQ2: =Time!JQ5 -> 2045-04-30 | JR2: =Time!JR5 -> 2045-05-31 | JS2: =Time!JS5 -> 2045-06-30 | JT2: =Time!JT5 -> 2045-07-31 | JU2: =Time!JU5 -> 2045-08-31 | JV2: =Time!JV5 -> 2045-09-30 | JW2: =Time!JW5 -> 2045-10-31 | JX2: =Time!JX5 -> 2045-11-30 | JY2: =Time!JY5 -> 2045-12-31 | JZ2: =Time!JZ5 -> 2046-01-31 | KA2: =Time!KA5 -> 2046-02-28 | KB2: =Time!KB5 -> 2046-03-31 | KC2: =Time!KC5 -> 2046-04-30 | KD2: =Time!KD5 -> 2046-05-31 | KE2: =Time!KE5 -> 2046-06-30 | KF2: =Time!KF5 -> 2046-07-31 | KG2: =Time!KG5 -> 2046-08-31 | KH2: =Time!KH5 -> 2046-09-30 | KI2: =Time!KI5 -> 2046-10-31 | KJ2: =Time!KJ5 -> 2046-11-30 | KK2: =Time!KK5 -> 2046-12-31 | KL2: =Time!KL5 -> 2047-01-31 | KM2: =Time!KM5 -> 2047-02-28 | KN2: =Time!KN5 -> 2047-03-31 | KO2: =Time!KO5 -> 2047-04-30 | KP2: =Time!KP5 -> 2047-05-31 | KQ2: =Time!KQ5 -> 2047-06-30 | KR2: =Time!KR5 -> 2047-07-31 | KS2: =Time!KS5 -> 2047-08-31 | KT2: =Time!KT5 -> 2047-09-30 | KU2: =Time!KU5 -> 2047-10-31 | KV2: =Time!KV5 -> 2047-11-30 | KW2: =Time!KW5 -> 2047-12-31 | KX2: =Time!KX5 -> 2048-01-31 | KY2: =Time!KY5 -> 2048-02-29 | KZ2: =Time!KZ5 -> 2048-03-31 | LA2: =Time!LA5 -> 2048-04-30 | LB2: =Time!LB5 -> 2048-05-31 | LC2: =Time!LC5 -> 2048-06-30 | LD2: =Time!LD5 -> 2048-07-31 | LE2: =Time!LE5 -> 2048-08-31 | LF2: =Time!LF5 -> 2048-09-30 | LG2: =Time!LG5 -> 2048-10-31 | LH2: =Time!LH5 -> 2048-11-30 | LI2: =Time!LI5 -> 2048-12-31 | LJ2: =Time!LJ5 -> 2049-01-31 | LK2: =Time!LK5 -> 2049-02-28 | LL2: =Time!LL5 -> 2049-03-31 | LM2: =Time!LM5 -> 2049-04-30 | LN2: =Time!LN5 -> 2049-05-31 | LO2: =Time!LO5 -> 2049-06-30 | LP2: =Time!LP5 -> 2049-07-31 | LQ2: =Time!LQ5 -> 2049-08-31 | LR2: =Time!LR5 -> 2049-09-30 | LS2: =Time!LS5 -> 2049-10-31 | LT2: =Time!LT5 -> 2049-11-30 | LU2: =Time!LU5 -> 2049-12-31 | LV2: =Time!LV5 -> 2050-01-31 | LW2: =Time!LW5 -> 2050-02-28 | LX2: =Time!LX5 -> 2050-03-31 | LY2: =Time!LY5 -> 2050-04-30 | LZ2: =Time!LZ5 -> 2050-05-31 | MA2: =Time!MA5 -> 2050-06-30 | MB2: =Time!MB5 -> 2050-07-31 | MC2: =Time!MC5 -> 2050-08-31 | MD2: =Time!MD5 -> 2050-09-30 | ME2: =Time!ME5 -> 2050-10-31 | MF2: =Time!MF5 -> 2050-11-30 | MG2: =Time!MG5 -> 2050-12-31 | MH2: =Time!MH5 -> 2051-01-31 | MI2: =Time!MI5 -> 2051-02-28 | MJ2: =Time!MJ5 -> 2051-03-31 | MK2: =Time!MK5 -> 2051-04-30 | ML2: =Time!ML5 -> 2051-05-31 | MM2: =Time!MM5 -> 2051-06-30 | MN2: =Time!MN5 -> 2051-07-31 | MO2: =Time!MO5 -> 2051-08-31 | MP2: =Time!MP5 -> 2051-09-30 | MQ2: =Time!MQ5 -> 2051-10-31 | MR2: =Time!MR5 -> 2051-11-30 | MS2: =Time!MS5 -> 2051-12-31 | MT2: =Time!MT5 -> 2052-01-31 | MU2: =Time!MU5 -> 2052-02-29 | MV2: =Time!MV5 -> 2052-03-31 | MW2: =Time!MW5 -> 2052-04-30 | MX2: =Time!MX5 -> 2052-05-31 | MY2: =Time!MY5 -> 2052-06-30 | MZ2: =Time!MZ5 -> 2052-07-31 | NA2: =Time!NA5 -> 2052-08-31 | NB2: =Time!NB5 -> 2052-09-30 | NC2: =Time!NC5 -> 2052-10-31 | ND2: =Time!ND5 -> 2052-11-30 | NE2: =Time!NE5 -> 2052-12-31 | NF2: =Time!NF5 -> 2053-01-31 | NG2: =Time!NG5 -> 2053-02-28 | NH2: =Time!NH5 -> 2053-03-31 | NI2: =Time!NI5 -> 2053-04-30 | NJ2: =Time!NJ5 -> 2053-05-31 | NK2: =Time!NK5 -> 2053-06-30 | NL2: =Time!NL5 -> 2053-07-31 | NM2: =Time!NM5 -> 2053-08-31 | NN2: =Time!NN5 -> 2053-09-30 | NO2: =Time!NO5 -> 2053-10-31 | NP2: =Time!NP5 -> 2053-11-30 | NQ2: =Time!NQ5 -> 2053-12-31 | NR2: =Time!NR5 -> 2054-01-31 | NS2: =Time!NS5 -> 2054-02-28 | NT2: =Time!NT5 -> 2054-03-31 | NU2: =Time!NU5 -> 2054-04-30 | NV2: =Time!NV5 -> 2054-05-31 | NW2: =Time!NW5 -> 2054-06-30 | NX2: =Time!NX5 -> 2054-07-31 | NY2: =Time!NY5 -> 2054-08-31 | NZ2: =Time!NZ5 -> 2054-09-30 | OA2: =Time!OA5 -> 2054-10-31 | OB2: =Time!OB5 -> 2054-11-30 | OC2: =Time!OC5 -> 2054-12-31 | OD2: =Time!OD5 -> 2055-01-31 | OE2: =Time!OE5 -> 2055-02-28 | OF2: =Time!OF5 -> 2055-03-31 | OG2: =Time!OG5 -> 2055-04-30 | OH2: =Time!OH5 -> 2055-05-31 | OI2: =Time!OI5 -> 2055-06-30 | OJ2: =Time!OJ5 -> 2055-07-31 | OK2: =Time!OK5 -> 2055-08-31 | OL2: =Time!OL5 -> 2055-09-30 | OM2: =Time!OM5 -> 2055-10-31 | ON2: =Time!ON5 -> 2055-11-30 | OO2: =Time!OO5 -> 2055-12-31 | OP2: =Time!OP5 -> 2056-01-31 | OQ2: =Time!OQ5 -> 2056-02-29 | OR2: =Time!OR5 -> 2056-03-31 | OS2: =Time!OS5 -> 2056-04-30 | OT2: =Time!OT5 -> 2056-05-31 | OU2: =Time!OU5 -> 2056-06-30 | OV2: =Time!OV5 -> 2056-07-31 | OW2: =Time!OW5 -> 2056-08-31 | OX2: =Time!OX5 -> 2056-09-30 | OY2: =Time!OY5 -> 2056-10-31 | OZ2: =Time!OZ5 -> 2056-11-30 | PA2: =Time!PA5 -> 2056-12-31 | PB2: =Time!PB5 -> 2057-01-31 | PC2: =Time!PC5 -> 2057-02-28 | PD2: =Time!PD5 -> 2057-03-31 | PE2: =Time!PE5 -> 2057-04-30 | PF2: =Time!PF5 -> 2057-05-31 | PG2: =Time!PG5 -> 2057-06-30 | PH2: =Time!PH5 -> 2057-07-31 | PI2: =Time!PI5 -> 2057-08-31 | PJ2: =Time!PJ5 -> 2057-09-30 | PK2: =Time!PK5 -> 2057-10-31 | PL2: =Time!PL5 -> 2057-11-30 | PM2: =Time!PM5 -> 2057-12-31 | PN2: =Time!PN5 -> 2058-01-31 | PO2: =Time!PO5 -> 2058-02-28 | PP2: =Time!PP5 -> 2058-03-31 | PQ2: =Time!PQ5 -> 2058-04-30 | PR2: =Time!PR5 -> 2058-05-31 | PS2: =Time!PS5 -> 2058-06-30 | PT2: =Time!PT5 -> 2058-07-31 | PU2: =Time!PU5 -> 2058-08-31 | PV2: =Time!PV5 -> 2058-09-30 | PW2: =Time!PW5 -> 2058-10-31 | PX2: =Time!PX5 -> 2058-11-30 | PY2: =Time!PY5 -> 2058-12-31 | PZ2: =Time!PZ5 -> 2059-01-31 | QA2: =Time!QA5 -> 2059-02-28 | QB2: =Time!QB5 -> 2059-03-31 | QC2: =Time!QC5 -> 2059-04-30 | QD2: =Time!QD5 -> 2059-05-31 | QE2: =Time!QE5 -> 2059-06-30 | QF2: =Time!QF5 -> 2059-07-31 | QG2: =Time!QG5 -> 2059-08-31 | QH2: =Time!QH5 -> 2059-09-30 | QI2: =Time!QI5 -> 2059-10-31 | QJ2: =Time!QJ5 -> 2059-11-30 | QK2: =Time!QK5 -> 2059-12-31 | QL2: =Time!QL5 -> 2060-01-31 | QM2: =Time!QM5 -> 2060-02-29 | QN2: =Time!QN5 -> 2060-03-31 | QO2: =Time!QO5 -> 2060-04-30 | QP2: =Time!QP5 -> 2060-05-31 | QQ2: =Time!QQ5 -> 2060-06-30 | QR2: =Time!QR5 -> 2060-07-31 | QS2: =Time!QS5 -> 2060-08-31 | QT2: =Time!QT5 -> 2060-09-30 | QU2: =Time!QU5 -> 2060-10-31 | QV2: =Time!QV5 -> 2060-11-30 | QW2: =Time!QW5 -> 2060-12-31 | QX2: =Time!QX5 -> 2061-01-31 | QY2: =Time!QY5 -> 2061-02-28 | QZ2: =Time!QZ5 -> 2061-03-31 | RA2: =Time!RA5 -> 2061-04-30 | RB2: =Time!RB5 -> 2061-05-31 | RC2: =Time!RC5 -> 2061-06-30 | RD2: =Time!RD5 -> 2061-07-31 | RE2: =Time!RE5 -> 2061-08-31 | RF2: =Time!RF5 -> 2061-09-30 | RG2: =Time!RG5 -> 2061-10-31 | RH2: =Time!RH5 -> 2061-11-30 | RI2: =Time!RI5 -> 2061-12-31 | RJ2: =Time!RJ5 -> 2062-01-31 | RK2: =Time!RK5 -> 2062-02-28 | RL2: =Time!RL5 -> 2062-03-31 | RM2: =Time!RM5 -> 2062-04-30 | RN2: =Time!RN5 -> 2062-05-31 | RO2: =Time!RO5 -> 2062-06-30 | RP2: =Time!RP5 -> 2062-07-31 | RQ2: =Time!RQ5 -> 2062-08-31 | RR2: =Time!RR5 -> 2062-09-30 | RS2: =Time!RS5 -> 2062-10-31 | RT2: =Time!RT5 -> 2062-11-30 | RU2: =Time!RU5 -> 2062-12-31 | RV2: =Time!RV5 -> 2063-01-31 | RW2: =Time!RW5 -> 2063-02-28 | RX2: =Time!RX5 -> 2063-03-31 | RY2: =Time!RY5 -> 2063-04-30 | RZ2: =Time!RZ5 -> 2063-05-31 | SA2: =Time!SA5 -> 2063-06-30 | SB2: =Time!SB5 -> 2063-07-31 | SC2: =Time!SC5 -> 2063-08-31 | SD2: =Time!SD5 -> 2063-09-30 | SE2: =Time!SE5 -> 2063-10-31 | SF2: =Time!SF5 -> 2063-11-30 | SG2: =Time!SG5 -> 2063-12-31 | SH2: =Time!SH5 -> 2064-01-31 | SI2: =Time!SI5 -> 2064-02-29 | SJ2: =Time!SJ5 -> 2064-03-31 | SK2: =Time!SK5 -> 2064-04-30 | SL2: =Time!SL5 -> 2064-05-31 | SM2: =Time!SM5 -> 2064-06-30 | SN2: =Time!SN5 -> 2064-07-31 | SO2: =Time!SO5 -> 2064-08-31
E3: =Time!E6 -> Timeline label | F3: =Output!J2 -> 9 | G3: Track chgs | J3: =Time!J6 -> Construction | K3: =Time!K6 -> Construction | L3: =Time!L6 -> Construction | M3: =Time!M6 -> Construction | N3: =Time!N6 -> Construction | O3: =Time!O6 -> Construction | P3: =Time!P6 -> Construction | Q3: =Time!Q6 -> Construction | R3: =Time!R6 -> Construction | S3: =Time!S6 -> Construction | T3: =Time!T6 -> Construction | U3: =Time!U6 -> Construction | V3: =Time!V6 -> Construction | W3: =Time!W6 -> Construction | X3: =Time!X6 -> Construction | Y3: =Time!Y6 -> Construction | Z3: =Time!Z6 -> Construction | AA3: =Time!AA6 -> Construction | AB3: =Time!AB6 -> Construction | AC3: =Time!AC6 -> Construction | AD3: =Time!AD6 -> Construction | AE3: =Time!AE6 -> Construction | AF3: =Time!AF6 -> Construction | AG3: =Time!AG6 -> Construction | AH3: =Time!AH6 -> Operations | AI3: =Time!AI6 -> Operations | AJ3: =Time!AJ6 -> Operations | AK3: =Time!AK6 -> Operations | AL3: =Time!AL6 -> Operations | AM3: =Time!AM6 -> Operations | AN3: =Time!AN6 -> Operations | AO3: =Time!AO6 -> Operations | AP3: =Time!AP6 -> Operations | AQ3: =Time!AQ6 -> Operations | AR3: =Time!AR6 -> Operations | AS3: =Time!AS6 -> Operations | AT3: =Time!AT6 -> Operations | AU3: =Time!AU6 -> Operations | AV3: =Time!AV6 -> Operations | AW3: =Time!AW6 -> Operations | AX3: =Time!AX6 -> Operations | AY3: =Time!AY6 -> Operations | AZ3: =Time!AZ6 -> Operations | BA3: =Time!BA6 -> Operations | BB3: =Time!BB6 -> Operations | BC3: =Time!BC6 -> Operations | BD3: =Time!BD6 -> Operations | BE3: =Time!BE6 -> Operations | BF3: =Time!BF6 -> Operations | BG3: =Time!BG6 -> Operations | BH3: =Time!BH6 -> Operations | BI3: =Time!BI6 -> Operations | BJ3: =Time!BJ6 -> Operations | BK3: =Time!BK6 -> Operations | BL3: =Time!BL6 -> Operations | BM3: =Time!BM6 -> Operations | BN3: =Time!BN6 -> Operations | BO3: =Time!BO6 -> Operations | BP3: =Time!BP6 -> Operations | BQ3: =Time!BQ6 -> Operations | BR3: =Time!BR6 -> Operations | BS3: =Time!BS6 -> Operations | BT3: =Time!BT6 -> Operations | BU3: =Time!BU6 -> Operations | BV3: =Time!BV6 -> Operations | BW3: =Time!BW6 -> Operations | BX3: =Time!BX6 -> Operations | BY3: =Time!BY6 -> Operations | BZ3: =Time!BZ6 -> Operations | CA3: =Time!CA6 -> Operations | CB3: =Time!CB6 -> Operations | CC3: =Time!CC6 -> Operations | CD3: =Time!CD6 -> Operations | CE3: =Time!CE6 -> Operations | CF3: =Time!CF6 -> Operations | CG3: =Time!CG6 -> Operations | CH3: =Time!CH6 -> Operations | CI3: =Time!CI6 -> Operations | CJ3: =Time!CJ6 -> Operations | CK3: =Time!CK6 -> Operations | CL3: =Time!CL6 -> Operations | CM3: =Time!CM6 -> Operations | CN3: =Time!CN6 -> Operations | CO3: =Time!CO6 -> Operations | CP3: =Time!CP6 -> Operations | CQ3: =Time!CQ6 -> Operations | CR3: =Time!CR6 -> Operations | CS3: =Time!CS6 -> Operations | CT3: =Time!CT6 -> Operations | CU3: =Time!CU6 -> Operations | CV3: =Time!CV6 -> Operations | CW3: =Time!CW6 -> Operations | CX3: =Time!CX6 -> Operations | CY3: =Time!CY6 -> Operations | CZ3: =Time!CZ6 -> Operations | DA3: =Time!DA6 -> Operations | DB3: =Time!DB6 -> Operations | DC3: =Time!DC6 -> Operations | DD3: =Time!DD6 -> Operations | DE3: =Time!DE6 -> Operations | DF3: =Time!DF6 -> Operations | DG3: =Time!DG6 -> Operations | DH3: =Time!DH6 -> Operations | DI3: =Time!DI6 -> Operations | DJ3: =Time!DJ6 -> Operations | DK3: =Time!DK6 -> Operations | DL3: =Time!DL6 -> Operations | DM3: =Time!DM6 -> Operations | DN3: =Time!DN6 -> Operations | DO3: =Time!DO6 -> Operations | DP3: =Time!DP6 -> Operations | DQ3: =Time!DQ6 -> Operations | DR3: =Time!DR6 -> Operations | DS3: =Time!DS6 -> Operations | DT3: =Time!DT6 -> Operations | DU3: =Time!DU6 -> Operations | DV3: =Time!DV6 -> Operations | DW3: =Time!DW6 -> Operations | DX3: =Time!DX6 -> Operations | DY3: =Time!DY6 -> Operations | DZ3: =Time!DZ6 -> Operations | EA3: =Time!EA6 -> Operations | EB3: =Time!EB6 -> Operations | EC3: =Time!EC6 -> Operations | ED3: =Time!ED6 -> Operations | EE3: =Time!EE6 -> Operations | EF3: =Time!EF6 -> Operations | EG3: =Time!EG6 -> Operations | EH3: =Time!EH6 -> Operations | EI3: =Time!EI6 -> Operations | EJ3: =Time!EJ6 -> Operations | EK3: =Time!EK6 -> Operations | EL3: =Time!EL6 -> Operations | EM3: =Time!EM6 -> Operations | EN3: =Time!EN6 -> Operations | EO3: =Time!EO6 -> Operations | EP3: =Time!EP6 -> Operations | EQ3: =Time!EQ6 -> Operations | ER3: =Time!ER6 -> Operations | ES3: =Time!ES6 -> Operations | ET3: =Time!ET6 -> Operations | EU3: =Time!EU6 -> Operations | EV3: =Time!EV6 -> Operations | EW3: =Time!EW6 -> Operations | EX3: =Time!EX6 -> Operations | EY3: =Time!EY6 -> Operations | EZ3: =Time!EZ6 -> Operations | FA3: =Time!FA6 -> Operations | FB3: =Time!FB6 -> Operations | FC3: =Time!FC6 -> Operations | FD3: =Time!FD6 -> Operations | FE3: =Time!FE6 -> Operations | FF3: =Time!FF6 -> Operations | FG3: =Time!FG6 -> Operations | FH3: =Time!FH6 -> Operations | FI3: =Time!FI6 -> Operations | FJ3: =Time!FJ6 -> Operations | FK3: =Time!FK6 -> Operations | FL3: =Time!FL6 -> Operations | FM3: =Time!FM6 -> Operations | FN3: =Time!FN6 -> Operations | FO3: =Time!FO6 -> Operations | FP3: =Time!FP6 -> Operations | FQ3: =Time!FQ6 -> Operations | FR3: =Time!FR6 -> Operations | FS3: =Time!FS6 -> Operations | FT3: =Time!FT6 -> Operations | FU3: =Time!FU6 -> Operations | FV3: =Time!FV6 -> Operations | FW3: =Time!FW6 -> Operations | FX3: =Time!FX6 -> Operations | FY3: =Time!FY6 -> Operations | FZ3: =Time!FZ6 -> Operations | GA3: =Time!GA6 -> Operations | GB3: =Time!GB6 -> Operations | GC3: =Time!GC6 -> Operations | GD3: =Time!GD6 -> Operations | GE3: =Time!GE6 -> Operations | GF3: =Time!GF6 -> Operations | GG3: =Time!GG6 -> Operations | GH3: =Time!GH6 -> Operations | GI3: =Time!GI6 -> Operations | GJ3: =Time!GJ6 -> Operations | GK3: =Time!GK6 -> Operations | GL3: =Time!GL6 -> Operations | GM3: =Time!GM6 -> Operations | GN3: =Time!GN6 -> Operations | GO3: =Time!GO6 -> Operations | GP3: =Time!GP6 -> Operations | GQ3: =Time!GQ6 -> Operations | GR3: =Time!GR6 -> Operations | GS3: =Time!GS6 -> Operations | GT3: =Time!GT6 -> Operations | GU3: =Time!GU6 -> Operations | GV3: =Time!GV6 -> Operations | GW3: =Time!GW6 -> Operations | GX3: =Time!GX6 -> Operations | GY3: =Time!GY6 -> Operations | GZ3: =Time!GZ6 -> Operations | HA3: =Time!HA6 -> Operations | HB3: =Time!HB6 -> Operations | HC3: =Time!HC6 -> Operations | HD3: =Time!HD6 -> Operations | HE3: =Time!HE6 -> Operations | HF3: =Time!HF6 -> Operations | HG3: =Time!HG6 -> Operations | HH3: =Time!HH6 -> Operations | HI3: =Time!HI6 -> Operations | HJ3: =Time!HJ6 -> Operations | HK3: =Time!HK6 -> Operations | HL3: =Time!HL6 -> Operations | HM3: =Time!HM6 -> Operations | HN3: =Time!HN6 -> Operations | HO3: =Time!HO6 -> Operations | HP3: =Time!HP6 -> Operations | HQ3: =Time!HQ6 -> Operations | HR3: =Time!HR6 -> Operations | HS3: =Time!HS6 -> Operations | HT3: =Time!HT6 -> Operations | HU3: =Time!HU6 -> Operations | HV3: =Time!HV6 -> Operations | HW3: =Time!HW6 -> Operations | HX3: =Time!HX6 -> Operations | HY3: =Time!HY6 -> Operations | HZ3: =Time!HZ6 -> Operations | IA3: =Time!IA6 -> Operations | IB3: =Time!IB6 -> Operations | IC3: =Time!IC6 -> Operations | ID3: =Time!ID6 -> Operations | IE3: =Time!IE6 -> Operations | IF3: =Time!IF6 -> Operations | IG3: =Time!IG6 -> Operations | IH3: =Time!IH6 -> Operations | II3: =Time!II6 -> Operations | IJ3: =Time!IJ6 -> Operations | IK3: =Time!IK6 -> Operations | IL3: =Time!IL6 -> Operations | IM3: =Time!IM6 -> Operations | IN3: =Time!IN6 -> Operations | IO3: =Time!IO6 -> Operations | IP3: =Time!IP6 -> Operations | IQ3: =Time!IQ6 -> Operations | IR3: =Time!IR6 -> Operations | IS3: =Time!IS6 -> Operations | IT3: =Time!IT6 -> Operations | IU3: =Time!IU6 -> Operations | IV3: =Time!IV6 -> Operations | IW3: =Time!IW6 -> Operations | IX3: =Time!IX6 -> Operations | IY3: =Time!IY6 -> Operations | IZ3: =Time!IZ6 -> Operations | JA3: =Time!JA6 -> Operations | JB3: =Time!JB6 -> Operations | JC3: =Time!JC6 -> Operations | JD3: =Time!JD6 -> Operations | JE3: =Time!JE6 -> Operations | JF3: =Time!JF6 -> Operations | JG3: =Time!JG6 -> Operations | JH3: =Time!JH6 -> Operations | JI3: =Time!JI6 -> Operations | JJ3: =Time!JJ6 -> Operations | JK3: =Time!JK6 -> Operations | JL3: =Time!JL6 -> Operations | JM3: =Time!JM6 -> Operations | JN3: =Time!JN6 -> Operations | JO3: =Time!JO6 -> Operations | JP3: =Time!JP6 -> Operations | JQ3: =Time!JQ6 -> Operations | JR3: =Time!JR6 -> Operations | JS3: =Time!JS6 -> Operations | JT3: =Time!JT6 -> Operations | JU3: =Time!JU6 -> Operations | JV3: =Time!JV6 -> Operations | JW3: =Time!JW6 -> Operations | JX3: =Time!JX6 -> Operations | JY3: =Time!JY6 -> Operations | JZ3: =Time!JZ6 -> Operations | KA3: =Time!KA6 -> Operations | KB3: =Time!KB6 -> Operations | KC3: =Time!KC6 -> Operations | KD3: =Time!KD6 -> Operations | KE3: =Time!KE6 -> Operations | KF3: =Time!KF6 -> Operations | KG3: =Time!KG6 -> Operations | KH3: =Time!KH6 -> Operations | KI3: =Time!KI6 -> Operations | KJ3: =Time!KJ6 -> Operations | KK3: =Time!KK6 -> Operations | KL3: =Time!KL6 -> Operations | KM3: =Time!KM6 -> Operations | KN3: =Time!KN6 -> Operations | KO3: =Time!KO6 -> Operations | KP3: =Time!KP6 -> Operations | KQ3: =Time!KQ6 -> Operations | KR3: =Time!KR6 -> Operations | KS3: =Time!KS6 -> Operations | KT3: =Time!KT6 -> Operations | KU3: =Time!KU6 -> Operations | KV3: =Time!KV6 -> Operations | KW3: =Time!KW6 -> Operations | KX3: =Time!KX6 -> Operations | KY3: =Time!KY6 -> Operations | KZ3: =Time!KZ6 -> Operations | LA3: =Time!LA6 -> Operations | LB3: =Time!LB6 -> Operations | LC3: =Time!LC6 -> Operations | LD3: =Time!LD6 -> Operations | LE3: =Time!LE6 -> Operations | LF3: =Time!LF6 -> Operations | LG3: =Time!LG6 -> Operations | LH3: =Time!LH6 -> Operations | LI3: =Time!LI6 -> Operations | LJ3: =Time!LJ6 -> Operations | LK3: =Time!LK6 -> Operations | LL3: =Time!LL6 -> Operations | LM3: =Time!LM6 -> Operations | LN3: =Time!LN6 -> Operations | LO3: =Time!LO6 -> Operations | LP3: =Time!LP6 -> Operations | LQ3: =Time!LQ6 -> Operations | LR3: =Time!LR6 -> Operations | LS3: =Time!LS6 -> Operations | LT3: =Time!LT6 -> Operations | LU3: =Time!LU6 -> Operations | LV3: =Time!LV6 -> Operations | LW3: =Time!LW6 -> Operations | LX3: =Time!LX6 -> Operations | LY3: =Time!LY6 -> Operations | LZ3: =Time!LZ6 -> Operations | MA3: =Time!MA6 -> Operations | MB3: =Time!MB6 -> Operations | MC3: =Time!MC6 -> Operations | MD3: =Time!MD6 -> Operations | ME3: =Time!ME6 -> Operations | MF3: =Time!MF6 -> Operations | MG3: =Time!MG6 -> Operations | MH3: =Time!MH6 -> Operations | MI3: =Time!MI6 -> Operations | MJ3: =Time!MJ6 -> Operations | MK3: =Time!MK6 -> Operations | ML3: =Time!ML6 -> Operations | MM3: =Time!MM6 -> Operations | MN3: =Time!MN6 -> Operations | MO3: =Time!MO6 -> Operations | MP3: =Time!MP6 -> Operations | MQ3: =Time!MQ6 -> Operations | MR3: =Time!MR6 -> Operations | MS3: =Time!MS6 -> Operations | MT3: =Time!MT6 -> Operations | MU3: =Time!MU6 -> Operations | MV3: =Time!MV6 -> Operations | MW3: =Time!MW6 -> Operations | MX3: =Time!MX6 -> Operations | MY3: =Time!MY6 -> Operations | MZ3: =Time!MZ6 -> Operations | NA3: =Time!NA6 -> Operations | NB3: =Time!NB6 -> Operations | NC3: =Time!NC6 -> Operations | ND3: =Time!ND6 -> Operations | NE3: =Time!NE6 -> Operations | NF3: =Time!NF6 -> Operations | NG3: =Time!NG6 -> Operations | NH3: =Time!NH6 -> Operations | NI3: =Time!NI6 -> Operations | NJ3: =Time!NJ6 -> Operations | NK3: =Time!NK6 -> Operations | NL3: =Time!NL6 -> Operations | NM3: =Time!NM6 -> Operations | NN3: =Time!NN6 -> Operations | NO3: =Time!NO6 -> Operations | NP3: =Time!NP6 -> Operations | NQ3: =Time!NQ6 -> Operations | NR3: =Time!NR6 -> Operations | NS3: =Time!NS6 -> Operations | NT3: =Time!NT6 -> Operations | NU3: =Time!NU6 -> Operations | NV3: =Time!NV6 -> Operations | NW3: =Time!NW6 -> Operations | NX3: =Time!NX6 -> Operations | NY3: =Time!NY6 -> Operations | NZ3: =Time!NZ6 -> Operations | OA3: =Time!OA6 -> Operations | OB3: =Time!OB6 -> Operations | OC3: =Time!OC6 -> Operations | OD3: =Time!OD6 -> Post ops | OE3: =Time!OE6 -> Post ops | OF3: =Time!OF6 -> Post ops | OG3: =Time!OG6 -> Post ops | OH3: =Time!OH6 -> Post ops | OI3: =Time!OI6 -> Post ops | OJ3: =Time!OJ6 -> Post ops | OK3: =Time!OK6 -> Post ops | OL3: =Time!OL6 -> Post ops | OM3: =Time!OM6 -> Post ops | ON3: =Time!ON6 -> Post ops | OO3: =Time!OO6 -> Post ops | OP3: =Time!OP6 -> Post ops | OQ3: =Time!OQ6 -> Post ops | OR3: =Time!OR6 -> Post ops | OS3: =Time!OS6 -> Post ops | OT3: =Time!OT6 -> Post ops | OU3: =Time!OU6 -> Post ops | OV3: =Time!OV6 -> Post ops | OW3: =Time!OW6 -> Post ops | OX3: =Time!OX6 -> Post ops | OY3: =Time!OY6 -> Post ops | OZ3: =Time!OZ6 -> Post ops | PA3: =Time!PA6 -> Post ops | PB3: =Time!PB6 -> Post ops | PC3: =Time!PC6 -> Post ops | PD3: =Time!PD6 -> Post ops | PE3: =Time!PE6 -> Post ops | PF3: =Time!PF6 -> Post ops | PG3: =Time!PG6 -> Post ops | PH3: =Time!PH6 -> Post ops | PI3: =Time!PI6 -> Post ops | PJ3: =Time!PJ6 -> Post ops | PK3: =Time!PK6 -> Post ops | PL3: =Time!PL6 -> Post ops | PM3: =Time!PM6 -> Post ops | PN3: =Time!PN6 -> Post ops | PO3: =Time!PO6 -> Post ops | PP3: =Time!PP6 -> Post ops | PQ3: =Time!PQ6 -> Post ops | PR3: =Time!PR6 -> Post ops | PS3: =Time!PS6 -> Post ops | PT3: =Time!PT6 -> Post ops | PU3: =Time!PU6 -> Post ops | PV3: =Time!PV6 -> Post ops | PW3: =Time!PW6 -> Post ops | PX3: =Time!PX6 -> Post ops | PY3: =Time!PY6 -> Post ops | PZ3: =Time!PZ6 -> Post ops | QA3: =Time!QA6 -> Post ops | QB3: =Time!QB6 -> Post ops | QC3: =Time!QC6 -> Post ops | QD3: =Time!QD6 -> Post ops | QE3: =Time!QE6 -> Post ops | QF3: =Time!QF6 -> Post ops | QG3: =Time!QG6 -> Post ops | QH3: =Time!QH6 -> Post ops | QI3: =Time!QI6 -> Post ops | QJ3: =Time!QJ6 -> Post ops | QK3: =Time!QK6 -> Post ops | QL3: =Time!QL6 -> Post ops | QM3: =Time!QM6 -> Post ops | QN3: =Time!QN6 -> Post ops | QO3: =Time!QO6 -> Post ops | QP3: =Time!QP6 -> Post ops | QQ3: =Time!QQ6 -> Post ops | QR3: =Time!QR6 -> Post ops | QS3: =Time!QS6 -> Post ops | QT3: =Time!QT6 -> Post ops | QU3: =Time!QU6 -> Post ops | QV3: =Time!QV6 -> Post ops | QW3: =Time!QW6 -> Post ops | QX3: =Time!QX6 -> Post ops | QY3: =Time!QY6 -> Post ops | QZ3: =Time!QZ6 -> Post ops | RA3: =Time!RA6 -> Post ops | RB3: =Time!RB6 -> Post ops | RC3: =Time!RC6 -> Post ops | RD3: =Time!RD6 -> Post ops | RE3: =Time!RE6 -> Post ops | RF3: =Time!RF6 -> Post ops | RG3: =Time!RG6 -> Post ops | RH3: =Time!RH6 -> Post ops | RI3: =Time!RI6 -> Post ops | RJ3: =Time!RJ6 -> Post ops | RK3: =Time!RK6 -> Post ops | RL3: =Time!RL6 -> Post ops | RM3: =Time!RM6 -> Post ops | RN3: =Time!RN6 -> Post ops | RO3: =Time!RO6 -> Post ops | RP3: =Time!RP6 -> Post ops | RQ3: =Time!RQ6 -> Post ops | RR3: =Time!RR6 -> Post ops | RS3: =Time!RS6 -> Post ops | RT3: =Time!RT6 -> Post ops | RU3: =Time!RU6 -> Post ops | RV3: =Time!RV6 -> Post ops | RW3: =Time!RW6 -> Post ops | RX3: =Time!RX6 -> Post ops | RY3: =Time!RY6 -> Post ops | RZ3: =Time!RZ6 -> Post ops | SA3: =Time!SA6 -> Post ops | SB3: =Time!SB6 -> Post ops | SC3: =Time!SC6 -> Post ops | SD3: =Time!SD6 -> Post ops | SE3: =Time!SE6 -> Post ops | SF3: =Time!SF6 -> Post ops | SG3: =Time!SG6 -> Post ops | SH3: =Time!SH6 -> Post ops | SI3: =Time!SI6 -> Post ops | SJ3: =Time!SJ6 -> Post ops | SK3: =Time!SK6 -> Post ops | SL3: =Time!SL6 -> Post ops | SM3: =Time!SM6 -> Post ops | SN3: =Time!SN6 -> Post ops | SO3: =Time!SO6 -> Post ops
E4: =Time!E7 -> Contract year | F4: =Check!$F$21 -> 0 | G4: Alerts | J4: =Time!J7 -> 2023 | K4: =Time!K7 -> 2024 | L4: =Time!L7 -> 2024 | M4: =Time!M7 -> 2024 | N4: =Time!N7 -> 2024 | O4: =Time!O7 -> 2024 | P4: =Time!P7 -> 2024 | Q4: =Time!Q7 -> 2024 | R4: =Time!R7 -> 2024 | S4: =Time!S7 -> 2024 | T4: =Time!T7 -> 2024 | U4: =Time!U7 -> 2024 | V4: =Time!V7 -> 2024 | W4: =Time!W7 -> 2025 | X4: =Time!X7 -> 2025 | Y4: =Time!Y7 -> 2025 | Z4: =Time!Z7 -> 2025 | AA4: =Time!AA7 -> 2025 | AB4: =Time!AB7 -> 2025 | AC4: =Time!AC7 -> 2025 | AD4: =Time!AD7 -> 2025 | AE4: =Time!AE7 -> 2025 | AF4: =Time!AF7 -> 2025 | AG4: =Time!AG7 -> 2025 | AH4: =Time!AH7 -> 2025 | AI4: =Time!AI7 -> 2026 | AJ4: =Time!AJ7 -> 2026 | AK4: =Time!AK7 -> 2026 | AL4: =Time!AL7 -> 2026 | AM4: =Time!AM7 -> 2026 | AN4: =Time!AN7 -> 2026 | AO4: =Time!AO7 -> 2026 | AP4: =Time!AP7 -> 2026 | AQ4: =Time!AQ7 -> 2026 | AR4: =Time!AR7 -> 2026 | AS4: =Time!AS7 -> 2026 | AT4: =Time!AT7 -> 2026 | AU4: =Time!AU7 -> 2027 | AV4: =Time!AV7 -> 2027 | AW4: =Time!AW7 -> 2027 | AX4: =Time!AX7 -> 2027 | AY4: =Time!AY7 -> 2027 | AZ4: =Time!AZ7 -> 2027 | BA4: =Time!BA7 -> 2027 | BB4: =Time!BB7 -> 2027 | BC4: =Time!BC7 -> 2027 | BD4: =Time!BD7 -> 2027 | BE4: =Time!BE7 -> 2027 | BF4: =Time!BF7 -> 2027 | BG4: =Time!BG7 -> 2028 | BH4: =Time!BH7 -> 2028 | BI4: =Time!BI7 -> 2028 | BJ4: =Time!BJ7 -> 2028 | BK4: =Time!BK7 -> 2028 | BL4: =Time!BL7 -> 2028 | BM4: =Time!BM7 -> 2028 | BN4: =Time!BN7 -> 2028 | BO4: =Time!BO7 -> 2028 | BP4: =Time!BP7 -> 2028 | BQ4: =Time!BQ7 -> 2028 | BR4: =Time!BR7 -> 2028 | BS4: =Time!BS7 -> 2029 | BT4: =Time!BT7 -> 2029 | BU4: =Time!BU7 -> 2029 | BV4: =Time!BV7 -> 2029 | BW4: =Time!BW7 -> 2029 | BX4: =Time!BX7 -> 2029 | BY4: =Time!BY7 -> 2029 | BZ4: =Time!BZ7 -> 2029 | CA4: =Time!CA7 -> 2029 | CB4: =Time!CB7 -> 2029 | CC4: =Time!CC7 -> 2029 | CD4: =Time!CD7 -> 2029 | CE4: =Time!CE7 -> 2030 | CF4: =Time!CF7 -> 2030 | CG4: =Time!CG7 -> 2030 | CH4: =Time!CH7 -> 2030 | CI4: =Time!CI7 -> 2030 | CJ4: =Time!CJ7 -> 2030 | CK4: =Time!CK7 -> 2030 | CL4: =Time!CL7 -> 2030 | CM4: =Time!CM7 -> 2030 | CN4: =Time!CN7 -> 2030 | CO4: =Time!CO7 -> 2030 | CP4: =Time!CP7 -> 2030 | CQ4: =Time!CQ7 -> 2031 | CR4: =Time!CR7 -> 2031 | CS4: =Time!CS7 -> 2031 | CT4: =Time!CT7 -> 2031 | CU4: =Time!CU7 -> 2031 | CV4: =Time!CV7 -> 2031 | CW4: =Time!CW7 -> 2031 | CX4: =Time!CX7 -> 2031 | CY4: =Time!CY7 -> 2031 | CZ4: =Time!CZ7 -> 2031 | DA4: =Time!DA7 -> 2031 | DB4: =Time!DB7 -> 2031 | DC4: =Time!DC7 -> 2032 | DD4: =Time!DD7 -> 2032 | DE4: =Time!DE7 -> 2032 | DF4: =Time!DF7 -> 2032 | DG4: =Time!DG7 -> 2032 | DH4: =Time!DH7 -> 2032 | DI4: =Time!DI7 -> 2032 | DJ4: =Time!DJ7 -> 2032 | DK4: =Time!DK7 -> 2032 | DL4: =Time!DL7 -> 2032 | DM4: =Time!DM7 -> 2032 | DN4: =Time!DN7 -> 2032 | DO4: =Time!DO7 -> 2033 | DP4: =Time!DP7 -> 2033 | DQ4: =Time!DQ7 -> 2033 | DR4: =Time!DR7 -> 2033 | DS4: =Time!DS7 -> 2033 | DT4: =Time!DT7 -> 2033 | DU4: =Time!DU7 -> 2033 | DV4: =Time!DV7 -> 2033 | DW4: =Time!DW7 -> 2033 | DX4: =Time!DX7 -> 2033 | DY4: =Time!DY7 -> 2033 | DZ4: =Time!DZ7 -> 2033 | EA4: =Time!EA7 -> 2034 | EB4: =Time!EB7 -> 2034 | EC4: =Time!EC7 -> 2034 | ED4: =Time!ED7 -> 2034 | EE4: =Time!EE7 -> 2034 | EF4: =Time!EF7 -> 2034 | EG4: =Time!EG7 -> 2034 | EH4: =Time!EH7 -> 2034 | EI4: =Time!EI7 -> 2034 | EJ4: =Time!EJ7 -> 2034 | EK4: =Time!EK7 -> 2034 | EL4: =Time!EL7 -> 2034 | EM4: =Time!EM7 -> 2035 | EN4: =Time!EN7 -> 2035 | EO4: =Time!EO7 -> 2035 | EP4: =Time!EP7 -> 2035 | EQ4: =Time!EQ7 -> 2035 | ER4: =Time!ER7 -> 2035 | ES4: =Time!ES7 -> 2035 | ET4: =Time!ET7 -> 2035 | EU4: =Time!EU7 -> 2035 | EV4: =Time!EV7 -> 2035 | EW4: =Time!EW7 -> 2035 | EX4: =Time!EX7 -> 2035 | EY4: =Time!EY7 -> 2036 | EZ4: =Time!EZ7 -> 2036 | FA4: =Time!FA7 -> 2036 | FB4: =Time!FB7 -> 2036 | FC4: =Time!FC7 -> 2036 | FD4: =Time!FD7 -> 2036 | FE4: =Time!FE7 -> 2036 | FF4: =Time!FF7 -> 2036 | FG4: =Time!FG7 -> 2036 | FH4: =Time!FH7 -> 2036 | FI4: =Time!FI7 -> 2036 | FJ4: =Time!FJ7 -> 2036 | FK4: =Time!FK7 -> 2037 | FL4: =Time!FL7 -> 2037 | FM4: =Time!FM7 -> 2037 | FN4: =Time!FN7 -> 2037 | FO4: =Time!FO7 -> 2037 | FP4: =Time!FP7 -> 2037 | FQ4: =Time!FQ7 -> 2037 | FR4: =Time!FR7 -> 2037 | FS4: =Time!FS7 -> 2037 | FT4: =Time!FT7 -> 2037 | FU4: =Time!FU7 -> 2037 | FV4: =Time!FV7 -> 2037 | FW4: =Time!FW7 -> 2038 | FX4: =Time!FX7 -> 2038 | FY4: =Time!FY7 -> 2038 | FZ4: =Time!FZ7 -> 2038 | GA4: =Time!GA7 -> 2038 | GB4: =Time!GB7 -> 2038 | GC4: =Time!GC7 -> 2038 | GD4: =Time!GD7 -> 2038 | GE4: =Time!GE7 -> 2038 | GF4: =Time!GF7 -> 2038 | GG4: =Time!GG7 -> 2038 | GH4: =Time!GH7 -> 2038 | GI4: =Time!GI7 -> 2039 | GJ4: =Time!GJ7 -> 2039 | GK4: =Time!GK7 -> 2039 | GL4: =Time!GL7 -> 2039 | GM4: =Time!GM7 -> 2039 | GN4: =Time!GN7 -> 2039 | GO4: =Time!GO7 -> 2039 | GP4: =Time!GP7 -> 2039 | GQ4: =Time!GQ7 -> 2039 | GR4: =Time!GR7 -> 2039 | GS4: =Time!GS7 -> 2039 | GT4: =Time!GT7 -> 2039 | GU4: =Time!GU7 -> 2040 | GV4: =Time!GV7 -> 2040 | GW4: =Time!GW7 -> 2040 | GX4: =Time!GX7 -> 2040 | GY4: =Time!GY7 -> 2040 | GZ4: =Time!GZ7 -> 2040 | HA4: =Time!HA7 -> 2040 | HB4: =Time!HB7 -> 2040 | HC4: =Time!HC7 -> 2040 | HD4: =Time!HD7 -> 2040 | HE4: =Time!HE7 -> 2040 | HF4: =Time!HF7 -> 2040 | HG4: =Time!HG7 -> 2041 | HH4: =Time!HH7 -> 2041 | HI4: =Time!HI7 -> 2041 | HJ4: =Time!HJ7 -> 2041 | HK4: =Time!HK7 -> 2041 | HL4: =Time!HL7 -> 2041 | HM4: =Time!HM7 -> 2041 | HN4: =Time!HN7 -> 2041 | HO4: =Time!HO7 -> 2041 | HP4: =Time!HP7 -> 2041 | HQ4: =Time!HQ7 -> 2041 | HR4: =Time!HR7 -> 2041 | HS4: =Time!HS7 -> 2042 | HT4: =Time!HT7 -> 2042 | HU4: =Time!HU7 -> 2042 | HV4: =Time!HV7 -> 2042 | HW4: =Time!HW7 -> 2042 | HX4: =Time!HX7 -> 2042 | HY4: =Time!HY7 -> 2042 | HZ4: =Time!HZ7 -> 2042 | IA4: =Time!IA7 -> 2042 | IB4: =Time!IB7 -> 2042 | IC4: =Time!IC7 -> 2042 | ID4: =Time!ID7 -> 2042 | IE4: =Time!IE7 -> 2043 | IF4: =Time!IF7 -> 2043 | IG4: =Time!IG7 -> 2043 | IH4: =Time!IH7 -> 2043 | II4: =Time!II7 -> 2043 | IJ4: =Time!IJ7 -> 2043 | IK4: =Time!IK7 -> 2043 | IL4: =Time!IL7 -> 2043 | IM4: =Time!IM7 -> 2043 | IN4: =Time!IN7 -> 2043 | IO4: =Time!IO7 -> 2043 | IP4: =Time!IP7 -> 2043 | IQ4: =Time!IQ7 -> 2044 | IR4: =Time!IR7 -> 2044 | IS4: =Time!IS7 -> 2044 | IT4: =Time!IT7 -> 2044 | IU4: =Time!IU7 -> 2044 | IV4: =Time!IV7 -> 2044 | IW4: =Time!IW7 -> 2044 | IX4: =Time!IX7 -> 2044 | IY4: =Time!IY7 -> 2044 | IZ4: =Time!IZ7 -> 2044 | JA4: =Time!JA7 -> 2044 | JB4: =Time!JB7 -> 2044 | JC4: =Time!JC7 -> 2045 | JD4: =Time!JD7 -> 2045 | JE4: =Time!JE7 -> 2045 | JF4: =Time!JF7 -> 2045 | JG4: =Time!JG7 -> 2045 | JH4: =Time!JH7 -> 2045 | JI4: =Time!JI7 -> 2045 | JJ4: =Time!JJ7 -> 2045 | JK4: =Time!JK7 -> 2045 | JL4: =Time!JL7 -> 2045 | JM4: =Time!JM7 -> 2045 | JN4: =Time!JN7 -> 2045 | JO4: =Time!JO7 -> 2046 | JP4: =Time!JP7 -> 2046 | JQ4: =Time!JQ7 -> 2046 | JR4: =Time!JR7 -> 2046 | JS4: =Time!JS7 -> 2046 | JT4: =Time!JT7 -> 2046 | JU4: =Time!JU7 -> 2046 | JV4: =Time!JV7 -> 2046 | JW4: =Time!JW7 -> 2046 | JX4: =Time!JX7 -> 2046 | JY4: =Time!JY7 -> 2046 | JZ4: =Time!JZ7 -> 2046 | KA4: =Time!KA7 -> 2047 | KB4: =Time!KB7 -> 2047 | KC4: =Time!KC7 -> 2047 | KD4: =Time!KD7 -> 2047 | KE4: =Time!KE7 -> 2047 | KF4: =Time!KF7 -> 2047 | KG4: =Time!KG7 -> 2047 | KH4: =Time!KH7 -> 2047 | KI4: =Time!KI7 -> 2047 | KJ4: =Time!KJ7 -> 2047 | KK4: =Time!KK7 -> 2047 | KL4: =Time!KL7 -> 2047 | KM4: =Time!KM7 -> 2048 | KN4: =Time!KN7 -> 2048 | KO4: =Time!KO7 -> 2048 | KP4: =Time!KP7 -> 2048 | KQ4: =Time!KQ7 -> 2048 | KR4: =Time!KR7 -> 2048 | KS4: =Time!KS7 -> 2048 | KT4: =Time!KT7 -> 2048 | KU4: =Time!KU7 -> 2048 | KV4: =Time!KV7 -> 2048 | KW4: =Time!KW7 -> 2048 | KX4: =Time!KX7 -> 2048 | KY4: =Time!KY7 -> 2049 | KZ4: =Time!KZ7 -> 2049 | LA4: =Time!LA7 -> 2049 | LB4: =Time!LB7 -> 2049 | LC4: =Time!LC7 -> 2049 | LD4: =Time!LD7 -> 2049 | LE4: =Time!LE7 -> 2049 | LF4: =Time!LF7 -> 2049 | LG4: =Time!LG7 -> 2049 | LH4: =Time!LH7 -> 2049 | LI4: =Time!LI7 -> 2049 | LJ4: =Time!LJ7 -> 2049 | LK4: =Time!LK7 -> 2050 | LL4: =Time!LL7 -> 2050 | LM4: =Time!LM7 -> 2050 | LN4: =Time!LN7 -> 2050 | LO4: =Time!LO7 -> 2050 | LP4: =Time!LP7 -> 2050 | LQ4: =Time!LQ7 -> 2050 | LR4: =Time!LR7 -> 2050 | LS4: =Time!LS7 -> 2050 | LT4: =Time!LT7 -> 2050 | LU4: =Time!LU7 -> 2050 | LV4: =Time!LV7 -> 2050 | LW4: =Time!LW7 -> 2051 | LX4: =Time!LX7 -> 2051 | LY4: =Time!LY7 -> 2051 | LZ4: =Time!LZ7 -> 2051 | MA4: =Time!MA7 -> 2051 | MB4: =Time!MB7 -> 2051 | MC4: =Time!MC7 -> 2051 | MD4: =Time!MD7 -> 2051 | ME4: =Time!ME7 -> 2051 | MF4: =Time!MF7 -> 2051 | MG4: =Time!MG7 -> 2051 | MH4: =Time!MH7 -> 2051 | MI4: =Time!MI7 -> 2052 | MJ4: =Time!MJ7 -> 2052 | MK4: =Time!MK7 -> 2052 | ML4: =Time!ML7 -> 2052 | MM4: =Time!MM7 -> 2052 | MN4: =Time!MN7 -> 2052 | MO4: =Time!MO7 -> 2052 | MP4: =Time!MP7 -> 2052 | MQ4: =Time!MQ7 -> 2052 | MR4: =Time!MR7 -> 2052 | MS4: =Time!MS7 -> 2052 | MT4: =Time!MT7 -> 2052 | MU4: =Time!MU7 -> 2053 | MV4: =Time!MV7 -> 2053 | MW4: =Time!MW7 -> 2053 | MX4: =Time!MX7 -> 2053 | MY4: =Time!MY7 -> 2053 | MZ4: =Time!MZ7 -> 2053 | NA4: =Time!NA7 -> 2053 | NB4: =Time!NB7 -> 2053 | NC4: =Time!NC7 -> 2053 | ND4: =Time!ND7 -> 2053 | NE4: =Time!NE7 -> 2053 | NF4: =Time!NF7 -> 2053 | NG4: =Time!NG7 -> 2054 | NH4: =Time!NH7 -> 2054 | NI4: =Time!NI7 -> 2054 | NJ4: =Time!NJ7 -> 2054 | NK4: =Time!NK7 -> 2054 | NL4: =Time!NL7 -> 2054 | NM4: =Time!NM7 -> 2054 | NN4: =Time!NN7 -> 2054 | NO4: =Time!NO7 -> 2054 | NP4: =Time!NP7 -> 2054 | NQ4: =Time!NQ7 -> 2054 | NR4: =Time!NR7 -> 2054 | NS4: =Time!NS7 -> 2055 | NT4: =Time!NT7 -> 2055 | NU4: =Time!NU7 -> 2055 | NV4: =Time!NV7 -> 2055 | NW4: =Time!NW7 -> 2055 | NX4: =Time!NX7 -> 2055 | NY4: =Time!NY7 -> 2055 | NZ4: =Time!NZ7 -> 2055 | OA4: =Time!OA7 -> 2055 | OB4: =Time!OB7 -> 2055 | OC4: =Time!OC7 -> 2055 | OD4: =Time!OD7 -> 2055 | OE4: =Time!OE7 -> 2056 | OF4: =Time!OF7 -> 2056 | OG4: =Time!OG7 -> 2056 | OH4: =Time!OH7 -> 2056 | OI4: =Time!OI7 -> 2056 | OJ4: =Time!OJ7 -> 2056 | OK4: =Time!OK7 -> 2056 | OL4: =Time!OL7 -> 2056 | OM4: =Time!OM7 -> 2056 | ON4: =Time!ON7 -> 2056 | OO4: =Time!OO7 -> 2056 | OP4: =Time!OP7 -> 2056 | OQ4: =Time!OQ7 -> 2057 | OR4: =Time!OR7 -> 2057 | OS4: =Time!OS7 -> 2057 | OT4: =Time!OT7 -> 2057 | OU4: =Time!OU7 -> 2057 | OV4: =Time!OV7 -> 2057 | OW4: =Time!OW7 -> 2057 | OX4: =Time!OX7 -> 2057 | OY4: =Time!OY7 -> 2057 | OZ4: =Time!OZ7 -> 2057 | PA4: =Time!PA7 -> 2057 | PB4: =Time!PB7 -> 2057 | PC4: =Time!PC7 -> 2058 | PD4: =Time!PD7 -> 2058 | PE4: =Time!PE7 -> 2058 | PF4: =Time!PF7 -> 2058 | PG4: =Time!PG7 -> 2058 | PH4: =Time!PH7 -> 2058 | PI4: =Time!PI7 -> 2058 | PJ4: =Time!PJ7 -> 2058 | PK4: =Time!PK7 -> 2058 | PL4: =Time!PL7 -> 2058 | PM4: =Time!PM7 -> 2058 | PN4: =Time!PN7 -> 2058 | PO4: =Time!PO7 -> 2059 | PP4: =Time!PP7 -> 2059 | PQ4: =Time!PQ7 -> 2059 | PR4: =Time!PR7 -> 2059 | PS4: =Time!PS7 -> 2059 | PT4: =Time!PT7 -> 2059 | PU4: =Time!PU7 -> 2059 | PV4: =Time!PV7 -> 2059 | PW4: =Time!PW7 -> 2059 | PX4: =Time!PX7 -> 2059 | PY4: =Time!PY7 -> 2059 | PZ4: =Time!PZ7 -> 2059 | QA4: =Time!QA7 -> 2060 | QB4: =Time!QB7 -> 2060 | QC4: =Time!QC7 -> 2060 | QD4: =Time!QD7 -> 2060 | QE4: =Time!QE7 -> 2060 | QF4: =Time!QF7 -> 2060 | QG4: =Time!QG7 -> 2060 | QH4: =Time!QH7 -> 2060 | QI4: =Time!QI7 -> 2060 | QJ4: =Time!QJ7 -> 2060 | QK4: =Time!QK7 -> 2060 | QL4: =Time!QL7 -> 2060 | QM4: =Time!QM7 -> 2061 | QN4: =Time!QN7 -> 2061 | QO4: =Time!QO7 -> 2061 | QP4: =Time!QP7 -> 2061 | QQ4: =Time!QQ7 -> 2061 | QR4: =Time!QR7 -> 2061 | QS4: =Time!QS7 -> 2061 | QT4: =Time!QT7 -> 2061 | QU4: =Time!QU7 -> 2061 | QV4: =Time!QV7 -> 2061 | QW4: =Time!QW7 -> 2061 | QX4: =Time!QX7 -> 2061 | QY4: =Time!QY7 -> 2062 | QZ4: =Time!QZ7 -> 2062 | RA4: =Time!RA7 -> 2062 | RB4: =Time!RB7 -> 2062 | RC4: =Time!RC7 -> 2062 | RD4: =Time!RD7 -> 2062 | RE4: =Time!RE7 -> 2062 | RF4: =Time!RF7 -> 2062 | RG4: =Time!RG7 -> 2062 | RH4: =Time!RH7 -> 2062 | RI4: =Time!RI7 -> 2062 | RJ4: =Time!RJ7 -> 2062 | RK4: =Time!RK7 -> 2063 | RL4: =Time!RL7 -> 2063 | RM4: =Time!RM7 -> 2063 | RN4: =Time!RN7 -> 2063 | RO4: =Time!RO7 -> 2063 | RP4: =Time!RP7 -> 2063 | RQ4: =Time!RQ7 -> 2063 | RR4: =Time!RR7 -> 2063 | RS4: =Time!RS7 -> 2063 | RT4: =Time!RT7 -> 2063 | RU4: =Time!RU7 -> 2063 | RV4: =Time!RV7 -> 2063 | RW4: =Time!RW7 -> 2064 | RX4: =Time!RX7 -> 2064 | RY4: =Time!RY7 -> 2064 | RZ4: =Time!RZ7 -> 2064 | SA4: =Time!SA7 -> 2064 | SB4: =Time!SB7 -> 2064 | SC4: =Time!SC7 -> 2064 | SD4: =Time!SD7 -> 2064 | SE4: =Time!SE7 -> 2064 | SF4: =Time!SF7 -> 2064 | SG4: =Time!SG7 -> 2064 | SH4: =Time!SH7 -> 2064 | SI4: =Time!SI7 -> 2065 | SJ4: =Time!SJ7 -> 2065 | SK4: =Time!SK7 -> 2065 | SL4: =Time!SL7 -> 2065 | SM4: =Time!SM7 -> 2065 | SN4: =Time!SN7 -> 2065 | SO4: =Time!SO7 -> 2065
E5: =Time!E8 -> Model column counter | F5: Constant | G5: Unit | H5: Total | J5: =Time!J8 -> 1 | K5: =Time!K8 -> 2 | L5: =Time!L8 -> 3 | M5: =Time!M8 -> 4 | N5: =Time!N8 -> 5 | O5: =Time!O8 -> 6 | P5: =Time!P8 -> 7 | Q5: =Time!Q8 -> 8 | R5: =Time!R8 -> 9 | S5: =Time!S8 -> 10 | T5: =Time!T8 -> 11 | U5: =Time!U8 -> 12 | V5: =Time!V8 -> 13 | W5: =Time!W8 -> 14 | X5: =Time!X8 -> 15 | Y5: =Time!Y8 -> 16 | Z5: =Time!Z8 -> 17 | AA5: =Time!AA8 -> 18 | AB5: =Time!AB8 -> 19 | AC5: =Time!AC8 -> 20 | AD5: =Time!AD8 -> 21 | AE5: =Time!AE8 -> 22 | AF5: =Time!AF8 -> 23 | AG5: =Time!AG8 -> 24 | AH5: =Time!AH8 -> 25 | AI5: =Time!AI8 -> 26 | AJ5: =Time!AJ8 -> 27 | AK5: =Time!AK8 -> 28 | AL5: =Time!AL8 -> 29 | AM5: =Time!AM8 -> 30 | AN5: =Time!AN8 -> 31 | AO5: =Time!AO8 -> 32 | AP5: =Time!AP8 -> 33 | AQ5: =Time!AQ8 -> 34 | AR5: =Time!AR8 -> 35 | AS5: =Time!AS8 -> 36 | AT5: =Time!AT8 -> 37 | AU5: =Time!AU8 -> 38 | AV5: =Time!AV8 -> 39 | AW5: =Time!AW8 -> 40 | AX5: =Time!AX8 -> 41 | AY5: =Time!AY8 -> 42 | AZ5: =Time!AZ8 -> 43 | BA5: =Time!BA8 -> 44 | BB5: =Time!BB8 -> 45 | BC5: =Time!BC8 -> 46 | BD5: =Time!BD8 -> 47 | BE5: =Time!BE8 -> 48 | BF5: =Time!BF8 -> 49 | BG5: =Time!BG8 -> 50 | BH5: =Time!BH8 -> 51 | BI5: =Time!BI8 -> 52 | BJ5: =Time!BJ8 -> 53 | BK5: =Time!BK8 -> 54 | BL5: =Time!BL8 -> 55 | BM5: =Time!BM8 -> 56 | BN5: =Time!BN8 -> 57 | BO5: =Time!BO8 -> 58 | BP5: =Time!BP8 -> 59 | BQ5: =Time!BQ8 -> 60 | BR5: =Time!BR8 -> 61 | BS5: =Time!BS8 -> 62 | BT5: =Time!BT8 -> 63 | BU5: =Time!BU8 -> 64 | BV5: =Time!BV8 -> 65 | BW5: =Time!BW8 -> 66 | BX5: =Time!BX8 -> 67 | BY5: =Time!BY8 -> 68 | BZ5: =Time!BZ8 -> 69 | CA5: =Time!CA8 -> 70 | CB5: =Time!CB8 -> 71 | CC5: =Time!CC8 -> 72 | CD5: =Time!CD8 -> 73 | CE5: =Time!CE8 -> 74 | CF5: =Time!CF8 -> 75 | CG5: =Time!CG8 -> 76 | CH5: =Time!CH8 -> 77 | CI5: =Time!CI8 -> 78 | CJ5: =Time!CJ8 -> 79 | CK5: =Time!CK8 -> 80 | CL5: =Time!CL8 -> 81 | CM5: =Time!CM8 -> 82 | CN5: =Time!CN8 -> 83 | CO5: =Time!CO8 -> 84 | CP5: =Time!CP8 -> 85 | CQ5: =Time!CQ8 -> 86 | CR5: =Time!CR8 -> 87 | CS5: =Time!CS8 -> 88 | CT5: =Time!CT8 -> 89 | CU5: =Time!CU8 -> 90 | CV5: =Time!CV8 -> 91 | CW5: =Time!CW8 -> 92 | CX5: =Time!CX8 -> 93 | CY5: =Time!CY8 -> 94 | CZ5: =Time!CZ8 -> 95 | DA5: =Time!DA8 -> 96 | DB5: =Time!DB8 -> 97 | DC5: =Time!DC8 -> 98 | DD5: =Time!DD8 -> 99 | DE5: =Time!DE8 -> 100 | DF5: =Time!DF8 -> 101 | DG5: =Time!DG8 -> 102 | DH5: =Time!DH8 -> 103 | DI5: =Time!DI8 -> 104 | DJ5: =Time!DJ8 -> 105 | DK5: =Time!DK8 -> 106 | DL5: =Time!DL8 -> 107 | DM5: =Time!DM8 -> 108 | DN5: =Time!DN8 -> 109 | DO5: =Time!DO8 -> 110 | DP5: =Time!DP8 -> 111 | DQ5: =Time!DQ8 -> 112 | DR5: =Time!DR8 -> 113 | DS5: =Time!DS8 -> 114 | DT5: =Time!DT8 -> 115 | DU5: =Time!DU8 -> 116 | DV5: =Time!DV8 -> 117 | DW5: =Time!DW8 -> 118 | DX5: =Time!DX8 -> 119 | DY5: =Time!DY8 -> 120 | DZ5: =Time!DZ8 -> 121 | EA5: =Time!EA8 -> 122 | EB5: =Time!EB8 -> 123 | EC5: =Time!EC8 -> 124 | ED5: =Time!ED8 -> 125 | EE5: =Time!EE8 -> 126 | EF5: =Time!EF8 -> 127 | EG5: =Time!EG8 -> 128 | EH5: =Time!EH8 -> 129 | EI5: =Time!EI8 -> 130 | EJ5: =Time!EJ8 -> 131 | EK5: =Time!EK8 -> 132 | EL5: =Time!EL8 -> 133 | EM5: =Time!EM8 -> 134 | EN5: =Time!EN8 -> 135 | EO5: =Time!EO8 -> 136 | EP5: =Time!EP8 -> 137 | EQ5: =Time!EQ8 -> 138 | ER5: =Time!ER8 -> 139 | ES5: =Time!ES8 -> 140 | ET5: =Time!ET8 -> 141 | EU5: =Time!EU8 -> 142 | EV5: =Time!EV8 -> 143 | EW5: =Time!EW8 -> 144 | EX5: =Time!EX8 -> 145 | EY5: =Time!EY8 -> 146 | EZ5: =Time!EZ8 -> 147 | FA5: =Time!FA8 -> 148 | FB5: =Time!FB8 -> 149 | FC5: =Time!FC8 -> 150 | FD5: =Time!FD8 -> 151 | FE5: =Time!FE8 -> 152 | FF5: =Time!FF8 -> 153 | FG5: =Time!FG8 -> 154 | FH5: =Time!FH8 -> 155 | FI5: =Time!FI8 -> 156 | FJ5: =Time!FJ8 -> 157 | FK5: =Time!FK8 -> 158 | FL5: =Time!FL8 -> 159 | FM5: =Time!FM8 -> 160 | FN5: =Time!FN8 -> 161 | FO5: =Time!FO8 -> 162 | FP5: =Time!FP8 -> 163 | FQ5: =Time!FQ8 -> 164 | FR5: =Time!FR8 -> 165 | FS5: =Time!FS8 -> 166 | FT5: =Time!FT8 -> 167 | FU5: =Time!FU8 -> 168 | FV5: =Time!FV8 -> 169 | FW5: =Time!FW8 -> 170 | FX5: =Time!FX8 -> 171 | FY5: =Time!FY8 -> 172 | FZ5: =Time!FZ8 -> 173 | GA5: =Time!GA8 -> 174 | GB5: =Time!GB8 -> 175 | GC5: =Time!GC8 -> 176 | GD5: =Time!GD8 -> 177 | GE5: =Time!GE8 -> 178 | GF5: =Time!GF8 -> 179 | GG5: =Time!GG8 -> 180 | GH5: =Time!GH8 -> 181 | GI5: =Time!GI8 -> 182 | GJ5: =Time!GJ8 -> 183 | GK5: =Time!GK8 -> 184 | GL5: =Time!GL8 -> 185 | GM5: =Time!GM8 -> 186 | GN5: =Time!GN8 -> 187 | GO5: =Time!GO8 -> 188 | GP5: =Time!GP8 -> 189 | GQ5: =Time!GQ8 -> 190 | GR5: =Time!GR8 -> 191 | GS5: =Time!GS8 -> 192 | GT5: =Time!GT8 -> 193 | GU5: =Time!GU8 -> 194 | GV5: =Time!GV8 -> 195 | GW5: =Time!GW8 -> 196 | GX5: =Time!GX8 -> 197 | GY5: =Time!GY8 -> 198 | GZ5: =Time!GZ8 -> 199 | HA5: =Time!HA8 -> 200 | HB5: =Time!HB8 -> 201 | HC5: =Time!HC8 -> 202 | HD5: =Time!HD8 -> 203 | HE5: =Time!HE8 -> 204 | HF5: =Time!HF8 -> 205 | HG5: =Time!HG8 -> 206 | HH5: =Time!HH8 -> 207 | HI5: =Time!HI8 -> 208 | HJ5: =Time!HJ8 -> 209 | HK5: =Time!HK8 -> 210 | HL5: =Time!HL8 -> 211 | HM5: =Time!HM8 -> 212 | HN5: =Time!HN8 -> 213 | HO5: =Time!HO8 -> 214 | HP5: =Time!HP8 -> 215 | HQ5: =Time!HQ8 -> 216 | HR5: =Time!HR8 -> 217 | HS5: =Time!HS8 -> 218 | HT5: =Time!HT8 -> 219 | HU5: =Time!HU8 -> 220 | HV5: =Time!HV8 -> 221 | HW5: =Time!HW8 -> 222 | HX5: =Time!HX8 -> 223 | HY5: =Time!HY8 -> 224 | HZ5: =Time!HZ8 -> 225 | IA5: =Time!IA8 -> 226 | IB5: =Time!IB8 -> 227 | IC5: =Time!IC8 -> 228 | ID5: =Time!ID8 -> 229 | IE5: =Time!IE8 -> 230 | IF5: =Time!IF8 -> 231 | IG5: =Time!IG8 -> 232 | IH5: =Time!IH8 -> 233 | II5: =Time!II8 -> 234 | IJ5: =Time!IJ8 -> 235 | IK5: =Time!IK8 -> 236 | IL5: =Time!IL8 -> 237 | IM5: =Time!IM8 -> 238 | IN5: =Time!IN8 -> 239 | IO5: =Time!IO8 -> 240 | IP5: =Time!IP8 -> 241 | IQ5: =Time!IQ8 -> 242 | IR5: =Time!IR8 -> 243 | IS5: =Time!IS8 -> 244 | IT5: =Time!IT8 -> 245 | IU5: =Time!IU8 -> 246 | IV5: =Time!IV8 -> 247 | IW5: =Time!IW8 -> 248 | IX5: =Time!IX8 -> 249 | IY5: =Time!IY8 -> 250 | IZ5: =Time!IZ8 -> 251 | JA5: =Time!JA8 -> 252 | JB5: =Time!JB8 -> 253 | JC5: =Time!JC8 -> 254 | JD5: =Time!JD8 -> 255 | JE5: =Time!JE8 -> 256 | JF5: =Time!JF8 -> 257 | JG5: =Time!JG8 -> 258 | JH5: =Time!JH8 -> 259 | JI5: =Time!JI8 -> 260 | JJ5: =Time!JJ8 -> 261 | JK5: =Time!JK8 -> 262 | JL5: =Time!JL8 -> 263 | JM5: =Time!JM8 -> 264 | JN5: =Time!JN8 -> 265 | JO5: =Time!JO8 -> 266 | JP5: =Time!JP8 -> 267 | JQ5: =Time!JQ8 -> 268 | JR5: =Time!JR8 -> 269 | JS5: =Time!JS8 -> 270 | JT5: =Time!JT8 -> 271 | JU5: =Time!JU8 -> 272 | JV5: =Time!JV8 -> 273 | JW5: =Time!JW8 -> 274 | JX5: =Time!JX8 -> 275 | JY5: =Time!JY8 -> 276 | JZ5: =Time!JZ8 -> 277 | KA5: =Time!KA8 -> 278 | KB5: =Time!KB8 -> 279 | KC5: =Time!KC8 -> 280 | KD5: =Time!KD8 -> 281 | KE5: =Time!KE8 -> 282 | KF5: =Time!KF8 -> 283 | KG5: =Time!KG8 -> 284 | KH5: =Time!KH8 -> 285 | KI5: =Time!KI8 -> 286 | KJ5: =Time!KJ8 -> 287 | KK5: =Time!KK8 -> 288 | KL5: =Time!KL8 -> 289 | KM5: =Time!KM8 -> 290 | KN5: =Time!KN8 -> 291 | KO5: =Time!KO8 -> 292 | KP5: =Time!KP8 -> 293 | KQ5: =Time!KQ8 -> 294 | KR5: =Time!KR8 -> 295 | KS5: =Time!KS8 -> 296 | KT5: =Time!KT8 -> 297 | KU5: =Time!KU8 -> 298 | KV5: =Time!KV8 -> 299 | KW5: =Time!KW8 -> 300 | KX5: =Time!KX8 -> 301 | KY5: =Time!KY8 -> 302 | KZ5: =Time!KZ8 -> 303 | LA5: =Time!LA8 -> 304 | LB5: =Time!LB8 -> 305 | LC5: =Time!LC8 -> 306 | LD5: =Time!LD8 -> 307 | LE5: =Time!LE8 -> 308 | LF5: =Time!LF8 -> 309 | LG5: =Time!LG8 -> 310 | LH5: =Time!LH8 -> 311 | LI5: =Time!LI8 -> 312 | LJ5: =Time!LJ8 -> 313 | LK5: =Time!LK8 -> 314 | LL5: =Time!LL8 -> 315 | LM5: =Time!LM8 -> 316 | LN5: =Time!LN8 -> 317 | LO5: =Time!LO8 -> 318 | LP5: =Time!LP8 -> 319 | LQ5: =Time!LQ8 -> 320 | LR5: =Time!LR8 -> 321 | LS5: =Time!LS8 -> 322 | LT5: =Time!LT8 -> 323 | LU5: =Time!LU8 -> 324 | LV5: =Time!LV8 -> 325 | LW5: =Time!LW8 -> 326 | LX5: =Time!LX8 -> 327 | LY5: =Time!LY8 -> 328 | LZ5: =Time!LZ8 -> 329 | MA5: =Time!MA8 -> 330 | MB5: =Time!MB8 -> 331 | MC5: =Time!MC8 -> 332 | MD5: =Time!MD8 -> 333 | ME5: =Time!ME8 -> 334 | MF5: =Time!MF8 -> 335 | MG5: =Time!MG8 -> 336 | MH5: =Time!MH8 -> 337 | MI5: =Time!MI8 -> 338 | MJ5: =Time!MJ8 -> 339 | MK5: =Time!MK8 -> 340 | ML5: =Time!ML8 -> 341 | MM5: =Time!MM8 -> 342 | MN5: =Time!MN8 -> 343 | MO5: =Time!MO8 -> 344 | MP5: =Time!MP8 -> 345 | MQ5: =Time!MQ8 -> 346 | MR5: =Time!MR8 -> 347 | MS5: =Time!MS8 -> 348 | MT5: =Time!MT8 -> 349 | MU5: =Time!MU8 -> 350 | MV5: =Time!MV8 -> 351 | MW5: =Time!MW8 -> 352 | MX5: =Time!MX8 -> 353 | MY5: =Time!MY8 -> 354 | MZ5: =Time!MZ8 -> 355 | NA5: =Time!NA8 -> 356 | NB5: =Time!NB8 -> 357 | NC5: =Time!NC8 -> 358 | ND5: =Time!ND8 -> 359 | NE5: =Time!NE8 -> 360 | NF5: =Time!NF8 -> 361 | NG5: =Time!NG8 -> 362 | NH5: =Time!NH8 -> 363 | NI5: =Time!NI8 -> 364 | NJ5: =Time!NJ8 -> 365 | NK5: =Time!NK8 -> 366 | NL5: =Time!NL8 -> 367 | NM5: =Time!NM8 -> 368 | NN5: =Time!NN8 -> 369 | NO5: =Time!NO8 -> 370 | NP5: =Time!NP8 -> 371 | NQ5: =Time!NQ8 -> 372 | NR5: =Time!NR8 -> 373 | NS5: =Time!NS8 -> 374 | NT5: =Time!NT8 -> 375 | NU5: =Time!NU8 -> 376 | NV5: =Time!NV8 -> 377 | NW5: =Time!NW8 -> 378 | NX5: =Time!NX8 -> 379 | NY5: =Time!NY8 -> 380 | NZ5: =Time!NZ8 -> 381 | OA5: =Time!OA8 -> 382 | OB5: =Time!OB8 -> 383 | OC5: =Time!OC8 -> 384 | OD5: =Time!OD8 -> 385 | OE5: =Time!OE8 -> 386 | OF5: =Time!OF8 -> 387 | OG5: =Time!OG8 -> 388 | OH5: =Time!OH8 -> 389 | OI5: =Time!OI8 -> 390 | OJ5: =Time!OJ8 -> 391 | OK5: =Time!OK8 -> 392 | OL5: =Time!OL8 -> 393 | OM5: =Time!OM8 -> 394 | ON5: =Time!ON8 -> 395 | OO5: =Time!OO8 -> 396 | OP5: =Time!OP8 -> 397 | OQ5: =Time!OQ8 -> 398 | OR5: =Time!OR8 -> 399 | OS5: =Time!OS8 -> 400 | OT5: =Time!OT8 -> 401 | OU5: =Time!OU8 -> 402 | OV5: =Time!OV8 -> 403 | OW5: =Time!OW8 -> 404 | OX5: =Time!OX8 -> 405 | OY5: =Time!OY8 -> 406 | OZ5: =Time!OZ8 -> 407 | PA5: =Time!PA8 -> 408 | PB5: =Time!PB8 -> 409 | PC5: =Time!PC8 -> 410 | PD5: =Time!PD8 -> 411 | PE5: =Time!PE8 -> 412 | PF5: =Time!PF8 -> 413 | PG5: =Time!PG8 -> 414 | PH5: =Time!PH8 -> 415 | PI5: =Time!PI8 -> 416 | PJ5: =Time!PJ8 -> 417 | PK5: =Time!PK8 -> 418 | PL5: =Time!PL8 -> 419 | PM5: =Time!PM8 -> 420 | PN5: =Time!PN8 -> 421 | PO5: =Time!PO8 -> 422 | PP5: =Time!PP8 -> 423 | PQ5: =Time!PQ8 -> 424 | PR5: =Time!PR8 -> 425 | PS5: =Time!PS8 -> 426 | PT5: =Time!PT8 -> 427 | PU5: =Time!PU8 -> 428 | PV5: =Time!PV8 -> 429 | PW5: =Time!PW8 -> 430 | PX5: =Time!PX8 -> 431 | PY5: =Time!PY8 -> 432 | PZ5: =Time!PZ8 -> 433 | QA5: =Time!QA8 -> 434 | QB5: =Time!QB8 -> 435 | QC5: =Time!QC8 -> 436 | QD5: =Time!QD8 -> 437 | QE5: =Time!QE8 -> 438 | QF5: =Time!QF8 -> 439 | QG5: =Time!QG8 -> 440 | QH5: =Time!QH8 -> 441 | QI5: =Time!QI8 -> 442 | QJ5: =Time!QJ8 -> 443 | QK5: =Time!QK8 -> 444 | QL5: =Time!QL8 -> 445 | QM5: =Time!QM8 -> 446 | QN5: =Time!QN8 -> 447 | QO5: =Time!QO8 -> 448 | QP5: =Time!QP8 -> 449 | QQ5: =Time!QQ8 -> 450 | QR5: =Time!QR8 -> 451 | QS5: =Time!QS8 -> 452 | QT5: =Time!QT8 -> 453 | QU5: =Time!QU8 -> 454 | QV5: =Time!QV8 -> 455 | QW5: =Time!QW8 -> 456 | QX5: =Time!QX8 -> 457 | QY5: =Time!QY8 -> 458 | QZ5: =Time!QZ8 -> 459 | RA5: =Time!RA8 -> 460 | RB5: =Time!RB8 -> 461 | RC5: =Time!RC8 -> 462 | RD5: =Time!RD8 -> 463 | RE5: =Time!RE8 -> 464 | RF5: =Time!RF8 -> 465 | RG5: =Time!RG8 -> 466 | RH5: =Time!RH8 -> 467 | RI5: =Time!RI8 -> 468 | RJ5: =Time!RJ8 -> 469 | RK5: =Time!RK8 -> 470 | RL5: =Time!RL8 -> 471 | RM5: =Time!RM8 -> 472 | RN5: =Time!RN8 -> 473 | RO5: =Time!RO8 -> 474 | RP5: =Time!RP8 -> 475 | RQ5: =Time!RQ8 -> 476 | RR5: =Time!RR8 -> 477 | RS5: =Time!RS8 -> 478 | RT5: =Time!RT8 -> 479 | RU5: =Time!RU8 -> 480 | RV5: =Time!RV8 -> 481 | RW5: =Time!RW8 -> 482 | RX5: =Time!RX8 -> 483 | RY5: =Time!RY8 -> 484 | RZ5: =Time!RZ8 -> 485 | SA5: =Time!SA8 -> 486 | SB5: =Time!SB8 -> 487 | SC5: =Time!SC8 -> 488 | SD5: =Time!SD8 -> 489 | SE5: =Time!SE8 -> 490 | SF5: =Time!SF8 -> 491 | SG5: =Time!SG8 -> 492 | SH5: =Time!SH8 -> 493 | SI5: =Time!SI8 -> 494 | SJ5: =Time!SJ8 -> 495 | SK5: =Time!SK8 -> 496 | SL5: =Time!SL8 -> 497 | SM5: =Time!SM8 -> 498 | SN5: =Time!SN8 -> 499 | SO5: =Time!SO8 -> 500
A7: EPC expenses
H8: % Paid
E9: Upfront payment | F9: 1 | G9: Period | H9: 0.25
E10: 1 year milestone payment | F10: 12 | G10: Period | H10: 0.5
E11: End of construction payment | F11: 24 | G11: Period | H11: 0.25
E13: Construction period | G13: Period | J13: =J5 -> 1 | K13: 2 | L13: 3 | M13: 4 | N13: 5 | O13: 6 | P13: 7 | Q13: 8 | R13: 9 | S13: 10 | T13: 11 | U13: 12 | V13: 13 | W13: 14 | X13: 15 | Y13: 16 | Z13: 17 | AA13: 18 | AB13: 19 | AC13: 20 | AD13: 21 | AE13: 22 | AF13: 23 | AG13: 24 | AH13: 25 | AI13: 26 | AJ13: 27 | AK13: 28 | AL13: 29 | AM13: 30 | AN13: 31 | AO13: 32 | AP13: =AP5 -> 33 | AQ13: 34 | AR13: 35 | AS13: 36 | AT13: 37 | AU13: 38 | AV13: 39 | AW13: 40 | AX13: 41 | AY13: 42 | AZ13: 43 | BA13: 44 | BB13: 45 | BC13: 46 | BD13: 47 | BE13: 48 | BF13: 49 | BG13: 50 | BH13: 51 | BI13: 52 | BJ13: 53 | BK13: 54 | BL13: 55 | BM13: 56 | BN13: 57 | BO13: 58 | BP13: 59 | BQ13: 60 | BR13: 61 | BS13: 62 | BT13: 63 | BU13: 64 | BV13: =BV5 -> 65 | BW13: 66 | BX13: 67 | BY13: 68 | BZ13: 69 | CA13: 70 | CB13: 71 | CC13: 72 | CD13: 73 | CE13: 74 | CF13: 75 | CG13: 76 | CH13: 77 | CI13: 78 | CJ13: 79 | CK13: 80 | CL13: 81 | CM13: 82 | CN13: 83 | CO13: 84 | CP13: 85 | CQ13: 86 | CR13: 87 | CS13: 88 | CT13: 89 | CU13: 90 | CV13: 91 | CW13: 92 | CX13: 93 | CY13: 94 | CZ13: 95 | DA13: 96 | DB13: =DB5 -> 97 | DC13: 98 | DD13: 99 | DE13: 100 | DF13: 101 | DG13: 102 | DH13: 103 | DI13: 104 | DJ13: 105 | DK13: 106 | DL13: 107 | DM13: 108 | DN13: 109 | DO13: 110 | DP13: 111 | DQ13: 112 | DR13: 113 | DS13: 114 | DT13: 115 | DU13: 116 | DV13: 117 | DW13: 118 | DX13: 119 | DY13: 120 | DZ13: 121 | EA13: 122 | EB13: 123 | EC13: 124 | ED13: 125 | EE13: 126 | EF13: 127 | EG13: 128 | EH13: =EH5 -> 129 | EI13: 130 | EJ13: 131 | EK13: 132 | EL13: 133 | EM13: 134 | EN13: 135 | EO13: 136 | EP13: 137 | EQ13: 138 | ER13: 139 | ES13: 140 | ET13: 141 | EU13: 142 | EV13: 143 | EW13: 144 | EX13: 145 | EY13: 146 | EZ13: 147 | FA13: 148 | FB13: 149 | FC13: 150 | FD13: 151 | FE13: 152 | FF13: 153 | FG13: 154 | FH13: 155 | FI13: 156 | FJ13: 157 | FK13: 158 | FL13: 159 | FM13: 160 | FN13: =FN5 -> 161 | FO13: 162 | FP13: 163 | FQ13: 164 | FR13: 165 | FS13: 166 | FT13: 167 | FU13: 168 | FV13: 169 | FW13: 170 | FX13: 171 | FY13: 172 | FZ13: 173 | GA13: 174 | GB13: 175 | GC13: 176 | GD13: 177 | GE13: 178 | GF13: 179 | GG13: 180 | GH13: 181 | GI13: 182 | GJ13: =GJ5 -> 183 | GK13: 184 | GL13: 185 | GM13: 186 | GN13: 187 | GO13: 188 | GP13: 189 | GQ13: 190 | GR13: 191 | GS13: 192 | GT13: 193 | GU13: 194 | GV13: 195 | GW13: 196 | GX13: 197 | GY13: 198 | GZ13: 199 | HA13: 200 | HB13: 201 | HC13: 202 | HD13: 203 | HE13: 204 | HF13: 205 | HG13: 206 | HH13: 207 | HI13: 208 | HJ13: 209 | HK13: 210 | HL13: 211 | HM13: 212 | HN13: 213 | HO13: 214 | HP13: 215 | HQ13: 216 | HR13: 217 | HS13: 218 | HT13: 219 | HU13: 220 | HV13: 221 | HW13: 222 | HX13: 223 | HY13: 224 | HZ13: 225 | IA13: 226 | IB13: 227 | IC13: 228 | ID13: 229 | IE13: 230 | IF13: 231 | IG13: 232 | IH13: 233 | II13: 234 | IJ13: 235 | IK13: 236 | IL13: 237 | IM13: 238 | IN13: 239 | IO13: 240 | IP13: 241 | IQ13: 242 | IR13: 243 | IS13: 244 | IT13: 245 | IU13: 246 | IV13: =IV5 -> 247 | IW13: 248 | IX13: 249 | IY13: 250 | IZ13: 251 | JA13: 252 | JB13: 253 | JC13: 254 | JD13: 255 | JE13: 256 | JF13: 257 | JG13: 258 | JH13: 259 | JI13: 260 | JJ13: 261 | JK13: 262 | JL13: 263 | JM13: 264 | JN13: 265 | JO13: 266 | JP13: 267 | JQ13: 268 | JR13: 269 | JS13: 270 | JT13: 271 | JU13: 272 | JV13: 273 | JW13: 274 | JX13: 275 | JY13: 276 | JZ13: 277 | KA13: 278 | KB13: 279 | KC13: 280 | KD13: 281 | KE13: 282 | KF13: 283 | KG13: 284 | KH13: 285 | KI13: 286 | KJ13: 287 | KK13: 288 | KL13: 289 | KM13: 290 | KN13: 291 | KO13: 292 | KP13: 293 | KQ13: 294 | KR13: 295 | KS13: 296 | KT13: 297 | KU13: 298 | KV13: 299 | KW13: 300 | KX13: 301 | KY13: 302 | KZ13: 303 | LA13: 304 | LB13: 305 | LC13: 306 | LD13: 307 | LE13: 308 | LF13: 309 | LG13: 310 | LH13: =LH5 -> 311 | LI13: 312 | LJ13: 313 | LK13: 314 | LL13: 315 | LM13: 316 | LN13: 317 | LO13: 318 | LP13: 319 | LQ13: 320 | LR13: 321 | LS13: 322 | LT13: 323 | LU13: 324 | LV13: 325 | LW13: 326 | LX13: 327 | LY13: 328 | LZ13: 329 | MA13: 330 | MB13: 331 | MC13: 332 | MD13: 333 | ME13: 334 | MF13: 335 | MG13: 336 | MH13: 337 | MI13: 338 | MJ13: 339 | MK13: 340 | ML13: 341 | MM13: 342 | MN13: 343 | MO13: 344 | MP13: 345 | MQ13: 346 | MR13: 347 | MS13: 348 | MT13: 349 | MU13: 350 | MV13: 351 | MW13: 352 | MX13: 353 | MY13: 354 | MZ13: 355 | NA13: 356 | NB13: 357 | NC13: 358 | ND13: 359 | NE13: 360 | NF13: 361 | NG13: 362 | NH13: 363 | NI13: 364 | NJ13: 365 | NK13: 366 | NL13: 367 | NM13: 368 | NN13: 369 | NO13: 370 | NP13: 371 | NQ13: 372 | NR13: 373 | NS13: 374 | NT13: =NT5 -> 375 | NU13: 376 | NV13: 377 | NW13: 378 | NX13: 379 | NY13: 380 | NZ13: 381 | OA13: 382 | OB13: 383 | OC13: 384 | OD13: 385 | OE13: 386 | OF13: 387 | OG13: 388 | OH13: 389 | OI13: 390 | OJ13: 391 | OK13: 392 | OL13: 393 | OM13: 394 | ON13: 395 | OO13: 396 | OP13: 397 | OQ13: 398 | OR13: 399 | OS13: 400 | OT13: 401 | OU13: 402 | OV13: 403 | OW13: 404 | OX13: 405 | OY13: 406 | OZ13: 407 | PA13: 408 | PB13: 409 | PC13: 410 | PD13: 411 | PE13: 412 | PF13: 413 | PG13: 414 | PH13: 415 | PI13: 416 | PJ13: 417 | PK13: 418 | PL13: 419 | PM13: 420 | PN13: 421 | PO13: 422 | PP13: 423 | PQ13: 424 | PR13: 425 | PS13: 426 | PT13: 427 | PU13: 428 | PV13: 429 | PW13: 430 | PX13: 431 | PY13: 432 | PZ13: 433 | QA13: 434 | QB13: 435 | QC13: 436 | QD13: 437 | QE13: 438 | QF13: =QF5 -> 439 | QG13: 440 | QH13: 441 | QI13: 442 | QJ13: 443 | QK13: 444 | QL13: 445 | QM13: 446 | QN13: 447 | QO13: 448 | QP13: 449 | QQ13: 450 | QR13: 451 | QS13: 452 | QT13: 453 | QU13: 454 | QV13: 455 | QW13: 456 | QX13: 457 | QY13: 458 | QZ13: 459 | RA13: 460 | RB13: 461 | RC13: 462 | RD13: 463 | RE13: 464 | RF13: 465 | RG13: 466 | RH13: 467 | RI13: 468 | RJ13: 469 | RK13: 470 | RL13: 471 | RM13: 472 | RN13: 473 | RO13: 474 | RP13: 475 | RQ13: 476 | RR13: 477 | RS13: 478 | RT13: 479 | RU13: 480 | RV13: 481 | RW13: 482 | RX13: 483 | RY13: 484 | RZ13: 485 | SA13: 486 | SB13: 487 | SC13: 488 | SD13: 489 | SE13: 490 | SF13: 491 | SG13: 492 | SH13: 493 | SI13: 494 | SJ13: 495 | SK13: 496 | SL13: 497 | SM13: 498 | SN13: 499 | SO13: 500
E14: Construction year | G14: Ongoing Year | J14: =ROUNDUP(J13/months,0) -> 1 | K14: 1 | L14: 1 | M14: 1 | N14: 1 | O14: 1 | P14: 1 | Q14: 1 | R14: 1 | S14: 1 | T14: 1 | U14: 1 | V14: 2 | W14: 2 | X14: 2 | Y14: 2 | Z14: 2 | AA14: 2 | AB14: 2 | AC14: 2 | AD14: 2 | AE14: 2 | AF14: 2 | AG14: 2 | AH14: 3 | AI14: 3 | AJ14: 3 | AK14: 3 | AL14: 3 | AM14: 3 | AN14: 3 | AO14: 3 | AP14: 3 | AQ14: 3 | AR14: 3 | AS14: 3 | AT14: 4 | AU14: 4 | AV14: 4 | AW14: 4 | AX14: 4 | AY14: 4 | AZ14: 4 | BA14: 4 | BB14: 4 | BC14: 4 | BD14: 4 | BE14: 4 | BF14: 5 | BG14: 5 | BH14: 5 | BI14: 5 | BJ14: 5 | BK14: 5 | BL14: 5 | BM14: 5 | BN14: 5 | BO14: 5 | BP14: 5 | BQ14: 5 | BR14: 6 | BS14: 6 | BT14: 6 | BU14: 6 | BV14: =ROUNDUP(BV13/months,0) -> 6 | BW14: 6 | BX14: 6 | BY14: 6 | BZ14: 6 | CA14: 6 | CB14: 6 | CC14: 6 | CD14: 7 | CE14: 7 | CF14: 7 | CG14: 7 | CH14: 7 | CI14: 7 | CJ14: 7 | CK14: 7 | CL14: 7 | CM14: 7 | CN14: 7 | CO14: 7 | CP14: 8 | CQ14: 8 | CR14: 8 | CS14: 8 | CT14: 8 | CU14: 8 | CV14: 8 | CW14: 8 | CX14: 8 | CY14: 8 | CZ14: 8 | DA14: 8 | DB14: 9 | DC14: 9 | DD14: 9 | DE14: 9 | DF14: 9 | DG14: 9 | DH14: 9 | DI14: 9 | DJ14: 9 | DK14: 9 | DL14: 9 | DM14: 9 | DN14: 10 | DO14: 10 | DP14: 10 | DQ14: 10 | DR14: 10 | DS14: 10 | DT14: 10 | DU14: 10 | DV14: 10 | DW14: 10 | DX14: 10 | DY14: 10 | DZ14: 11 | EA14: 11 | EB14: 11 | EC14: 11 | ED14: 11 | EE14: 11 | EF14: 11 | EG14: 11 | EH14: =ROUNDUP(EH13/months,0) -> 11 | EI14: 11 | EJ14: 11 | EK14: 11 | EL14: 12 | EM14: 12 | EN14: 12 | EO14: 12 | EP14: 12 | EQ14: 12 | ER14: 12 | ES14: 12 | ET14: 12 | EU14: 12 | EV14: 12 | EW14: 12 | EX14: 13 | EY14: 13 | EZ14: 13 | FA14: 13 | FB14: 13 | FC14: 13 | FD14: 13 | FE14: 13 | FF14: 13 | FG14: 13 | FH14: 13 | FI14: 13 | FJ14: 14 | FK14: 14 | FL14: 14 | FM14: 14 | FN14: 14 | FO14: 14 | FP14: 14 | FQ14: 14 | FR14: 14 | FS14: 14 | FT14: 14 | FU14: 14 | FV14: 15 | FW14: 15 | FX14: 15 | FY14: 15 | FZ14: 15 | GA14: 15 | GB14: 15 | GC14: 15 | GD14: 15 | GE14: 15 | GF14: 15 | GG14: 15 | GH14: 16 | GI14: 16 | GJ14: 16 | GK14: 16 | GL14: 16 | GM14: 16 | GN14: 16 | GO14: 16 | GP14: 16 | GQ14: 16 | GR14: 16 | GS14: 16 | GT14: =ROUNDUP(GT13/months,0) -> 17 | GU14: 17 | GV14: 17 | GW14: 17 | GX14: 17 | GY14: 17 | GZ14: 17 | HA14: 17 | HB14: 17 | HC14: 17 | HD14: 17 | HE14: 17 | HF14: 18 | HG14: 18 | HH14: 18 | HI14: 18 | HJ14: 18 | HK14: 18 | HL14: 18 | HM14: 18 | HN14: 18 | HO14: 18 | HP14: 18 | HQ14: 18 | HR14: 19 | HS14: 19 | HT14: 19 | HU14: 19 | HV14: 19 | HW14: 19 | HX14: 19 | HY14: 19 | HZ14: 19 | IA14: 19 | IB14: 19 | IC14: 19 | ID14: 20 | IE14: 20 | IF14: 20 | IG14: 20 | IH14: 20 | II14: 20 | IJ14: 20 | IK14: 20 | IL14: 20 | IM14: 20 | IN14: 20 | IO14: 20 | IP14: 21 | IQ14: 21 | IR14: 21 | IS14: 21 | IT14: 21 | IU14: 21 | IV14: 21 | IW14: 21 | IX14: 21 | IY14: 21 | IZ14: 21 | JA14: 21 | JB14: 22 | JC14: 22 | JD14: 22 | JE14: 22 | JF14: =ROUNDUP(JF13/months,0) -> 22 | JG14: 22 | JH14: 22 | JI14: 22 | JJ14: 22 | JK14: 22 | JL14: 22 | JM14: 22 | JN14: 23 | JO14: 23 | JP14: 23 | JQ14: 23 | JR14: 23 | JS14: 23 | JT14: 23 | JU14: 23 | JV14: 23 | JW14: 23 | JX14: 23 | JY14: 23 | JZ14: 24 | KA14: 24 | KB14: 24 | KC14: 24 | KD14: 24 | KE14: 24 | KF14: 24 | KG14: 24 | KH14: 24 | KI14: 24 | KJ14: 24 | KK14: 24 | KL14: 25 | KM14: 25 | KN14: 25 | KO14: 25 | KP14: 25 | KQ14: 25 | KR14: 25 | KS14: 25 | KT14: 25 | KU14: 25 | KV14: 25 | KW14: 25 | KX14: 26 | KY14: 26 | KZ14: 26 | LA14: 26 | LB14: 26 | LC14: 26 | LD14: 26 | LE14: 26 | LF14: 26 | LG14: 26 | LH14: 26 | LI14: 26 | LJ14: 27 | LK14: 27 | LL14: 27 | LM14: 27 | LN14: 27 | LO14: 27 | LP14: 27 | LQ14: 27 | LR14: =ROUNDUP(LR13/months,0) -> 27 | LS14: 27 | LT14: 27 | LU14: 27 | LV14: 28 | LW14: 28 | LX14: 28 | LY14: 28 | LZ14: 28 | MA14: 28 | MB14: 28 | MC14: 28 | MD14: 28 | ME14: 28 | MF14: 28 | MG14: 28 | MH14: 29 | MI14: 29 | MJ14: 29 | MK14: 29 | ML14: 29 | MM14: 29 | MN14: 29 | MO14: 29 | MP14: 29 | MQ14: 29 | MR14: 29 | MS14: 29 | MT14: 30 | MU14: 30 | MV14: 30 | MW14: 30 | MX14: 30 | MY14: 30 | MZ14: 30 | NA14: 30 | NB14: 30 | NC14: 30 | ND14: 30 | NE14: 30 | NF14: 31 | NG14: 31 | NH14: 31 | NI14: 31 | NJ14: 31 | NK14: 31 | NL14: 31 | NM14: 31 | NN14: 31 | NO14: 31 | NP14: 31 | NQ14: 31 | NR14: 32 | NS14: 32 | NT14: 32 | NU14: 32 | NV14: 32 | NW14: 32 | NX14: 32 | NY14: 32 | NZ14: 32 | OA14: 32 | OB14: 32 | OC14: 32 | OD14: =ROUNDUP(OD13/months,0) -> 33 | OE14: 33 | OF14: 33 | OG14: 33 | OH14: 33 | OI14: 33 | OJ14: 33 | OK14: 33 | OL14: 33 | OM14: 33 | ON14: 33 | OO14: 33 | OP14: 34 | OQ14: 34 | OR14: 34 | OS14: 34 | OT14: 34 | OU14: 34 | OV14: 34 | OW14: 34 | OX14: 34 | OY14: 34 | OZ14: 34 | PA14: 34 | PB14: 35 | PC14: 35 | PD14: 35 | PE14: 35 | PF14: 35 | PG14: 35 | PH14: 35 | PI14: 35 | PJ14: 35 | PK14: 35 | PL14: 35 | PM14: 35 | PN14: 36 | PO14: 36 | PP14: 36 | PQ14: 36 | PR14: 36 | PS14: 36 | PT14: 36 | PU14: 36 | PV14: 36 | PW14: 36 | PX14: 36 | PY14: 36 | PZ14: 37 | QA14: 37 | QB14: 37 | QC14: 37 | QD14: 37 | QE14: 37 | QF14: 37 | QG14: 37 | QH14: 37 | QI14: 37 | QJ14: 37 | QK14: 37 | QL14: 38 | QM14: 38 | QN14: 38 | QO14: 38 | QP14: =ROUNDUP(QP13/months,0) -> 38 | QQ14: 38 | QR14: 38 | QS14: 38 | QT14: 38 | QU14: 38 | QV14: 38 | QW14: 38 | QX14: 39 | QY14: 39 | QZ14: 39 | RA14: 39 | RB14: 39 | RC14: 39 | RD14: 39 | RE14: 39 | RF14: 39 | RG14: 39 | RH14: 39 | RI14: 39 | RJ14: 40 | RK14: 40 | RL14: 40 | RM14: 40 | RN14: 40 | RO14: 40 | RP14: 40 | RQ14: 40 | RR14: 40 | RS14: 40 | RT14: 40 | RU14: 40 | RV14: 41 | RW14: 41 | RX14: 41 | RY14: 41 | RZ14: 41 | SA14: 41 | SB14: 41 | SC14: 41 | SD14: 41 | SE14: 41 | SF14: 41 | SG14: 41 | SH14: 42 | SI14: 42 | SJ14: 42 | SK14: 42 | SL14: 42 | SM14: 42 | SN14: 42 | SO14: 42
E15: =InpC!E$17 -> Construction period | F15: =InpC!F$17 -> 24 | G15: =InpC!G$17 -> months | J15: =(J14<=$F15)*1 -> 1 | K15: 1 | L15: 1 | M15: 1 | N15: 1 | O15: 1 | P15: 1 | Q15: 1 | R15: 1 | S15: 1 | T15: 1 | U15: 1 | V15: 1 | W15: 1 | X15: 1 | Y15: 1 | Z15: 1 | AA15: 1 | AB15: 1 | AC15: 1 | AD15: 1 | AE15: 1 | AF15: 1 | AG15: 1 | AH15: 1 | AI15: 1 | AJ15: 1 | AK15: 1 | AL15: 1 | AM15: 1 | AN15: 1 | AO15: 1 | AP15: 1 | AQ15: 1 | AR15: 1 | AS15: 1 | AT15: 1 | AU15: 1 | AV15: 1 | AW15: 1 | AX15: 1 | AY15: 1 | AZ15: 1 | BA15: 1 | BB15: 1 | BC15: 1 | BD15: 1 | BE15: 1 | BF15: 1 | BG15: 1 | BH15: 1 | BI15: 1 | BJ15: 1 | BK15: 1 | BL15: 1 | BM15: 1 | BN15: 1 | BO15: 1 | BP15: 1 | BQ15: 1 | BR15: 1 | BS15: 1 | BT15: 1 | BU15: 1 | BV15: =(BV14<=$F15)*1 -> 1 | BW15: 1 | BX15: 1 | BY15: 1 | BZ15: 1 | CA15: 1 | CB15: 1 | CC15: 1 | CD15: 1 | CE15: 1 | CF15: 1 | CG15: 1 | CH15: 1 | CI15: 1 | CJ15: 1 | CK15: 1 | CL15: 1 | CM15: 1 | CN15: 1 | CO15: 1 | CP15: 1 | CQ15: 1 | CR15: 1 | CS15: 1 | CT15: 1 | CU15: 1 | CV15: 1 | CW15: 1 | CX15: 1 | CY15: 1 | CZ15: 1 | DA15: 1 | DB15: 1 | DC15: 1 | DD15: 1 | DE15: 1 | DF15: 1 | DG15: 1 | DH15: 1 | DI15: 1 | DJ15: 1 | DK15: 1 | DL15: 1 | DM15: 1 | DN15: 1 | DO15: 1 | DP15: 1 | DQ15: 1 | DR15: 1 | DS15: 1 | DT15: 1 | DU15: 1 | DV15: 1 | DW15: 1 | DX15: 1 | DY15: 1 | DZ15: 1 | EA15: 1 | EB15: 1 | EC15: 1 | ED15: 1 | EE15: 1 | EF15: 1 | EG15: 1 | EH15: =(EH14<=$F15)*1 -> 1 | EI15: 1 | EJ15: 1 | EK15: 1 | EL15: 1 | EM15: 1 | EN15: 1 | EO15: 1 | EP15: 1 | EQ15: 1 | ER15: 1 | ES15: 1 | ET15: 1 | EU15: 1 | EV15: 1 | EW15: 1 | EX15: 1 | EY15: 1 | EZ15: 1 | FA15: 1 | FB15: 1 | FC15: 1 | FD15: 1 | FE15: 1 | FF15: 1 | FG15: 1 | FH15: 1 | FI15: 1 | FJ15: 1 | FK15: 1 | FL15: 1 | FM15: 1 | FN15: 1 | FO15: 1 | FP15: 1 | FQ15: 1 | FR15: 1 | FS15: 1 | FT15: 1 | FU15: 1 | FV15: 1 | FW15: 1 | FX15: 1 | FY15: 1 | FZ15: 1 | GA15: 1 | GB15: 1 | GC15: 1 | GD15: 1 | GE15: 1 | GF15: 1 | GG15: 1 | GH15: 1 | GI15: 1 | GJ15: 1 | GK15: 1 | GL15: 1 | GM15: 1 | GN15: 1 | GO15: 1 | GP15: 1 | GQ15: 1 | GR15: 1 | GS15: 1 | GT15: =(GT14<=$F15)*1 -> 1 | GU15: 1 | GV15: 1 | GW15: 1 | GX15: 1 | GY15: 1 | GZ15: 1 | HA15: 1 | HB15: 1 | HC15: 1 | HD15: 1 | HE15: 1 | HF15: 1 | HG15: 1 | HH15: 1 | HI15: 1 | HJ15: 1 | HK15: 1 | HL15: 1 | HM15: 1 | HN15: 1 | HO15: 1 | HP15: 1 | HQ15: 1 | HR15: 1 | HS15: 1 | HT15: 1 | HU15: 1 | HV15: 1 | HW15: 1 | HX15: 1 | HY15: 1 | HZ15: 1 | IA15: 1 | IB15: 1 | IC15: 1 | ID15: 1 | IE15: 1 | IF15: 1 | IG15: 1 | IH15: 1 | II15: 1 | IJ15: 1 | IK15: 1 | IL15: 1 | IM15: 1 | IN15: 1 | IO15: 1 | IP15: 1 | IQ15: 1 | IR15: 1 | IS15: 1 | IT15: 1 | IU15: 1 | IV15: 1 | IW15: 1 | IX15: 1 | IY15: 1 | IZ15: 1 | JA15: 1 | JB15: 1 | JC15: 1 | JD15: 1 | JE15: 1 | JF15: =(JF14<=$F15)*1 -> 1 | JG15: 1 | JH15: 1 | JI15: 1 | JJ15: 1 | JK15: 1 | JL15: 1 | JM15: 1 | JN15: 1 | JO15: 1 | JP15: 1 | JQ15: 1 | JR15: 1 | JS15: 1 | JT15: 1 | JU15: 1 | JV15: 1 | JW15: 1 | JX15: 1 | JY15: 1 | JZ15: 1 | KA15: 1 | KB15: 1 | KC15: 1 | KD15: 1 | KE15: 1 | KF15: 1 | KG15: 1 | KH15: 1 | KI15: 1 | KJ15: 1 | KK15: 1 | KL15: 0 | KM15: 0 | KN15: 0 | KO15: 0 | KP15: 0 | KQ15: 0 | KR15: 0 | KS15: 0 | KT15: 0 | KU15: 0 | KV15: 0 | KW15: 0 | KX15: 0 | KY15: 0 | KZ15: 0 | LA15: 0 | LB15: 0 | LC15: 0 | LD15: 0 | LE15: 0 | LF15: 0 | LG15: 0 | LH15: 0 | LI15: 0 | LJ15: 0 | LK15: 0 | LL15: 0 | LM15: 0 | LN15: 0 | LO15: 0 | LP15: 0 | LQ15: 0 | LR15: =(LR14<=$F15)*1 -> 0 | LS15: 0 | LT15: 0 | LU15: 0 | LV15: 0 | LW15: 0 | LX15: 0 | LY15: 0 | LZ15: 0 | MA15: 0 | MB15: 0 | MC15: 0 | MD15: 0 | ME15: 0 | MF15: 0 | MG15: 0 | MH15: 0 | MI15: 0 | MJ15: 0 | MK15: 0 | ML15: 0 | MM15: 0 | MN15: 0 | MO15: 0 | MP15: 0 | MQ15: 0 | MR15: 0 | MS15: 0 | MT15: 0 | MU15: 0 | MV15: 0 | MW15: 0 | MX15: 0 | MY15: 0 | MZ15: 0 | NA15: 0 | NB15: 0 | NC15: 0 | ND15: 0 | NE15: 0 | NF15: 0 | NG15: 0 | NH15: 0 | NI15: 0 | NJ15: 0 | NK15: 0 | NL15: 0 | NM15: 0 | NN15: 0 | NO15: 0 | NP15: 0 | NQ15: 0 | NR15: 0 | NS15: 0 | NT15: 0 | NU15: 0 | NV15: 0 | NW15: 0 | NX15: 0 | NY15: 0 | NZ15: 0 | OA15: 0 | OB15: 0 | OC15: 0 | OD15: =(OD14<=$F15)*1 -> 0 | OE15: 0 | OF15: 0 | OG15: 0 | OH15: 0 | OI15: 0 | OJ15: 0 | OK15: 0 | OL15: 0 | OM15: 0 | ON15: 0 | OO15: 0 | OP15: 0 | OQ15: 0 | OR15: 0 | OS15: 0 | OT15: 0 | OU15: 0 | OV15: 0 | OW15: 0 | OX15: 0 | OY15: 0 | OZ15: 0 | PA15: 0 | PB15: 0 | PC15: 0 | PD15: 0 | PE15: 0 | PF15: 0 | PG15: 0 | PH15: 0 | PI15: 0 | PJ15: 0 | PK15: 0 | PL15: 0 | PM15: 0 | PN15: 0 | PO15: 0 | PP15: 0 | PQ15: 0 | PR15: 0 | PS15: 0 | PT15: 0 | PU15: 0 | PV15: 0 | PW15: 0 | PX15: 0 | PY15: 0 | PZ15: 0 | QA15: 0 | QB15: 0 | QC15: 0 | QD15: 0 | QE15: 0 | QF15: 0 | QG15: 0 | QH15: 0 | QI15: 0 | QJ15: 0 | QK15: 0 | QL15: 0 | QM15: 0 | QN15: 0 | QO15: 0 | QP15: =(QP14<=$F15)*1 -> 0 | QQ15: 0 | QR15: 0 | QS15: 0 | QT15: 0 | QU15: 0 | QV15: 0 | QW15: 0 | QX15: 0 | QY15: 0 | QZ15: 0 | RA15: 0 | RB15: 0 | RC15: 0 | RD15: 0 | RE15: 0 | RF15: 0 | RG15: 0 | RH15: 0 | RI15: 0 | RJ15: 0 | RK15: 0 | RL15: 0 | RM15: 0 | RN15: 0 | RO15: 0 | RP15: 0 | RQ15: 0 | RR15: 0 | RS15: 0 | RT15: 0 | RU15: 0 | RV15: 0 | RW15: 0 | RX15: 0 | RY15: 0 | RZ15: 0 | SA15: 0 | SB15: 0 | SC15: 0 | SD15: 0 | SE15: 0 | SF15: 0 | SG15: 0 | SH15: 0 | SI15: 0 | SJ15: 0 | SK15: 0 | SL15: 0 | SM15: 0 | SN15: 0 | SO15: 0
E16: S-Curve | H16: =SUM(J16:GJ16) -> 1 | J16: =_xlfn.XLOOKUP(J13,$F$9:$F$11,$H$9:$H$11,0,0) -> 0.25 | K16: 0 | L16: 0 | M16: 0 | N16: 0 | O16: 0 | P16: 0 | Q16: 0 | R16: 0 | S16: 0 | T16: 0 | U16: 0.5 | V16: 0 | W16: 0 | X16: 0 | Y16: 0 | Z16: 0 | AA16: 0 | AB16: 0 | AC16: 0 | AD16: 0 | AE16: 0 | AF16: 0 | AG16: 0.25 | AH16: 0 | AI16: 0 | AJ16: 0 | AK16: 0 | AL16: 0 | AM16: 0 | AN16: 0 | AO16: 0 | AP16: =_xlfn.XLOOKUP(AP13,$F$9:$F$11,$H$9:$H$11,0,0) -> 0 | AQ16: 0 | AR16: 0 | AS16: 0 | AT16: 0 | AU16: 0 | AV16: 0 | AW16: 0 | AX16: 0 | AY16: 0 | AZ16: 0 | BA16: 0 | BB16: 0 | BC16: 0 | BD16: 0 | BE16: 0 | BF16: 0 | BG16: 0 | BH16: 0 | BI16: 0 | BJ16: 0 | BK16: 0 | BL16: 0 | BM16: 0 | BN16: 0 | BO16: 0 | BP16: 0 | BQ16: 0 | BR16: 0 | BS16: 0 | BT16: 0 | BU16: 0 | BV16: =_xlfn.XLOOKUP(BV13,$F$9:$F$11,$H$9:$H$11,0,0) -> 0 | BW16: 0 | BX16: 0 | BY16: 0 | BZ16: 0 | CA16: 0 | CB16: 0 | CC16: 0 | CD16: 0 | CE16: 0 | CF16: 0 | CG16: 0 | CH16: 0 | CI16: 0 | CJ16: 0 | CK16: 0 | CL16: 0 | CM16: 0 | CN16: 0 | CO16: 0 | CP16: 0 | CQ16: 0 | CR16: 0 | CS16: 0 | CT16: 0 | CU16: 0 | CV16: 0 | CW16: 0 | CX16: 0 | CY16: 0 | CZ16: 0 | DA16: 0 | DB16: =_xlfn.XLOOKUP(DB13,$F$9:$F$11,$H$9:$H$11,0,0) -> 0 | DC16: 0 | DD16: 0 | DE16: 0 | DF16: 0 | DG16: 0 | DH16: 0 | DI16: 0 | DJ16: 0 | DK16: 0 | DL16: 0 | DM16: 0 | DN16: 0 | DO16: 0 | DP16: 0 | DQ16: 0 | DR16: 0 | DS16: 0 | DT16: 0 | DU16: 0 | DV16: 0 | DW16: 0 | DX16: 0 | DY16: 0 | DZ16: 0 | EA16: 0 | EB16: 0 | EC16: 0 | ED16: 0 | EE16: 0 | EF16: 0 | EG16: 0 | EH16: =_xlfn.XLOOKUP(EH13,$F$9:$F$11,$H$9:$H$11,0,0) -> 0 | EI16: 0 | EJ16: 0 | EK16: 0 | EL16: 0 | EM16: 0 | EN16: 0 | EO16: 0 | EP16: 0 | EQ16: 0 | ER16: 0 | ES16: 0 | ET16: 0 | EU16: 0 | EV16: 0 | EW16: 0 | EX16: 0 | EY16: 0 | EZ16: 0 | FA16: 0 | FB16: 0 | FC16: 0 | FD16: 0 | FE16: 0 | FF16: 0 | FG16: 0 | FH16: 0 | FI16: 0 | FJ16: 0 | FK16: 0 | FL16: 0 | FM16: 0 | FN16: =_xlfn.XLOOKUP(FN13,$F$9:$F$11,$H$9:$H$11,0,0) -> 0 | FO16: 0 | FP16: 0 | FQ16: 0 | FR16: 0 | FS16: 0 | FT16: 0 | FU16: 0 | FV16: 0 | FW16: 0 | FX16: 0 | FY16: 0 | FZ16: 0 | GA16: 0 | GB16: 0 | GC16: 0 | GD16: 0 | GE16: 0 | GF16: 0 | GG16: 0 | GH16: 0 | GI16: 0 | GJ16: =_xlfn.XLOOKUP(GJ13,$F$9:$F$11,$H$9:$H$11,0,0) -> 0 | GK16: 0 | GL16: 0 | GM16: 0 | GN16: 0 | GO16: 0 | GP16: 0 | GQ16: 0 | GR16: 0 | GS16: 0 | GT16: 0 | GU16: 0 | GV16: 0 | GW16: 0 | GX16: 0 | GY16: 0 | GZ16: 0 | HA16: 0 | HB16: 0 | HC16: 0 | HD16: 0 | HE16: 0 | HF16: 0 | HG16: 0 | HH16: 0 | HI16: 0 | HJ16: 0 | HK16: 0 | HL16: 0 | HM16: 0 | HN16: 0 | HO16: 0 | HP16: 0 | HQ16: 0 | HR16: 0 | HS16: 0 | HT16: 0 | HU16: 0 | HV16: 0 | HW16: 0 | HX16: 0 | HY16: 0 | HZ16: 0 | IA16: 0 | IB16: 0 | IC16: 0 | ID16: 0 | IE16: 0 | IF16: 0 | IG16: 0 | IH16: 0 | II16: 0 | IJ16: 0 | IK16: 0 | IL16: 0 | IM16: 0 | IN16: 0 | IO16: 0 | IP16: 0 | IQ16: 0 | IR16: 0 | IS16: 0 | IT16: 0 | IU16: 0 | IV16: =_xlfn.XLOOKUP(IV13,$F$9:$F$11,$H$9:$H$11,0,0) -> 0 | IW16: 0 | IX16: 0 | IY16: 0 | IZ16: 0 | JA16: 0 | JB16: 0 | JC16: 0 | JD16: 0 | JE16: 0 | JF16: 0 | JG16: 0 | JH16: 0 | JI16: 0 | JJ16: 0 | JK16: 0 | JL16: 0 | JM16: 0 | JN16: 0 | JO16: 0 | JP16: 0 | JQ16: 0 | JR16: 0 | JS16: 0 | JT16: 0 | JU16: 0 | JV16: 0 | JW16: 0 | JX16: 0 | JY16: 0 | JZ16: 0 | KA16: 0 | KB16: 0 | KC16: 0 | KD16: 0 | KE16: 0 | KF16: 0 | KG16: 0 | KH16: 0 | KI16: 0 | KJ16: 0 | KK16: 0 | KL16: 0 | KM16: 0 | KN16: 0 | KO16: 0 | KP16: 0 | KQ16: 0 | KR16: 0 | KS16: 0 | KT16: 0 | KU16: 0 | KV16: 0 | KW16: 0 | KX16: 0 | KY16: 0 | KZ16: 0 | LA16: 0 | LB16: 0 | LC16: 0 | LD16: 0 | LE16: 0 | LF16: 0 | LG16: 0 | LH16: =_xlfn.XLOOKUP(LH13,$F$9:$F$11,$H$9:$H$11,0,0) -> 0 | LI16: 0 | LJ16: 0 | LK16: 0 | LL16: 0 | LM16: 0 | LN16: 0 | LO16: 0 | LP16: 0 | LQ16: 0 | LR16: 0 | LS16: 0 | LT16: 0 | LU16: 0 | LV16: 0 | LW16: 0 | LX16: 0 | LY16: 0 | LZ16: 0 | MA16: 0 | MB16: 0 | MC16: 0 | MD16: 0 | ME16: 0 | MF16: 0 | MG16: 0 | MH16: 0 | MI16: 0 | MJ16: 0 | MK16: 0 | ML16: 0 | MM16: 0 | MN16: 0 | MO16: 0 | MP16: 0 | MQ16: 0 | MR16: 0 | MS16: 0 | MT16: 0 | MU16: 0 | MV16: 0 | MW16: 0 | MX16: 0 | MY16: 0 | MZ16: 0 | NA16: 0 | NB16: 0 | NC16: 0 | ND16: 0 | NE16: 0 | NF16: 0 | NG16: 0 | NH16: 0 | NI16: 0 | NJ16: 0 | NK16: 0 | NL16: 0 | NM16: 0 | NN16: 0 | NO16: 0 | NP16: 0 | NQ16: 0 | NR16: 0 | NS16: 0 | NT16: =_xlfn.XLOOKUP(NT13,$F$9:$F$11,$H$9:$H$11,0,0) -> 0 | NU16: 0 | NV16: 0 | NW16: 0 | NX16: 0 | NY16: 0 | NZ16: 0 | OA16: 0 | OB16: 0 | OC16: 0 | OD16: 0 | OE16: 0 | OF16: 0 | OG16: 0 | OH16: 0 | OI16: 0 | OJ16: 0 | OK16: 0 | OL16: 0 | OM16: 0 | ON16: 0 | OO16: 0 | OP16: 0 | OQ16: 0 | OR16: 0 | OS16: 0 | OT16: 0 | OU16: 0 | OV16: 0 | OW16: 0 | OX16: 0 | OY16: 0 | OZ16: 0 | PA16: 0 | PB16: 0 | PC16: 0 | PD16: 0 | PE16: 0 | PF16: 0 | PG16: 0 | PH16: 0 | PI16: 0 | PJ16: 0 | PK16: 0 | PL16: 0 | PM16: 0 | PN16: 0 | PO16: 0 | PP16: 0 | PQ16: 0 | PR16: 0 | PS16: 0 | PT16: 0 | PU16: 0 | PV16: 0 | PW16: 0 | PX16: 0 | PY16: 0 | PZ16: 0 | QA16: 0 | QB16: 0 | QC16: 0 | QD16: 0 | QE16: 0 | QF16: =_xlfn.XLOOKUP(QF13,$F$9:$F$11,$H$9:$H$11,0,0) -> 0 | QG16: 0 | QH16: 0 | QI16: 0 | QJ16: 0 | QK16: 0 | QL16: 0 | QM16: 0 | QN16: 0 | QO16: 0 | QP16: 0 | QQ16: 0 | QR16: 0 | QS16: 0 | QT16: 0 | QU16: 0 | QV16: 0 | QW16: 0 | QX16: 0 | QY16: 0 | QZ16: 0 | RA16: 0 | RB16: 0 | RC16: 0 | RD16: 0 | RE16: 0 | RF16: 0 | RG16: 0 | RH16: 0 | RI16: 0 | RJ16: 0 | RK16: 0 | RL16: 0 | RM16: 0 | RN16: 0 | RO16: 0 | RP16: 0 | RQ16: 0 | RR16: 0 | RS16: 0 | RT16: 0 | RU16: 0 | RV16: 0 | RW16: 0 | RX16: 0 | RY16: 0 | RZ16: 0 | SA16: 0 | SB16: 0 | SC16: 0 | SD16: 0 | SE16: 0 | SF16: 0 | SG16: 0 | SH16: 0 | SI16: 0 | SJ16: 0 | SK16: 0 | SL16: 0 | SM16: 0 | SN16: 0 | SO16: 0
A18: Solar seasonality
E19: Month name | G19: Month | J19: Jan | K19: Feb | L19: March | M19: April | N19: May | O19: June | P19: July | Q19: August | R19: September | S19: October | T19: November | U19: December
E20: Month number | G20: Number | J20: 1 | K20: 2 | L20: 3 | M20: 4 | N20: 5 | O20: 6 | P20: 7 | Q20: 8 | R20: 9 | S20: 10 | T20: 11 | U20: 12
E21: Resource availability | G21: % | J21: 0.1242 | K21: 0.1037 | L21: 0.0975 | M21: 0.0714 | N21: 0.0518 | O21: 0.0419 | P21: 0.048 | Q21: 0.0596 | R21: 0.0753 | S21: 0.0986 | T21: 0.1122 | U21: 0.1159
A129: END

Sheet Time
A1: =RIGHT(CELL("filename", A1), LEN(CELL("filename", A1)) - SEARCH("]", CELL("filename", A1))) & " - " & InpC!F3 -> Time - Base case 1
E2: Model period beginning - SA | F2: =Check!$F$9 -> 0 | G2: Error chks | J2: =J90 -> 2023-01-01 | K2: 2023-02-01 | L2: 2023-03-01 | M2: 2023-04-01 | N2: 2023-05-01 | O2: 2023-06-01 | P2: 2023-07-01 | Q2: 2023-08-01 | R2: 2023-09-01 | S2: 2023-10-01 | T2: 2023-11-01 | U2: 2023-12-01 | V2: 2024-01-01 | W2: 2024-02-01 | X2: 2024-03-01 | Y2: 2024-04-01 | Z2: 2024-05-01 | AA2: 2024-06-01 | AB2: 2024-07-01 | AC2: 2024-08-01 | AD2: 2024-09-01 | AE2: 2024-10-01 | AF2: 2024-11-01 | AG2: 2024-12-01 | AH2: 2025-01-01 | AI2: 2025-07-01 | AJ2: 2026-01-01 | AK2: 2026-07-01 | AL2: 2027-01-01 | AM2: 2027-07-01 | AN2: 2028-01-01 | AO2: 2028-07-01 | AP2: 2029-01-01 | AQ2: 2029-07-01 | AR2: 2030-01-01 | AS2: 2030-07-01 | AT2: 2031-01-01 | AU2: 2031-07-01 | AV2: 2032-01-01 | AW2: 2032-07-01 | AX2: 2033-01-01 | AY2: 2033-07-01 | AZ2: 2034-01-01 | BA2: 2034-07-01 | BB2: 2035-01-01 | BC2: 2035-07-01 | BD2: 2036-01-01 | BE2: 2036-07-01 | BF2: 2037-01-01 | BG2: 2037-07-01 | BH2: 2038-01-01 | BI2: 2038-07-01 | BJ2: 2039-01-01 | BK2: 2039-07-01 | BL2: 2040-01-01 | BM2: 2040-07-01 | BN2: 2041-01-01 | BO2: 2041-07-01 | BP2: 2042-01-01 | BQ2: 2042-07-01 | BR2: 2043-01-01 | BS2: 2043-07-01 | BT2: 2044-01-01 | BU2: 2044-07-01 | BV2: =BV90 -> 2045-01-01 | BW2: 2045-07-01 | BX2: 2046-01-01 | BY2: 2046-07-01 | BZ2: 2047-01-01 | CA2: 2047-07-01 | CB2: 2048-01-01 | CC2: 2048-07-01 | CD2: 2049-01-01 | CE2: 2049-07-01 | CF2: 2050-01-01 | CG2: 2050-07-01 | CH2: 2051-01-01 | CI2: 2051-07-01 | CJ2: 2052-01-01 | CK2: 2052-07-01 | CL2: 2053-01-01 | CM2: 2053-07-01 | CN2: 2054-01-01 | CO2: 2054-07-01 | CP2: 2055-01-01 | CQ2: 2055-07-01 | CR2: 2056-01-01 | CS2: 2056-07-01 | CT2: 2057-01-01 | CU2: 2057-07-01 | CV2: 2058-01-01 | CW2: 2058-07-01 | CX2: 2059-01-01 | CY2: 2059-07-01 | CZ2: 2060-01-01 | DA2: 2060-07-01 | DB2: 2061-01-01 | DC2: 2061-07-01 | DD2: 2062-01-01 | DE2: 2062-07-01 | DF2: 2063-01-01 | DG2: 2063-07-01 | DH2: 2064-01-01 | DI2: 2064-07-01 | DJ2: 2065-01-01 | DK2: 2065-07-01 | DL2: 2066-01-01 | DM2: 2066-07-01 | DN2: 2067-01-01 | DO2: 2067-07-01 | DP2: 2068-01-01 | DQ2: 2068-07-01 | DR2: 2069-01-01 | DS2: 2069-07-01 | DT2: 2070-01-01 | DU2: 2070-07-01 | DV2: 2071-01-01 | DW2: 2071-07-01 | DX2: 2072-01-01 | DY2: 2072-07-01 | DZ2: 2073-01-01 | EA2: 2073-07-01 | EB2: 2074-01-01 | EC2: 2074-07-01 | ED2: 2075-01-01 | EE2: 2075-07-01 | EF2: 2076-01-01 | EG2: 2076-07-01 | EH2: =EH90 -> 2077-01-01 | EI2: 2077-07-01 | EJ2: 2078-01-01 | EK2: 2078-07-01 | EL2: 2079-01-01 | EM2: 2079-07-01 | EN2: 2080-01-01 | EO2: 2080-07-01 | EP2: 2081-01-01 | EQ2: 2081-07-01 | ER2: 2082-01-01 | ES2: 2082-07-01 | ET2: 2083-01-01 | EU2: 2083-07-01 | EV2: 2084-01-01 | EW2: 2084-07-01 | EX2: 2085-01-01 | EY2: 2085-07-01 | EZ2: 2086-01-01 | FA2: 2086-07-01 | FB2: 2087-01-01 | FC2: 2087-07-01 | FD2: 2088-01-01 | FE2: 2088-07-01 | FF2: 2089-01-01 | FG2: 2089-07-01 | FH2: 2090-01-01 | FI2: 2090-07-01 | FJ2: 2091-01-01 | FK2: 2091-07-01 | FL2: 2092-01-01 | FM2: 2092-07-01 | FN2: 2093-01-01 | FO2: 2093-07-01 | FP2: 2094-01-01 | FQ2: 2094-07-01 | FR2: 2095-01-01 | FS2: 2095-07-01 | FT2: 2096-01-01 | FU2: 2096-07-01 | FV2: 2097-01-01 | FW2: 2097-07-01 | FX2: 2098-01-01 | FY2: 2098-07-01 | FZ2: 2099-01-01 | GA2: 2099-07-01 | GB2: 2100-01-01 | GC2: 2100-07-01 | GD2: 2101-01-01 | GE2: 2101-07-01 | GF2: 2102-01-01 | GG2: 2102-07-01 | GH2: 2103-01-01 | GI2: 2103-07-01 | GJ2: 2104-01-01 | GK2: 2104-07-01 | GL2: 2105-01-01 | GM2: 2105-07-01 | GN2: 2106-01-01 | GO2: 2106-07-01 | GP2: 2107-01-01 | GQ2: 2107-07-01 | GR2: 2108-01-01 | GS2: 2108-07-01 | GT2: =GT90 -> 2109-01-01 | GU2: 2109-07-01 | GV2: 2110-01-01 | GW2: 2110-07-01 | GX2: 2111-01-01 | GY2: 2111-07-01 | GZ2: 2112-01-01 | HA2: 2112-07-01 | HB2: 2113-01-01 | HC2: 2113-07-01 | HD2: 2114-01-01 | HE2: 2114-07-01 | HF2: 2115-01-01 | HG2: 2115-07-01 | HH2: 2116-01-01 | HI2: 2116-07-01 | HJ2: 2117-01-01 | HK2: 2117-07-01 | HL2: 2118-01-01 | HM2: 2118-07-01 | HN2: 2119-01-01 | HO2: 2119-07-01 | HP2: 2120-01-01 | HQ2: 2120-07-01 | HR2: 2121-01-01 | HS2: 2121-07-01 | HT2: 2122-01-01 | HU2: 2122-07-01 | HV2: 2123-01-01 | HW2: 2123-07-01 | HX2: 2124-01-01 | HY2: 2124-07-01 | HZ2: 2125-01-01 | IA2: 2125-07-01 | IB2: 2126-01-01 | IC2: 2126-07-01 | ID2: 2127-01-01 | IE2: 2127-07-01 | IF2: 2128-01-01 | IG2: 2128-07-01 | IH2: 2129-01-01 | II2: 2129-07-01 | IJ2: 2130-01-01 | IK2: 2130-07-01 | IL2: 2131-01-01 | IM2: 2131-07-01 | IN2: 2132-01-01 | IO2: 2132-07-01 | IP2: 2133-01-01 | IQ2: 2133-07-01 | IR2: 2134-01-01 | IS2: 2134-07-01 | IT2: 2135-01-01 | IU2: 2135-07-01 | IV2: 2136-01-01 | IW2: 2136-07-01 | IX2: 2137-01-01 | IY2: 2137-07-01 | IZ2: 2138-01-01 | JA2: 2138-07-01 | JB2: 2139-01-01 | JC2: 2139-07-01 | JD2: 2140-01-01 | JE2: 2140-07-01 | JF2: =JF90 -> 2141-01-01 | JG2: 2141-07-01 | JH2: 2142-01-01 | JI2: 2142-07-01 | JJ2: 2143-01-01 | JK2: 2143-07-01 | JL2: 2144-01-01 | JM2: 2144-07-01 | JN2: 2145-01-01 | JO2: 2145-07-01 | JP2: 2146-01-01 | JQ2: 2146-07-01 | JR2: 2147-01-01 | JS2: 2147-07-01 | JT2: 2148-01-01 | JU2: 2148-07-01 | JV2: 2149-01-01 | JW2: 2149-07-01 | JX2: 2150-01-01 | JY2: 2150-07-01 | JZ2: 2151-01-01 | KA2: 2151-07-01 | KB2: 2152-01-01 | KC2: 2152-07-01 | KD2: 2153-01-01 | KE2: 2153-07-01 | KF2: 2154-01-01 | KG2: 2154-07-01 | KH2: 2155-01-01 | KI2: 2155-07-01 | KJ2: 2156-01-01 | KK2: 2156-07-01 | KL2: 2157-01-01 | KM2: 2157-07-01 | KN2: 2158-01-01 | KO2: 2158-07-01 | KP2: 2159-01-01 | KQ2: 2159-07-01 | KR2: 2160-01-01 | KS2: 2160-07-01 | KT2: 2161-01-01 | KU2: 2161-07-01 | KV2: 2162-01-01 | KW2: 2162-07-01 | KX2: 2163-01-01 | KY2: 2163-07-01 | KZ2: 2164-01-01 | LA2: 2164-07-01 | LB2: 2165-01-01 | LC2: 2165-07-01 | LD2: 2166-01-01 | LE2: 2166-07-01 | LF2: 2167-01-01 | LG2: 2167-07-01 | LH2: 2168-01-01 | LI2: 2168-07-01 | LJ2: 2169-01-01 | LK2: 2169-07-01 | LL2: 2170-01-01 | LM2: 2170-07-01 | LN2: 2171-01-01 | LO2: 2171-07-01 | LP2: 2172-01-01 | LQ2: 2172-07-01 | LR2: =LR90 -> 2173-01-01 | LS2: 2173-07-01 | LT2: 2174-01-01 | LU2: 2174-07-01 | LV2: 2175-01-01 | LW2: 2175-07-01 | LX2: 2176-01-01 | LY2: 2176-07-01 | LZ2: 2177-01-01 | MA2: 2177-07-01 | MB2: 2178-01-01 | MC2: 2178-07-01 | MD2: 2179-01-01 | ME2: 2179-07-01 | MF2: 2180-01-01 | MG2: 2180-07-01 | MH2: 2181-01-01 | MI2: 2181-07-01 | MJ2: 2182-01-01 | MK2: 2182-07-01 | ML2: 2183-01-01 | MM2: 2183-07-01 | MN2: 2184-01-01 | MO2: 2184-07-01 | MP2: 2185-01-01 | MQ2: 2185-07-01 | MR2: 2186-01-01 | MS2: 2186-07-01 | MT2: 2187-01-01 | MU2: 2187-07-01 | MV2: 2188-01-01 | MW2: 2188-07-01 | MX2: 2189-01-01 | MY2: 2189-07-01 | MZ2: 2190-01-01 | NA2: 2190-07-01 | NB2: 2191-01-01 | NC2: 2191-07-01 | ND2: 2192-01-01 | NE2: 2192-07-01 | NF2: 2193-01-01 | NG2: 2193-07-01 | NH2: 2194-01-01 | NI2: 2194-07-01 | NJ2: 2195-01-01 | NK2: 2195-07-01 | NL2: 2196-01-01 | NM2: 2196-07-01 | NN2: 2197-01-01 | NO2: 2197-07-01 | NP2: 2198-01-01 | NQ2: 2198-07-01 | NR2: 2199-01-01 | NS2: 2199-07-01 | NT2: 2200-01-01 | NU2: 2200-07-01 | NV2: 2201-01-01 | NW2: 2201-07-01 | NX2: 2202-01-01 | NY2: 2202-07-01 | NZ2: 2203-01-01 | OA2: 2203-07-01 | OB2: 2204-01-01 | OC2: 2204-07-01 | OD2: =OD90 -> 2205-01-01 | OE2: 2205-07-01 | OF2: 2206-01-01 | OG2: 2206-07-01 | OH2: 2207-01-01 | OI2: 2207-07-01 | OJ2: 2208-01-01 | OK2: 2208-07-01 | OL2: 2209-01-01 | OM2: 2209-07-01 | ON2: 2210-01-01 | OO2: 2210-07-01 | OP2: 2211-01-01 | OQ2: 2211-07-01 | OR2: 2212-01-01 | OS2: 2212-07-01 | OT2: 2213-01-01 | OU2: 2213-07-01 | OV2: 2214-01-01 | OW2: 2214-07-01 | OX2: 2215-01-01 | OY2: 2215-07-01 | OZ2: 2216-01-01 | PA2: 2216-07-01 | PB2: 2217-01-01 | PC2: 2217-07-01 | PD2: 2218-01-01 | PE2: 2218-07-01 | PF2: 2219-01-01 | PG2: 2219-07-01 | PH2: 2220-01-01 | PI2: 2220-07-01 | PJ2: 2221-01-01 | PK2: 2221-07-01 | PL2: 2222-01-01 | PM2: 2222-07-01 | PN2: 2223-01-01 | PO2: 2223-07-01 | PP2: 2224-01-01 | PQ2: 2224-07-01 | PR2: 2225-01-01 | PS2: 2225-07-01 | PT2: 2226-01-01 | PU2: 2226-07-01 | PV2: 2227-01-01 | PW2: 2227-07-01 | PX2: 2228-01-01 | PY2: 2228-07-01 | PZ2: 2229-01-01 | QA2: 2229-07-01 | QB2: 2230-01-01 | QC2: 2230-07-01 | QD2: 2231-01-01 | QE2: 2231-07-01 | QF2: 2232-01-01 | QG2: 2232-07-01 | QH2: 2233-01-01 | QI2: 2233-07-01 | QJ2: 2234-01-01 | QK2: 2234-07-01 | QL2: 2235-01-01 | QM2: 2235-07-01 | QN2: 2236-01-01 | QO2: 2236-07-01 | QP2: =QP90 -> 2237-01-01 | QQ2: 2237-07-01 | QR2: 2238-01-01 | QS2: 2238-07-01 | QT2: 2239-01-01 | QU2: 2239-07-01 | QV2: 2240-01-01 | QW2: 2240-07-01 | QX2: 2241-01-01 | QY2: 2241-07-01 | QZ2: 2242-01-01 | RA2: 2242-07-01 | RB2: 2243-01-01 | RC2: 2243-07-01 | RD2: 2244-01-01 | RE2: 2244-07-01 | RF2: 2245-01-01 | RG2: 2245-07-01 | RH2: 2246-01-01 | RI2: 2246-07-01 | RJ2: 2247-01-01 | RK2: 2247-07-01 | RL2: 2248-01-01 | RM2: 2248-07-01 | RN2: 2249-01-01 | RO2: 2249-07-01 | RP2: 2250-01-01 | RQ2: 2250-07-01 | RR2: 2251-01-01 | RS2: 2251-07-01 | RT2: 2252-01-01 | RU2: 2252-07-01 | RV2: 2253-01-01 | RW2: 2253-07-01 | RX2: 2254-01-01 | RY2: 2254-07-01 | RZ2: 2255-01-01 | SA2: 2255-07-01 | SB2: 2256-01-01 | SC2: 2256-07-01 | SD2: 2257-01-01 | SE2: 2257-07-01 | SF2: 2258-01-01 | SG2: 2258-07-01 | SH2: 2259-01-01 | SI2: 2259-07-01 | SJ2: 2260-01-01 | SK2: 2260-07-01 | SL2: 2261-01-01 | SM2: 2261-07-01 | SN2: 2262-01-01 | SO2: 2262-07-01
E3: Model period ending - SA | F3: =Check!$F$9 -> 0 | G3: Error chks | J3: =J91 -> 2023-01-31 | K3: 2023-02-28 | L3: 2023-03-31 | M3: 2023-04-30 | N3: 2023-05-31 | O3: 2023-06-30 | P3: 2023-07-31 | Q3: 2023-08-31 | R3: 2023-09-30 | S3: 2023-10-31 | T3: 2023-11-30 | U3: 2023-12-31 | V3: 2024-01-31 | W3: 2024-02-29 | X3: 2024-03-31 | Y3: 2024-04-30 | Z3: 2024-05-31 | AA3: 2024-06-30 | AB3: 2024-07-31 | AC3: 2024-08-31 | AD3: 2024-09-30 | AE3: 2024-10-31 | AF3: 2024-11-30 | AG3: 2024-12-31 | AH3: 2025-06-30 | AI3: 2025-12-31 | AJ3: 2026-06-30 | AK3: 2026-12-31 | AL3: 2027-06-30 | AM3: 2027-12-31 | AN3: 2028-06-30 | AO3: 2028-12-31 | AP3: 2029-06-30 | AQ3: 2029-12-31 | AR3: 2030-06-30 | AS3: 2030-12-31 | AT3: 2031-06-30 | AU3: 2031-12-31 | AV3: 2032-06-30 | AW3: 2032-12-31 | AX3: 2033-06-30 | AY3: 2033-12-31 | AZ3: 2034-06-30 | BA3: 2034-12-31 | BB3: 2035-06-30 | BC3: 2035-12-31 | BD3: 2036-06-30 | BE3: 2036-12-31 | BF3: 2037-06-30 | BG3: 2037-12-31 | BH3: 2038-06-30 | BI3: 2038-12-31 | BJ3: 2039-06-30 | BK3: 2039-12-31 | BL3: 2040-06-30 | BM3: 2040-12-31 | BN3: 2041-06-30 | BO3: 2041-12-31 | BP3: 2042-06-30 | BQ3: 2042-12-31 | BR3: 2043-06-30 | BS3: 2043-12-31 | BT3: 2044-06-30 | BU3: 2044-12-31 | BV3: =BV91 -> 2045-06-30 | BW3: 2045-12-31 | BX3: 2046-06-30 | BY3: 2046-12-31 | BZ3: 2047-06-30 | CA3: 2047-12-31 | CB3: 2048-06-30 | CC3: 2048-12-31 | CD3: 2049-06-30 | CE3: 2049-12-31 | CF3: 2050-06-30 | CG3: 2050-12-31 | CH3: 2051-06-30 | CI3: 2051-12-31 | CJ3: 2052-06-30 | CK3: 2052-12-31 | CL3: 2053-06-30 | CM3: 2053-12-31 | CN3: 2054-06-30 | CO3: 2054-12-31 | CP3: 2055-06-30 | CQ3: 2055-12-31 | CR3: 2056-06-30 | CS3: 2056-12-31 | CT3: 2057-06-30 | CU3: 2057-12-31 | CV3: 2058-06-30 | CW3: 2058-12-31 | CX3: 2059-06-30 | CY3: 2059-12-31 | CZ3: 2060-06-30 | DA3: 2060-12-31 | DB3: 2061-06-30 | DC3: 2061-12-31 | DD3: 2062-06-30 | DE3: 2062-12-31 | DF3: 2063-06-30 | DG3: 2063-12-31 | DH3: 2064-06-30 | DI3: 2064-12-31 | DJ3: 2065-06-30 | DK3: 2065-12-31 | DL3: 2066-06-30 | DM3: 2066-12-31 | DN3: 2067-06-30 | DO3: 2067-12-31 | DP3: 2068-06-30 | DQ3: 2068-12-31 | DR3: 2069-06-30 | DS3: 2069-12-31 | DT3: 2070-06-30 | DU3: 2070-12-31 | DV3: 2071-06-30 | DW3: 2071-12-31 | DX3: 2072-06-30 | DY3: 2072-12-31 | DZ3: 2073-06-30 | EA3: 2073-12-31 | EB3: 2074-06-30 | EC3: 2074-12-31 | ED3: 2075-06-30 | EE3: 2075-12-31 | EF3: 2076-06-30 | EG3: 2076-12-31 | EH3: =EH91 -> 2077-06-30 | EI3: 2077-12-31 | EJ3: 2078-06-30 | EK3: 2078-12-31 | EL3: 2079-06-30 | EM3: 2079-12-31 | EN3: 2080-06-30 | EO3: 2080-12-31 | EP3: 2081-06-30 | EQ3: 2081-12-31 | ER3: 2082-06-30 | ES3: 2082-12-31 | ET3: 2083-06-30 | EU3: 2083-12-31 | EV3: 2084-06-30 | EW3: 2084-12-31 | EX3: 2085-06-30 | EY3: 2085-12-31 | EZ3: 2086-06-30 | FA3: 2086-12-31 | FB3: 2087-06-30 | FC3: 2087-12-31 | FD3: 2088-06-30 | FE3: 2088-12-31 | FF3: 2089-06-30 | FG3: 2089-12-31 | FH3: 2090-06-30 | FI3: 2090-12-31 | FJ3: 2091-06-30 | FK3: 2091-12-31 | FL3: 2092-06-30 | FM3: 2092-12-31 | FN3: 2093-06-30 | FO3: 2093-12-31 | FP3: 2094-06-30 | FQ3: 2094-12-31 | FR3: 2095-06-30 | FS3: 2095-12-31 | FT3: 2096-06-30 | FU3: 2096-12-31 | FV3: 2097-06-30 | FW3: 2097-12-31 | FX3: 2098-06-30 | FY3: 2098-12-31 | FZ3: 2099-06-30 | GA3: 2099-12-31 | GB3: 2100-06-30 | GC3: 2100-12-31 | GD3: 2101-06-30 | GE3: 2101-12-31 | GF3: 2102-06-30 | GG3: 2102-12-31 | GH3: 2103-06-30 | GI3: 2103-12-31 | GJ3: 2104-06-30 | GK3: 2104-12-31 | GL3: 2105-06-30 | GM3: 2105-12-31 | GN3: 2106-06-30 | GO3: 2106-12-31 | GP3: 2107-06-30 | GQ3: 2107-12-31 | GR3: 2108-06-30 | GS3: 2108-12-31 | GT3: =GT91 -> 2109-06-30 | GU3: 2109-12-31 | GV3: 2110-06-30 | GW3: 2110-12-31 | GX3: 2111-06-30 | GY3: 2111-12-31 | GZ3: 2112-06-30 | HA3: 2112-12-31 | HB3: 2113-06-30 | HC3: 2113-12-31 | HD3: 2114-06-30 | HE3: 2114-12-31 | HF3: 2115-06-30 | HG3: 2115-12-31 | HH3: 2116-06-30 | HI3: 2116-12-31 | HJ3: 2117-06-30 | HK3: 2117-12-31 | HL3: 2118-06-30 | HM3: 2118-12-31 | HN3: 2119-06-30 | HO3: 2119-12-31 | HP3: 2120-06-30 | HQ3: 2120-12-31 | HR3: 2121-06-30 | HS3: 2121-12-31 | HT3: 2122-06-30 | HU3: 2122-12-31 | HV3: 2123-06-30 | HW3: 2123-12-31 | HX3: 2124-06-30 | HY3: 2124-12-31 | HZ3: 2125-06-30 | IA3: 2125-12-31 | IB3: 2126-06-30 | IC3: 2126-12-31 | ID3: 2127-06-30 | IE3: 2127-12-31 | IF3: 2128-06-30 | IG3: 2128-12-31 | IH3: 2129-06-30 | II3: 2129-12-31 | IJ3: 2130-06-30 | IK3: 2130-12-31 | IL3: 2131-06-30 | IM3: 2131-12-31 | IN3: 2132-06-30 | IO3: 2132-12-31 | IP3: 2133-06-30 | IQ3: 2133-12-31 | IR3: 2134-06-30 | IS3: 2134-12-31 | IT3: 2135-06-30 | IU3: 2135-12-31 | IV3: 2136-06-30 | IW3: 2136-12-31 | IX3: 2137-06-30 | IY3: 2137-12-31 | IZ3: 2138-06-30 | JA3: 2138-12-31 | JB3: 2139-06-30 | JC3: 2139-12-31 | JD3: 2140-06-30 | JE3: 2140-12-31 | JF3: =JF91 -> 2141-06-30 | JG3: 2141-12-31 | JH3: 2142-06-30 | JI3: 2142-12-31 | JJ3: 2143-06-30 | JK3: 2143-12-31 | JL3: 2144-06-30 | JM3: 2144-12-31 | JN3: 2145-06-30 | JO3: 2145-12-31 | JP3: 2146-06-30 | JQ3: 2146-12-31 | JR3: 2147-06-30 | JS3: 2147-12-31 | JT3: 2148-06-30 | JU3: 2148-12-31 | JV3: 2149-06-30 | JW3: 2149-12-31 | JX3: 2150-06-30 | JY3: 2150-12-31 | JZ3: 2151-06-30 | KA3: 2151-12-31 | KB3: 2152-06-30 | KC3: 2152-12-31 | KD3: 2153-06-30 | KE3: 2153-12-31 | KF3: 2154-06-30 | KG3: 2154-12-31 | KH3: 2155-06-30 | KI3: 2155-12-31 | KJ3: 2156-06-30 | KK3: 2156-12-31 | KL3: 2157-06-30 | KM3: 2157-12-31 | KN3: 2158-06-30 | KO3: 2158-12-31 | KP3: 2159-06-30 | KQ3: 2159-12-31 | KR3: 2160-06-30 | KS3: 2160-12-31 | KT3: 2161-06-30 | KU3: 2161-12-31 | KV3: 2162-06-30 | KW3: 2162-12-31 | KX3: 2163-06-30 | KY3: 2163-12-31 | KZ3: 2164-06-30 | LA3: 2164-12-31 | LB3: 2165-06-30 | LC3: 2165-12-31 | LD3: 2166-06-30 | LE3: 2166-12-31 | LF3: 2167-06-30 | LG3: 2167-12-31 | LH3: 2168-06-30 | LI3: 2168-12-31 | LJ3: 2169-06-30 | LK3: 2169-12-31 | LL3: 2170-06-30 | LM3: 2170-12-31 | LN3: 2171-06-30 | LO3: 2171-12-31 | LP3: 2172-06-30 | LQ3: 2172-12-31 | LR3: =LR91 -> 2173-06-30 | LS3: 2173-12-31 | LT3: 2174-06-30 | LU3: 2174-12-31 | LV3: 2175-06-30 | LW3: 2175-12-31 | LX3: 2176-06-30 | LY3: 2176-12-31 | LZ3: 2177-06-30 | MA3: 2177-12-31 | MB3: 2178-06-30 | MC3: 2178-12-31 | MD3: 2179-06-30 | ME3: 2179-12-31 | MF3: 2180-06-30 | MG3: 2180-12-31 | MH3: 2181-06-30 | MI3: 2181-12-31 | MJ3: 2182-06-30 | MK3: 2182-12-31 | ML3: 2183-06-30 | MM3: 2183-12-31 | MN3: 2184-06-30 | MO3: 2184-12-31 | MP3: 2185-06-30 | MQ3: 2185-12-31 | MR3: 2186-06-30 | MS3: 2186-12-31 | MT3: 2187-06-30 | MU3: 2187-12-31 | MV3: 2188-06-30 | MW3: 2188-12-31 | MX3: 2189-06-30 | MY3: 2189-12-31 | MZ3: 2190-06-30 | NA3: 2190-12-31 | NB3: 2191-06-30 | NC3: 2191-12-31 | ND3: 2192-06-30 | NE3: 2192-12-31 | NF3: 2193-06-30 | NG3: 2193-12-31 | NH3: 2194-06-30 | NI3: 2194-12-31 | NJ3: 2195-06-30 | NK3: 2195-12-31 | NL3: 2196-06-30 | NM3: 2196-12-31 | NN3: 2197-06-30 | NO3: 2197-12-31 | NP3: 2198-06-30 | NQ3: 2198-12-31 | NR3: 2199-06-30 | NS3: 2199-12-31 | NT3: 2200-06-30 | NU3: 2200-12-31 | NV3: 2201-06-30 | NW3: 2201-12-31 | NX3: 2202-06-30 | NY3: 2202-12-31 | NZ3: 2203-06-30 | OA3: 2203-12-31 | OB3: 2204-06-30 | OC3: 2204-12-31 | OD3: =OD91 -> 2205-06-30 | OE3: 2205-12-31 | OF3: 2206-06-30 | OG3: 2206-12-31 | OH3: 2207-06-30 | OI3: 2207-12-31 | OJ3: 2208-06-30 | OK3: 2208-12-31 | OL3: 2209-06-30 | OM3: 2209-12-31 | ON3: 2210-06-30 | OO3: 2210-12-31 | OP3: 2211-06-30 | OQ3: 2211-12-31 | OR3: 2212-06-30 | OS3: 2212-12-31 | OT3: 2213-06-30 | OU3: 2213-12-31 | OV3: 2214-06-30 | OW3: 2214-12-31 | OX3: 2215-06-30 | OY3: 2215-12-31 | OZ3: 2216-06-30 | PA3: 2216-12-31 | PB3: 2217-06-30 | PC3: 2217-12-31 | PD3: 2218-06-30 | PE3: 2218-12-31 | PF3: 2219-06-30 | PG3: 2219-12-31 | PH3: 2220-06-30 | PI3: 2220-12-31 | PJ3: 2221-06-30 | PK3: 2221-12-31 | PL3: 2222-06-30 | PM3: 2222-12-31 | PN3: 2223-06-30 | PO3: 2223-12-31 | PP3: 2224-06-30 | PQ3: 2224-12-31 | PR3: 2225-06-30 | PS3: 2225-12-31 | PT3: 2226-06-30 | PU3: 2226-12-31 | PV3: 2227-06-30 | PW3: 2227-12-31 | PX3: 2228-06-30 | PY3: 2228-12-31 | PZ3: 2229-06-30 | QA3: 2229-12-31 | QB3: 2230-06-30 | QC3: 2230-12-31 | QD3: 2231-06-30 | QE3: 2231-12-31 | QF3: 2232-06-30 | QG3: 2232-12-31 | QH3: 2233-06-30 | QI3: 2233-12-31 | QJ3: 2234-06-30 | QK3: 2234-12-31 | QL3: 2235-06-30 | QM3: 2235-12-31 | QN3: 2236-06-30 | QO3: 2236-12-31 | QP3: =QP91 -> 2237-06-30 | QQ3: 2237-12-31 | QR3: 2238-06-30 | QS3: 2238-12-31 | QT3: 2239-06-30 | QU3: 2239-12-31 | QV3: 2240-06-30 | QW3: 2240-12-31 | QX3: 2241-06-30 | QY3: 2241-12-31 | QZ3: 2242-06-30 | RA3: 2242-12-31 | RB3: 2243-06-30 | RC3: 2243-12-31 | RD3: 2244-06-30 | RE3: 2244-12-31 | RF3: 2245-06-30 | RG3: 2245-12-31 | RH3: 2246-06-30 | RI3: 2246-12-31 | RJ3: 2247-06-30 | RK3: 2247-12-31 | RL3: 2248-06-30 | RM3: 2248-12-31 | RN3: 2249-06-30 | RO3: 2249-12-31 | RP3: 2250-06-30 | RQ3: 2250-12-31 | RR3: 2251-06-30 | RS3: 2251-12-31 | RT3: 2252-06-30 | RU3: 2252-12-31 | RV3: 2253-06-30 | RW3: 2253-12-31 | RX3: 2254-06-30 | RY3: 2254-12-31 | RZ3: 2255-06-30 | SA3: 2255-12-31 | SB3: 2256-06-30 | SC3: 2256-12-31 | SD3: 2257-06-30 | SE3: 2257-12-31 | SF3: 2258-06-30 | SG3: 2258-12-31 | SH3: 2259-06-30 | SI3: 2259-12-31 | SJ3: 2260-06-30 | SK3: 2260-12-31 | SL3: 2261-06-30 | SM3: 2261-12-31 | SN3: 2262-06-30 | SO3: 2262-12-31
E4: Model period beginning | F4: =Check!$F$9 -> 0 | G4: Error chks | J4: =J26 -> 2023-01-01 | K4: 2023-02-01 | L4: 2023-03-01 | M4: 2023-04-01 | N4: 2023-05-01 | O4: 2023-06-01 | P4: 2023-07-01 | Q4: 2023-08-01 | R4: 2023-09-01 | S4: 2023-10-01 | T4: 2023-11-01 | U4: 2023-12-01 | V4: 2024-01-01 | W4: 2024-02-01 | X4: 2024-03-01 | Y4: 2024-04-01 | Z4: 2024-05-01 | AA4: 2024-06-01 | AB4: 2024-07-01 | AC4: 2024-08-01 | AD4: 2024-09-01 | AE4: 2024-10-01 | AF4: 2024-11-01 | AG4: 2024-12-01 | AH4: 2025-01-01 | AI4: 2025-02-01 | AJ4: 2025-03-01 | AK4: 2025-04-01 | AL4: 2025-05-01 | AM4: 2025-06-01 | AN4: 2025-07-01 | AO4: 2025-08-01 | AP4: 2025-09-01 | AQ4: 2025-10-01 | AR4: 2025-11-01 | AS4: 2025-12-01 | AT4: 2026-01-01 | AU4: 2026-02-01 | AV4: 2026-03-01 | AW4: 2026-04-01 | AX4: 2026-05-01 | AY4: 2026-06-01 | AZ4: 2026-07-01 | BA4: 2026-08-01 | BB4: 2026-09-01 | BC4: 2026-10-01 | BD4: 2026-11-01 | BE4: 2026-12-01 | BF4: 2027-01-01 | BG4: 2027-02-01 | BH4: 2027-03-01 | BI4: 2027-04-01 | BJ4: 2027-05-01 | BK4: 2027-06-01 | BL4: 2027-07-01 | BM4: 2027-08-01 | BN4: 2027-09-01 | BO4: 2027-10-01 | BP4: 2027-11-01 | BQ4: 2027-12-01 | BR4: 2028-01-01 | BS4: 2028-02-01 | BT4: 2028-03-01 | BU4: 2028-04-01 | BV4: =BV26 -> 2028-05-01 | BW4: 2028-06-01 | BX4: 2028-07-01 | BY4: 2028-08-01 | BZ4: 2028-09-01 | CA4: 2028-10-01 | CB4: 2028-11-01 | CC4: 2028-12-01 | CD4: 2029-01-01 | CE4: 2029-02-01 | CF4: 2029-03-01 | CG4: 2029-04-01 | CH4: 2029-05-01 | CI4: 2029-06-01 | CJ4: 2029-07-01 | CK4: 2029-08-01 | CL4: 2029-09-01 | CM4: 2029-10-01 | CN4: 2029-11-01 | CO4: 2029-12-01 | CP4: 2030-01-01 | CQ4: 2030-02-01 | CR4: 2030-03-01 | CS4: 2030-04-01 | CT4: 2030-05-01 | CU4: 2030-06-01 | CV4: 2030-07-01 | CW4: 2030-08-01 | CX4: 2030-09-01 | CY4: 2030-10-01 | CZ4: 2030-11-01 | DA4: 2030-12-01 | DB4: 2031-01-01 | DC4: 2031-02-01 | DD4: 2031-03-01 | DE4: 2031-04-01 | DF4: 2031-05-01 | DG4: 2031-06-01 | DH4: 2031-07-01 | DI4: 2031-08-01 | DJ4: 2031-09-01 | DK4: 2031-10-01 | DL4: 2031-11-01 | DM4: 2031-12-01 | DN4: 2032-01-01 | DO4: 2032-02-01 | DP4: 2032-03-01 | DQ4: 2032-04-01 | DR4: 2032-05-01 | DS4: 2032-06-01 | DT4: 2032-07-01 | DU4: 2032-08-01 | DV4: 2032-09-01 | DW4: 2032-10-01 | DX4: 2032-11-01 | DY4: 2032-12-01 | DZ4: 2033-01-01 | EA4: 2033-02-01 | EB4: 2033-03-01 | EC4: 2033-04-01 | ED4: 2033-05-01 | EE4: 2033-06-01 | EF4: 2033-07-01 | EG4: 2033-08-01 | EH4: =EH26 -> 2033-09-01 | EI4: 2033-10-01 | EJ4: 2033-11-01 | EK4: 2033-12-01 | EL4: 2034-01-01 | EM4: 2034-02-01 | EN4: 2034-03-01 | EO4: 2034-04-01 | EP4: 2034-05-01 | EQ4: 2034-06-01 | ER4: 2034-07-01 | ES4: 2034-08-01 | ET4: 2034-09-01 | EU4: 2034-10-01 | EV4: 2034-11-01 | EW4: 2034-12-01 | EX4: 2035-01-01 | EY4: 2035-02-01 | EZ4: 2035-03-01 | FA4: 2035-04-01 | FB4: 2035-05-01 | FC4: 2035-06-01 | FD4: 2035-07-01 | FE4: 2035-08-01 | FF4: 2035-09-01 | FG4: 2035-10-01 | FH4: 2035-11-01 | FI4: 2035-12-01 | FJ4: 2036-01-01 | FK4: 2036-02-01 | FL4: 2036-03-01 | FM4: 2036-04-01 | FN4: 2036-05-01 | FO4: 2036-06-01 | FP4: 2036-07-01 | FQ4: 2036-08-01 | FR4: 2036-09-01 | FS4: 2036-10-01 | FT4: 2036-11-01 | FU4: 2036-12-01 | FV4: 2037-01-01 | FW4: 2037-02-01 | FX4: 2037-03-01 | FY4: 2037-04-01 | FZ4: 2037-05-01 | GA4: 2037-06-01 | GB4: 2037-07-01 | GC4: 2037-08-01 | GD4: 2037-09-01 | GE4: 2037-10-01 | GF4: 2037-11-01 | GG4: 2037-12-01 | GH4: 2038-01-01 | GI4: 2038-02-01 | GJ4: 2038-03-01 | GK4: 2038-04-01 | GL4: 2038-05-01 | GM4: 2038-06-01 | GN4: 2038-07-01 | GO4: 2038-08-01 | GP4: 2038-09-01 | GQ4: 2038-10-01 | GR4: 2038-11-01 | GS4: 2038-12-01 | GT4: =GT26 -> 2039-01-01 | GU4: 2039-02-01 | GV4: 2039-03-01 | GW4: 2039-04-01 | GX4: 2039-05-01 | GY4: 2039-06-01 | GZ4: 2039-07-01 | HA4: 2039-08-01 | HB4: 2039-09-01 | HC4: 2039-10-01 | HD4: 2039-11-01 | HE4: 2039-12-01 | HF4: 2040-01-01 | HG4: 2040-02-01 | HH4: 2040-03-01 | HI4: 2040-04-01 | HJ4: 2040-05-01 | HK4: 2040-06-01 | HL4: 2040-07-01 | HM4: 2040-08-01 | HN4: 2040-09-01 | HO4: 2040-10-01 | HP4: 2040-11-01 | HQ4: 2040-12-01 | HR4: 2041-01-01 | HS4: 2041-02-01 | HT4: 2041-03-01 | HU4: 2041-04-01 | HV4: 2041-05-01 | HW4: 2041-06-01 | HX4: 2041-07-01 | HY4: 2041-08-01 | HZ4: 2041-09-01 | IA4: 2041-10-01 | IB4: 2041-11-01 | IC4: 2041-12-01 | ID4: 2042-01-01 | IE4: 2042-02-01 | IF4: 2042-03-01 | IG4: 2042-04-01 | IH4: 2042-05-01 | II4: 2042-06-01 | IJ4: 2042-07-01 | IK4: 2042-08-01 | IL4: 2042-09-01 | IM4: 2042-10-01 | IN4: 2042-11-01 | IO4: 2042-12-01 | IP4: 2043-01-01 | IQ4: 2043-02-01 | IR4: 2043-03-01 | IS4: 2043-04-01 | IT4: 2043-05-01 | IU4: 2043-06-01 | IV4: 2043-07-01 | IW4: 2043-08-01 | IX4: 2043-09-01 | IY4: 2043-10-01 | IZ4: 2043-11-01 | JA4: 2043-12-01 | JB4: 2044-01-01 | JC4: 2044-02-01 | JD4: 2044-03-01 | JE4: 2044-04-01 | JF4: =JF26 -> 2044-05-01 | JG4: 2044-06-01 | JH4: 2044-07-01 | JI4: 2044-08-01 | JJ4: 2044-09-01 | JK4: 2044-10-01 | JL4: 2044-11-01 | JM4: 2044-12-01 | JN4: 2045-01-01 | JO4: 2045-02-01 | JP4: 2045-03-01 | JQ4: 2045-04-01 | JR4: 2045-05-01 | JS4: 2045-06-01 | JT4: 2045-07-01 | JU4: 2045-08-01 | JV4: 2045-09-01 | JW4: 2045-10-01 | JX4: 2045-11-01 | JY4: 2045-12-01 | JZ4: 2046-01-01 | KA4: 2046-02-01 | KB4: 2046-03-01 | KC4: 2046-04-01 | KD4: 2046-05-01 | KE4: 2046-06-01 | KF4: 2046-07-01 | KG4: 2046-08-01 | KH4: 2046-09-01 | KI4: 2046-10-01 | KJ4: 2046-11-01 | KK4: 2046-12-01 | KL4: 2047-01-01 | KM4: 2047-02-01 | KN4: 2047-03-01 | KO4: 2047-04-01 | KP4: 2047-05-01 | KQ4: 2047-06-01 | KR4: 2047-07-01 | KS4: 2047-08-01 | KT4: 2047-09-01 | KU4: 2047-10-01 | KV4: 2047-11-01 | KW4: 2047-12-01 | KX4: 2048-01-01 | KY4: 2048-02-01 | KZ4: 2048-03-01 | LA4: 2048-04-01 | LB4: 2048-05-01 | LC4: 2048-06-01 | LD4: 2048-07-01 | LE4: 2048-08-01 | LF4: 2048-09-01 | LG4: 2048-10-01 | LH4: 2048-11-01 | LI4: 2048-12-01 | LJ4: 2049-01-01 | LK4: 2049-02-01 | LL4: 2049-03-01 | LM4: 2049-04-01 | LN4: 2049-05-01 | LO4: 2049-06-01 | LP4: 2049-07-01 | LQ4: 2049-08-01 | LR4: =LR26 -> 2049-09-01 | LS4: 2049-10-01 | LT4: 2049-11-01 | LU4: 2049-12-01 | LV4: 2050-01-01 | LW4: 2050-02-01 | LX4: 2050-03-01 | LY4: 2050-04-01 | LZ4: 2050-05-01 | MA4: 2050-06-01 | MB4: 2050-07-01 | MC4: 2050-08-01 | MD4: 2050-09-01 | ME4: 2050-10-01 | MF4: 2050-11-01 | MG4: 2050-12-01 | MH4: 2051-01-01 | MI4: 2051-02-01 | MJ4: 2051-03-01 | MK4: 2051-04-01 | ML4: 2051-05-01 | MM4: 2051-06-01 | MN4: 2051-07-01 | MO4: 2051-08-01 | MP4: 2051-09-01 | MQ4: 2051-10-01 | MR4: 2051-11-01 | MS4: 2051-12-01 | MT4: 2052-01-01 | MU4: 2052-02-01 | MV4: 2052-03-01 | MW4: 2052-04-01 | MX4: 2052-05-01 | MY4: 2052-06-01 | MZ4: 2052-07-01 | NA4: 2052-08-01 | NB4: 2052-09-01 | NC4: 2052-10-01 | ND4: 2052-11-01 | NE4: 2052-12-01 | NF4: 2053-01-01 | NG4: 2053-02-01 | NH4: 2053-03-01 | NI4: 2053-04-01 | NJ4: 2053-05-01 | NK4: 2053-06-01 | NL4: 2053-07-01 | NM4: 2053-08-01 | NN4: 2053-09-01 | NO4: 2053-10-01 | NP4: 2053-11-01 | NQ4: 2053-12-01 | NR4: 2054-01-01 | NS4: 2054-02-01 | NT4: 2054-03-01 | NU4: 2054-04-01 | NV4: 2054-05-01 | NW4: 2054-06-01 | NX4: 2054-07-01 | NY4: 2054-08-01 | NZ4: 2054-09-01 | OA4: 2054-10-01 | OB4: 2054-11-01 | OC4: 2054-12-01 | OD4: =OD26 -> 2055-01-01 | OE4: 2055-02-01 | OF4: 2055-03-01 | OG4: 2055-04-01 | OH4: 2055-05-01 | OI4: 2055-06-01 | OJ4: 2055-07-01 | OK4: 2055-08-01 | OL4: 2055-09-01 | OM4: 2055-10-01 | ON4: 2055-11-01 | OO4: 2055-12-01 | OP4: 2056-01-01 | OQ4: 2056-02-01 | OR4: 2056-03-01 | OS4: 2056-04-01 | OT4: 2056-05-01 | OU4: 2056-06-01 | OV4: 2056-07-01 | OW4: 2056-08-01 | OX4: 2056-09-01 | OY4: 2056-10-01 | OZ4: 2056-11-01 | PA4: 2056-12-01 | PB4: 2057-01-01 | PC4: 2057-02-01 | PD4: 2057-03-01 | PE4: 2057-04-01 | PF4: 2057-05-01 | PG4: 2057-06-01 | PH4: 2057-07-01 | PI4: 2057-08-01 | PJ4: 2057-09-01 | PK4: 2057-10-01 | PL4: 2057-11-01 | PM4: 2057-12-01 | PN4: 2058-01-01 | PO4: 2058-02-01 | PP4: 2058-03-01 | PQ4: 2058-04-01 | PR4: 2058-05-01 | PS4: 2058-06-01 | PT4: 2058-07-01 | PU4: 2058-08-01 | PV4: 2058-09-01 | PW4: 2058-10-01 | PX4: 2058-11-01 | PY4: 2058-12-01 | PZ4: 2059-01-01 | QA4: 2059-02-01 | QB4: 2059-03-01 | QC4: 2059-04-01 | QD4: 2059-05-01 | QE4: 2059-06-01 | QF4: 2059-07-01 | QG4: 2059-08-01 | QH4: 2059-09-01 | QI4: 2059-10-01 | QJ4: 2059-11-01 | QK4: 2059-12-01 | QL4: 2060-01-01 | QM4: 2060-02-01 | QN4: 2060-03-01 | QO4: 2060-04-01 | QP4: =QP26 -> 2060-05-01 | QQ4: 2060-06-01 | QR4: 2060-07-01 | QS4: 2060-08-01 | QT4: 2060-09-01 | QU4: 2060-10-01 | QV4: 2060-11-01 | QW4: 2060-12-01 | QX4: 2061-01-01 | QY4: 2061-02-01 | QZ4: 2061-03-01 | RA4: 2061-04-01 | RB4: 2061-05-01 | RC4: 2061-06-01 | RD4: 2061-07-01 | RE4: 2061-08-01 | RF4: 2061-09-01 | RG4: 2061-10-01 | RH4: 2061-11-01 | RI4: 2061-12-01 | RJ4: 2062-01-01 | RK4: 2062-02-01 | RL4: 2062-03-01 | RM4: 2062-04-01 | RN4: 2062-05-01 | RO4: 2062-06-01 | RP4: 2062-07-01 | RQ4: 2062-08-01 | RR4: 2062-09-01 | RS4: 2062-10-01 | RT4: 2062-11-01 | RU4: 2062-12-01 | RV4: 2063-01-01 | RW4: 2063-02-01 | RX4: 2063-03-01 | RY4: 2063-04-01 | RZ4: 2063-05-01 | SA4: 2063-06-01 | SB4: 2063-07-01 | SC4: 2063-08-01 | SD4: 2063-09-01 | SE4: 2063-10-01 | SF4: 2063-11-01 | SG4: 2063-12-01 | SH4: 2064-01-01 | SI4: 2064-02-01 | SJ4: 2064-03-01 | SK4: 2064-04-01 | SL4: 2064-05-01 | SM4: 2064-06-01 | SN4: 2064-07-01 | SO4: 2064-08-01
E5: =Time!E$27 -> Model period ending | F5: =Check!$F$9 -> 0 | G5: Error chks | J5: =Time!J$27 -> 2023-01-31 | K5: =Time!K$27 -> 2023-02-28 | L5: =Time!L$27 -> 2023-03-31 | M5: =Time!M$27 -> 2023-04-30 | N5: =Time!N$27 -> 2023-05-31 | O5: =Time!O$27 -> 2023-06-30 | P5: =Time!P$27 -> 2023-07-31 | Q5: =Time!Q$27 -> 2023-08-31 | R5: =Time!R$27 -> 2023-09-30 | S5: =Time!S$27 -> 2023-10-31 | T5: =Time!T$27 -> 2023-11-30 | U5: =Time!U$27 -> 2023-12-31 | V5: =Time!V$27 -> 2024-01-31 | W5: =Time!W$27 -> 2024-02-29 | X5: =Time!X$27 -> 2024-03-31 | Y5: =Time!Y$27 -> 2024-04-30 | Z5: =Time!Z$27 -> 2024-05-31 | AA5: =Time!AA$27 -> 2024-06-30 | AB5: =Time!AB$27 -> 2024-07-31 | AC5: =Time!AC$27 -> 2024-08-31 | AD5: =Time!AD$27 -> 2024-09-30 | AE5: =Time!AE$27 -> 2024-10-31 | AF5: =Time!AF$27 -> 2024-11-30 | AG5: =Time!AG$27 -> 2024-12-31 | AH5: =Time!AH$27 -> 2025-01-31 | AI5: =Time!AI$27 -> 2025-02-28 | AJ5: =Time!AJ$27 -> 2025-03-31 | AK5: =Time!AK$27 -> 2025-04-30 | AL5: =Time!AL$27 -> 2025-05-31 | AM5: =Time!AM$27 -> 2025-06-30 | AN5: =Time!AN$27 -> 2025-07-31 | AO5: =Time!AO$27 -> 2025-08-31 | AP5: =Time!AP$27 -> 2025-09-30 | AQ5: =Time!AQ$27 -> 2025-10-31 | AR5: =Time!AR$27 -> 2025-11-30 | AS5: =Time!AS$27 -> 2025-12-31 | AT5: =Time!AT$27 -> 2026-01-31 | AU5: =Time!AU$27 -> 2026-02-28 | AV5: =Time!AV$27 -> 2026-03-31 | AW5: =Time!AW$27 -> 2026-04-30 | AX5: =Time!AX$27 -> 2026-05-31 | AY5: =Time!AY$27 -> 2026-06-30 | AZ5: =Time!AZ$27 -> 2026-07-31 | BA5: =Time!BA$27 -> 2026-08-31 | BB5: =Time!BB$27 -> 2026-09-30 | BC5: =Time!BC$27 -> 2026-10-31 | BD5: =Time!BD$27 -> 2026-11-30 | BE5: =Time!BE$27 -> 2026-12-31 | BF5: =Time!BF$27 -> 2027-01-31 | BG5: =Time!BG$27 -> 2027-02-28 | BH5: =Time!BH$27 -> 2027-03-31 | BI5: =Time!BI$27 -> 2027-04-30 | BJ5: =Time!BJ$27 -> 2027-05-31 | BK5: =Time!BK$27 -> 2027-06-30 | BL5: =Time!BL$27 -> 2027-07-31 | BM5: =Time!BM$27 -> 2027-08-31 | BN5: =Time!BN$27 -> 2027-09-30 | BO5: =Time!BO$27 -> 2027-10-31 | BP5: =Time!BP$27 -> 2027-11-30 | BQ5: =Time!BQ$27 -> 2027-12-31 | BR5: =Time!BR$27 -> 2028-01-31 | BS5: =Time!BS$27 -> 2028-02-29 | BT5: =Time!BT$27 -> 2028-03-31 | BU5: =Time!BU$27 -> 2028-04-30 | BV5: =Time!BV$27 -> 2028-05-31 | BW5: =Time!BW$27 -> 2028-06-30 | BX5: =Time!BX$27 -> 2028-07-31 | BY5: =Time!BY$27 -> 2028-08-31 | BZ5: =Time!BZ$27 -> 2028-09-30 | CA5: =Time!CA$27 -> 2028-10-31 | CB5: =Time!CB$27 -> 2028-11-30 | CC5: =Time!CC$27 -> 2028-12-31 | CD5: =Time!CD$27 -> 2029-01-31 | CE5: =Time!CE$27 -> 2029-02-28 | CF5: =Time!CF$27 -> 2029-03-31 | CG5: =Time!CG$27 -> 2029-04-30 | CH5: =Time!CH$27 -> 2029-05-31 | CI5: =Time!CI$27 -> 2029-06-30 | CJ5: =Time!CJ$27 -> 2029-07-31 | CK5: =Time!CK$27 -> 2029-08-31 | CL5: =Time!CL$27 -> 2029-09-30 | CM5: =Time!CM$27 -> 2029-10-31 | CN5: =Time!CN$27 -> 2029-11-30 | CO5: =Time!CO$27 -> 2029-12-31 | CP5: =Time!CP$27 -> 2030-01-31 | CQ5: =Time!CQ$27 -> 2030-02-28 | CR5: =Time!CR$27 -> 2030-03-31 | CS5: =Time!CS$27 -> 2030-04-30 | CT5: =Time!CT$27 -> 2030-05-31 | CU5: =Time!CU$27 -> 2030-06-30 | CV5: =Time!CV$27 -> 2030-07-31 | CW5: =Time!CW$27 -> 2030-08-31 | CX5: =Time!CX$27 -> 2030-09-30 | CY5: =Time!CY$27 -> 2030-10-31 | CZ5: =Time!CZ$27 -> 2030-11-30 | DA5: =Time!DA$27 -> 2030-12-31 | DB5: =Time!DB$27 -> 2031-01-31 | DC5: =Time!DC$27 -> 2031-02-28 | DD5: =Time!DD$27 -> 2031-03-31 | DE5: =Time!DE$27 -> 2031-04-30 | DF5: =Time!DF$27 -> 2031-05-31 | DG5: =Time!DG$27 -> 2031-06-30 | DH5: =Time!DH$27 -> 2031-07-31 | DI5: =Time!DI$27 -> 2031-08-31 | DJ5: =Time!DJ$27 -> 2031-09-30 | DK5: =Time!DK$27 -> 2031-10-31 | DL5: =Time!DL$27 -> 2031-11-30 | DM5: =Time!DM$27 -> 2031-12-31 | DN5: =Time!DN$27 -> 2032-01-31 | DO5: =Time!DO$27 -> 2032-02-29 | DP5: =Time!DP$27 -> 2032-03-31 | DQ5: =Time!DQ$27 -> 2032-04-30 | DR5: =Time!DR$27 -> 2032-05-31 | DS5: =Time!DS$27 -> 2032-06-30 | DT5: =Time!DT$27 -> 2032-07-31 | DU5: =Time!DU$27 -> 2032-08-31 | DV5: =Time!DV$27 -> 2032-09-30 | DW5: =Time!DW$27 -> 2032-10-31 | DX5: =Time!DX$27 -> 2032-11-30 | DY5: =Time!DY$27 -> 2032-12-31 | DZ5: =Time!DZ$27 -> 2033-01-31 | EA5: =Time!EA$27 -> 2033-02-28 | EB5: =Time!EB$27 -> 2033-03-31 | EC5: =Time!EC$27 -> 2033-04-30 | ED5: =Time!ED$27 -> 2033-05-31 | EE5: =Time!EE$27 -> 2033-06-30 | EF5: =Time!EF$27 -> 2033-07-31 | EG5: =Time!EG$27 -> 2033-08-31 | EH5: =Time!EH$27 -> 2033-09-30 | EI5: =Time!EI$27 -> 2033-10-31 | EJ5: =Time!EJ$27 -> 2033-11-30 | EK5: =Time!EK$27 -> 2033-12-31 | EL5: =Time!EL$27 -> 2034-01-31 | EM5: =Time!EM$27 -> 2034-02-28 | EN5: =Time!EN$27 -> 2034-03-31 | EO5: =Time!EO$27 -> 2034-04-30 | EP5: =Time!EP$27 -> 2034-05-31 | EQ5: =Time!EQ$27 -> 2034-06-30 | ER5: =Time!ER$27 -> 2034-07-31 | ES5: =Time!ES$27 -> 2034-08-31 | ET5: =Time!ET$27 -> 2034-09-30 | EU5: =Time!EU$27 -> 2034-10-31 | EV5: =Time!EV$27 -> 2034-11-30 | EW5: =Time!EW$27 -> 2034-12-31 | EX5: =Time!EX$27 -> 2035-01-31 | EY5: =Time!EY$27 -> 2035-02-28 | EZ5: =Time!EZ$27 -> 2035-03-31 | FA5: =Time!FA$27 -> 2035-04-30 | FB5: =Time!FB$27 -> 2035-05-31 | FC5: =Time!FC$27 -> 2035-06-30 | FD5: =Time!FD$27 -> 2035-07-31 | FE5: =Time!FE$27 -> 2035-08-31 | FF5: =Time!FF$27 -> 2035-09-30 | FG5: =Time!FG$27 -> 2035-10-31 | FH5: =Time!FH$27 -> 2035-11-30 | FI5: =Time!FI$27 -> 2035-12-31 | FJ5: =Time!FJ$27 -> 2036-01-31 | FK5: =Time!FK$27 -> 2036-02-29 | FL5: =Time!FL$27 -> 2036-03-31 | FM5: =Time!FM$27 -> 2036-04-30 | FN5: =Time!FN$27 -> 2036-05-31 | FO5: =Time!FO$27 -> 2036-06-30 | FP5: =Time!FP$27 -> 2036-07-31 | FQ5: =Time!FQ$27 -> 2036-08-31 | FR5: =Time!FR$27 -> 2036-09-30 | FS5: =Time!FS$27 -> 2036-10-31 | FT5: =Time!FT$27 -> 2036-11-30 | FU5: =Time!FU$27 -> 2036-12-31 | FV5: =Time!FV$27 -> 2037-01-31 | FW5: =Time!FW$27 -> 2037-02-28 | FX5: =Time!FX$27 -> 2037-03-31 | FY5: =Time!FY$27 -> 2037-04-30 | FZ5: =Time!FZ$27 -> 2037-05-31 | GA5: =Time!GA$27 -> 2037-06-30 | GB5: =Time!GB$27 -> 2037-07-31 | GC5: =Time!GC$27 -> 2037-08-31 | GD5: =Time!GD$27 -> 2037-09-30 | GE5: =Time!GE$27 -> 2037-10-31 | GF5: =Time!GF$27 -> 2037-11-30 | GG5: =Time!GG$27 -> 2037-12-31 | GH5: =Time!GH$27 -> 2038-01-31 | GI5: =Time!GI$27 -> 2038-02-28 | GJ5: =Time!GJ$27 -> 2038-03-31 | GK5: =Time!GK$27 -> 2038-04-30 | GL5: =Time!GL$27 -> 2038-05-31 | GM5: =Time!GM$27 -> 2038-06-30 | GN5: =Time!GN$27 -> 2038-07-31 | GO5: =Time!GO$27 -> 2038-08-31 | GP5: =Time!GP$27 -> 2038-09-30 | GQ5: =Time!GQ$27 -> 2038-10-31 | GR5: =Time!GR$27 -> 2038-11-30 | GS5: =Time!GS$27 -> 2038-12-31 | GT5: =Time!GT$27 -> 2039-01-31 | GU5: =Time!GU$27 -> 2039-02-28 | GV5: =Time!GV$27 -> 2039-03-31 | GW5: =Time!GW$27 -> 2039-04-30 | GX5: =Time!GX$27 -> 2039-05-31 | GY5: =Time!GY$27 -> 2039-06-30 | GZ5: =Time!GZ$27 -> 2039-07-31 | HA5: =Time!HA$27 -> 2039-08-31 | HB5: =Time!HB$27 -> 2039-09-30 | HC5: =Time!HC$27 -> 2039-10-31 | HD5: =Time!HD$27 -> 2039-11-30 | HE5: =Time!HE$27 -> 2039-12-31 | HF5: =Time!HF$27 -> 2040-01-31 | HG5: =Time!HG$27 -> 2040-02-29 | HH5: =Time!HH$27 -> 2040-03-31 | HI5: =Time!HI$27 -> 2040-04-30 | HJ5: =Time!HJ$27 -> 2040-05-31 | HK5: =Time!HK$27 -> 2040-06-30 | HL5: =Time!HL$27 -> 2040-07-31 | HM5: =Time!HM$27 -> 2040-08-31 | HN5: =Time!HN$27 -> 2040-09-30 | HO5: =Time!HO$27 -> 2040-10-31 | HP5: =Time!HP$27 -> 2040-11-30 | HQ5: =Time!HQ$27 -> 2040-12-31 | HR5: =Time!HR$27 -> 2041-01-31 | HS5: =Time!HS$27 -> 2041-02-28 | HT5: =Time!HT$27 -> 2041-03-31 | HU5: =Time!HU$27 -> 2041-04-30 | HV5: =Time!HV$27 -> 2041-05-31 | HW5: =Time!HW$27 -> 2041-06-30 | HX5: =Time!HX$27 -> 2041-07-31 | HY5: =Time!HY$27 -> 2041-08-31 | HZ5: =Time!HZ$27 -> 2041-09-30 | IA5: =Time!IA$27 -> 2041-10-31 | IB5: =Time!IB$27 -> 2041-11-30 | IC5: =Time!IC$27 -> 2041-12-31 | ID5: =Time!ID$27 -> 2042-01-31 | IE5: =Time!IE$27 -> 2042-02-28 | IF5: =Time!IF$27 -> 2042-03-31 | IG5: =Time!IG$27 -> 2042-04-30 | IH5: =Time!IH$27 -> 2042-05-31 | II5: =Time!II$27 -> 2042-06-30 | IJ5: =Time!IJ$27 -> 2042-07-31 | IK5: =Time!IK$27 -> 2042-08-31 | IL5: =Time!IL$27 -> 2042-09-30 | IM5: =Time!IM$27 -> 2042-10-31 | IN5: =Time!IN$27 -> 2042-11-30 | IO5: =Time!IO$27 -> 2042-12-31 | IP5: =Time!IP$27 -> 2043-01-31 | IQ5: =Time!IQ$27 -> 2043-02-28 | IR5: =Time!IR$27 -> 2043-03-31 | IS5: =Time!IS$27 -> 2043-04-30 | IT5: =Time!IT$27 -> 2043-05-31 | IU5: =Time!IU$27 -> 2043-06-30 | IV5: =Time!IV$27 -> 2043-07-31 | IW5: =Time!IW$27 -> 2043-08-31 | IX5: =Time!IX$27 -> 2043-09-30 | IY5: =Time!IY$27 -> 2043-10-31 | IZ5: =Time!IZ$27 -> 2043-11-30 | JA5: =Time!JA$27 -> 2043-12-31 | JB5: =Time!JB$27 -> 2044-01-31 | JC5: =Time!JC$27 -> 2044-02-29 | JD5: =Time!JD$27 -> 2044-03-31 | JE5: =Time!JE$27 -> 2044-04-30 | JF5: =Time!JF$27 -> 2044-05-31 | JG5: =Time!JG$27 -> 2044-06-30 | JH5: =Time!JH$27 -> 2044-07-31 | JI5: =Time!JI$27 -> 2044-08-31 | JJ5: =Time!JJ$27 -> 2044-09-30 | JK5: =Time!JK$27 -> 2044-10-31 | JL5: =Time!JL$27 -> 2044-11-30 | JM5: =Time!JM$27 -> 2044-12-31 | JN5: =Time!JN$27 -> 2045-01-31 | JO5: =Time!JO$27 -> 2045-02-28 | JP5: =Time!JP$27 -> 2045-03-31 | JQ5: =Time!JQ$27 -> 2045-04-30 | JR5: =Time!JR$27 -> 2045-05-31 | JS5: =Time!JS$27 -> 2045-06-30 | JT5: =Time!JT$27 -> 2045-07-31 | JU5: =Time!JU$27 -> 2045-08-31 | JV5: =Time!JV$27 -> 2045-09-30 | JW5: =Time!JW$27 -> 2045-10-31 | JX5: =Time!JX$27 -> 2045-11-30 | JY5: =Time!JY$27 -> 2045-12-31 | JZ5: =Time!JZ$27 -> 2046-01-31 | KA5: =Time!KA$27 -> 2046-02-28 | KB5: =Time!KB$27 -> 2046-03-31 | KC5: =Time!KC$27 -> 2046-04-30 | KD5: =Time!KD$27 -> 2046-05-31 | KE5: =Time!KE$27 -> 2046-06-30 | KF5: =Time!KF$27 -> 2046-07-31 | KG5: =Time!KG$27 -> 2046-08-31 | KH5: =Time!KH$27 -> 2046-09-30 | KI5: =Time!KI$27 -> 2046-10-31 | KJ5: =Time!KJ$27 -> 2046-11-30 | KK5: =Time!KK$27 -> 2046-12-31 | KL5: =Time!KL$27 -> 2047-01-31 | KM5: =Time!KM$27 -> 2047-02-28 | KN5: =Time!KN$27 -> 2047-03-31 | KO5: =Time!KO$27 -> 2047-04-30 | KP5: =Time!KP$27 -> 2047-05-31 | KQ5: =Time!KQ$27 -> 2047-06-30 | KR5: =Time!KR$27 -> 2047-07-31 | KS5: =Time!KS$27 -> 2047-08-31 | KT5: =Time!KT$27 -> 2047-09-30 | KU5: =Time!KU$27 -> 2047-10-31 | KV5: =Time!KV$27 -> 2047-11-30 | KW5: =Time!KW$27 -> 2047-12-31 | KX5: =Time!KX$27 -> 2048-01-31 | KY5: =Time!KY$27 -> 2048-02-29 | KZ5: =Time!KZ$27 -> 2048-03-31 | LA5: =Time!LA$27 -> 2048-04-30 | LB5: =Time!LB$27 -> 2048-05-31 | LC5: =Time!LC$27 -> 2048-06-30 | LD5: =Time!LD$27 -> 2048-07-31 | LE5: =Time!LE$27 -> 2048-08-31 | LF5: =Time!LF$27 -> 2048-09-30 | LG5: =Time!LG$27 -> 2048-10-31 | LH5: =Time!LH$27 -> 2048-11-30 | LI5: =Time!LI$27 -> 2048-12-31 | LJ5: =Time!LJ$27 -> 2049-01-31 | LK5: =Time!LK$27 -> 2049-02-28 | LL5: =Time!LL$27 -> 2049-03-31 | LM5: =Time!LM$27 -> 2049-04-30 | LN5: =Time!LN$27 -> 2049-05-31 | LO5: =Time!LO$27 -> 2049-06-30 | LP5: =Time!LP$27 -> 2049-07-31 | LQ5: =Time!LQ$27 -> 2049-08-31 | LR5: =Time!LR$27 -> 2049-09-30 | LS5: =Time!LS$27 -> 2049-10-31 | LT5: =Time!LT$27 -> 2049-11-30 | LU5: =Time!LU$27 -> 2049-12-31 | LV5: =Time!LV$27 -> 2050-01-31 | LW5: =Time!LW$27 -> 2050-02-28 | LX5: =Time!LX$27 -> 2050-03-31 | LY5: =Time!LY$27 -> 2050-04-30 | LZ5: =Time!LZ$27 -> 2050-05-31 | MA5: =Time!MA$27 -> 2050-06-30 | MB5: =Time!MB$27 -> 2050-07-31 | MC5: =Time!MC$27 -> 2050-08-31 | MD5: =Time!MD$27 -> 2050-09-30 | ME5: =Time!ME$27 -> 2050-10-31 | MF5: =Time!MF$27 -> 2050-11-30 | MG5: =Time!MG$27 -> 2050-12-31 | MH5: =Time!MH$27 -> 2051-01-31 | MI5: =Time!MI$27 -> 2051-02-28 | MJ5: =Time!MJ$27 -> 2051-03-31 | MK5: =Time!MK$27 -> 2051-04-30 | ML5: =Time!ML$27 -> 2051-05-31 | MM5: =Time!MM$27 -> 2051-06-30 | MN5: =Time!MN$27 -> 2051-07-31 | MO5: =Time!MO$27 -> 2051-08-31 | MP5: =Time!MP$27 -> 2051-09-30 | MQ5: =Time!MQ$27 -> 2051-10-31 | MR5: =Time!MR$27 -> 2051-11-30 | MS5: =Time!MS$27 -> 2051-12-31 | MT5: =Time!MT$27 -> 2052-01-31 | MU5: =Time!MU$27 -> 2052-02-29 | MV5: =Time!MV$27 -> 2052-03-31 | MW5: =Time!MW$27 -> 2052-04-30 | MX5: =Time!MX$27 -> 2052-05-31 | MY5: =Time!MY$27 -> 2052-06-30 | MZ5: =Time!MZ$27 -> 2052-07-31 | NA5: =Time!NA$27 -> 2052-08-31 | NB5: =Time!NB$27 -> 2052-09-30 | NC5: =Time!NC$27 -> 2052-10-31 | ND5: =Time!ND$27 -> 2052-11-30 | NE5: =Time!NE$27 -> 2052-12-31 | NF5: =Time!NF$27 -> 2053-01-31 | NG5: =Time!NG$27 -> 2053-02-28 | NH5: =Time!NH$27 -> 2053-03-31 | NI5: =Time!NI$27 -> 2053-04-30 | NJ5: =Time!NJ$27 -> 2053-05-31 | NK5: =Time!NK$27 -> 2053-06-30 | NL5: =Time!NL$27 -> 2053-07-31 | NM5: =Time!NM$27 -> 2053-08-31 | NN5: =Time!NN$27 -> 2053-09-30 | NO5: =Time!NO$27 -> 2053-10-31 | NP5: =Time!NP$27 -> 2053-11-30 | NQ5: =Time!NQ$27 -> 2053-12-31 | NR5: =Time!NR$27 -> 2054-01-31 | NS5: =Time!NS$27 -> 2054-02-28 | NT5: =Time!NT$27 -> 2054-03-31 | NU5: =Time!NU$27 -> 2054-04-30 | NV5: =Time!NV$27 -> 2054-05-31 | NW5: =Time!NW$27 -> 2054-06-30 | NX5: =Time!NX$27 -> 2054-07-31 | NY5: =Time!NY$27 -> 2054-08-31 | NZ5: =Time!NZ$27 -> 2054-09-30 | OA5: =Time!OA$27 -> 2054-10-31 | OB5: =Time!OB$27 -> 2054-11-30 | OC5: =Time!OC$27 -> 2054-12-31 | OD5: =Time!OD$27 -> 2055-01-31 | OE5: =Time!OE$27 -> 2055-02-28 | OF5: =Time!OF$27 -> 2055-03-31 | OG5: =Time!OG$27 -> 2055-04-30 | OH5: =Time!OH$27 -> 2055-05-31 | OI5: =Time!OI$27 -> 2055-06-30 | OJ5: =Time!OJ$27 -> 2055-07-31 | OK5: =Time!OK$27 -> 2055-08-31 | OL5: =Time!OL$27 -> 2055-09-30 | OM5: =Time!OM$27 -> 2055-10-31 | ON5: =Time!ON$27 -> 2055-11-30 | OO5: =Time!OO$27 -> 2055-12-31 | OP5: =Time!OP$27 -> 2056-01-31 | OQ5: =Time!OQ$27 -> 2056-02-29 | OR5: =Time!OR$27 -> 2056-03-31 | OS5: =Time!OS$27 -> 2056-04-30 | OT5: =Time!OT$27 -> 2056-05-31 | OU5: =Time!OU$27 -> 2056-06-30 | OV5: =Time!OV$27 -> 2056-07-31 | OW5: =Time!OW$27 -> 2056-08-31 | OX5: =Time!OX$27 -> 2056-09-30 | OY5: =Time!OY$27 -> 2056-10-31 | OZ5: =Time!OZ$27 -> 2056-11-30 | PA5: =Time!PA$27 -> 2056-12-31 | PB5: =Time!PB$27 -> 2057-01-31 | PC5: =Time!PC$27 -> 2057-02-28 | PD5: =Time!PD$27 -> 2057-03-31 | PE5: =Time!PE$27 -> 2057-04-30 | PF5: =Time!PF$27 -> 2057-05-31 | PG5: =Time!PG$27 -> 2057-06-30 | PH5: =Time!PH$27 -> 2057-07-31 | PI5: =Time!PI$27 -> 2057-08-31 | PJ5: =Time!PJ$27 -> 2057-09-30 | PK5: =Time!PK$27 -> 2057-10-31 | PL5: =Time!PL$27 -> 2057-11-30 | PM5: =Time!PM$27 -> 2057-12-31 | PN5: =Time!PN$27 -> 2058-01-31 | PO5: =Time!PO$27 -> 2058-02-28 | PP5: =Time!PP$27 -> 2058-03-31 | PQ5: =Time!PQ$27 -> 2058-04-30 | PR5: =Time!PR$27 -> 2058-05-31 | PS5: =Time!PS$27 -> 2058-06-30 | PT5: =Time!PT$27 -> 2058-07-31 | PU5: =Time!PU$27 -> 2058-08-31 | PV5: =Time!PV$27 -> 2058-09-30 | PW5: =Time!PW$27 -> 2058-10-31 | PX5: =Time!PX$27 -> 2058-11-30 | PY5: =Time!PY$27 -> 2058-12-31 | PZ5: =Time!PZ$27 -> 2059-01-31 | QA5: =Time!QA$27 -> 2059-02-28 | QB5: =Time!QB$27 -> 2059-03-31 | QC5: =Time!QC$27 -> 2059-04-30 | QD5: =Time!QD$27 -> 2059-05-31 | QE5: =Time!QE$27 -> 2059-06-30 | QF5: =Time!QF$27 -> 2059-07-31 | QG5: =Time!QG$27 -> 2059-08-31 | QH5: =Time!QH$27 -> 2059-09-30 | QI5: =Time!QI$27 -> 2059-10-31 | QJ5: =Time!QJ$27 -> 2059-11-30 | QK5: =Time!QK$27 -> 2059-12-31 | QL5: =Time!QL$27 -> 2060-01-31 | QM5: =Time!QM$27 -> 2060-02-29 | QN5: =Time!QN$27 -> 2060-03-31 | QO5: =Time!QO$27 -> 2060-04-30 | QP5: =Time!QP$27 -> 2060-05-31 | QQ5: =Time!QQ$27 -> 2060-06-30 | QR5: =Time!QR$27 -> 2060-07-31 | QS5: =Time!QS$27 -> 2060-08-31 | QT5: =Time!QT$27 -> 2060-09-30 | QU5: =Time!QU$27 -> 2060-10-31 | QV5: =Time!QV$27 -> 2060-11-30 | QW5: =Time!QW$27 -> 2060-12-31 | QX5: =Time!QX$27 -> 2061-01-31 | QY5: =Time!QY$27 -> 2061-02-28 | QZ5: =Time!QZ$27 -> 2061-03-31 | RA5: =Time!RA$27 -> 2061-04-30 | RB5: =Time!RB$27 -> 2061-05-31 | RC5: =Time!RC$27 -> 2061-06-30 | RD5: =Time!RD$27 -> 2061-07-31 | RE5: =Time!RE$27 -> 2061-08-31 | RF5: =Time!RF$27 -> 2061-09-30 | RG5: =Time!RG$27 -> 2061-10-31 | RH5: =Time!RH$27 -> 2061-11-30 | RI5: =Time!RI$27 -> 2061-12-31 | RJ5: =Time!RJ$27 -> 2062-01-31 | RK5: =Time!RK$27 -> 2062-02-28 | RL5: =Time!RL$27 -> 2062-03-31 | RM5: =Time!RM$27 -> 2062-04-30 | RN5: =Time!RN$27 -> 2062-05-31 | RO5: =Time!RO$27 -> 2062-06-30 | RP5: =Time!RP$27 -> 2062-07-31 | RQ5: =Time!RQ$27 -> 2062-08-31 | RR5: =Time!RR$27 -> 2062-09-30 | RS5: =Time!RS$27 -> 2062-10-31 | RT5: =Time!RT$27 -> 2062-11-30 | RU5: =Time!RU$27 -> 2062-12-31 | RV5: =Time!RV$27 -> 2063-01-31 | RW5: =Time!RW$27 -> 2063-02-28 | RX5: =Time!RX$27 -> 2063-03-31 | RY5: =Time!RY$27 -> 2063-04-30 | RZ5: =Time!RZ$27 -> 2063-05-31 | SA5: =Time!SA$27 -> 2063-06-30 | SB5: =Time!SB$27 -> 2063-07-31 | SC5: =Time!SC$27 -> 2063-08-31 | SD5: =Time!SD$27 -> 2063-09-30 | SE5: =Time!SE$27 -> 2063-10-31 | SF5: =Time!SF$27 -> 2063-11-30 | SG5: =Time!SG$27 -> 2063-12-31 | SH5: =Time!SH$27 -> 2064-01-31 | SI5: =Time!SI$27 -> 2064-02-29 | SJ5: =Time!SJ$27 -> 2064-03-31 | SK5: =Time!SK$27 -> 2064-04-30 | SL5: =Time!SL$27 -> 2064-05-31 | SM5: =Time!SM$27 -> 2064-06-30 | SN5: =Time!SN$27 -> 2064-07-31 | SO5: =Time!SO$27 -> 2064-08-31
E6: =Time!E$71 -> Timeline label | F6: =Output!J2 -> 9 | G6: Track chgs | J6: =Time!J$71 -> Construction | K6: =Time!K$71 -> Construction | L6: =Time!L$71 -> Construction | M6: =Time!M$71 -> Construction | N6: =Time!N$71 -> Construction | O6: =Time!O$71 -> Construction | P6: =Time!P$71 -> Construction | Q6: =Time!Q$71 -> Construction | R6: =Time!R$71 -> Construction | S6: =Time!S$71 -> Construction | T6: =Time!T$71 -> Construction | U6: =Time!U$71 -> Construction | V6: =Time!V$71 -> Construction | W6: =Time!W$71 -> Construction | X6: =Time!X$71 -> Construction | Y6: =Time!Y$71 -> Construction | Z6: =Time!Z$71 -> Construction | AA6: =Time!AA$71 -> Construction | AB6: =Time!AB$71 -> Construction | AC6: =Time!AC$71 -> Construction | AD6: =Time!AD$71 -> Construction | AE6: =Time!AE$71 -> Construction | AF6: =Time!AF$71 -> Construction | AG6: =Time!AG$71 -> Construction | AH6: =Time!AH$71 -> Operations | AI6: =Time!AI$71 -> Operations | AJ6: =Time!AJ$71 -> Operations | AK6: =Time!AK$71 -> Operations | AL6: =Time!AL$71 -> Operations | AM6: =Time!AM$71 -> Operations | AN6: =Time!AN$71 -> Operations | AO6: =Time!AO$71 -> Operations | AP6: =Time!AP$71 -> Operations | AQ6: =Time!AQ$71 -> Operations | AR6: =Time!AR$71 -> Operations | AS6: =Time!AS$71 -> Operations | AT6: =Time!AT$71 -> Operations | AU6: =Time!AU$71 -> Operations | AV6: =Time!AV$71 -> Operations | AW6: =Time!AW$71 -> Operations | AX6: =Time!AX$71 -> Operations | AY6: =Time!AY$71 -> Operations | AZ6: =Time!AZ$71 -> Operations | BA6: =Time!BA$71 -> Operations | BB6: =Time!BB$71 -> Operations | BC6: =Time!BC$71 -> Operations | BD6: =Time!BD$71 -> Operations | BE6: =Time!BE$71 -> Operations | BF6: =Time!BF$71 -> Operations | BG6: =Time!BG$71 -> Operations | BH6: =Time!BH$71 -> Operations | BI6: =Time!BI$71 -> Operations | BJ6: =Time!BJ$71 -> Operations | BK6: =Time!BK$71 -> Operations | BL6: =Time!BL$71 -> Operations | BM6: =Time!BM$71 -> Operations | BN6: =Time!BN$71 -> Operations | BO6: =Time!BO$71 -> Operations | BP6: =Time!BP$71 -> Operations | BQ6: =Time!BQ$71 -> Operations | BR6: =Time!BR$71 -> Operations | BS6: =Time!BS$71 -> Operations | BT6: =Time!BT$71 -> Operations | BU6: =Time!BU$71 -> Operations | BV6: =Time!BV$71 -> Operations | BW6: =Time!BW$71 -> Operations | BX6: =Time!BX$71 -> Operations | BY6: =Time!BY$71 -> Operations | BZ6: =Time!BZ$71 -> Operations | CA6: =Time!CA$71 -> Operations | CB6: =Time!CB$71 -> Operations | CC6: =Time!CC$71 -> Operations | CD6: =Time!CD$71 -> Operations | CE6: =Time!CE$71 -> Operations | CF6: =Time!CF$71 -> Operations | CG6: =Time!CG$71 -> Operations | CH6: =Time!CH$71 -> Operations | CI6: =Time!CI$71 -> Operations | CJ6: =Time!CJ$71 -> Operations | CK6: =Time!CK$71 -> Operations | CL6: =Time!CL$71 -> Operations | CM6: =Time!CM$71 -> Operations | CN6: =Time!CN$71 -> Operations | CO6: =Time!CO$71 -> Operations | CP6: =Time!CP$71 -> Operations | CQ6: =Time!CQ$71 -> Operations | CR6: =Time!CR$71 -> Operations | CS6: =Time!CS$71 -> Operations | CT6: =Time!CT$71 -> Operations | CU6: =Time!CU$71 -> Operations | CV6: =Time!CV$71 -> Operations | CW6: =Time!CW$71 -> Operations | CX6: =Time!CX$71 -> Operations | CY6: =Time!CY$71 -> Operations | CZ6: =Time!CZ$71 -> Operations | DA6: =Time!DA$71 -> Operations | DB6: =Time!DB$71 -> Operations | DC6: =Time!DC$71 -> Operations | DD6: =Time!DD$71 -> Operations | DE6: =Time!DE$71 -> Operations | DF6: =Time!DF$71 -> Operations | DG6: =Time!DG$71 -> Operations | DH6: =Time!DH$71 -> Operations | DI6: =Time!DI$71 -> Operations | DJ6: =Time!DJ$71 -> Operations | DK6: =Time!DK$71 -> Operations | DL6: =Time!DL$71 -> Operations | DM6: =Time!DM$71 -> Operations | DN6: =Time!DN$71 -> Operations | DO6: =Time!DO$71 -> Operations | DP6: =Time!DP$71 -> Operations | DQ6: =Time!DQ$71 -> Operations | DR6: =Time!DR$71 -> Operations | DS6: =Time!DS$71 -> Operations | DT6: =Time!DT$71 -> Operations | DU6: =Time!DU$71 -> Operations | DV6: =Time!DV$71 -> Operations | DW6: =Time!DW$71 -> Operations | DX6: =Time!DX$71 -> Operations | DY6: =Time!DY$71 -> Operations | DZ6: =Time!DZ$71 -> Operations | EA6: =Time!EA$71 -> Operations | EB6: =Time!EB$71 -> Operations | EC6: =Time!EC$71 -> Operations | ED6: =Time!ED$71 -> Operations | EE6: =Time!EE$71 -> Operations | EF6: =Time!EF$71 -> Operations | EG6: =Time!EG$71 -> Operations | EH6: =Time!EH$71 -> Operations | EI6: =Time!EI$71 -> Operations | EJ6: =Time!EJ$71 -> Operations | EK6: =Time!EK$71 -> Operations | EL6: =Time!EL$71 -> Operations | EM6: =Time!EM$71 -> Operations | EN6: =Time!EN$71 -> Operations | EO6: =Time!EO$71 -> Operations | EP6: =Time!EP$71 -> Operations | EQ6: =Time!EQ$71 -> Operations | ER6: =Time!ER$71 -> Operations | ES6: =Time!ES$71 -> Operations | ET6: =Time!ET$71 -> Operations | EU6: =Time!EU$71 -> Operations | EV6: =Time!EV$71 -> Operations | EW6: =Time!EW$71 -> Operations | EX6: =Time!EX$71 -> Operations | EY6: =Time!EY$71 -> Operations | EZ6: =Time!EZ$71 -> Operations | FA6: =Time!FA$71 -> Operations | FB6: =Time!FB$71 -> Operations | FC6: =Time!FC$71 -> Operations | FD6: =Time!FD$71 -> Operations | FE6: =Time!FE$71 -> Operations | FF6: =Time!FF$71 -> Operations | FG6: =Time!FG$71 -> Operations | FH6: =Time!FH$71 -> Operations | FI6: =Time!FI$71 -> Operations | FJ6: =Time!FJ$71 -> Operations | FK6: =Time!FK$71 -> Operations | FL6: =Time!FL$71 -> Operations | FM6: =Time!FM$71 -> Operations | FN6: =Time!FN$71 -> Operations | FO6: =Time!FO$71 -> Operations | FP6: =Time!FP$71 -> Operations | FQ6: =Time!FQ$71 -> Operations | FR6: =Time!FR$71 -> Operations | FS6: =Time!FS$71 -> Operations | FT6: =Time!FT$71 -> Operations | FU6: =Time!FU$71 -> Operations | FV6: =Time!FV$71 -> Operations | FW6: =Time!FW$71 -> Operations | FX6: =Time!FX$71 -> Operations | FY6: =Time!FY$71 -> Operations | FZ6: =Time!FZ$71 -> Operations | GA6: =Time!GA$71 -> Operations | GB6: =Time!GB$71 -> Operations | GC6: =Time!GC$71 -> Operations | GD6: =Time!GD$71 -> Operations | GE6: =Time!GE$71 -> Operations | GF6: =Time!GF$71 -> Operations | GG6: =Time!GG$71 -> Operations | GH6: =Time!GH$71 -> Operations | GI6: =Time!GI$71 -> Operations | GJ6: =Time!GJ$71 -> Operations | GK6: =Time!GK$71 -> Operations | GL6: =Time!GL$71 -> Operations | GM6: =Time!GM$71 -> Operations | GN6: =Time!GN$71 -> Operations | GO6: =Time!GO$71 -> Operations | GP6: =Time!GP$71 -> Operations | GQ6: =Time!GQ$71 -> Operations | GR6: =Time!GR$71 -> Operations | GS6: =Time!GS$71 -> Operations | GT6: =Time!GT$71 -> Operations | GU6: =Time!GU$71 -> Operations | GV6: =Time!GV$71 -> Operations | GW6: =Time!GW$71 -> Operations | GX6: =Time!GX$71 -> Operations | GY6: =Time!GY$71 -> Operations | GZ6: =Time!GZ$71 -> Operations | HA6: =Time!HA$71 -> Operations | HB6: =Time!HB$71 -> Operations | HC6: =Time!HC$71 -> Operations | HD6: =Time!HD$71 -> Operations | HE6: =Time!HE$71 -> Operations | HF6: =Time!HF$71 -> Operations | HG6: =Time!HG$71 -> Operations | HH6: =Time!HH$71 -> Operations | HI6: =Time!HI$71 -> Operations | HJ6: =Time!HJ$71 -> Operations | HK6: =Time!HK$71 -> Operations | HL6: =Time!HL$71 -> Operations | HM6: =Time!HM$71 -> Operations | HN6: =Time!HN$71 -> Operations | HO6: =Time!HO$71 -> Operations | HP6: =Time!HP$71 -> Operations | HQ6: =Time!HQ$71 -> Operations | HR6: =Time!HR$71 -> Operations | HS6: =Time!HS$71 -> Operations | HT6: =Time!HT$71 -> Operations | HU6: =Time!HU$71 -> Operations | HV6: =Time!HV$71 -> Operations | HW6: =Time!HW$71 -> Operations | HX6: =Time!HX$71 -> Operations | HY6: =Time!HY$71 -> Operations | HZ6: =Time!HZ$71 -> Operations | IA6: =Time!IA$71 -> Operations | IB6: =Time!IB$71 -> Operations | IC6: =Time!IC$71 -> Operations | ID6: =Time!ID$71 -> Operations | IE6: =Time!IE$71 -> Operations | IF6: =Time!IF$71 -> Operations | IG6: =Time!IG$71 -> Operations | IH6: =Time!IH$71 -> Operations | II6: =Time!II$71 -> Operations | IJ6: =Time!IJ$71 -> Operations | IK6: =Time!IK$71 -> Operations | IL6: =Time!IL$71 -> Operations | IM6: =Time!IM$71 -> Operations | IN6: =Time!IN$71 -> Operations | IO6: =Time!IO$71 -> Operations | IP6: =Time!IP$71 -> Operations | IQ6: =Time!IQ$71 -> Operations | IR6: =Time!IR$71 -> Operations | IS6: =Time!IS$71 -> Operations | IT6: =Time!IT$71 -> Operations | IU6: =Time!IU$71 -> Operations | IV6: =Time!IV$71 -> Operations | IW6: =Time!IW$71 -> Operations | IX6: =Time!IX$71 -> Operations | IY6: =Time!IY$71 -> Operations | IZ6: =Time!IZ$71 -> Operations | JA6: =Time!JA$71 -> Operations | JB6: =Time!JB$71 -> Operations | JC6: =Time!JC$71 -> Operations | JD6: =Time!JD$71 -> Operations | JE6: =Time!JE$71 -> Operations | JF6: =Time!JF$71 -> Operations | JG6: =Time!JG$71 -> Operations | JH6: =Time!JH$71 -> Operations | JI6: =Time!JI$71 -> Operations | JJ6: =Time!JJ$71 -> Operations | JK6: =Time!JK$71 -> Operations | JL6: =Time!JL$71 -> Operations | JM6: =Time!JM$71 -> Operations | JN6: =Time!JN$71 -> Operations | JO6: =Time!JO$71 -> Operations | JP6: =Time!JP$71 -> Operations | JQ6: =Time!JQ$71 -> Operations | JR6: =Time!JR$71 -> Operations | JS6: =Time!JS$71 -> Operations | JT6: =Time!JT$71 -> Operations | JU6: =Time!JU$71 -> Operations | JV6: =Time!JV$71 -> Operations | JW6: =Time!JW$71 -> Operations | JX6: =Time!JX$71 -> Operations | JY6: =Time!JY$71 -> Operations | JZ6: =Time!JZ$71 -> Operations | KA6: =Time!KA$71 -> Operations | KB6: =Time!KB$71 -> Operations | KC6: =Time!KC$71 -> Operations | KD6: =Time!KD$71 -> Operations | KE6: =Time!KE$71 -> Operations | KF6: =Time!KF$71 -> Operations | KG6: =Time!KG$71 -> Operations | KH6: =Time!KH$71 -> Operations | KI6: =Time!KI$71 -> Operations | KJ6: =Time!KJ$71 -> Operations | KK6: =Time!KK$71 -> Operations | KL6: =Time!KL$71 -> Operations | KM6: =Time!KM$71 -> Operations | KN6: =Time!KN$71 -> Operations | KO6: =Time!KO$71 -> Operations | KP6: =Time!KP$71 -> Operations | KQ6: =Time!KQ$71 -> Operations | KR6: =Time!KR$71 -> Operations | KS6: =Time!KS$71 -> Operations | KT6: =Time!KT$71 -> Operations | KU6: =Time!KU$71 -> Operations | KV6: =Time!KV$71 -> Operations | KW6: =Time!KW$71 -> Operations | KX6: =Time!KX$71 -> Operations | KY6: =Time!KY$71 -> Operations | KZ6: =Time!KZ$71 -> Operations | LA6: =Time!LA$71 -> Operations | LB6: =Time!LB$71 -> Operations | LC6: =Time!LC$71 -> Operations | LD6: =Time!LD$71 -> Operations | LE6: =Time!LE$71 -> Operations | LF6: =Time!LF$71 -> Operations | LG6: =Time!LG$71 -> Operations | LH6: =Time!LH$71 -> Operations | LI6: =Time!LI$71 -> Operations | LJ6: =Time!LJ$71 -> Operations | LK6: =Time!LK$71 -> Operations | LL6: =Time!LL$71 -> Operations | LM6: =Time!LM$71 -> Operations | LN6: =Time!LN$71 -> Operations | LO6: =Time!LO$71 -> Operations | LP6: =Time!LP$71 -> Operations | LQ6: =Time!LQ$71 -> Operations | LR6: =Time!LR$71 -> Operations | LS6: =Time!LS$71 -> Operations | LT6: =Time!LT$71 -> Operations | LU6: =Time!LU$71 -> Operations | LV6: =Time!LV$71 -> Operations | LW6: =Time!LW$71 -> Operations | LX6: =Time!LX$71 -> Operations | LY6: =Time!LY$71 -> Operations | LZ6: =Time!LZ$71 -> Operations | MA6: =Time!MA$71 -> Operations | MB6: =Time!MB$71 -> Operations | MC6: =Time!MC$71 -> Operations | MD6: =Time!MD$71 -> Operations | ME6: =Time!ME$71 -> Operations | MF6: =Time!MF$71 -> Operations | MG6: =Time!MG$71 -> Operations | MH6: =Time!MH$71 -> Operations | MI6: =Time!MI$71 -> Operations | MJ6: =Time!MJ$71 -> Operations | MK6: =Time!MK$71 -> Operations | ML6: =Time!ML$71 -> Operations | MM6: =Time!MM$71 -> Operations | MN6: =Time!MN$71 -> Operations | MO6: =Time!MO$71 -> Operations | MP6: =Time!MP$71 -> Operations | MQ6: =Time!MQ$71 -> Operations | MR6: =Time!MR$71 -> Operations | MS6: =Time!MS$71 -> Operations | MT6: =Time!MT$71 -> Operations | MU6: =Time!MU$71 -> Operations | MV6: =Time!MV$71 -> Operations | MW6: =Time!MW$71 -> Operations | MX6: =Time!MX$71 -> Operations | MY6: =Time!MY$71 -> Operations | MZ6: =Time!MZ$71 -> Operations | NA6: =Time!NA$71 -> Operations | NB6: =Time!NB$71 -> Operations | NC6: =Time!NC$71 -> Operations | ND6: =Time!ND$71 -> Operations | NE6: =Time!NE$71 -> Operations | NF6: =Time!NF$71 -> Operations | NG6: =Time!NG$71 -> Operations | NH6: =Time!NH$71 -> Operations | NI6: =Time!NI$71 -> Operations | NJ6: =Time!NJ$71 -> Operations | NK6: =Time!NK$71 -> Operations | NL6: =Time!NL$71 -> Operations | NM6: =Time!NM$71 -> Operations | NN6: =Time!NN$71 -> Operations | NO6: =Time!NO$71 -> Operations | NP6: =Time!NP$71 -> Operations | NQ6: =Time!NQ$71 -> Operations | NR6: =Time!NR$71 -> Operations | NS6: =Time!NS$71 -> Operations | NT6: =Time!NT$71 -> Operations | NU6: =Time!NU$71 -> Operations | NV6: =Time!NV$71 -> Operations | NW6: =Time!NW$71 -> Operations | NX6: =Time!NX$71 -> Operations | NY6: =Time!NY$71 -> Operations | NZ6: =Time!NZ$71 -> Operations | OA6: =Time!OA$71 -> Operations | OB6: =Time!OB$71 -> Operations | OC6: =Time!OC$71 -> Operations | OD6: =Time!OD$71 -> Post ops | OE6: =Time!OE$71 -> Post ops | OF6: =Time!OF$71 -> Post ops | OG6: =Time!OG$71 -> Post ops | OH6: =Time!OH$71 -> Post ops | OI6: =Time!OI$71 -> Post ops | OJ6: =Time!OJ$71 -> Post ops | OK6: =Time!OK$71 -> Post ops | OL6: =Time!OL$71 -> Post ops | OM6: =Time!OM$71 -> Post ops | ON6: =Time!ON$71 -> Post ops | OO6: =Time!OO$71 -> Post ops | OP6: =Time!OP$71 -> Post ops | OQ6: =Time!OQ$71 -> Post ops | OR6: =Time!OR$71 -> Post ops | OS6: =Time!OS$71 -> Post ops | OT6: =Time!OT$71 -> Post ops | OU6: =Time!OU$71 -> Post ops | OV6: =Time!OV$71 -> Post ops | OW6: =Time!OW$71 -> Post ops | OX6: =Time!OX$71 -> Post ops | OY6: =Time!OY$71 -> Post ops | OZ6: =Time!OZ$71 -> Post ops | PA6: =Time!PA$71 -> Post ops | PB6: =Time!PB$71 -> Post ops | PC6: =Time!PC$71 -> Post ops | PD6: =Time!PD$71 -> Post ops | PE6: =Time!PE$71 -> Post ops | PF6: =Time!PF$71 -> Post ops | PG6: =Time!PG$71 -> Post ops | PH6: =Time!PH$71 -> Post ops | PI6: =Time!PI$71 -> Post ops | PJ6: =Time!PJ$71 -> Post ops | PK6: =Time!PK$71 -> Post ops | PL6: =Time!PL$71 -> Post ops | PM6: =Time!PM$71 -> Post ops | PN6: =Time!PN$71 -> Post ops | PO6: =Time!PO$71 -> Post ops | PP6: =Time!PP$71 -> Post ops | PQ6: =Time!PQ$71 -> Post ops | PR6: =Time!PR$71 -> Post ops | PS6: =Time!PS$71 -> Post ops | PT6: =Time!PT$71 -> Post ops | PU6: =Time!PU$71 -> Post ops | PV6: =Time!PV$71 -> Post ops | PW6: =Time!PW$71 -> Post ops | PX6: =Time!PX$71 -> Post ops | PY6: =Time!PY$71 -> Post ops | PZ6: =Time!PZ$71 -> Post ops | QA6: =Time!QA$71 -> Post ops | QB6: =Time!QB$71 -> Post ops | QC6: =Time!QC$71 -> Post ops | QD6: =Time!QD$71 -> Post ops | QE6: =Time!QE$71 -> Post ops | QF6: =Time!QF$71 -> Post ops | QG6: =Time!QG$71 -> Post ops | QH6: =Time!QH$71 -> Post ops | QI6: =Time!QI$71 -> Post ops | QJ6: =Time!QJ$71 -> Post ops | QK6: =Time!QK$71 -> Post ops | QL6: =Time!QL$71 -> Post ops | QM6: =Time!QM$71 -> Post ops | QN6: =Time!QN$71 -> Post ops | QO6: =Time!QO$71 -> Post ops | QP6: =Time!QP$71 -> Post ops | QQ6: =Time!QQ$71 -> Post ops | QR6: =Time!QR$71 -> Post ops | QS6: =Time!QS$71 -> Post ops | QT6: =Time!QT$71 -> Post ops | QU6: =Time!QU$71 -> Post ops | QV6: =Time!QV$71 -> Post ops | QW6: =Time!QW$71 -> Post ops | QX6: =Time!QX$71 -> Post ops | QY6: =Time!QY$71 -> Post ops | QZ6: =Time!QZ$71 -> Post ops | RA6: =Time!RA$71 -> Post ops | RB6: =Time!RB$71 -> Post ops | RC6: =Time!RC$71 -> Post ops | RD6: =Time!RD$71 -> Post ops | RE6: =Time!RE$71 -> Post ops | RF6: =Time!RF$71 -> Post ops | RG6: =Time!RG$71 -> Post ops | RH6: =Time!RH$71 -> Post ops | RI6: =Time!RI$71 -> Post ops | RJ6: =Time!RJ$71 -> Post ops | RK6: =Time!RK$71 -> Post ops | RL6: =Time!RL$71 -> Post ops | RM6: =Time!RM$71 -> Post ops | RN6: =Time!RN$71 -> Post ops | RO6: =Time!RO$71 -> Post ops | RP6: =Time!RP$71 -> Post ops | RQ6: =Time!RQ$71 -> Post ops | RR6: =Time!RR$71 -> Post ops | RS6: =Time!RS$71 -> Post ops | RT6: =Time!RT$71 -> Post ops | RU6: =Time!RU$71 -> Post ops | RV6: =Time!RV$71 -> Post ops | RW6: =Time!RW$71 -> Post ops | RX6: =Time!RX$71 -> Post ops | RY6: =Time!RY$71 -> Post ops | RZ6: =Time!RZ$71 -> Post ops | SA6: =Time!SA$71 -> Post ops | SB6: =Time!SB$71 -> Post ops | SC6: =Time!SC$71 -> Post ops | SD6: =Time!SD$71 -> Post ops | SE6: =Time!SE$71 -> Post ops | SF6: =Time!SF$71 -> Post ops | SG6: =Time!SG$71 -> Post ops | SH6: =Time!SH$71 -> Post ops | SI6: =Time!SI$71 -> Post ops | SJ6: =Time!SJ$71 -> Post ops | SK6: =Time!SK$71 -> Post ops | SL6: =Time!SL$71 -> Post ops | SM6: =Time!SM$71 -> Post ops | SN6: =Time!SN$71 -> Post ops | SO6: =Time!SO$71 -> Post ops
E7: =Time!E$45 -> Contract year | F7: =Check!$F$21 -> 0 | G7: Alerts | J7: =J45 -> 2023 | K7: 2024 | L7: 2024 | M7: 2024 | N7: 2024 | O7: 2024 | P7: 2024 | Q7: 2024 | R7: 2024 | S7: 2024 | T7: 2024 | U7: 2024 | V7: 2024 | W7: 2025 | X7: 2025 | Y7: 2025 | Z7: 2025 | AA7: 2025 | AB7: 2025 | AC7: 2025 | AD7: 2025 | AE7: 2025 | AF7: 2025 | AG7: 2025 | AH7: 2025 | AI7: 2026 | AJ7: 2026 | AK7: 2026 | AL7: 2026 | AM7: 2026 | AN7: 2026 | AO7: 2026 | AP7: 2026 | AQ7: 2026 | AR7: 2026 | AS7: 2026 | AT7: 2026 | AU7: 2027 | AV7: 2027 | AW7: 2027 | AX7: 2027 | AY7: 2027 | AZ7: 2027 | BA7: 2027 | BB7: 2027 | BC7: 2027 | BD7: 2027 | BE7: 2027 | BF7: 2027 | BG7: 2028 | BH7: 2028 | BI7: 2028 | BJ7: 2028 | BK7: 2028 | BL7: 2028 | BM7: 2028 | BN7: 2028 | BO7: 2028 | BP7: 2028 | BQ7: 2028 | BR7: 2028 | BS7: 2029 | BT7: 2029 | BU7: 2029 | BV7: =BV45 -> 2029 | BW7: 2029 | BX7: 2029 | BY7: 2029 | BZ7: 2029 | CA7: 2029 | CB7: 2029 | CC7: 2029 | CD7: 2029 | CE7: 2030 | CF7: 2030 | CG7: 2030 | CH7: 2030 | CI7: 2030 | CJ7: 2030 | CK7: 2030 | CL7: 2030 | CM7: 2030 | CN7: 2030 | CO7: 2030 | CP7: 2030 | CQ7: 2031 | CR7: 2031 | CS7: 2031 | CT7: 2031 | CU7: 2031 | CV7: 2031 | CW7: 2031 | CX7: 2031 | CY7: 2031 | CZ7: 2031 | DA7: 2031 | DB7: 2031 | DC7: 2032 | DD7: 2032 | DE7: 2032 | DF7: 2032 | DG7: 2032 | DH7: 2032 | DI7: 2032 | DJ7: 2032 | DK7: 2032 | DL7: 2032 | DM7: 2032 | DN7: 2032 | DO7: 2033 | DP7: 2033 | DQ7: 2033 | DR7: 2033 | DS7: 2033 | DT7: 2033 | DU7: 2033 | DV7: 2033 | DW7: 2033 | DX7: 2033 | DY7: 2033 | DZ7: 2033 | EA7: 2034 | EB7: 2034 | EC7: 2034 | ED7: 2034 | EE7: 2034 | EF7: 2034 | EG7: 2034 | EH7: =EH45 -> 2034 | EI7: 2034 | EJ7: 2034 | EK7: 2034 | EL7: 2034 | EM7: 2035 | EN7: 2035 | EO7: 2035 | EP7: 2035 | EQ7: 2035 | ER7: 2035 | ES7: 2035 | ET7: 2035 | EU7: 2035 | EV7: 2035 | EW7: 2035 | EX7: 2035 | EY7: 2036 | EZ7: 2036 | FA7: 2036 | FB7: 2036 | FC7: 2036 | FD7: 2036 | FE7: 2036 | FF7: 2036 | FG7: 2036 | FH7: 2036 | FI7: 2036 | FJ7: 2036 | FK7: 2037 | FL7: 2037 | FM7: 2037 | FN7: 2037 | FO7: 2037 | FP7: 2037 | FQ7: 2037 | FR7: 2037 | FS7: 2037 | FT7: 2037 | FU7: 2037 | FV7: 2037 | FW7: 2038 | FX7: 2038 | FY7: 2038 | FZ7: 2038 | GA7: 2038 | GB7: 2038 | GC7: 2038 | GD7: 2038 | GE7: 2038 | GF7: 2038 | GG7: 2038 | GH7: 2038 | GI7: 2039 | GJ7: 2039 | GK7: 2039 | GL7: 2039 | GM7: 2039 | GN7: 2039 | GO7: 2039 | GP7: 2039 | GQ7: 2039 | GR7: 2039 | GS7: 2039 | GT7: =GT45 -> 2039 | GU7: 2040 | GV7: 2040 | GW7: 2040 | GX7: 2040 | GY7: 2040 | GZ7: 2040 | HA7: 2040 | HB7: 2040 | HC7: 2040 | HD7: 2040 | HE7: 2040 | HF7: 2040 | HG7: 2041 | HH7: 2041 | HI7: 2041 | HJ7: 2041 | HK7: 2041 | HL7: 2041 | HM7: 2041 | HN7: 2041 | HO7: 2041 | HP7: 2041 | HQ7: 2041 | HR7: 2041 | HS7: 2042 | HT7: 2042 | HU7: 2042 | HV7: 2042 | HW7: 2042 | HX7: 2042 | HY7: 2042 | HZ7: 2042 | IA7: 2042 | IB7: 2042 | IC7: 2042 | ID7: 2042 | IE7: 2043 | IF7: 2043 | IG7: 2043 | IH7: 2043 | II7: 2043 | IJ7: 2043 | IK7: 2043 | IL7: 2043 | IM7: 2043 | IN7: 2043 | IO7: 2043 | IP7: 2043 | IQ7: 2044 | IR7: 2044 | IS7: 2044 | IT7: 2044 | IU7: 2044 | IV7: 2044 | IW7: 2044 | IX7: 2044 | IY7: 2044 | IZ7: 2044 | JA7: 2044 | JB7: 2044 | JC7: 2045 | JD7: 2045 | JE7: 2045 | JF7: =JF45 -> 2045 | JG7: 2045 | JH7: 2045 | JI7: 2045 | JJ7: 2045 | JK7: 2045 | JL7: 2045 | JM7: 2045 | JN7: 2045 | JO7: 2046 | JP7: 2046 | JQ7: 2046 | JR7: 2046 | JS7: 2046 | JT7: 2046 | JU7: 2046 | JV7: 2046 | JW7: 2046 | JX7: 2046 | JY7: 2046 | JZ7: 2046 | KA7: 2047 | KB7: 2047 | KC7: 2047 | KD7: 2047 | KE7: 2047 | KF7: 2047 | KG7: 2047 | KH7: 2047 | KI7: 2047 | KJ7: 2047 | KK7: 2047 | KL7: 2047 | KM7: 2048 | KN7: 2048 | KO7: 2048 | KP7: 2048 | KQ7: 2048 | KR7: 2048 | KS7: 2048 | KT7: 2048 | KU7: 2048 | KV7: 2048 | KW7: 2048 | KX7: 2048 | KY7: 2049 | KZ7: 2049 | LA7: 2049 | LB7: 2049 | LC7: 2049 | LD7: 2049 | LE7: 2049 | LF7: 2049 | LG7: 2049 | LH7: 2049 | LI7: 2049 | LJ7: 2049 | LK7: 2050 | LL7: 2050 | LM7: 2050 | LN7: 2050 | LO7: 2050 | LP7: 2050 | LQ7: 2050 | LR7: =LR45 -> 2050 | LS7: 2050 | LT7: 2050 | LU7: 2050 | LV7: 2050 | LW7: 2051 | LX7: 2051 | LY7: 2051 | LZ7: 2051 | MA7: 2051 | MB7: 2051 | MC7: 2051 | MD7: 2051 | ME7: 2051 | MF7: 2051 | MG7: 2051 | MH7: 2051 | MI7: 2052 | MJ7: 2052 | MK7: 2052 | ML7: 2052 | MM7: 2052 | MN7: 2052 | MO7: 2052 | MP7: 2052 | MQ7: 2052 | MR7: 2052 | MS7: 2052 | MT7: 2052 | MU7: 2053 | MV7: 2053 | MW7: 2053 | MX7: 2053 | MY7: 2053 | MZ7: 2053 | NA7: 2053 | NB7: 2053 | NC7: 2053 | ND7: 2053 | NE7: 2053 | NF7: 2053 | NG7: 2054 | NH7: 2054 | NI7: 2054 | NJ7: 2054 | NK7: 2054 | NL7: 2054 | NM7: 2054 | NN7: 2054 | NO7: 2054 | NP7: 2054 | NQ7: 2054 | NR7: 2054 | NS7: 2055 | NT7: 2055 | NU7: 2055 | NV7: 2055 | NW7: 2055 | NX7: 2055 | NY7: 2055 | NZ7: 2055 | OA7: 2055 | OB7: 2055 | OC7: 2055 | OD7: =OD45 -> 2055 | OE7: 2056 | OF7: 2056 | OG7: 2056 | OH7: 2056 | OI7: 2056 | OJ7: 2056 | OK7: 2056 | OL7: 2056 | OM7: 2056 | ON7: 2056 | OO7: 2056 | OP7: 2056 | OQ7: 2057 | OR7: 2057 | OS7: 2057 | OT7: 2057 | OU7: 2057 | OV7: 2057 | OW7: 2057 | OX7: 2057 | OY7: 2057 | OZ7: 2057 | PA7: 2057 | PB7: 2057 | PC7: 2058 | PD7: 2058 | PE7: 2058 | PF7: 2058 | PG7: 2058 | PH7: 2058 | PI7: 2058 | PJ7: 2058 | PK7: 2058 | PL7: 2058 | PM7: 2058 | PN7: 2058 | PO7: 2059 | PP7: 2059 | PQ7: 2059 | PR7: 2059 | PS7: 2059 | PT7: 2059 | PU7: 2059 | PV7: 2059 | PW7: 2059 | PX7: 2059 | PY7: 2059 | PZ7: 2059 | QA7: 2060 | QB7: 2060 | QC7: 2060 | QD7: 2060 | QE7: 2060 | QF7: 2060 | QG7: 2060 | QH7: 2060 | QI7: 2060 | QJ7: 2060 | QK7: 2060 | QL7: 2060 | QM7: 2061 | QN7: 2061 | QO7: 2061 | QP7: =QP45 -> 2061 | QQ7: 2061 | QR7: 2061 | QS7: 2061 | QT7: 2061 | QU7: 2061 | QV7: 2061 | QW7: 2061 | QX7: 2061 | QY7: 2062 | QZ7: 2062 | RA7: 2062 | RB7: 2062 | RC7: 2062 | RD7: 2062 | RE7: 2062 | RF7: 2062 | RG7: 2062 | RH7: 2062 | RI7: 2062 | RJ7: 2062 | RK7: 2063 | RL7: 2063 | RM7: 2063 | RN7: 2063 | RO7: 2063 | RP7: 2063 | RQ7: 2063 | RR7: 2063 | RS7: 2063 | RT7: 2063 | RU7: 2063 | RV7: 2063 | RW7: 2064 | RX7: 2064 | RY7: 2064 | RZ7: 2064 | SA7: 2064 | SB7: 2064 | SC7: 2064 | SD7: 2064 | SE7: 2064 | SF7: 2064 | SG7: 2064 | SH7: 2064 | SI7: 2065 | SJ7: 2065 | SK7: 2065 | SL7: 2065 | SM7: 2065 | SN7: 2065 | SO7: 2065
E8: =Time!E$13 -> Model column counter | F8: Constant | G8: Unit | H8: Total | J8: =Time!J$13 -> 1 | K8: =Time!K$13 -> 2 | L8: =Time!L$13 -> 3 | M8: =Time!M$13 -> 4 | N8: =Time!N$13 -> 5 | O8: =Time!O$13 -> 6 | P8: =Time!P$13 -> 7 | Q8: =Time!Q$13 -> 8 | R8: =Time!R$13 -> 9 | S8: =Time!S$13 -> 10 | T8: =Time!T$13 -> 11 | U8: =Time!U$13 -> 12 | V8: =Time!V$13 -> 13 | W8: =Time!W$13 -> 14 | X8: =Time!X$13 -> 15 | Y8: =Time!Y$13 -> 16 | Z8: =Time!Z$13 -> 17 | AA8: =Time!AA$13 -> 18 | AB8: =Time!AB$13 -> 19 | AC8: =Time!AC$13 -> 20 | AD8: =Time!AD$13 -> 21 | AE8: =Time!AE$13 -> 22 | AF8: =Time!AF$13 -> 23 | AG8: =Time!AG$13 -> 24 | AH8: =Time!AH$13 -> 25 | AI8: =Time!AI$13 -> 26 | AJ8: =Time!AJ$13 -> 27 | AK8: =Time!AK$13 -> 28 | AL8: =Time!AL$13 -> 29 | AM8: =Time!AM$13 -> 30 | AN8: =Time!AN$13 -> 31 | AO8: =Time!AO$13 -> 32 | AP8: =Time!AP$13 -> 33 | AQ8: =Time!AQ$13 -> 34 | AR8: =Time!AR$13 -> 35 | AS8: =Time!AS$13 -> 36 | AT8: =Time!AT$13 -> 37 | AU8: =Time!AU$13 -> 38 | AV8: =Time!AV$13 -> 39 | AW8: =Time!AW$13 -> 40 | AX8: =Time!AX$13 -> 41 | AY8: =Time!AY$13 -> 42 | AZ8: =Time!AZ$13 -> 43 | BA8: =Time!BA$13 -> 44 | BB8: =Time!BB$13 -> 45 | BC8: =Time!BC$13 -> 46 | BD8: =Time!BD$13 -> 47 | BE8: =Time!BE$13 -> 48 | BF8: =Time!BF$13 -> 49 | BG8: =Time!BG$13 -> 50 | BH8: =Time!BH$13 -> 51 | BI8: =Time!BI$13 -> 52 | BJ8: =Time!BJ$13 -> 53 | BK8: =Time!BK$13 -> 54 | BL8: =Time!BL$13 -> 55 | BM8: =Time!BM$13 -> 56 | BN8: =Time!BN$13 -> 57 | BO8: =Time!BO$13 -> 58 | BP8: =Time!BP$13 -> 59 | BQ8: =Time!BQ$13 -> 60 | BR8: =Time!BR$13 -> 61 | BS8: =Time!BS$13 -> 62 | BT8: =Time!BT$13 -> 63 | BU8: =Time!BU$13 -> 64 | BV8: =Time!BV$13 -> 65 | BW8: =Time!BW$13 -> 66 | BX8: =Time!BX$13 -> 67 | BY8: =Time!BY$13 -> 68 | BZ8: =Time!BZ$13 -> 69 | CA8: =Time!CA$13 -> 70 | CB8: =Time!CB$13 -> 71 | CC8: =Time!CC$13 -> 72 | CD8: =Time!CD$13 -> 73 | CE8: =Time!CE$13 -> 74 | CF8: =Time!CF$13 -> 75 | CG8: =Time!CG$13 -> 76 | CH8: =Time!CH$13 -> 77 | CI8: =Time!CI$13 -> 78 | CJ8: =Time!CJ$13 -> 79 | CK8: =Time!CK$13 -> 80 | CL8: =Time!CL$13 -> 81 | CM8: =Time!CM$13 -> 82 | CN8: =Time!CN$13 -> 83 | CO8: =Time!CO$13 -> 84 | CP8: =Time!CP$13 -> 85 | CQ8: =Time!CQ$13 -> 86 | CR8: =Time!CR$13 -> 87 | CS8: =Time!CS$13 -> 88 | CT8: =Time!CT$13 -> 89 | CU8: =Time!CU$13 -> 90 | CV8: =Time!CV$13 -> 91 | CW8: =Time!CW$13 -> 92 | CX8: =Time!CX$13 -> 93 | CY8: =Time!CY$13 -> 94 | CZ8: =Time!CZ$13 -> 95 | DA8: =Time!DA$13 -> 96 | DB8: =Time!DB$13 -> 97 | DC8: =Time!DC$13 -> 98 | DD8: =Time!DD$13 -> 99 | DE8: =Time!DE$13 -> 100 | DF8: =Time!DF$13 -> 101 | DG8: =Time!DG$13 -> 102 | DH8: =Time!DH$13 -> 103 | DI8: =Time!DI$13 -> 104 | DJ8: =Time!DJ$13 -> 105 | DK8: =Time!DK$13 -> 106 | DL8: =Time!DL$13 -> 107 | DM8: =Time!DM$13 -> 108 | DN8: =Time!DN$13 -> 109 | DO8: =Time!DO$13 -> 110 | DP8: =Time!DP$13 -> 111 | DQ8: =Time!DQ$13 -> 112 | DR8: =Time!DR$13 -> 113 | DS8: =Time!DS$13 -> 114 | DT8: =Time!DT$13 -> 115 | DU8: =Time!DU$13 -> 116 | DV8: =Time!DV$13 -> 117 | DW8: =Time!DW$13 -> 118 | DX8: =Time!DX$13 -> 119 | DY8: =Time!DY$13 -> 120 | DZ8: =Time!DZ$13 -> 121 | EA8: =Time!EA$13 -> 122 | EB8: =Time!EB$13 -> 123 | EC8: =Time!EC$13 -> 124 | ED8: =Time!ED$13 -> 125 | EE8: =Time!EE$13 -> 126 | EF8: =Time!EF$13 -> 127 | EG8: =Time!EG$13 -> 128 | EH8: =Time!EH$13 -> 129 | EI8: =Time!EI$13 -> 130 | EJ8: =Time!EJ$13 -> 131 | EK8: =Time!EK$13 -> 132 | EL8: =Time!EL$13 -> 133 | EM8: =Time!EM$13 -> 134 | EN8: =Time!EN$13 -> 135 | EO8: =Time!EO$13 -> 136 | EP8: =Time!EP$13 -> 137 | EQ8: =Time!EQ$13 -> 138 | ER8: =Time!ER$13 -> 139 | ES8: =Time!ES$13 -> 140 | ET8: =Time!ET$13 -> 141 | EU8: =Time!EU$13 -> 142 | EV8: =Time!EV$13 -> 143 | EW8: =Time!EW$13 -> 144 | EX8: =Time!EX$13 -> 145 | EY8: =Time!EY$13 -> 146 | EZ8: =Time!EZ$13 -> 147 | FA8: =Time!FA$13 -> 148 | FB8: =Time!FB$13 -> 149 | FC8: =Time!FC$13 -> 150 | FD8: =Time!FD$13 -> 151 | FE8: =Time!FE$13 -> 152 | FF8: =Time!FF$13 -> 153 | FG8: =Time!FG$13 -> 154 | FH8: =Time!FH$13 -> 155 | FI8: =Time!FI$13 -> 156 | FJ8: =Time!FJ$13 -> 157 | FK8: =Time!FK$13 -> 158 | FL8: =Time!FL$13 -> 159 | FM8: =Time!FM$13 -> 160 | FN8: =Time!FN$13 -> 161 | FO8: =Time!FO$13 -> 162 | FP8: =Time!FP$13 -> 163 | FQ8: =Time!FQ$13 -> 164 | FR8: =Time!FR$13 -> 165 | FS8: =Time!FS$13 -> 166 | FT8: =Time!FT$13 -> 167 | FU8: =Time!FU$13 -> 168 | FV8: =Time!FV$13 -> 169 | FW8: =Time!FW$13 -> 170 | FX8: =Time!FX$13 -> 171 | FY8: =Time!FY$13 -> 172 | FZ8: =Time!FZ$13 -> 173 | GA8: =Time!GA$13 -> 174 | GB8: =Time!GB$13 -> 175 | GC8: =Time!GC$13 -> 176 | GD8: =Time!GD$13 -> 177 | GE8: =Time!GE$13 -> 178 | GF8: =Time!GF$13 -> 179 | GG8: =Time!GG$13 -> 180 | GH8: =Time!GH$13 -> 181 | GI8: =Time!GI$13 -> 182 | GJ8: =Time!GJ$13 -> 183 | GK8: =Time!GK$13 -> 184 | GL8: =Time!GL$13 -> 185 | GM8: =Time!GM$13 -> 186 | GN8: =Time!GN$13 -> 187 | GO8: =Time!GO$13 -> 188 | GP8: =Time!GP$13 -> 189 | GQ8: =Time!GQ$13 -> 190 | GR8: =Time!GR$13 -> 191 | GS8: =Time!GS$13 -> 192 | GT8: =Time!GT$13 -> 193 | GU8: =Time!GU$13 -> 194 | GV8: =Time!GV$13 -> 195 | GW8: =Time!GW$13 -> 196 | GX8: =Time!GX$13 -> 197 | GY8: =Time!GY$13 -> 198 | GZ8: =Time!GZ$13 -> 199 | HA8: =Time!HA$13 -> 200 | HB8: =Time!HB$13 -> 201 | HC8: =Time!HC$13 -> 202 | HD8: =Time!HD$13 -> 203 | HE8: =Time!HE$13 -> 204 | HF8: =Time!HF$13 -> 205 | HG8: =Time!HG$13 -> 206 | HH8: =Time!HH$13 -> 207 | HI8: =Time!HI$13 -> 208 | HJ8: =Time!HJ$13 -> 209 | HK8: =Time!HK$13 -> 210 | HL8: =Time!HL$13 -> 211 | HM8: =Time!HM$13 -> 212 | HN8: =Time!HN$13 -> 213 | HO8: =Time!HO$13 -> 214 | HP8: =Time!HP$13 -> 215 | HQ8: =Time!HQ$13 -> 216 | HR8: =Time!HR$13 -> 217 | HS8: =Time!HS$13 -> 218 | HT8: =Time!HT$13 -> 219 | HU8: =Time!HU$13 -> 220 | HV8: =Time!HV$13 -> 221 | HW8: =Time!HW$13 -> 222 | HX8: =Time!HX$13 -> 223 | HY8: =Time!HY$13 -> 224 | HZ8: =Time!HZ$13 -> 225 | IA8: =Time!IA$13 -> 226 | IB8: =Time!IB$13 -> 227 | IC8: =Time!IC$13 -> 228 | ID8: =Time!ID$13 -> 229 | IE8: =Time!IE$13 -> 230 | IF8: =Time!IF$13 -> 231 | IG8: =Time!IG$13 -> 232 | IH8: =Time!IH$13 -> 233 | II8: =Time!II$13 -> 234 | IJ8: =Time!IJ$13 -> 235 | IK8: =Time!IK$13 -> 236 | IL8: =Time!IL$13 -> 237 | IM8: =Time!IM$13 -> 238 | IN8: =Time!IN$13 -> 239 | IO8: =Time!IO$13 -> 240 | IP8: =Time!IP$13 -> 241 | IQ8: =Time!IQ$13 -> 242 | IR8: =Time!IR$13 -> 243 | IS8: =Time!IS$13 -> 244 | IT8: =Time!IT$13 -> 245 | IU8: =Time!IU$13 -> 246 | IV8: =Time!IV$13 -> 247 | IW8: =Time!IW$13 -> 248 | IX8: =Time!IX$13 -> 249 | IY8: =Time!IY$13 -> 250 | IZ8: =Time!IZ$13 -> 251 | JA8: =Time!JA$13 -> 252 | JB8: =Time!JB$13 -> 253 | JC8: =Time!JC$13 -> 254 | JD8: =Time!JD$13 -> 255 | JE8: =Time!JE$13 -> 256 | JF8: =Time!JF$13 -> 257 | JG8: =Time!JG$13 -> 258 | JH8: =Time!JH$13 -> 259 | JI8: =Time!JI$13 -> 260 | JJ8: =Time!JJ$13 -> 261 | JK8: =Time!JK$13 -> 262 | JL8: =Time!JL$13 -> 263 | JM8: =Time!JM$13 -> 264 | JN8: =Time!JN$13 -> 265 | JO8: =Time!JO$13 -> 266 | JP8: =Time!JP$13 -> 267 | JQ8: =Time!JQ$13 -> 268 | JR8: =Time!JR$13 -> 269 | JS8: =Time!JS$13 -> 270 | JT8: =Time!JT$13 -> 271 | JU8: =Time!JU$13 -> 272 | JV8: =Time!JV$13 -> 273 | JW8: =Time!JW$13 -> 274 | JX8: =Time!JX$13 -> 275 | JY8: =Time!JY$13 -> 276 | JZ8: =Time!JZ$13 -> 277 | KA8: =Time!KA$13 -> 278 | KB8: =Time!KB$13 -> 279 | KC8: =Time!KC$13 -> 280 | KD8: =Time!KD$13 -> 281 | KE8: =Time!KE$13 -> 282 | KF8: =Time!KF$13 -> 283 | KG8: =Time!KG$13 -> 284 | KH8: =Time!KH$13 -> 285 | KI8: =Time!KI$13 -> 286 | KJ8: =Time!KJ$13 -> 287 | KK8: =Time!KK$13 -> 288 | KL8: =Time!KL$13 -> 289 | KM8: =Time!KM$13 -> 290 | KN8: =Time!KN$13 -> 291 | KO8: =Time!KO$13 -> 292 | KP8: =Time!KP$13 -> 293 | KQ8: =Time!KQ$13 -> 294 | KR8: =Time!KR$13 -> 295 | KS8: =Time!KS$13 -> 296 | KT8: =Time!KT$13 -> 297 | KU8: =Time!KU$13 -> 298 | KV8: =Time!KV$13 -> 299 | KW8: =Time!KW$13 -> 300 | KX8: =Time!KX$13 -> 301 | KY8: =Time!KY$13 -> 302 | KZ8: =Time!KZ$13 -> 303 | LA8: =Time!LA$13 -> 304 | LB8: =Time!LB$13 -> 305 | LC8: =Time!LC$13 -> 306 | LD8: =Time!LD$13 -> 307 | LE8: =Time!LE$13 -> 308 | LF8: =Time!LF$13 -> 309 | LG8: =Time!LG$13 -> 310 | LH8: =Time!LH$13 -> 311 | LI8: =Time!LI$13 -> 312 | LJ8: =Time!LJ$13 -> 313 | LK8: =Time!LK$13 -> 314 | LL8: =Time!LL$13 -> 315 | LM8: =Time!LM$13 -> 316 | LN8: =Time!LN$13 -> 317 | LO8: =Time!LO$13 -> 318 | LP8: =Time!LP$13 -> 319 | LQ8: =Time!LQ$13 -> 320 | LR8: =Time!LR$13 -> 321 | LS8: =Time!LS$13 -> 322 | LT8: =Time!LT$13 -> 323 | LU8: =Time!LU$13 -> 324 | LV8: =Time!LV$13 -> 325 | LW8: =Time!LW$13 -> 326 | LX8: =Time!LX$13 -> 327 | LY8: =Time!LY$13 -> 328 | LZ8: =Time!LZ$13 -> 329 | MA8: =Time!MA$13 -> 330 | MB8: =Time!MB$13 -> 331 | MC8: =Time!MC$13 -> 332 | MD8: =Time!MD$13 -> 333 | ME8: =Time!ME$13 -> 334 | MF8: =Time!MF$13 -> 335 | MG8: =Time!MG$13 -> 336 | MH8: =Time!MH$13 -> 337 | MI8: =Time!MI$13 -> 338 | MJ8: =Time!MJ$13 -> 339 | MK8: =Time!MK$13 -> 340 | ML8: =Time!ML$13 -> 341 | MM8: =Time!MM$13 -> 342 | MN8: =Time!MN$13 -> 343 | MO8: =Time!MO$13 -> 344 | MP8: =Time!MP$13 -> 345 | MQ8: =Time!MQ$13 -> 346 | MR8: =Time!MR$13 -> 347 | MS8: =Time!MS$13 -> 348 | MT8: =Time!MT$13 -> 349 | MU8: =Time!MU$13 -> 350 | MV8: =Time!MV$13 -> 351 | MW8: =Time!MW$13 -> 352 | MX8: =Time!MX$13 -> 353 | MY8: =Time!MY$13 -> 354 | MZ8: =Time!MZ$13 -> 355 | NA8: =Time!NA$13 -> 356 | NB8: =Time!NB$13 -> 357 | NC8: =Time!NC$13 -> 358 | ND8: =Time!ND$13 -> 359 | NE8: =Time!NE$13 -> 360 | NF8: =Time!NF$13 -> 361 | NG8: =Time!NG$13 -> 362 | NH8: =Time!NH$13 -> 363 | NI8: =Time!NI$13 -> 364 | NJ8: =Time!NJ$13 -> 365 | NK8: =Time!NK$13 -> 366 | NL8: =Time!NL$13 -> 367 | NM8: =Time!NM$13 -> 368 | NN8: =Time!NN$13 -> 369 | NO8: =Time!NO$13 -> 370 | NP8: =Time!NP$13 -> 371 | NQ8: =Time!NQ$13 -> 372 | NR8: =Time!NR$13 -> 373 | NS8: =Time!NS$13 -> 374 | NT8: =Time!NT$13 -> 375 | NU8: =Time!NU$13 -> 376 | NV8: =Time!NV$13 -> 377 | NW8: =Time!NW$13 -> 378 | NX8: =Time!NX$13 -> 379 | NY8: =Time!NY$13 -> 380 | NZ8: =Time!NZ$13 -> 381 | OA8: =Time!OA$13 -> 382 | OB8: =Time!OB$13 -> 383 | OC8: =Time!OC$13 -> 384 | OD8: =Time!OD$13 -> 385 | OE8: =Time!OE$13 -> 386 | OF8: =Time!OF$13 -> 387 | OG8: =Time!OG$13 -> 388 | OH8: =Time!OH$13 -> 389 | OI8: =Time!OI$13 -> 390 | OJ8: =Time!OJ$13 -> 391 | OK8: =Time!OK$13 -> 392 | OL8: =Time!OL$13 -> 393 | OM8: =Time!OM$13 -> 394 | ON8: =Time!ON$13 -> 395 | OO8: =Time!OO$13 -> 396 | OP8: =Time!OP$13 -> 397 | OQ8: =Time!OQ$13 -> 398 | OR8: =Time!OR$13 -> 399 | OS8: =Time!OS$13 -> 400 | OT8: =Time!OT$13 -> 401 | OU8: =Time!OU$13 -> 402 | OV8: =Time!OV$13 -> 403 | OW8: =Time!OW$13 -> 404 | OX8: =Time!OX$13 -> 405 | OY8: =Time!OY$13 -> 406 | OZ8: =Time!OZ$13 -> 407 | PA8: =Time!PA$13 -> 408 | PB8: =Time!PB$13 -> 409 | PC8: =Time!PC$13 -> 410 | PD8: =Time!PD$13 -> 411 | PE8: =Time!PE$13 -> 412 | PF8: =Time!PF$13 -> 413 | PG8: =Time!PG$13 -> 414 | PH8: =Time!PH$13 -> 415 | PI8: =Time!PI$13 -> 416 | PJ8: =Time!PJ$13 -> 417 | PK8: =Time!PK$13 -> 418 | PL8: =Time!PL$13 -> 419 | PM8: =Time!PM$13 -> 420 | PN8: =Time!PN$13 -> 421 | PO8: =Time!PO$13 -> 422 | PP8: =Time!PP$13 -> 423 | PQ8: =Time!PQ$13 -> 424 | PR8: =Time!PR$13 -> 425 | PS8: =Time!PS$13 -> 426 | PT8: =Time!PT$13 -> 427 | PU8: =Time!PU$13 -> 428 | PV8: =Time!PV$13 -> 429 | PW8: =Time!PW$13 -> 430 | PX8: =Time!PX$13 -> 431 | PY8: =Time!PY$13 -> 432 | PZ8: =Time!PZ$13 -> 433 | QA8: =Time!QA$13 -> 434 | QB8: =Time!QB$13 -> 435 | QC8: =Time!QC$13 -> 436 | QD8: =Time!QD$13 -> 437 | QE8: =Time!QE$13 -> 438 | QF8: =Time!QF$13 -> 439 | QG8: =Time!QG$13 -> 440 | QH8: =Time!QH$13 -> 441 | QI8: =Time!QI$13 -> 442 | QJ8: =Time!QJ$13 -> 443 | QK8: =Time!QK$13 -> 444 | QL8: =Time!QL$13 -> 445 | QM8: =Time!QM$13 -> 446 | QN8: =Time!QN$13 -> 447 | QO8: =Time!QO$13 -> 448 | QP8: =Time!QP$13 -> 449 | QQ8: =Time!QQ$13 -> 450 | QR8: =Time!QR$13 -> 451 | QS8: =Time!QS$13 -> 452 | QT8: =Time!QT$13 -> 453 | QU8: =Time!QU$13 -> 454 | QV8: =Time!QV$13 -> 455 | QW8: =Time!QW$13 -> 456 | QX8: =Time!QX$13 -> 457 | QY8: =Time!QY$13 -> 458 | QZ8: =Time!QZ$13 -> 459 | RA8: =Time!RA$13 -> 460 | RB8: =Time!RB$13 -> 461 | RC8: =Time!RC$13 -> 462 | RD8: =Time!RD$13 -> 463 | RE8: =Time!RE$13 -> 464 | RF8: =Time!RF$13 -> 465 | RG8: =Time!RG$13 -> 466 | RH8: =Time!RH$13 -> 467 | RI8: =Time!RI$13 -> 468 | RJ8: =Time!RJ$13 -> 469 | RK8: =Time!RK$13 -> 470 | RL8: =Time!RL$13 -> 471 | RM8: =Time!RM$13 -> 472 | RN8: =Time!RN$13 -> 473 | RO8: =Time!RO$13 -> 474 | RP8: =Time!RP$13 -> 475 | RQ8: =Time!RQ$13 -> 476 | RR8: =Time!RR$13 -> 477 | RS8: =Time!RS$13 -> 478 | RT8: =Time!RT$13 -> 479 | RU8: =Time!RU$13 -> 480 | RV8: =Time!RV$13 -> 481 | RW8: =Time!RW$13 -> 482 | RX8: =Time!RX$13 -> 483 | RY8: =Time!RY$13 -> 484 | RZ8: =Time!RZ$13 -> 485 | SA8: =Time!SA$13 -> 486 | SB8: =Time!SB$13 -> 487 | SC8: =Time!SC$13 -> 488 | SD8: =Time!SD$13 -> 489 | SE8: =Time!SE$13 -> 490 | SF8: =Time!SF$13 -> 491 | SG8: =Time!SG$13 -> 492 | SH8: =Time!SH$13 -> 493 | SI8: =Time!SI$13 -> 494 | SJ8: =Time!SJ$13 -> 495 | SK8: =Time!SK$13 -> 496 | SL8: =Time!SL$13 -> 497 | SM8: =Time!SM$13 -> 498 | SN8: =Time!SN$13 -> 499 | SO8: =Time!SO$13 -> 500
A10: TIME RULER
B12: First model column
E13: Model column counter | G13: counter | J13: =I13 + 1 -> 1 | K13: 2 | L13: 3 | M13: 4 | N13: 5 | O13: 6 | P13: 7 | Q13: 8 | R13: 9 | S13: 10 | T13: 11 | U13: 12 | V13: 13 | W13: 14 | X13: 15 | Y13: 16 | Z13: 17 | AA13: 18 | AB13: 19 | AC13: 20 | AD13: 21 | AE13: 22 | AF13: 23 | AG13: 24 | AH13: 25 | AI13: 26 | AJ13: 27 | AK13: 28 | AL13: 29 | AM13: 30 | AN13: 31 | AO13: 32 | AP13: 33 | AQ13: 34 | AR13: 35 | AS13: 36 | AT13: 37 | AU13: 38 | AV13: 39 | AW13: 40 | AX13: 41 | AY13: 42 | AZ13: 43 | BA13: 44 | BB13: 45 | BC13: 46 | BD13: 47 | BE13: 48 | BF13: 49 | BG13: 50 | BH13: 51 | BI13: 52 | BJ13: 53 | BK13: 54 | BL13: 55 | BM13: 56 | BN13: 57 | BO13: 58 | BP13: 59 | BQ13: 60 | BR13: 61 | BS13: 62 | BT13: 63 | BU13: 64 | BV13: =BU13 + 1 -> 65 | BW13: 66 | BX13: 67 | BY13: 68 | BZ13: 69 | CA13: 70 | CB13: 71 | CC13: 72 | CD13: 73 | CE13: 74 | CF13: 75 | CG13: 76 | CH13: 77 | CI13: 78 | CJ13: 79 | CK13: 80 | CL13: 81 | CM13: 82 | CN13: 83 | CO13: 84 | CP13: 85 | CQ13: 86 | CR13: 87 | CS13: 88 | CT13: 89 | CU13: 90 | CV13: 91 | CW13: 92 | CX13: 93 | CY13: 94 | CZ13: 95 | DA13: 96 | DB13: 97 | DC13: 98 | DD13: 99 | DE13: 100 | DF13: 101 | DG13: 102 | DH13: 103 | DI13: 104 | DJ13: 105 | DK13: 106 | DL13: 107 | DM13: 108 | DN13: 109 | DO13: 110 | DP13: 111 | DQ13: 112 | DR13: 113 | DS13: 114 | DT13: 115 | DU13: 116 | DV13: 117 | DW13: 118 | DX13: 119 | DY13: 120 | DZ13: 121 | EA13: 122 | EB13: 123 | EC13: 124 | ED13: 125 | EE13: 126 | EF13: 127 | EG13: 128 | EH13: =EG13 + 1 -> 129 | EI13: 130 | EJ13: 131 | EK13: 132 | EL13: 133 | EM13: 134 | EN13: 135 | EO13: 136 | EP13: 137 | EQ13: 138 | ER13: 139 | ES13: 140 | ET13: 141 | EU13: 142 | EV13: 143 | EW13: 144 | EX13: 145 | EY13: 146 | EZ13: 147 | FA13: 148 | FB13: 149 | FC13: 150 | FD13: 151 | FE13: 152 | FF13: 153 | FG13: 154 | FH13: 155 | FI13: 156 | FJ13: 157 | FK13: 158 | FL13: 159 | FM13: 160 | FN13: 161 | FO13: 162 | FP13: 163 | FQ13: 164 | FR13: 165 | FS13: 166 | FT13: 167 | FU13: 168 | FV13: 169 | FW13: 170 | FX13: 171 | FY13: 172 | FZ13: 173 | GA13: 174 | GB13: 175 | GC13: 176 | GD13: 177 | GE13: 178 | GF13: 179 | GG13: 180 | GH13: =GG13 + 1 -> 181 | GI13: 182 | GJ13: =GI13 + 1 -> 183 | GK13: 184 | GL13: 185 | GM13: 186 | GN13: 187 | GO13: 188 | GP13: 189 | GQ13: 190 | GR13: 191 | GS13: 192 | GT13: 193 | GU13: 194 | GV13: 195 | GW13: 196 | GX13: 197 | GY13: 198 | GZ13: 199 | HA13: 200 | HB13: 201 | HC13: 202 | HD13: 203 | HE13: 204 | HF13: 205 | HG13: 206 | HH13: 207 | HI13: 208 | HJ13: 209 | HK13: 210 | HL13: 211 | HM13: 212 | HN13: 213 | HO13: 214 | HP13: 215 | HQ13: 216 | HR13: 217 | HS13: 218 | HT13: 219 | HU13: 220 | HV13: 221 | HW13: 222 | HX13: 223 | HY13: 224 | HZ13: 225 | IA13: 226 | IB13: 227 | IC13: 228 | ID13: 229 | IE13: 230 | IF13: 231 | IG13: 232 | IH13: 233 | II13: 234 | IJ13: 235 | IK13: 236 | IL13: 237 | IM13: 238 | IN13: 239 | IO13: 240 | IP13: 241 | IQ13: 242 | IR13: 243 | IS13: 244 | IT13: 245 | IU13: 246 | IV13: =IU13 + 1 -> 247 | IW13: 248 | IX13: 249 | IY13: 250 | IZ13: 251 | JA13: 252 | JB13: 253 | JC13: 254 | JD13: 255 | JE13: 256 | JF13: 257 | JG13: 258 | JH13: 259 | JI13: 260 | JJ13: 261 | JK13: 262 | JL13: 263 | JM13: 264 | JN13: 265 | JO13: 266 | JP13: 267 | JQ13: 268 | JR13: 269 | JS13: 270 | JT13: 271 | JU13: 272 | JV13: 273 | JW13: 274 | JX13: 275 | JY13: 276 | JZ13: 277 | KA13: 278 | KB13: 279 | KC13: 280 | KD13: 281 | KE13: 282 | KF13: 283 | KG13: 284 | KH13: 285 | KI13: 286 | KJ13: 287 | KK13: 288 | KL13: 289 | KM13: 290 | KN13: 291 | KO13: 292 | KP13: 293 | KQ13: 294 | KR13: 295 | KS13: 296 | KT13: 297 | KU13: 298 | KV13: 299 | KW13: 300 | KX13: 301 | KY13: 302 | KZ13: 303 | LA13: 304 | LB13: 305 | LC13: 306 | LD13: 307 | LE13: 308 | LF13: 309 | LG13: 310 | LH13: =LG13 + 1 -> 311 | LI13: 312 | LJ13: 313 | LK13: 314 | LL13: 315 | LM13: 316 | LN13: 317 | LO13: 318 | LP13: 319 | LQ13: 320 | LR13: 321 | LS13: 322 | LT13: 323 | LU13: 324 | LV13: 325 | LW13: 326 | LX13: 327 | LY13: 328 | LZ13: 329 | MA13: 330 | MB13: 331 | MC13: 332 | MD13: 333 | ME13: 334 | MF13: 335 | MG13: 336 | MH13: 337 | MI13: 338 | MJ13: 339 | MK13: 340 | ML13: 341 | MM13: 342 | MN13: 343 | MO13: 344 | MP13: 345 | MQ13: 346 | MR13: 347 | MS13: 348 | MT13: 349 | MU13: 350 | MV13: 351 | MW13: 352 | MX13: 353 | MY13: 354 | MZ13: 355 | NA13: 356 | NB13: 357 | NC13: 358 | ND13: 359 | NE13: 360 | NF13: 361 | NG13: 362 | NH13: 363 | NI13: 364 | NJ13: 365 | NK13: 366 | NL13: 367 | NM13: 368 | NN13: 369 | NO13: 370 | NP13: 371 | NQ13: 372 | NR13: 373 | NS13: 374 | NT13: =NS13 + 1 -> 375 | NU13: 376 | NV13: 377 | NW13: 378 | NX13: 379 | NY13: 380 | NZ13: 381 | OA13: 382 | OB13: 383 | OC13: 384 | OD13: 385 | OE13: 386 | OF13: 387 | OG13: 388 | OH13: 389 | OI13: 390 | OJ13: 391 | OK13: 392 | OL13: 393 | OM13: 394 | ON13: 395 | OO13: 396 | OP13: 397 | OQ13: 398 | OR13: 399 | OS13: 400 | OT13: 401 | OU13: 402 | OV13: 403 | OW13: 404 | OX13: 405 | OY13: 406 | OZ13: 407 | PA13: 408 | PB13: 409 | PC13: 410 | PD13: 411 | PE13: 412 | PF13: 413 | PG13: 414 | PH13: 415 | PI13: 416 | PJ13: 417 | PK13: 418 | PL13: 419 | PM13: 420 | PN13: 421 | PO13: 422 | PP13: 423 | PQ13: 424 | PR13: 425 | PS13: 426 | PT13: 427 | PU13: 428 | PV13: 429 | PW13: 430 | PX13: 431 | PY13: 432 | PZ13: 433 | QA13: 434 | QB13: 435 | QC13: 436 | QD13: 437 | QE13: 438 | QF13: =QE13 + 1 -> 439 | QG13: 440 | QH13: 441 | QI13: 442 | QJ13: 443 | QK13: 444 | QL13: 445 | QM13: 446 | QN13: 447 | QO13: 448 | QP13: 449 | QQ13: 450 | QR13: 451 | QS13: 452 | QT13: 453 | QU13: 454 | QV13: 455 | QW13: 456 | QX13: 457 | QY13: 458 | QZ13: 459 | RA13: 460 | RB13: 461 | RC13: 462 | RD13: 463 | RE13: 464 | RF13: 465 | RG13: 466 | RH13: 467 | RI13: 468 | RJ13: 469 | RK13: 470 | RL13: 471 | RM13: 472 | RN13: 473 | RO13: 474 | RP13: 475 | RQ13: 476 | RR13: 477 | RS13: 478 | RT13: 479 | RU13: 480 | RV13: 481 | RW13: 482 | RX13: 483 | RY13: 484 | RZ13: 485 | SA13: 486 | SB13: 487 | SC13: 488 | SD13: 489 | SE13: 490 | SF13: 491 | SG13: 492 | SH13: 493 | SI13: 494 | SJ13: 495 | SK13: 496 | SL13: 497 | SM13: 498 | SN13: 499 | SO13: 500
E14: Model column total | F14: =MAX(J13:PU13) -> 428 | G14: columns
E16: =E$13 -> Model column counter | F16: 0 | G16: counter | H16: 0 | I16: 0 | J16: 1 | K16: 2 | L16: 3 | M16: 4 | N16: 5 | O16: 6 | P16: 7 | Q16: 8 | R16: 9 | S16: 10 | T16: 11 | U16: 12 | V16: 13 | W16: 14 | X16: 15 | Y16: 16 | Z16: 17 | AA16: 18 | AB16: 19 | AC16: 20 | AD16: 21 | AE16: 22 | AF16: 23 | AG16: 24 | AH16: 25 | AI16: 26 | AJ16: 27 | AK16: 28 | AL16: 29 | AM16: 30 | AN16: 31 | AO16: 32 | AP16: 33 | AQ16: 34 | AR16: 35 | AS16: 36 | AT16: 37 | AU16: 38 | AV16: 39 | AW16: 40 | AX16: 41 | AY16: 42 | AZ16: 43 | BA16: 44 | BB16: 45 | BC16: 46 | BD16: 47 | BE16: 48 | BF16: 49 | BG16: 50 | BH16: 51 | BI16: 52 | BJ16: 53 | BK16: 54 | BL16: 55 | BM16: 56 | BN16: 57 | BO16: 58 | BP16: 59 | BQ16: =BQ$13 -> 60 | BR16: 61 | BS16: 62 | BT16: 63 | BU16: 64 | BV16: 65 | BW16: 66 | BX16: 67 | BY16: 68 | BZ16: 69 | CA16: 70 | CB16: 71 | CC16: 72 | CD16: 73 | CE16: 74 | CF16: 75 | CG16: 76 | CH16: 77 | CI16: 78 | CJ16: 79 | CK16: 80 | CL16: 81 | CM16: 82 | CN16: 83 | CO16: 84 | CP16: 85 | CQ16: 86 | CR16: 87 | CS16: 88 | CT16: 89 | CU16: 90 | CV16: 91 | CW16: 92 | CX16: 93 | CY16: 94 | CZ16: 95 | DA16: 96 | DB16: 97 | DC16: 98 | DD16: 99 | DE16: 100 | DF16: 101 | DG16: 102 | DH16: 103 | DI16: 104 | DJ16: 105 | DK16: 106 | DL16: 107 | DM16: 108 | DN16: 109 | DO16: 110 | DP16: 111 | DQ16: 112 | DR16: 113 | DS16: 114 | DT16: 115 | DU16: 116 | DV16: 117 | DW16: 118 | DX16: 119 | DY16: 120 | DZ16: 121 | EA16: 122 | EB16: 123 | EC16: =EC$13 -> 124 | ED16: 125 | EE16: 126 | EF16: 127 | EG16: 128 | EH16: 129 | EI16: 130 | EJ16: 131 | EK16: 132 | EL16: 133 | EM16: 134 | EN16: 135 | EO16: 136 | EP16: 137 | EQ16: 138 | ER16: 139 | ES16: 140 | ET16: 141 | EU16: 142 | EV16: 143 | EW16: 144 | EX16: 145 | EY16: 146 | EZ16: 147 | FA16: 148 | FB16: 149 | FC16: 150 | FD16: 151 | FE16: 152 | FF16: 153 | FG16: 154 | FH16: 155 | FI16: 156 | FJ16: 157 | FK16: 158 | FL16: 159 | FM16: 160 | FN16: 161 | FO16: 162 | FP16: 163 | FQ16: 164 | FR16: 165 | FS16: 166 | FT16: 167 | FU16: 168 | FV16: 169 | FW16: 170 | FX16: 171 | FY16: 172 | FZ16: 173 | GA16: 174 | GB16: 175 | GC16: 176 | GD16: 177 | GE16: 178 | GF16: 179 | GG16: 180 | GH16: 181 | GI16: 182 | GJ16: =GJ$13 -> 183 | GK16: 184 | GL16: 185 | GM16: 186 | GN16: 187 | GO16: 188 | GP16: 189 | GQ16: 190 | GR16: 191 | GS16: 192 | GT16: 193 | GU16: 194 | GV16: 195 | GW16: 196 | GX16: 197 | GY16: 198 | GZ16: 199 | HA16: 200 | HB16: 201 | HC16: 202 | HD16: 203 | HE16: 204 | HF16: 205 | HG16: 206 | HH16: 207 | HI16: 208 | HJ16: 209 | HK16: 210 | HL16: 211 | HM16: 212 | HN16: 213 | HO16: 214 | HP16: 215 | HQ16: 216 | HR16: 217 | HS16: 218 | HT16: 219 | HU16: 220 | HV16: 221 | HW16: 222 | HX16: 223 | HY16: 224 | HZ16: 225 | IA16: 226 | IB16: 227 | IC16: 228 | ID16: 229 | IE16: 230 | IF16: 231 | IG16: 232 | IH16: 233 | II16: 234 | IJ16: 235 | IK16: 236 | IL16: 237 | IM16: 238 | IN16: 239 | IO16: 240 | IP16: 241 | IQ16: 242 | IR16: 243 | IS16: 244 | IT16: 245 | IU16: 246 | IV16: =IV$13 -> 247 | IW16: 248 | IX16: 249 | IY16: 250 | IZ16: 251 | JA16: 252 | JB16: 253 | JC16: 254 | JD16: 255 | JE16: 256 | JF16: 257 | JG16: 258 | JH16: 259 | JI16: 260 | JJ16: 261 | JK16: 262 | JL16: 263 | JM16: 264 | JN16: 265 | JO16: 266 | JP16: 267 | JQ16: 268 | JR16: 269 | JS16: 270 | JT16: 271 | JU16: 272 | JV16: 273 | JW16: 274 | JX16: 275 | JY16: 276 | JZ16: 277 | KA16: 278 | KB16: 279 | KC16: 280 | KD16: 281 | KE16: 282 | KF16: 283 | KG16: 284 | KH16: 285 | KI16: 286 | KJ16: 287 | KK16: 288 | KL16: 289 | KM16: 290 | KN16: 291 | KO16: 292 | KP16: 293 | KQ16: 294 | KR16: 295 | KS16: 296 | KT16: 297 | KU16: 298 | KV16: 299 | KW16: 300 | KX16: 301 | KY16: 302 | KZ16: 303 | LA16: 304 | LB16: 305 | LC16: 306 | LD16: 307 | LE16: 308 | LF16: 309 | LG16: 310 | LH16: =LH$13 -> 311 | LI16: 312 | LJ16: 313 | LK16: 314 | LL16: 315 | LM16: 316 | LN16: 317 | LO16: 318 | LP16: 319 | LQ16: 320 | LR16: 321 | LS16: 322 | LT16: 323 | LU16: 324 | LV16: 325 | LW16: 326 | LX16: 327 | LY16: 328 | LZ16: 329 | MA16: 330 | MB16: 331 | MC16: 332 | MD16: 333 | ME16: 334 | MF16: 335 | MG16: 336 | MH16: 337 | MI16: 338 | MJ16: 339 | MK16: 340 | ML16: 341 | MM16: 342 | MN16: 343 | MO16: 344 | MP16: 345 | MQ16: 346 | MR16: 347 | MS16: 348 | MT16: 349 | MU16: 350 | MV16: 351 | MW16: 352 | MX16: 353 | MY16: 354 | MZ16: 355 | NA16: 356 | NB16: 357 | NC16: 358 | ND16: 359 | NE16: 360 | NF16: 361 | NG16: 362 | NH16: 363 | NI16: 364 | NJ16: 365 | NK16: 366 | NL16: 367 | NM16: 368 | NN16: 369 | NO16: 370 | NP16: 371 | NQ16: 372 | NR16: 373 | NS16: 374 | NT16: =NT$13 -> 375 | NU16: 376 | NV16: 377 | NW16: 378 | NX16: 379 | NY16: 380 | NZ16: 381 | OA16: 382 | OB16: 383 | OC16: 384 | OD16: 385 | OE16: 386 | OF16: 387 | OG16: 388 | OH16: 389 | OI16: 390 | OJ16: 391 | OK16: 392 | OL16: 393 | OM16: 394 | ON16: 395 | OO16: 396 | OP16: 397 | OQ16: 398 | OR16: 399 | OS16: 400 | OT16: 401 | OU16: 402 | OV16: 403 | OW16: 404 | OX16: 405 | OY16: 406 | OZ16: 407 | PA16: 408 | PB16: 409 | PC16: 410 | PD16: 411 | PE16: 412 | PF16: 413 | PG16: 414 | PH16: 415 | PI16: 416 | PJ16: 417 | PK16: 418 | PL16: 419 | PM16: 420 | PN16: 421 | PO16: 422 | PP16: 423 | PQ16: 424 | PR16: 425 | PS16: 426 | PT16: 427 | PU16: 428 | PV16: 429 | PW16: 430 | PX16: 431 | PY16: 432 | PZ16: 433 | QA16: 434 | QB16: 435 | QC16: 436 | QD16: 437 | QE16: 438 | QF16: =QF$13 -> 439 | QG16: 440 | QH16: 441 | QI16: 442 | QJ16: 443 | QK16: 444 | QL16: 445 | QM16: 446 | QN16: 447 | QO16: 448 | QP16: 449 | QQ16: 450 | QR16: 451 | QS16: 452 | QT16: 453 | QU16: 454 | QV16: 455 | QW16: 456 | QX16: 457 | QY16: 458 | QZ16: 459 | RA16: 460 | RB16: 461 | RC16: 462 | RD16: 463 | RE16: 464 | RF16: 465 | RG16: 466 | RH16: 467 | RI16: 468 | RJ16: 469 | RK16: 470 | RL16: 471 | RM16: 472 | RN16: 473 | RO16: 474 | RP16: 475 | RQ16: 476 | RR16: 477 | RS16: 478 | RT16: 479 | RU16: 480 | RV16: 481 | RW16: 482 | RX16: 483 | RY16: 484 | RZ16: 485 | SA16: 486 | SB16: 487 | SC16: 488 | SD16: 489 | SE16: 490 | SF16: 491 | SG16: 492 | SH16: 493 | SI16: 494 | SJ16: 495 | SK16: 496 | SL16: 497 | SM16: 498 | SN16: 499 | SO16: 500
E17: First model column flag | G17: flag | H17: =SUM(J17:GJ17) -> 1 | J17: =IF(J16 = 1, 1, 0) -> 1 | K17: 0 | L17: 0 | M17: 0 | N17: 0 | O17: 0 | P17: 0 | Q17: 0 | R17: 0 | S17: 0 | T17: 0 | U17: 0 | V17: 0 | W17: 0 | X17: 0 | Y17: 0 | Z17: 0 | AA17: 0 | AB17: 0 | AC17: 0 | AD17: 0 | AE17: 0 | AF17: 0 | AG17: 0 | AH17: 0 | AI17: 0 | AJ17: 0 | AK17: 0 | AL17: 0 | AM17: 0 | AN17: 0 | AO17: 0 | AP17: 0 | AQ17: 0 | AR17: 0 | AS17: 0 | AT17: 0 | AU17: 0 | AV17: 0 | AW17: 0 | AX17: 0 | AY17: 0 | AZ17: 0 | BA17: 0 | BB17: 0 | BC17: 0 | BD17: 0 | BE17: 0 | BF17: 0 | BG17: 0 | BH17: 0 | BI17: 0 | BJ17: 0 | BK17: 0 | BL17: 0 | BM17: 0 | BN17: 0 | BO17: 0 | BP17: 0 | BQ17: 0 | BR17: 0 | BS17: 0 | BT17: 0 | BU17: 0 | BV17: =IF(BV16 = 1, 1, 0) -> 0 | BW17: 0 | BX17: 0 | BY17: 0 | BZ17: 0 | CA17: 0 | CB17: 0 | CC17: 0 | CD17: 0 | CE17: 0 | CF17: 0 | CG17: 0 | CH17: 0 | CI17: 0 | CJ17: 0 | CK17: 0 | CL17: 0 | CM17: 0 | CN17: 0 | CO17: 0 | CP17: 0 | CQ17: 0 | CR17: 0 | CS17: 0 | CT17: 0 | CU17: 0 | CV17: 0 | CW17: 0 | CX17: 0 | CY17: 0 | CZ17: 0 | DA17: 0 | DB17: 0 | DC17: 0 | DD17: 0 | DE17: 0 | DF17: 0 | DG17: 0 | DH17: 0 | DI17: 0 | DJ17: 0 | DK17: 0 | DL17: 0 | DM17: 0 | DN17: 0 | DO17: 0 | DP17: 0 | DQ17: 0 | DR17: 0 | DS17: 0 | DT17: 0 | DU17: 0 | DV17: 0 | DW17: 0 | DX17: 0 | DY17: 0 | DZ17: 0 | EA17: 0 | EB17: 0 | EC17: 0 | ED17: 0 | EE17: 0 | EF17: 0 | EG17: 0 | EH17: =IF(EH16 = 1, 1, 0) -> 0 | EI17: 0 | EJ17: 0 | EK17: 0 | EL17: 0 | EM17: 0 | EN17: 0 | EO17: 0 | EP17: 0 | EQ17: 0 | ER17: 0 | ES17: 0 | ET17: 0 | EU17: 0 | EV17: 0 | EW17: 0 | EX17: 0 | EY17: 0 | EZ17: 0 | FA17: 0 | FB17: 0 | FC17: 0 | FD17: 0 | FE17: 0 | FF17: 0 | FG17: 0 | FH17: 0 | FI17: 0 | FJ17: 0 | FK17: 0 | FL17: 0 | FM17: 0 | FN17: 0 | FO17: 0 | FP17: 0 | FQ17: 0 | FR17: 0 | FS17: 0 | FT17: 0 | FU17: 0 | FV17: 0 | FW17: 0 | FX17: 0 | FY17: 0 | FZ17: 0 | GA17: 0 | GB17: 0 | GC17: 0 | GD17: 0 | GE17: 0 | GF17: 0 | GG17: 0 | GH17: =IF(GH16 = 1, 1, 0) -> 0 | GI17: 0 | GJ17: =IF(GJ16 = 1, 1, 0) -> 0 | GK17: 0 | GL17: 0 | GM17: 0 | GN17: 0 | GO17: 0 | GP17: 0 | GQ17: 0 | GR17: 0 | GS17: 0 | GT17: 0 | GU17: 0 | GV17: 0 | GW17: 0 | GX17: 0 | GY17: 0 | GZ17: 0 | HA17: 0 | HB17: 0 | HC17: 0 | HD17: 0 | HE17: 0 | HF17: 0 | HG17: 0 | HH17: 0 | HI17: 0 | HJ17: 0 | HK17: 0 | HL17: 0 | HM17: 0 | HN17: 0 | HO17: 0 | HP17: 0 | HQ17: 0 | HR17: 0 | HS17: 0 | HT17: 0 | HU17: 0 | HV17: 0 | HW17: 0 | HX17: 0 | HY17: 0 | HZ17: 0 | IA17: 0 | IB17: 0 | IC17: 0 | ID17: 0 | IE17: 0 | IF17: 0 | IG17: 0 | IH17: 0 | II17: 0 | IJ17: 0 | IK17: 0 | IL17: 0 | IM17: 0 | IN17: 0 | IO17: 0 | IP17: 0 | IQ17: 0 | IR17: 0 | IS17: 0 | IT17: 0 | IU17: 0 | IV17: =IF(IV16 = 1, 1, 0) -> 0 | IW17: 0 | IX17: 0 | IY17: 0 | IZ17: 0 | JA17: 0 | JB17: 0 | JC17: 0 | JD17: 0 | JE17: 0 | JF17: 0 | JG17: 0 | JH17: 0 | JI17: 0 | JJ17: 0 | JK17: 0 | JL17: 0 | JM17: 0 | JN17: 0 | JO17: 0 | JP17: 0 | JQ17: 0 | JR17: 0 | JS17: 0 | JT17: 0 | JU17: 0 | JV17: 0 | JW17: 0 | JX17: 0 | JY17: 0 | JZ17: 0 | KA17: 0 | KB17: 0 | KC17: 0 | KD17: 0 | KE17: 0 | KF17: 0 | KG17: 0 | KH17: 0 | KI17: 0 | KJ17: 0 | KK17: 0 | KL17: 0 | KM17: 0 | KN17: 0 | KO17: 0 | KP17: 0 | KQ17: 0 | KR17: 0 | KS17: 0 | KT17: 0 | KU17: 0 | KV17: 0 | KW17: 0 | KX17: 0 | KY17: 0 | KZ17: 0 | LA17: 0 | LB17: 0 | LC17: 0 | LD17: 0 | LE17: 0 | LF17: 0 | LG17: 0 | LH17: =IF(LH16 = 1, 1, 0) -> 0 | LI17: 0 | LJ17: 0 | LK17: 0 | LL17: 0 | LM17: 0 | LN17: 0 | LO17: 0 | LP17: 0 | LQ17: 0 | LR17: 0 | LS17: 0 | LT17: 0 | LU17: 0 | LV17: 0 | LW17: 0 | LX17: 0 | LY17: 0 | LZ17: 0 | MA17: 0 | MB17: 0 | MC17: 0 | MD17: 0 | ME17: 0 | MF17: 0 | MG17: 0 | MH17: 0 | MI17: 0 | MJ17: 0 | MK17: 0 | ML17: 0 | MM17: 0 | MN17: 0 | MO17: 0 | MP17: 0 | MQ17: 0 | MR17: 0 | MS17: 0 | MT17: 0 | MU17: 0 | MV17: 0 | MW17: 0 | MX17: 0 | MY17: 0 | MZ17: 0 | NA17: 0 | NB17: 0 | NC17: 0 | ND17: 0 | NE17: 0 | NF17: 0 | NG17: 0 | NH17: 0 | NI17: 0 | NJ17: 0 | NK17: 0 | NL17: 0 | NM17: 0 | NN17: 0 | NO17: 0 | NP17: 0 | NQ17: 0 | NR17: 0 | NS17: 0 | NT17: =IF(NT16 = 1, 1, 0) -> 0 | NU17: 0 | NV17: 0 | NW17: 0 | NX17: 0 | NY17: 0 | NZ17: 0 | OA17: 0 | OB17: 0 | OC17: 0 | OD17: 0 | OE17: 0 | OF17: 0 | OG17: 0 | OH17: 0 | OI17: 0 | OJ17: 0 | OK17: 0 | OL17: 0 | OM17: 0 | ON17: 0 | OO17: 0 | OP17: 0 | OQ17: 0 | OR17: 0 | OS17: 0 | OT17: 0 | OU17: 0 | OV17: 0 | OW17: 0 | OX17: 0 | OY17: 0 | OZ17: 0 | PA17: 0 | PB17: 0 | PC17: 0 | PD17: 0 | PE17: 0 | PF17: 0 | PG17: 0 | PH17: 0 | PI17: 0 | PJ17: 0 | PK17: 0 | PL17: 0 | PM17: 0 | PN17: 0 | PO17: 0 | PP17: 0 | PQ17: 0 | PR17: 0 | PS17: 0 | PT17: 0 | PU17: 0 | PV17: 0 | PW17: 0 | PX17: 0 | PY17: 0 | PZ17: 0 | QA17: 0 | QB17: 0 | QC17: 0 | QD17: 0 | QE17: 0 | QF17: =IF(QF16 = 1, 1, 0) -> 0 | QG17: 0 | QH17: 0 | QI17: 0 | QJ17: 0 | QK17: 0 | QL17: 0 | QM17: 0 | QN17: 0 | QO17: 0 | QP17: 0 | QQ17: 0 | QR17: 0 | QS17: 0 | QT17: 0 | QU17: 0 | QV17: 0 | QW17: 0 | QX17: 0 | QY17: 0 | QZ17: 0 | RA17: 0 | RB17: 0 | RC17: 0 | RD17: 0 | RE17: 0 | RF17: 0 | RG17: 0 | RH17: 0 | RI17: 0 | RJ17: 0 | RK17: 0 | RL17: 0 | RM17: 0 | RN17: 0 | RO17: 0 | RP17: 0 | RQ17: 0 | RR17: 0 | RS17: 0 | RT17: 0 | RU17: 0 | RV17: 0 | RW17: 0 | RX17: 0 | RY17: 0 | RZ17: 0 | SA17: 0 | SB17: 0 | SC17: 0 | SD17: 0 | SE17: 0 | SF17: 0 | SG17: 0 | SH17: 0 | SI17: 0 | SJ17: 0 | SK17: 0 | SL17: 0 | SM17: 0 | SN17: 0 | SO17: 0
B19: Model period beginning
E20: =InpC!E$13 -> Financial Close Date | F20: =InpC!F$13 -> 2023-01-01 | G20: =InpC!G$13 -> date
E21: =E$17 -> First model column flag | F21: 0 | G21: flag | H21: 1 | I21: 0 | J21: 1 | K21: 0 | L21: 0 | M21: 0 | N21: 0 | O21: 0 | P21: 0 | Q21: 0 | R21: 0 | S21: 0 | T21: 0 | U21: 0 | V21: 0 | W21: 0 | X21: 0 | Y21: 0 | Z21: 0 | AA21: 0 | AB21: 0 | AC21: 0 | AD21: 0 | AE21: 0 | AF21: 0 | AG21: 0 | AH21: 0 | AI21: 0 | AJ21: 0 | AK21: 0 | AL21: 0 | AM21: 0 | AN21: 0 | AO21: 0 | AP21: 0 | AQ21: 0 | AR21: 0 | AS21: 0 | AT21: 0 | AU21: 0 | AV21: 0 | AW21: 0 | AX21: 0 | AY21: 0 | AZ21: 0 | BA21: 0 | BB21: 0 | BC21: 0 | BD21: 0 | BE21: 0 | BF21: 0 | BG21: 0 | BH21: 0 | BI21: 0 | BJ21: 0 | BK21: 0 | BL21: 0 | BM21: 0 | BN21: 0 | BO21: 0 | BP21: 0 | BQ21: =BQ$17 -> 0 | BR21: 0 | BS21: 0 | BT21: 0 | BU21: 0 | BV21: 0 | BW21: 0 | BX21: 0 | BY21: 0 | BZ21: 0 | CA21: 0 | CB21: 0 | CC21: 0 | CD21: 0 | CE21: 0 | CF21: 0 | CG21: 0 | CH21: 0 | CI21: 0 | CJ21: 0 | CK21: 0 | CL21: 0 | CM21: 0 | CN21: 0 | CO21: 0 | CP21: 0 | CQ21: 0 | CR21: 0 | CS21: 0 | CT21: 0 | CU21: 0 | CV21: 0 | CW21: 0 | CX21: 0 | CY21: 0 | CZ21: 0 | DA21: 0 | DB21: 0 | DC21: 0 | DD21: 0 | DE21: 0 | DF21: 0 | DG21: 0 | DH21: 0 | DI21: 0 | DJ21: 0 | DK21: 0 | DL21: 0 | DM21: 0 | DN21: 0 | DO21: 0 | DP21: 0 | DQ21: 0 | DR21: 0 | DS21: 0 | DT21: 0 | DU21: 0 | DV21: 0 | DW21: 0 | DX21: 0 | DY21: 0 | DZ21: 0 | EA21: 0 | EB21: 0 | EC21: =EC$17 -> 0 | ED21: 0 | EE21: 0 | EF21: 0 | EG21: 0 | EH21: 0 | EI21: 0 | EJ21: 0 | EK21: 0 | EL21: 0 | EM21: 0 | EN21: 0 | EO21: 0 | EP21: 0 | EQ21: 0 | ER21: 0 | ES21: 0 | ET21: 0 | EU21: 0 | EV21: 0 | EW21: 0 | EX21: 0 | EY21: 0 | EZ21: 0 | FA21: 0 | FB21: 0 | FC21: 0 | FD21: 0 | FE21: 0 | FF21: 0 | FG21: 0 | FH21: 0 | FI21: 0 | FJ21: 0 | FK21: 0 | FL21: 0 | FM21: 0 | FN21: 0 | FO21: 0 | FP21: 0 | FQ21: 0 | FR21: 0 | FS21: 0 | FT21: 0 | FU21: 0 | FV21: 0 | FW21: 0 | FX21: 0 | FY21: 0 | FZ21: 0 | GA21: 0 | GB21: 0 | GC21: 0 | GD21: 0 | GE21: 0 | GF21: 0 | GG21: 0 | GH21: 0 | GI21: 0 | GJ21: =GJ$17 -> 0 | GK21: 0 | GL21: 0 | GM21: 0 | GN21: 0 | GO21: 0 | GP21: 0 | GQ21: 0 | GR21: 0 | GS21: 0 | GT21: 0 | GU21: 0 | GV21: 0 | GW21: 0 | GX21: 0 | GY21: 0 | GZ21: 0 | HA21: 0 | HB21: 0 | HC21: 0 | HD21: 0 | HE21: 0 | HF21: 0 | HG21: 0 | HH21: 0 | HI21: 0 | HJ21: 0 | HK21: 0 | HL21: 0 | HM21: 0 | HN21: 0 | HO21: 0 | HP21: 0 | HQ21: 0 | HR21: 0 | HS21: 0 | HT21: 0 | HU21: 0 | HV21: 0 | HW21: 0 | HX21: 0 | HY21: 0 | HZ21: 0 | IA21: 0 | IB21: 0 | IC21: 0 | ID21: 0 | IE21: 0 | IF21: 0 | IG21: 0 | IH21: 0 | II21: 0 | IJ21: 0 | IK21: 0 | IL21: 0 | IM21: 0 | IN21: 0 | IO21: 0 | IP21: 0 | IQ21: 0 | IR21: 0 | IS21: 0 | IT21: 0 | IU21: 0 | IV21: =IV$17 -> 0 | IW21: 0 | IX21: 0 | IY21: 0 | IZ21: 0 | JA21: 0 | JB21: 0 | JC21: 0 | JD21: 0 | JE21: 0 | JF21: 0 | JG21: 0 | JH21: 0 | JI21: 0 | JJ21: 0 | JK21: 0 | JL21: 0 | JM21: 0 | JN21: 0 | JO21: 0 | JP21: 0 | JQ21: 0 | JR21: 0 | JS21: 0 | JT21: 0 | JU21: 0 | JV21: 0 | JW21: 0 | JX21: 0 | JY21: 0 | JZ21: 0 | KA21: 0 | KB21: 0 | KC21: 0 | KD21: 0 | KE21: 0 | KF21: 0 | KG21: 0 | KH21: 0 | KI21: 0 | KJ21: 0 | KK21: 0 | KL21: 0 | KM21: 0 | KN21: 0 | KO21: 0 | KP21: 0 | KQ21: 0 | KR21: 0 | KS21: 0 | KT21: 0 | KU21: 0 | KV21: 0 | KW21: 0 | KX21: 0 | KY21: 0 | KZ21: 0 | LA21: 0 | LB21: 0 | LC21: 0 | LD21: 0 | LE21: 0 | LF21: 0 | LG21: 0 | LH21: =LH$17 -> 0 | LI21: 0 | LJ21: 0 | LK21: 0 | LL21: 0 | LM21: 0 | LN21: 0 | LO21: 0 | LP21: 0 | LQ21: 0 | LR21: 0 | LS21: 0 | LT21: 0 | LU21: 0 | LV21: 0 | LW21: 0 | LX21: 0 | LY21: 0 | LZ21: 0 | MA21: 0 | MB21: 0 | MC21: 0 | MD21: 0 | ME21: 0 | MF21: 0 | MG21: 0 | MH21: 0 | MI21: 0 | MJ21: 0 | MK21: 0 | ML21: 0 | MM21: 0 | MN21: 0 | MO21: 0 | MP21: 0 | MQ21: 0 | MR21: 0 | MS21: 0 | MT21: 0 | MU21: 0 | MV21: 0 | MW21: 0 | MX21: 0 | MY21: 0 | MZ21: 0 | NA21: 0 | NB21: 0 | NC21: 0 | ND21: 0 | NE21: 0 | NF21: 0 | NG21: 0 | NH21: 0 | NI21: 0 | NJ21: 0 | NK21: 0 | NL21: 0 | NM21: 0 | NN21: 0 | NO21: 0 | NP21: 0 | NQ21: 0 | NR21: 0 | NS21: 0 | NT21: =NT$17 -> 0 | NU21: 0 | NV21: 0 | NW21: 0 | NX21: 0 | NY21: 0 | NZ21: 0 | OA21: 0 | OB21: 0 | OC21: 0 | OD21: 0 | OE21: 0 | OF21: 0 | OG21: 0 | OH21: 0 | OI21: 0 | OJ21: 0 | OK21: 0 | OL21: 0 | OM21: 0 | ON21: 0 | OO21: 0 | OP21: 0 | OQ21: 0 | OR21: 0 | OS21: 0 | OT21: 0 | OU21: 0 | OV21: 0 | OW21: 0 | OX21: 0 | OY21: 0 | OZ21: 0 | PA21: 0 | PB21: 0 | PC21: 0 | PD21: 0 | PE21: 0 | PF21: 0 | PG21: 0 | PH21: 0 | PI21: 0 | PJ21: 0 | PK21: 0 | PL21: 0 | PM21: 0 | PN21: 0 | PO21: 0 | PP21: 0 | PQ21: 0 | PR21: 0 | PS21: 0 | PT21: 0 | PU21: 0 | PV21: 0 | PW21: 0 | PX21: 0 | PY21: 0 | PZ21: 0 | QA21: 0 | QB21: 0 | QC21: 0 | QD21: 0 | QE21: 0 | QF21: =QF$17 -> 0 | QG21: 0 | QH21: 0 | QI21: 0 | QJ21: 0 | QK21: 0 | QL21: 0 | QM21: 0 | QN21: 0 | QO21: 0 | QP21: 0 | QQ21: 0 | QR21: 0 | QS21: 0 | QT21: 0 | QU21: 0 | QV21: 0 | QW21: 0 | QX21: 0 | QY21: 0 | QZ21: 0 | RA21: 0 | RB21: 0 | RC21: 0 | RD21: 0 | RE21: 0 | RF21: 0 | RG21: 0 | RH21: 0 | RI21: 0 | RJ21: 0 | RK21: 0 | RL21: 0 | RM21: 0 | RN21: 0 | RO21: 0 | RP21: 0 | RQ21: 0 | RR21: 0 | RS21: 0 | RT21: 0 | RU21: 0 | RV21: 0 | RW21: 0 | RX21: 0 | RY21: 0 | RZ21: 0 | SA21: 0 | SB21: 0 | SC21: 0 | SD21: 0 | SE21: 0 | SF21: 0 | SG21: 0 | SH21: 0 | SI21: 0 | SJ21: 0 | SK21: 0 | SL21: 0 | SM21: 0 | SN21: 0 | SO21: 0
E22: Model period beginning | G22: date | J22: =IF(J21=1,F20,EDATE(I22,1)) -> 2023-01-01 | K22: 2023-02-01 | L22: 2023-03-01 | M22: 2023-04-01 | N22: 2023-05-01 | O22: 2023-06-01 | P22: 2023-07-01 | Q22: 2023-08-01 | R22: 2023-09-01 | S22: 2023-10-01 | T22: 2023-11-01 | U22: 2023-12-01 | V22: 2024-01-01 | W22: 2024-02-01 | X22: 2024-03-01 | Y22: 2024-04-01 | Z22: 2024-05-01 | AA22: 2024-06-01 | AB22: 2024-07-01 | AC22: 2024-08-01 | AD22: 2024-09-01 | AE22: 2024-10-01 | AF22: 2024-11-01 | AG22: 2024-12-01 | AH22: 2025-01-01 | AI22: 2025-02-01 | AJ22: 2025-03-01 | AK22: 2025-04-01 | AL22: 2025-05-01 | AM22: 2025-06-01 | AN22: 2025-07-01 | AO22: 2025-08-01 | AP22: =IF(AP21=1,AL20,EDATE(AO22,1)) -> 2025-09-01 | AQ22: 2025-10-01 | AR22: 2025-11-01 | AS22: 2025-12-01 | AT22: 2026-01-01 | AU22: 2026-02-01 | AV22: 2026-03-01 | AW22: 2026-04-01 | AX22: 2026-05-01 | AY22: 2026-06-01 | AZ22: 2026-07-01 | BA22: 2026-08-01 | BB22: 2026-09-01 | BC22: 2026-10-01 | BD22: 2026-11-01 | BE22: 2026-12-01 | BF22: 2027-01-01 | BG22: 2027-02-01 | BH22: 2027-03-01 | BI22: 2027-04-01 | BJ22: 2027-05-01 | BK22: 2027-06-01 | BL22: 2027-07-01 | BM22: 2027-08-01 | BN22: 2027-09-01 | BO22: 2027-10-01 | BP22: 2027-11-01 | BQ22: 2027-12-01 | BR22: 2028-01-01 | BS22: 2028-02-01 | BT22: 2028-03-01 | BU22: 2028-04-01 | BV22: =IF(BV21=1,BR20,EDATE(BU22,1)) -> 2028-05-01 | BW22: 2028-06-01 | BX22: 2028-07-01 | BY22: 2028-08-01 | BZ22: 2028-09-01 | CA22: 2028-10-01 | CB22: 2028-11-01 | CC22: 2028-12-01 | CD22: 2029-01-01 | CE22: 2029-02-01 | CF22: 2029-03-01 | CG22: 2029-04-01 | CH22: 2029-05-01 | CI22: 2029-06-01 | CJ22: 2029-07-01 | CK22: 2029-08-01 | CL22: 2029-09-01 | CM22: 2029-10-01 | CN22: 2029-11-01 | CO22: 2029-12-01 | CP22: 2030-01-01 | CQ22: 2030-02-01 | CR22: 2030-03-01 | CS22: 2030-04-01 | CT22: 2030-05-01 | CU22: 2030-06-01 | CV22: 2030-07-01 | CW22: 2030-08-01 | CX22: 2030-09-01 | CY22: 2030-10-01 | CZ22: 2030-11-01 | DA22: 2030-12-01 | DB22: =IF(DB21=1,CX20,EDATE(DA22,1)) -> 2031-01-01 | DC22: 2031-02-01 | DD22: 2031-03-01 | DE22: 2031-04-01 | DF22: 2031-05-01 | DG22: 2031-06-01 | DH22: 2031-07-01 | DI22: 2031-08-01 | DJ22: 2031-09-01 | DK22: 2031-10-01 | DL22: 2031-11-01 | DM22: 2031-12-01 | DN22: 2032-01-01 | DO22: 2032-02-01 | DP22: 2032-03-01 | DQ22: 2032-04-01 | DR22: 2032-05-01 | DS22: 2032-06-01 | DT22: 2032-07-01 | DU22: 2032-08-01 | DV22: 2032-09-01 | DW22: 2032-10-01 | DX22: 2032-11-01 | DY22: 2032-12-01 | DZ22: 2033-01-01 | EA22: 2033-02-01 | EB22: 2033-03-01 | EC22: 2033-04-01 | ED22: 2033-05-01 | EE22: 2033-06-01 | EF22: 2033-07-01 | EG22: 2033-08-01 | EH22: =IF(EH21=1,ED20,EDATE(EG22,1)) -> 2033-09-01 | EI22: 2033-10-01 | EJ22: 2033-11-01 | EK22: 2033-12-01 | EL22: 2034-01-01 | EM22: 2034-02-01 | EN22: 2034-03-01 | EO22: 2034-04-01 | EP22: 2034-05-01 | EQ22: 2034-06-01 | ER22: 2034-07-01 | ES22: 2034-08-01 | ET22: 2034-09-01 | EU22: 2034-10-01 | EV22: 2034-11-01 | EW22: 2034-12-01 | EX22: 2035-01-01 | EY22: 2035-02-01 | EZ22: 2035-03-01 | FA22: 2035-04-01 | FB22: 2035-05-01 | FC22: 2035-06-01 | FD22: 2035-07-01 | FE22: 2035-08-01 | FF22: 2035-09-01 | FG22: 2035-10-01 | FH22: 2035-11-01 | FI22: 2035-12-01 | FJ22: 2036-01-01 | FK22: 2036-02-01 | FL22: 2036-03-01 | FM22: 2036-04-01 | FN22: =IF(FN21=1,FJ20,EDATE(FM22,1)) -> 2036-05-01 | FO22: 2036-06-01 | FP22: 2036-07-01 | FQ22: 2036-08-01 | FR22: 2036-09-01 | FS22: 2036-10-01 | FT22: 2036-11-01 | FU22: 2036-12-01 | FV22: 2037-01-01 | FW22: 2037-02-01 | FX22: 2037-03-01 | FY22: 2037-04-01 | FZ22: 2037-05-01 | GA22: 2037-06-01 | GB22: 2037-07-01 | GC22: 2037-08-01 | GD22: 2037-09-01 | GE22: 2037-10-01 | GF22: 2037-11-01 | GG22: 2037-12-01 | GH22: 2038-01-01 | GI22: 2038-02-01 | GJ22: =IF(GJ21=1,GF20,EDATE(GI22,1)) -> 2038-03-01 | GK22: 2038-04-01 | GL22: 2038-05-01 | GM22: 2038-06-01 | GN22: 2038-07-01 | GO22: 2038-08-01 | GP22: 2038-09-01 | GQ22: 2038-10-01 | GR22: 2038-11-01 | GS22: 2038-12-01 | GT22: 2039-01-01 | GU22: 2039-02-01 | GV22: 2039-03-01 | GW22: 2039-04-01 | GX22: 2039-05-01 | GY22: 2039-06-01 | GZ22: 2039-07-01 | HA22: 2039-08-01 | HB22: 2039-09-01 | HC22: 2039-10-01 | HD22: 2039-11-01 | HE22: 2039-12-01 | HF22: 2040-01-01 | HG22: 2040-02-01 | HH22: 2040-03-01 | HI22: 2040-04-01 | HJ22: 2040-05-01 | HK22: 2040-06-01 | HL22: 2040-07-01 | HM22: 2040-08-01 | HN22: 2040-09-01 | HO22: 2040-10-01 | HP22: 2040-11-01 | HQ22: 2040-12-01 | HR22: 2041-01-01 | HS22: 2041-02-01 | HT22: 2041-03-01 | HU22: 2041-04-01 | HV22: 2041-05-01 | HW22: 2041-06-01 | HX22: 2041-07-01 | HY22: 2041-08-01 | HZ22: 2041-09-01 | IA22: 2041-10-01 | IB22: 2041-11-01 | IC22: 2041-12-01 | ID22: 2042-01-01 | IE22: 2042-02-01 | IF22: 2042-03-01 | IG22: 2042-04-01 | IH22: 2042-05-01 | II22: 2042-06-01 | IJ22: 2042-07-01 | IK22: 2042-08-01 | IL22: 2042-09-01 | IM22: 2042-10-01 | IN22: 2042-11-01 | IO22: 2042-12-01 | IP22: 2043-01-01 | IQ22: 2043-02-01 | IR22: 2043-03-01 | IS22: 2043-04-01 | IT22: 2043-05-01 | IU22: 2043-06-01 | IV22: =IF(IV21=1,IR20,EDATE(IU22,1)) -> 2043-07-01 | IW22: 2043-08-01 | IX22: 2043-09-01 | IY22: 2043-10-01 | IZ22: 2043-11-01 | JA22: 2043-12-01 | JB22: 2044-01-01 | JC22: 2044-02-01 | JD22: 2044-03-01 | JE22: 2044-04-01 | JF22: 2044-05-01 | JG22: 2044-06-01 | JH22: 2044-07-01 | JI22: 2044-08-01 | JJ22: 2044-09-01 | JK22: 2044-10-01 | JL22: 2044-11-01 | JM22: 2044-12-01 | JN22: 2045-01-01 | JO22: 2045-02-01 | JP22: 2045-03-01 | JQ22: 2045-04-01 | JR22: 2045-05-01 | JS22: 2045-06-01 | JT22: 2045-07-01 | JU22: 2045-08-01 | JV22: 2045-09-01 | JW22: 2045-10-01 | JX22: 2045-11-01 | JY22: 2045-12-01 | JZ22: 2046-01-01 | KA22: 2046-02-01 | KB22: 2046-03-01 | KC22: 2046-04-01 | KD22: 2046-05-01 | KE22: 2046-06-01 | KF22: 2046-07-01 | KG22: 2046-08-01 | KH22: 2046-09-01 | KI22: 2046-10-01 | KJ22: 2046-11-01 | KK22: 2046-12-01 | KL22: 2047-01-01 | KM22: 2047-02-01 | KN22: 2047-03-01 | KO22: 2047-04-01 | KP22: 2047-05-01 | KQ22: 2047-06-01 | KR22: 2047-07-01 | KS22: 2047-08-01 | KT22: 2047-09-01 | KU22: 2047-10-01 | KV22: 2047-11-01 | KW22: 2047-12-01 | KX22: 2048-01-01 | KY22: 2048-02-01 | KZ22: 2048-03-01 | LA22: 2048-04-01 | LB22: 2048-05-01 | LC22: 2048-06-01 | LD22: 2048-07-01 | LE22: 2048-08-01 | LF22: 2048-09-01 | LG22: 2048-10-01 | LH22: =IF(LH21=1,LD20,EDATE(LG22,1)) -> 2048-11-01 | LI22: 2048-12-01 | LJ22: 2049-01-01 | LK22: 2049-02-01 | LL22: 2049-03-01 | LM22: 2049-04-01 | LN22: 2049-05-01 | LO22: 2049-06-01 | LP22: 2049-07-01 | LQ22: 2049-08-01 | LR22: 2049-09-01 | LS22: 2049-10-01 | LT22: 2049-11-01 | LU22: 2049-12-01 | LV22: 2050-01-01 | LW22: 2050-02-01 | LX22: 2050-03-01 | LY22: 2050-04-01 | LZ22: 2050-05-01 | MA22: 2050-06-01 | MB22: 2050-07-01 | MC22: 2050-08-01 | MD22: 2050-09-01 | ME22: 2050-10-01 | MF22: 2050-11-01 | MG22: 2050-12-01 | MH22: 2051-01-01 | MI22: 2051-02-01 | MJ22: 2051-03-01 | MK22: 2051-04-01 | ML22: 2051-05-01 | MM22: 2051-06-01 | MN22: 2051-07-01 | MO22: 2051-08-01 | MP22: 2051-09-01 | MQ22: 2051-10-01 | MR22: 2051-11-01 | MS22: 2051-12-01 | MT22: 2052-01-01 | MU22: 2052-02-01 | MV22: 2052-03-01 | MW22: 2052-04-01 | MX22: 2052-05-01 | MY22: 2052-06-01 | MZ22: 2052-07-01 | NA22: 2052-08-01 | NB22: 2052-09-01 | NC22: 2052-10-01 | ND22: 2052-11-01 | NE22: 2052-12-01 | NF22: 2053-01-01 | NG22: 2053-02-01 | NH22: 2053-03-01 | NI22: 2053-04-01 | NJ22: 2053-05-01 | NK22: 2053-06-01 | NL22: 2053-07-01 | NM22: 2053-08-01 | NN22: 2053-09-01 | NO22: 2053-10-01 | NP22: 2053-11-01 | NQ22: 2053-12-01 | NR22: 2054-01-01 | NS22: 2054-02-01 | NT22: =IF(NT21=1,NP20,EDATE(NS22,1)) -> 2054-03-01 | NU22: 2054-04-01 | NV22: 2054-05-01 | NW22: 2054-06-01 | NX22: 2054-07-01 | NY22: 2054-08-01 | NZ22: 2054-09-01 | OA22: 2054-10-01 | OB22: 2054-11-01 | OC22: 2054-12-01 | OD22: 2055-01-01 | OE22: 2055-02-01 | OF22: 2055-03-01 | OG22: 2055-04-01 | OH22: 2055-05-01 | OI22: 2055-06-01 | OJ22: 2055-07-01 | OK22: 2055-08-01 | OL22: 2055-09-01 | OM22: 2055-10-01 | ON22: 2055-11-01 | OO22: 2055-12-01 | OP22: 2056-01-01 | OQ22: 2056-02-01 | OR22: 2056-03-01 | OS22: 2056-04-01 | OT22: 2056-05-01 | OU22: 2056-06-01 | OV22: 2056-07-01 | OW22: 2056-08-01 | OX22: 2056-09-01 | OY22: 2056-10-01 | OZ22: 2056-11-01 | PA22: 2056-12-01 | PB22: 2057-01-01 | PC22: 2057-02-01 | PD22: 2057-03-01 | PE22: 2057-04-01 | PF22: 2057-05-01 | PG22: 2057-06-01 | PH22: 2057-07-01 | PI22: 2057-08-01 | PJ22: 2057-09-01 | PK22: 2057-10-01 | PL22: 2057-11-01 | PM22: 2057-12-01 | PN22: 2058-01-01 | PO22: 2058-02-01 | PP22: 2058-03-01 | PQ22: 2058-04-01 | PR22: 2058-05-01 | PS22: 2058-06-01 | PT22: 2058-07-01 | PU22: 2058-08-01 | PV22: 2058-09-01 | PW22: 2058-10-01 | PX22: 2058-11-01 | PY22: 2058-12-01 | PZ22: 2059-01-01 | QA22: 2059-02-01 | QB22: 2059-03-01 | QC22: 2059-04-01 | QD22: 2059-05-01 | QE22: 2059-06-01 | QF22: =IF(QF21=1,QB20,EDATE(QE22,1)) -> 2059-07-01 | QG22: 2059-08-01 | QH22: 2059-09-01 | QI22: 2059-10-01 | QJ22: 2059-11-01 | QK22: 2059-12-01 | QL22: 2060-01-01 | QM22: 2060-02-01 | QN22: 2060-03-01 | QO22: 2060-04-01 | QP22: 2060-05-01 | QQ22: 2060-06-01 | QR22: 2060-07-01 | QS22: 2060-08-01 | QT22: 2060-09-01 | QU22: 2060-10-01 | QV22: 2060-11-01 | QW22: 2060-12-01 | QX22: 2061-01-01 | QY22: 2061-02-01 | QZ22: 2061-03-01 | RA22: 2061-04-01 | RB22: 2061-05-01 | RC22: 2061-06-01 | RD22: 2061-07-01 | RE22: 2061-08-01 | RF22: 2061-09-01 | RG22: 2061-10-01 | RH22: 2061-11-01 | RI22: 2061-12-01 | RJ22: 2062-01-01 | RK22: 2062-02-01 | RL22: 2062-03-01 | RM22: 2062-04-01 | RN22: 2062-05-01 | RO22: 2062-06-01 | RP22: 2062-07-01 | RQ22: 2062-08-01 | RR22: 2062-09-01 | RS22: 2062-10-01 | RT22: 2062-11-01 | RU22: 2062-12-01 | RV22: 2063-01-01 | RW22: 2063-02-01 | RX22: 2063-03-01 | RY22: 2063-04-01 | RZ22: 2063-05-01 | SA22: 2063-06-01 | SB22: 2063-07-01 | SC22: 2063-08-01 | SD22: 2063-09-01 | SE22: 2063-10-01 | SF22: 2063-11-01 | SG22: 2063-12-01 | SH22: 2064-01-01 | SI22: 2064-02-01 | SJ22: 2064-03-01 | SK22: 2064-04-01 | SL22: 2064-05-01 | SM22: 2064-06-01 | SN22: 2064-07-01 | SO22: 2064-08-01
B24: Model period ending
E25: =InpC!E$16 -> Construction Start | F25: =InpC!F$16 -> 2023-01-01 | G25: =InpC!G$16 -> date
E26: =E$22 -> Model period beginning | F26: 00:00:00 | G26: date | H26: 00:00:00 | I26: 00:00:00 | J26: 2023-01-01 | K26: 2023-02-01 | L26: 2023-03-01 | M26: 2023-04-01 | N26: 2023-05-01 | O26: 2023-06-01 | P26: 2023-07-01 | Q26: 2023-08-01 | R26: 2023-09-01 | S26: 2023-10-01 | T26: 2023-11-01 | U26: 2023-12-01 | V26: 2024-01-01 | W26: 2024-02-01 | X26: 2024-03-01 | Y26: 2024-04-01 | Z26: 2024-05-01 | AA26: 2024-06-01 | AB26: 2024-07-01 | AC26: 2024-08-01 | AD26: 2024-09-01 | AE26: 2024-10-01 | AF26: 2024-11-01 | AG26: 2024-12-01 | AH26: 2025-01-01 | AI26: 2025-02-01 | AJ26: 2025-03-01 | AK26: 2025-04-01 | AL26: 2025-05-01 | AM26: 2025-06-01 | AN26: 2025-07-01 | AO26: 2025-08-01 | AP26: 2025-09-01 | AQ26: 2025-10-01 | AR26: 2025-11-01 | AS26: 2025-12-01 | AT26: 2026-01-01 | AU26: 2026-02-01 | AV26: 2026-03-01 | AW26: 2026-04-01 | AX26: 2026-05-01 | AY26: 2026-06-01 | AZ26: 2026-07-01 | BA26: 2026-08-01 | BB26: 2026-09-01 | BC26: 2026-10-01 | BD26: 2026-11-01 | BE26: 2026-12-01 | BF26: 2027-01-01 | BG26: 2027-02-01 | BH26: 2027-03-01 | BI26: 2027-04-01 | BJ26: 2027-05-01 | BK26: 2027-06-01 | BL26: 2027-07-01 | BM26: 2027-08-01 | BN26: 2027-09-01 | BO26: 2027-10-01 | BP26: 2027-11-01 | BQ26: =BQ$22 -> 2027-12-01 | BR26: 2028-01-01 | BS26: 2028-02-01 | BT26: 2028-03-01 | BU26: 2028-04-01 | BV26: 2028-05-01 | BW26: 2028-06-01 | BX26: 2028-07-01 | BY26: 2028-08-01 | BZ26: 2028-09-01 | CA26: 2028-10-01 | CB26: 2028-11-01 | CC26: 2028-12-01 | CD26: 2029-01-01 | CE26: 2029-02-01 | CF26: 2029-03-01 | CG26: 2029-04-01 | CH26: 2029-05-01 | CI26: 2029-06-01 | CJ26: 2029-07-01 | CK26: 2029-08-01 | CL26: 2029-09-01 | CM26: 2029-10-01 | CN26: 2029-11-01 | CO26: 2029-12-01 | CP26: 2030-01-01 | CQ26: 2030-02-01 | CR26: 2030-03-01 | CS26: 2030-04-01 | CT26: 2030-05-01 | CU26: 2030-06-01 | CV26: 2030-07-01 | CW26: 2030-08-01 | CX26: 2030-09-01 | CY26: 2030-10-01 | CZ26: 2030-11-01 | DA26: 2030-12-01 | DB26: 2031-01-01 | DC26: 2031-02-01 | DD26: 2031-03-01 | DE26: 2031-04-01 | DF26: 2031-05-01 | DG26: 2031-06-01 | DH26: 2031-07-01 | DI26: 2031-08-01 | DJ26: 2031-09-01 | DK26: 2031-10-01 | DL26: 2031-11-01 | DM26: 2031-12-01 | DN26: 2032-01-01 | DO26: 2032-02-01 | DP26: 2032-03-01 | DQ26: 2032-04-01 | DR26: 2032-05-01 | DS26: 2032-06-01 | DT26: 2032-07-01 | DU26: 2032-08-01 | DV26: 2032-09-01 | DW26: 2032-10-01 | DX26: 2032-11-01 | DY26: 2032-12-01 | DZ26: 2033-01-01 | EA26: 2033-02-01 | EB26: 2033-03-01 | EC26: =EC$22 -> 2033-04-01 | ED26: 2033-05-01 | EE26: 2033-06-01 | EF26: 2033-07-01 | EG26: 2033-08-01 | EH26: 2033-09-01 | EI26: 2033-10-01 | EJ26: 2033-11-01 | EK26: 2033-12-01 | EL26: 2034-01-01 | EM26: 2034-02-01 | EN26: 2034-03-01 | EO26: 2034-04-01 | EP26: 2034-05-01 | EQ26: 2034-06-01 | ER26: 2034-07-01 | ES26: 2034-08-01 | ET26: 2034-09-01 | EU26: 2034-10-01 | EV26: 2034-11-01 | EW26: 2034-12-01 | EX26: 2035-01-01 | EY26: 2035-02-01 | EZ26: 2035-03-01 | FA26: 2035-04-01 | FB26: 2035-05-01 | FC26: 2035-06-01 | FD26: 2035-07-01 | FE26: 2035-08-01 | FF26: 2035-09-01 | FG26: 2035-10-01 | FH26: 2035-11-01 | FI26: =FI$22 -> 2035-12-01 | FJ26: 2036-01-01 | FK26: 2036-02-01 | FL26: 2036-03-01 | FM26: 2036-04-01 | FN26: 2036-05-01 | FO26: 2036-06-01 | FP26: 2036-07-01 | FQ26: 2036-08-01 | FR26: 2036-09-01 | FS26: 2036-10-01 | FT26: 2036-11-01 | FU26: 2036-12-01 | FV26: 2037-01-01 | FW26: 2037-02-01 | FX26: 2037-03-01 | FY26: 2037-04-01 | FZ26: 2037-05-01 | GA26: 2037-06-01 | GB26: 2037-07-01 | GC26: 2037-08-01 | GD26: 2037-09-01 | GE26: 2037-10-01 | GF26: 2037-11-01 | GG26: 2037-12-01 | GH26: 2038-01-01 | GI26: 2038-02-01 | GJ26: =GJ$22 -> 2038-03-01 | GK26: 2038-04-01 | GL26: 2038-05-01 | GM26: 2038-06-01 | GN26: 2038-07-01 | GO26: 2038-08-01 | GP26: 2038-09-01 | GQ26: 2038-10-01 | GR26: 2038-11-01 | GS26: 2038-12-01 | GT26: 2039-01-01 | GU26: 2039-02-01 | GV26: 2039-03-01 | GW26: 2039-04-01 | GX26: 2039-05-01 | GY26: 2039-06-01 | GZ26: 2039-07-01 | HA26: 2039-08-01 | HB26: 2039-09-01 | HC26: 2039-10-01 | HD26: 2039-11-01 | HE26: 2039-12-01 | HF26: 2040-01-01 | HG26: 2040-02-01 | HH26: 2040-03-01 | HI26: 2040-04-01 | HJ26: 2040-05-01 | HK26: 2040-06-01 | HL26: 2040-07-01 | HM26: 2040-08-01 | HN26: 2040-09-01 | HO26: 2040-10-01 | HP26: 2040-11-01 | HQ26: 2040-12-01 | HR26: 2041-01-01 | HS26: 2041-02-01 | HT26: 2041-03-01 | HU26: 2041-04-01 | HV26: 2041-05-01 | HW26: 2041-06-01 | HX26: 2041-07-01 | HY26: 2041-08-01 | HZ26: 2041-09-01 | IA26: 2041-10-01 | IB26: 2041-11-01 | IC26: 2041-12-01 | ID26: 2042-01-01 | IE26: 2042-02-01 | IF26: 2042-03-01 | IG26: 2042-04-01 | IH26: 2042-05-01 | II26: 2042-06-01 | IJ26: 2042-07-01 | IK26: 2042-08-01 | IL26: 2042-09-01 | IM26: 2042-10-01 | IN26: 2042-11-01 | IO26: 2042-12-01 | IP26: 2043-01-01 | IQ26: 2043-02-01 | IR26: 2043-03-01 | IS26: 2043-04-01 | IT26: 2043-05-01 | IU26: 2043-06-01 | IV26: =IV$22 -> 2043-07-01 | IW26: 2043-08-01 | IX26: 2043-09-01 | IY26: 2043-10-01 | IZ26: 2043-11-01 | JA26: 2043-12-01 | JB26: 2044-01-01 | JC26: 2044-02-01 | JD26: 2044-03-01 | JE26: 2044-04-01 | JF26: 2044-05-01 | JG26: 2044-06-01 | JH26: 2044-07-01 | JI26: 2044-08-01 | JJ26: 2044-09-01 | JK26: 2044-10-01 | JL26: 2044-11-01 | JM26: 2044-12-01 | JN26: 2045-01-01 | JO26: 2045-02-01 | JP26: 2045-03-01 | JQ26: 2045-04-01 | JR26: 2045-05-01 | JS26: 2045-06-01 | JT26: 2045-07-01 | JU26: 2045-08-01 | JV26: 2045-09-01 | JW26: 2045-10-01 | JX26: 2045-11-01 | JY26: 2045-12-01 | JZ26: 2046-01-01 | KA26: 2046-02-01 | KB26: 2046-03-01 | KC26: 2046-04-01 | KD26: 2046-05-01 | KE26: 2046-06-01 | KF26: 2046-07-01 | KG26: 2046-08-01 | KH26: 2046-09-01 | KI26: 2046-10-01 | KJ26: 2046-11-01 | KK26: 2046-12-01 | KL26: 2047-01-01 | KM26: 2047-02-01 | KN26: 2047-03-01 | KO26: 2047-04-01 | KP26: 2047-05-01 | KQ26: 2047-06-01 | KR26: 2047-07-01 | KS26: 2047-08-01 | KT26: 2047-09-01 | KU26: 2047-10-01 | KV26: 2047-11-01 | KW26: 2047-12-01 | KX26: 2048-01-01 | KY26: 2048-02-01 | KZ26: 2048-03-01 | LA26: 2048-04-01 | LB26: 2048-05-01 | LC26: 2048-06-01 | LD26: 2048-07-01 | LE26: 2048-08-01 | LF26: 2048-09-01 | LG26: 2048-10-01 | LH26: =LH$22 -> 2048-11-01 | LI26: 2048-12-01 | LJ26: 2049-01-01 | LK26: 2049-02-01 | LL26: 2049-03-01 | LM26: 2049-04-01 | LN26: 2049-05-01 | LO26: 2049-06-01 | LP26: 2049-07-01 | LQ26: 2049-08-01 | LR26: 2049-09-01 | LS26: 2049-10-01 | LT26: 2049-11-01 | LU26: 2049-12-01 | LV26: 2050-01-01 | LW26: 2050-02-01 | LX26: 2050-03-01 | LY26: 2050-04-01 | LZ26: 2050-05-01 | MA26: 2050-06-01 | MB26: 2050-07-01 | MC26: 2050-08-01 | MD26: 2050-09-01 | ME26: 2050-10-01 | MF26: 2050-11-01 | MG26: 2050-12-01 | MH26: 2051-01-01 | MI26: 2051-02-01 | MJ26: 2051-03-01 | MK26: 2051-04-01 | ML26: 2051-05-01 | MM26: 2051-06-01 | MN26: 2051-07-01 | MO26: 2051-08-01 | MP26: 2051-09-01 | MQ26: 2051-10-01 | MR26: 2051-11-01 | MS26: 2051-12-01 | MT26: 2052-01-01 | MU26: 2052-02-01 | MV26: 2052-03-01 | MW26: 2052-04-01 | MX26: 2052-05-01 | MY26: 2052-06-01 | MZ26: 2052-07-01 | NA26: 2052-08-01 | NB26: 2052-09-01 | NC26: 2052-10-01 | ND26: 2052-11-01 | NE26: 2052-12-01 | NF26: 2053-01-01 | NG26: 2053-02-01 | NH26: 2053-03-01 | NI26: 2053-04-01 | NJ26: 2053-05-01 | NK26: 2053-06-01 | NL26: 2053-07-01 | NM26: 2053-08-01 | NN26: 2053-09-01 | NO26: 2053-10-01 | NP26: 2053-11-01 | NQ26: 2053-12-01 | NR26: 2054-01-01 | NS26: 2054-02-01 | NT26: =NT$22 -> 2054-03-01 | NU26: 2054-04-01 | NV26: 2054-05-01 | NW26: 2054-06-01 | NX26: 2054-07-01 | NY26: 2054-08-01 | NZ26: 2054-09-01 | OA26: 2054-10-01 | OB26: 2054-11-01 | OC26: 2054-12-01 | OD26: 2055-01-01 | OE26: 2055-02-01 | OF26: 2055-03-01 | OG26: 2055-04-01 | OH26: 2055-05-01 | OI26: 2055-06-01 | OJ26: 2055-07-01 | OK26: 2055-08-01 | OL26: 2055-09-01 | OM26: 2055-10-01 | ON26: 2055-11-01 | OO26: 2055-12-01 | OP26: 2056-01-01 | OQ26: 2056-02-01 | OR26: 2056-03-01 | OS26: 2056-04-01 | OT26: 2056-05-01 | OU26: 2056-06-01 | OV26: 2056-07-01 | OW26: 2056-08-01 | OX26: 2056-09-01 | OY26: 2056-10-01 | OZ26: 2056-11-01 | PA26: 2056-12-01 | PB26: 2057-01-01 | PC26: 2057-02-01 | PD26: 2057-03-01 | PE26: 2057-04-01 | PF26: 2057-05-01 | PG26: 2057-06-01 | PH26: 2057-07-01 | PI26: 2057-08-01 | PJ26: 2057-09-01 | PK26: 2057-10-01 | PL26: 2057-11-01 | PM26: 2057-12-01 | PN26: 2058-01-01 | PO26: 2058-02-01 | PP26: 2058-03-01 | PQ26: 2058-04-01 | PR26: 2058-05-01 | PS26: 2058-06-01 | PT26: 2058-07-01 | PU26: 2058-08-01 | PV26: 2058-09-01 | PW26: 2058-10-01 | PX26: 2058-11-01 | PY26: 2058-12-01 | PZ26: 2059-01-01 | QA26: 2059-02-01 | QB26: 2059-03-01 | QC26: 2059-04-01 | QD26: 2059-05-01 | QE26: 2059-06-01 | QF26: =QF$22 -> 2059-07-01 | QG26: 2059-08-01 | QH26: 2059-09-01 | QI26: 2059-10-01 | QJ26: 2059-11-01 | QK26: 2059-12-01 | QL26: 2060-01-01 | QM26: 2060-02-01 | QN26: 2060-03-01 | QO26: 2060-04-01 | QP26: 2060-05-01 | QQ26: 2060-06-01 | QR26: 2060-07-01 | QS26: 2060-08-01 | QT26: 2060-09-01 | QU26: 2060-10-01 | QV26: 2060-11-01 | QW26: 2060-12-01 | QX26: 2061-01-01 | QY26: 2061-02-01 | QZ26: 2061-03-01 | RA26: 2061-04-01 | RB26: 2061-05-01 | RC26: 2061-06-01 | RD26: 2061-07-01 | RE26: 2061-08-01 | RF26: 2061-09-01 | RG26: 2061-10-01 | RH26: 2061-11-01 | RI26: 2061-12-01 | RJ26: 2062-01-01 | RK26: 2062-02-01 | RL26: 2062-03-01 | RM26: 2062-04-01 | RN26: 2062-05-01 | RO26: 2062-06-01 | RP26: 2062-07-01 | RQ26: 2062-08-01 | RR26: 2062-09-01 | RS26: 2062-10-01 | RT26: 2062-11-01 | RU26: 2062-12-01 | RV26: 2063-01-01 | RW26: 2063-02-01 | RX26: 2063-03-01 | RY26: 2063-04-01 | RZ26: 2063-05-01 | SA26: 2063-06-01 | SB26: 2063-07-01 | SC26: 2063-08-01 | SD26: 2063-09-01 | SE26: 2063-10-01 | SF26: 2063-11-01 | SG26: 2063-12-01 | SH26: 2064-01-01 | SI26: 2064-02-01 | SJ26: 2064-03-01 | SK26: 2064-04-01 | SL26: 2064-05-01 | SM26: 2064-06-01 | SN26: 2064-07-01 | SO26: 2064-08-01
E27: Model period ending | G27: date | J27: =DATE(YEAR(J26), MONTH(J26) + 1, DAY(J26) -1) -> 2023-01-31 | K27: 2023-02-28 | L27: 2023-03-31 | M27: 2023-04-30 | N27: 2023-05-31 | O27: 2023-06-30 | P27: 2023-07-31 | Q27: 2023-08-31 | R27: 2023-09-30 | S27: 2023-10-31 | T27: 2023-11-30 | U27: 2023-12-31 | V27: 2024-01-31 | W27: 2024-02-29 | X27: 2024-03-31 | Y27: 2024-04-30 | Z27: 2024-05-31 | AA27: 2024-06-30 | AB27: 2024-07-31 | AC27: 2024-08-31 | AD27: 2024-09-30 | AE27: 2024-10-31 | AF27: 2024-11-30 | AG27: 2024-12-31 | AH27: 2025-01-31 | AI27: 2025-02-28 | AJ27: 2025-03-31 | AK27: 2025-04-30 | AL27: 2025-05-31 | AM27: 2025-06-30 | AN27: 2025-07-31 | AO27: 2025-08-31 | AP27: =DATE(YEAR(AP26), MONTH(AP26) + 1, DAY(AP26) -1) -> 2025-09-30 | AQ27: 2025-10-31 | AR27: 2025-11-30 | AS27: 2025-12-31 | AT27: 2026-01-31 | AU27: 2026-02-28 | AV27: 2026-03-31 | AW27: 2026-04-30 | AX27: 2026-05-31 | AY27: 2026-06-30 | AZ27: 2026-07-31 | BA27: 2026-08-31 | BB27: 2026-09-30 | BC27: 2026-10-31 | BD27: 2026-11-30 | BE27: 2026-12-31 | BF27: 2027-01-31 | BG27: 2027-02-28 | BH27: 2027-03-31 | BI27: 2027-04-30 | BJ27: 2027-05-31 | BK27: 2027-06-30 | BL27: 2027-07-31 | BM27: 2027-08-31 | BN27: 2027-09-30 | BO27: 2027-10-31 | BP27: 2027-11-30 | BQ27: 2027-12-31 | BR27: 2028-01-31 | BS27: 2028-02-29 | BT27: 2028-03-31 | BU27: 2028-04-30 | BV27: =DATE(YEAR(BV26), MONTH(BV26) + 1, DAY(BV26) -1) -> 2028-05-31 | BW27: 2028-06-30 | BX27: 2028-07-31 | BY27: 2028-08-31 | BZ27: 2028-09-30 | CA27: 2028-10-31 | CB27: 2028-11-30 | CC27: 2028-12-31 | CD27: 2029-01-31 | CE27: 2029-02-28 | CF27: 2029-03-31 | CG27: 2029-04-30 | CH27: 2029-05-31 | CI27: 2029-06-30 | CJ27: 2029-07-31 | CK27: 2029-08-31 | CL27: 2029-09-30 | CM27: 2029-10-31 | CN27: 2029-11-30 | CO27: 2029-12-31 | CP27: 2030-01-31 | CQ27: 2030-02-28 | CR27: 2030-03-31 | CS27: 2030-04-30 | CT27: 2030-05-31 | CU27: 2030-06-30 | CV27: 2030-07-31 | CW27: 2030-08-31 | CX27: 2030-09-30 | CY27: 2030-10-31 | CZ27: 2030-11-30 | DA27: 2030-12-31 | DB27: =DATE(YEAR(DB26), MONTH(DB26) + 1, DAY(DB26) -1) -> 2031-01-31 | DC27: 2031-02-28 | DD27: 2031-03-31 | DE27: 2031-04-30 | DF27: 2031-05-31 | DG27: 2031-06-30 | DH27: 2031-07-31 | DI27: 2031-08-31 | DJ27: 2031-09-30 | DK27: 2031-10-31 | DL27: 2031-11-30 | DM27: 2031-12-31 | DN27: 2032-01-31 | DO27: 2032-02-29 | DP27: 2032-03-31 | DQ27: 2032-04-30 | DR27: 2032-05-31 | DS27: 2032-06-30 | DT27: 2032-07-31 | DU27: 2032-08-31 | DV27: 2032-09-30 | DW27: 2032-10-31 | DX27: 2032-11-30 | DY27: 2032-12-31 | DZ27: 2033-01-31 | EA27: 2033-02-28 | EB27: 2033-03-31 | EC27: 2033-04-30 | ED27: 2033-05-31 | EE27: 2033-06-30 | EF27: 2033-07-31 | EG27: 2033-08-31 | EH27: =DATE(YEAR(EH26), MONTH(EH26) + 1, DAY(EH26) -1) -> 2033-09-30 | EI27: 2033-10-31 | EJ27: 2033-11-30 | EK27: 2033-12-31 | EL27: 2034-01-31 | EM27: 2034-02-28 | EN27: 2034-03-31 | EO27: 2034-04-30 | EP27: 2034-05-31 | EQ27: 2034-06-30 | ER27: 2034-07-31 | ES27: 2034-08-31 | ET27: 2034-09-30 | EU27: 2034-10-31 | EV27: 2034-11-30 | EW27: 2034-12-31 | EX27: 2035-01-31 | EY27: 2035-02-28 | EZ27: 2035-03-31 | FA27: 2035-04-30 | FB27: 2035-05-31 | FC27: 2035-06-30 | FD27: 2035-07-31 | FE27: 2035-08-31 | FF27: 2035-09-30 | FG27: 2035-10-31 | FH27: 2035-11-30 | FI27: 2035-12-31 | FJ27: 2036-01-31 | FK27: 2036-02-29 | FL27: 2036-03-31 | FM27: 2036-04-30 | FN27: =DATE(YEAR(FN26), MONTH(FN26) + 1, DAY(FN26) -1) -> 2036-05-31 | FO27: 2036-06-30 | FP27: 2036-07-31 | FQ27: 2036-08-31 | FR27: 2036-09-30 | FS27: 2036-10-31 | FT27: 2036-11-30 | FU27: 2036-12-31 | FV27: 2037-01-31 | FW27: 2037-02-28 | FX27: 2037-03-31 | FY27: 2037-04-30 | FZ27: 2037-05-31 | GA27: 2037-06-30 | GB27: 2037-07-31 | GC27: 2037-08-31 | GD27: 2037-09-30 | GE27: 2037-10-31 | GF27: 2037-11-30 | GG27: 2037-12-31 | GH27: 2038-01-31 | GI27: 2038-02-28 | GJ27: =DATE(YEAR(GJ26), MONTH(GJ26) + 1, DAY(GJ26) -1) -> 2038-03-31 | GK27: 2038-04-30 | GL27: 2038-05-31 | GM27: 2038-06-30 | GN27: 2038-07-31 | GO27: 2038-08-31 | GP27: 2038-09-30 | GQ27: 2038-10-31 | GR27: 2038-11-30 | GS27: 2038-12-31 | GT27: 2039-01-31 | GU27: 2039-02-28 | GV27: 2039-03-31 | GW27: 2039-04-30 | GX27: 2039-05-31 | GY27: 2039-06-30 | GZ27: 2039-07-31 | HA27: 2039-08-31 | HB27: 2039-09-30 | HC27: 2039-10-31 | HD27: 2039-11-30 | HE27: 2039-12-31 | HF27: 2040-01-31 | HG27: 2040-02-29 | HH27: 2040-03-31 | HI27: 2040-04-30 | HJ27: 2040-05-31 | HK27: 2040-06-30 | HL27: 2040-07-31 | HM27: 2040-08-31 | HN27: 2040-09-30 | HO27: 2040-10-31 | HP27: 2040-11-30 | HQ27: 2040-12-31 | HR27: 2041-01-31 | HS27: 2041-02-28 | HT27: 2041-03-31 | HU27: 2041-04-30 | HV27: 2041-05-31 | HW27: 2041-06-30 | HX27: 2041-07-31 | HY27: 2041-08-31 | HZ27: 2041-09-30 | IA27: 2041-10-31 | IB27: 2041-11-30 | IC27: 2041-12-31 | ID27: 2042-01-31 | IE27: 2042-02-28 | IF27: 2042-03-31 | IG27: 2042-04-30 | IH27: 2042-05-31 | II27: 2042-06-30 | IJ27: 2042-07-31 | IK27: 2042-08-31 | IL27: 2042-09-30 | IM27: 2042-10-31 | IN27: 2042-11-30 | IO27: 2042-12-31 | IP27: 2043-01-31 | IQ27: 2043-02-28 | IR27: 2043-03-31 | IS27: 2043-04-30 | IT27: 2043-05-31 | IU27: 2043-06-30 | IV27: =DATE(YEAR(IV26), MONTH(IV26) + 1, DAY(IV26) -1) -> 2043-07-31 | IW27: 2043-08-31 | IX27: 2043-09-30 | IY27: 2043-10-31 | IZ27: 2043-11-30 | JA27: 2043-12-31 | JB27: 2044-01-31 | JC27: 2044-02-29 | JD27: 2044-03-31 | JE27: 2044-04-30 | JF27: 2044-05-31 | JG27: 2044-06-30 | JH27: 2044-07-31 | JI27: 2044-08-31 | JJ27: 2044-09-30 | JK27: 2044-10-31 | JL27: 2044-11-30 | JM27: 2044-12-31 | JN27: 2045-01-31 | JO27: 2045-02-28 | JP27: 2045-03-31 | JQ27: 2045-04-30 | JR27: 2045-05-31 | JS27: 2045-06-30 | JT27: 2045-07-31 | JU27: 2045-08-31 | JV27: 2045-09-30 | JW27: 2045-10-31 | JX27: 2045-11-30 | JY27: 2045-12-31 | JZ27: 2046-01-31 | KA27: 2046-02-28 | KB27: 2046-03-31 | KC27: 2046-04-30 | KD27: 2046-05-31 | KE27: 2046-06-30 | KF27: 2046-07-31 | KG27: 2046-08-31 | KH27: 2046-09-30 | KI27: 2046-10-31 | KJ27: 2046-11-30 | KK27: 2046-12-31 | KL27: 2047-01-31 | KM27: 2047-02-28 | KN27: 2047-03-31 | KO27: 2047-04-30 | KP27: 2047-05-31 | KQ27: 2047-06-30 | KR27: 2047-07-31 | KS27: 2047-08-31 | KT27: 2047-09-30 | KU27: 2047-10-31 | KV27: 2047-11-30 | KW27: 2047-12-31 | KX27: 2048-01-31 | KY27: 2048-02-29 | KZ27: 2048-03-31 | LA27: 2048-04-30 | LB27: 2048-05-31 | LC27: 2048-06-30 | LD27: 2048-07-31 | LE27: 2048-08-31 | LF27: 2048-09-30 | LG27: 2048-10-31 | LH27: =DATE(YEAR(LH26), MONTH(LH26) + 1, DAY(LH26) -1) -> 2048-11-30 | LI27: 2048-12-31 | LJ27: 2049-01-31 | LK27: 2049-02-28 | LL27: 2049-03-31 | LM27: 2049-04-30 | LN27: 2049-05-31 | LO27: 2049-06-30 | LP27: 2049-07-31 | LQ27: 2049-08-31 | LR27: 2049-09-30 | LS27: 2049-10-31 | LT27: 2049-11-30 | LU27: 2049-12-31 | LV27: 2050-01-31 | LW27: 2050-02-28 | LX27: 2050-03-31 | LY27: 2050-04-30 | LZ27: 2050-05-31 | MA27: 2050-06-30 | MB27: 2050-07-31 | MC27: 2050-08-31 | MD27: 2050-09-30 | ME27: 2050-10-31 | MF27: 2050-11-30 | MG27: 2050-12-31 | MH27: 2051-01-31 | MI27: 2051-02-28 | MJ27: 2051-03-31 | MK27: 2051-04-30 | ML27: 2051-05-31 | MM27: 2051-06-30 | MN27: 2051-07-31 | MO27: 2051-08-31 | MP27: 2051-09-30 | MQ27: 2051-10-31 | MR27: 2051-11-30 | MS27: 2051-12-31 | MT27: 2052-01-31 | MU27: 2052-02-29 | MV27: 2052-03-31 | MW27: 2052-04-30 | MX27: 2052-05-31 | MY27: 2052-06-30 | MZ27: 2052-07-31 | NA27: 2052-08-31 | NB27: 2052-09-30 | NC27: 2052-10-31 | ND27: 2052-11-30 | NE27: 2052-12-31 | NF27: 2053-01-31 | NG27: 2053-02-28 | NH27: 2053-03-31 | NI27: 2053-04-30 | NJ27: 2053-05-31 | NK27: 2053-06-30 | NL27: 2053-07-31 | NM27: 2053-08-31 | NN27: 2053-09-30 | NO27: 2053-10-31 | NP27: 2053-11-30 | NQ27: 2053-12-31 | NR27: 2054-01-31 | NS27: 2054-02-28 | NT27: =DATE(YEAR(NT26), MONTH(NT26) + 1, DAY(NT26) -1) -> 2054-03-31 | NU27: 2054-04-30 | NV27: 2054-05-31 | NW27: 2054-06-30 | NX27: 2054-07-31 | NY27: 2054-08-31 | NZ27: 2054-09-30 | OA27: 2054-10-31 | OB27: 2054-11-30 | OC27: 2054-12-31 | OD27: 2055-01-31 | OE27: 2055-02-28 | OF27: 2055-03-31 | OG27: 2055-04-30 | OH27: 2055-05-31 | OI27: 2055-06-30 | OJ27: 2055-07-31 | OK27: 2055-08-31 | OL27: 2055-09-30 | OM27: 2055-10-31 | ON27: 2055-11-30 | OO27: 2055-12-31 | OP27: 2056-01-31 | OQ27: 2056-02-29 | OR27: 2056-03-31 | OS27: 2056-04-30 | OT27: 2056-05-31 | OU27: 2056-06-30 | OV27: 2056-07-31 | OW27: 2056-08-31 | OX27: 2056-09-30 | OY27: 2056-10-31 | OZ27: 2056-11-30 | PA27: 2056-12-31 | PB27: 2057-01-31 | PC27: 2057-02-28 | PD27: 2057-03-31 | PE27: 2057-04-30 | PF27: 2057-05-31 | PG27: 2057-06-30 | PH27: 2057-07-31 | PI27: 2057-08-31 | PJ27: 2057-09-30 | PK27: 2057-10-31 | PL27: 2057-11-30 | PM27: 2057-12-31 | PN27: 2058-01-31 | PO27: 2058-02-28 | PP27: 2058-03-31 | PQ27: 2058-04-30 | PR27: 2058-05-31 | PS27: 2058-06-30 | PT27: 2058-07-31 | PU27: 2058-08-31 | PV27: 2058-09-30 | PW27: 2058-10-31 | PX27: 2058-11-30 | PY27: 2058-12-31 | PZ27: 2059-01-31 | QA27: 2059-02-28 | QB27: 2059-03-31 | QC27: 2059-04-30 | QD27: 2059-05-31 | QE27: 2059-06-30 | QF27: =DATE(YEAR(QF26), MONTH(QF26) + 1, DAY(QF26) -1) -> 2059-07-31 | QG27: 2059-08-31 | QH27: 2059-09-30 | QI27: 2059-10-31 | QJ27: 2059-11-30 | QK27: 2059-12-31 | QL27: 2060-01-31 | QM27: 2060-02-29 | QN27: 2060-03-31 | QO27: 2060-04-30 | QP27: 2060-05-31 | QQ27: 2060-06-30 | QR27: 2060-07-31 | QS27: 2060-08-31 | QT27: 2060-09-30 | QU27: 2060-10-31 | QV27: 2060-11-30 | QW27: 2060-12-31 | QX27: 2061-01-31 | QY27: 2061-02-28 | QZ27: 2061-03-31 | RA27: 2061-04-30 | RB27: 2061-05-31 | RC27: 2061-06-30 | RD27: 2061-07-31 | RE27: 2061-08-31 | RF27: 2061-09-30 | RG27: 2061-10-31 | RH27: 2061-11-30 | RI27: 2061-12-31 | RJ27: 2062-01-31 | RK27: 2062-02-28 | RL27: 2062-03-31 | RM27: 2062-04-30 | RN27: 2062-05-31 | RO27: 2062-06-30 | RP27: 2062-07-31 | RQ27: 2062-08-31 | RR27: 2062-09-30 | RS27: 2062-10-31 | RT27: 2062-11-30 | RU27: 2062-12-31 | RV27: 2063-01-31 | RW27: 2063-02-28 | RX27: 2063-03-31 | RY27: 2063-04-30 | RZ27: 2063-05-31 | SA27: 2063-06-30 | SB27: 2063-07-31 | SC27: 2063-08-31 | SD27: 2063-09-30 | SE27: 2063-10-31 | SF27: 2063-11-30 | SG27: 2063-12-31 | SH27: 2064-01-31 | SI27: 2064-02-29 | SJ27: 2064-03-31 | SK27: 2064-04-30 | SL27: 2064-05-31 | SM27: 2064-06-30 | SN27: 2064-07-31 | SO27: 2064-08-31
B29: Contract year
E30: =InpC!E$25 -> Acquisition date | F30: =InpC!F$25 -> 2023-01-01 | G30: =InpC!G$25 -> date
E31: Contract year end month | F31: =MONTH(F30) -> 1 | G31: month
E33: =E$31 -> Contract year end month | F33: =F$31 -> 1 | G33: =G$31 -> month
E34: =E$27 -> Model period ending | F34: 00:00:00 | G34: date | H34: 00:00:00 | I34: 00:00:00 | J34: 2023-01-31 | K34: 2023-02-28 | L34: 2023-03-31 | M34: 2023-04-30 | N34: 2023-05-31 | O34: 2023-06-30 | P34: 2023-07-31 | Q34: 2023-08-31 | R34: 2023-09-30 | S34: 2023-10-31 | T34: 2023-11-30 | U34: 2023-12-31 | V34: 2024-01-31 | W34: 2024-02-29 | X34: 2024-03-31 | Y34: 2024-04-30 | Z34: 2024-05-31 | AA34: 2024-06-30 | AB34: 2024-07-31 | AC34: 2024-08-31 | AD34: 2024-09-30 | AE34: 2024-10-31 | AF34: 2024-11-30 | AG34: 2024-12-31 | AH34: 2025-01-31 | AI34: 2025-02-28 | AJ34: 2025-03-31 | AK34: 2025-04-30 | AL34: 2025-05-31 | AM34: 2025-06-30 | AN34: 2025-07-31 | AO34: 2025-08-31 | AP34: 2025-09-30 | AQ34: 2025-10-31 | AR34: 2025-11-30 | AS34: 2025-12-31 | AT34: 2026-01-31 | AU34: 2026-02-28 | AV34: 2026-03-31 | AW34: 2026-04-30 | AX34: 2026-05-31 | AY34: 2026-06-30 | AZ34: 2026-07-31 | BA34: 2026-08-31 | BB34: 2026-09-30 | BC34: 2026-10-31 | BD34: 2026-11-30 | BE34: 2026-12-31 | BF34: 2027-01-31 | BG34: 2027-02-28 | BH34: 2027-03-31 | BI34: 2027-04-30 | BJ34: 2027-05-31 | BK34: 2027-06-30 | BL34: 2027-07-31 | BM34: 2027-08-31 | BN34: 2027-09-30 | BO34: 2027-10-31 | BP34: 2027-11-30 | BQ34: =BQ$27 -> 2027-12-31 | BR34: 2028-01-31 | BS34: 2028-02-29 | BT34: 2028-03-31 | BU34: 2028-04-30 | BV34: 2028-05-31 | BW34: 2028-06-30 | BX34: 2028-07-31 | BY34: 2028-08-31 | BZ34: 2028-09-30 | CA34: 2028-10-31 | CB34: 2028-11-30 | CC34: 2028-12-31 | CD34: 2029-01-31 | CE34: 2029-02-28 | CF34: 2029-03-31 | CG34: 2029-04-30 | CH34: 2029-05-31 | CI34: 2029-06-30 | CJ34: 2029-07-31 | CK34: 2029-08-31 | CL34: 2029-09-30 | CM34: 2029-10-31 | CN34: 2029-11-30 | CO34: 2029-12-31 | CP34: 2030-01-31 | CQ34: 2030-02-28 | CR34: 2030-03-31 | CS34: 2030-04-30 | CT34: 2030-05-31 | CU34: 2030-06-30 | CV34: 2030-07-31 | CW34: 2030-08-31 | CX34: 2030-09-30 | CY34: 2030-10-31 | CZ34: 2030-11-30 | DA34: 2030-12-31 | DB34: 2031-01-31 | DC34: 2031-02-28 | DD34: 2031-03-31 | DE34: 2031-04-30 | DF34: 2031-05-31 | DG34: 2031-06-30 | DH34: 2031-07-31 | DI34: 2031-08-31 | DJ34: 2031-09-30 | DK34: 2031-10-31 | DL34: 2031-11-30 | DM34: 2031-12-31 | DN34: 2032-01-31 | DO34: 2032-02-29 | DP34: 2032-03-31 | DQ34: 2032-04-30 | DR34: 2032-05-31 | DS34: 2032-06-30 | DT34: 2032-07-31 | DU34: 2032-08-31 | DV34: 2032-09-30 | DW34: 2032-10-31 | DX34: 2032-11-30 | DY34: 2032-12-31 | DZ34: 2033-01-31 | EA34: 2033-02-28 | EB34: 2033-03-31 | EC34: =EC$27 -> 2033-04-30 | ED34: 2033-05-31 | EE34: 2033-06-30 | EF34: 2033-07-31 | EG34: 2033-08-31 | EH34: 2033-09-30 | EI34: 2033-10-31 | EJ34: 2033-11-30 | EK34: 2033-12-31 | EL34: 2034-01-31 | EM34: 2034-02-28 | EN34: 2034-03-31 | EO34: 2034-04-30 | EP34: 2034-05-31 | EQ34: 2034-06-30 | ER34: 2034-07-31 | ES34: 2034-08-31 | ET34: 2034-09-30 | EU34: 2034-10-31 | EV34: 2034-11-30 | EW34: 2034-12-31 | EX34: 2035-01-31 | EY34: 2035-02-28 | EZ34: 2035-03-31 | FA34: 2035-04-30 | FB34: 2035-05-31 | FC34: 2035-06-30 | FD34: 2035-07-31 | FE34: 2035-08-31 | FF34: 2035-09-30 | FG34: 2035-10-31 | FH34: 2035-11-30 | FI34: =FI$27 -> 2035-12-31 | FJ34: 2036-01-31 | FK34: 2036-02-29 | FL34: 2036-03-31 | FM34: 2036-04-30 | FN34: 2036-05-31 | FO34: 2036-06-30 | FP34: 2036-07-31 | FQ34: 2036-08-31 | FR34: 2036-09-30 | FS34: 2036-10-31 | FT34: 2036-11-30 | FU34: 2036-12-31 | FV34: 2037-01-31 | FW34: 2037-02-28 | FX34: 2037-03-31 | FY34: 2037-04-30 | FZ34: 2037-05-31 | GA34: 2037-06-30 | GB34: 2037-07-31 | GC34: 2037-08-31 | GD34: 2037-09-30 | GE34: 2037-10-31 | GF34: 2037-11-30 | GG34: 2037-12-31 | GH34: 2038-01-31 | GI34: 2038-02-28 | GJ34: =GJ$27 -> 2038-03-31 | GK34: 2038-04-30 | GL34: 2038-05-31 | GM34: 2038-06-30 | GN34: 2038-07-31 | GO34: 2038-08-31 | GP34: 2038-09-30 | GQ34: 2038-10-31 | GR34: 2038-11-30 | GS34: 2038-12-31 | GT34: 2039-01-31 | GU34: 2039-02-28 | GV34: 2039-03-31 | GW34: 2039-04-30 | GX34: 2039-05-31 | GY34: 2039-06-30 | GZ34: 2039-07-31 | HA34: 2039-08-31 | HB34: 2039-09-30 | HC34: 2039-10-31 | HD34: 2039-11-30 | HE34: 2039-12-31 | HF34: 2040-01-31 | HG34: 2040-02-29 | HH34: 2040-03-31 | HI34: 2040-04-30 | HJ34: 2040-05-31 | HK34: 2040-06-30 | HL34: 2040-07-31 | HM34: 2040-08-31 | HN34: 2040-09-30 | HO34: 2040-10-31 | HP34: 2040-11-30 | HQ34: 2040-12-31 | HR34: 2041-01-31 | HS34: 2041-02-28 | HT34: 2041-03-31 | HU34: 2041-04-30 | HV34: 2041-05-31 | HW34: 2041-06-30 | HX34: 2041-07-31 | HY34: 2041-08-31 | HZ34: 2041-09-30 | IA34: 2041-10-31 | IB34: 2041-11-30 | IC34: 2041-12-31 | ID34: 2042-01-31 | IE34: 2042-02-28 | IF34: 2042-03-31 | IG34: 2042-04-30 | IH34: 2042-05-31 | II34: 2042-06-30 | IJ34: 2042-07-31 | IK34: 2042-08-31 | IL34: 2042-09-30 | IM34: 2042-10-31 | IN34: 2042-11-30 | IO34: 2042-12-31 | IP34: 2043-01-31 | IQ34: 2043-02-28 | IR34: 2043-03-31 | IS34: 2043-04-30 | IT34: 2043-05-31 | IU34: 2043-06-30 | IV34: =IV$27 -> 2043-07-31 | IW34: 2043-08-31 | IX34: 2043-09-30 | IY34: 2043-10-31 | IZ34: 2043-11-30 | JA34: 2043-12-31 | JB34: 2044-01-31 | JC34: 2044-02-29 | JD34: 2044-03-31 | JE34: 2044-04-30 | JF34: 2044-05-31 | JG34: 2044-06-30 | JH34: 2044-07-31 | JI34: 2044-08-31 | JJ34: 2044-09-30 | JK34: 2044-10-31 | JL34: 2044-11-30 | JM34: 2044-12-31 | JN34: 2045-01-31 | JO34: 2045-02-28 | JP34: 2045-03-31 | JQ34: 2045-04-30 | JR34: 2045-05-31 | JS34: 2045-06-30 | JT34: 2045-07-31 | JU34: 2045-08-31 | JV34: 2045-09-30 | JW34: 2045-10-31 | JX34: 2045-11-30 | JY34: 2045-12-31 | JZ34: 2046-01-31 | KA34: 2046-02-28 | KB34: 2046-03-31 | KC34: 2046-04-30 | KD34: 2046-05-31 | KE34: 2046-06-30 | KF34: 2046-07-31 | KG34: 2046-08-31 | KH34: 2046-09-30 | KI34: 2046-10-31 | KJ34: 2046-11-30 | KK34: 2046-12-31 | KL34: 2047-01-31 | KM34: 2047-02-28 | KN34: 2047-03-31 | KO34: 2047-04-30 | KP34: 2047-05-31 | KQ34: 2047-06-30 | KR34: 2047-07-31 | KS34: 2047-08-31 | KT34: 2047-09-30 | KU34: 2047-10-31 | KV34: 2047-11-30 | KW34: 2047-12-31 | KX34: 2048-01-31 | KY34: 2048-02-29 | KZ34: 2048-03-31 | LA34: 2048-04-30 | LB34: 2048-05-31 | LC34: 2048-06-30 | LD34: 2048-07-31 | LE34: 2048-08-31 | LF34: 2048-09-30 | LG34: 2048-10-31 | LH34: =LH$27 -> 2048-11-30 | LI34: 2048-12-31 | LJ34: 2049-01-31 | LK34: 2049-02-28 | LL34: 2049-03-31 | LM34: 2049-04-30 | LN34: 2049-05-31 | LO34: 2049-06-30 | LP34: 2049-07-31 | LQ34: 2049-08-31 | LR34: 2049-09-30 | LS34: 2049-10-31 | LT34: 2049-11-30 | LU34: 2049-12-31 | LV34: 2050-01-31 | LW34: 2050-02-28 | LX34: 2050-03-31 | LY34: 2050-04-30 | LZ34: 2050-05-31 | MA34: 2050-06-30 | MB34: 2050-07-31 | MC34: 2050-08-31 | MD34: 2050-09-30 | ME34: 2050-10-31 | MF34: 2050-11-30 | MG34: 2050-12-31 | MH34: 2051-01-31 | MI34: 2051-02-28 | MJ34: 2051-03-31 | MK34: 2051-04-30 | ML34: 2051-05-31 | MM34: 2051-06-30 | MN34: 2051-07-31 | MO34: 2051-08-31 | MP34: 2051-09-30 | MQ34: 2051-10-31 | MR34: 2051-11-30 | MS34: 2051-12-31 | MT34: 2052-01-31 | MU34: 2052-02-29 | MV34: 2052-03-31 | MW34: 2052-04-30 | MX34: 2052-05-31 | MY34: 2052-06-30 | MZ34: 2052-07-31 | NA34: 2052-08-31 | NB34: 2052-09-30 | NC34: 2052-10-31 | ND34: 2052-11-30 | NE34: 2052-12-31 | NF34: 2053-01-31 | NG34: 2053-02-28 | NH34: 2053-03-31 | NI34: 2053-04-30 | NJ34: 2053-05-31 | NK34: 2053-06-30 | NL34: 2053-07-31 | NM34: 2053-08-31 | NN34: 2053-09-30 | NO34: 2053-10-31 | NP34: 2053-11-30 | NQ34: 2053-12-31 | NR34: 2054-01-31 | NS34: 2054-02-28 | NT34: =NT$27 -> 2054-03-31 | NU34: 2054-04-30 | NV34: 2054-05-31 | NW34: 2054-06-30 | NX34: 2054-07-31 | NY34: 2054-08-31 | NZ34: 2054-09-30 | OA34: 2054-10-31 | OB34: 2054-11-30 | OC34: 2054-12-31 | OD34: 2055-01-31 | OE34: 2055-02-28 | OF34: 2055-03-31 | OG34: 2055-04-30 | OH34: 2055-05-31 | OI34: 2055-06-30 | OJ34: 2055-07-31 | OK34: 2055-08-31 | OL34: 2055-09-30 | OM34: 2055-10-31 | ON34: 2055-11-30 | OO34: 2055-12-31 | OP34: 2056-01-31 | OQ34: 2056-02-29 | OR34: 2056-03-31 | OS34: 2056-04-30 | OT34: 2056-05-31 | OU34: 2056-06-30 | OV34: 2056-07-31 | OW34: 2056-08-31 | OX34: 2056-09-30 | OY34: 2056-10-31 | OZ34: 2056-11-30 | PA34: 2056-12-31 | PB34: 2057-01-31 | PC34: 2057-02-28 | PD34: 2057-03-31 | PE34: 2057-04-30 | PF34: 2057-05-31 | PG34: 2057-06-30 | PH34: 2057-07-31 | PI34: 2057-08-31 | PJ34: 2057-09-30 | PK34: 2057-10-31 | PL34: 2057-11-30 | PM34: 2057-12-31 | PN34: 2058-01-31 | PO34: 2058-02-28 | PP34: 2058-03-31 | PQ34: 2058-04-30 | PR34: 2058-05-31 | PS34: 2058-06-30 | PT34: 2058-07-31 | PU34: 2058-08-31 | PV34: 2058-09-30 | PW34: 2058-10-31 | PX34: 2058-11-30 | PY34: 2058-12-31 | PZ34: 2059-01-31 | QA34: 2059-02-28 | QB34: 2059-03-31 | QC34: 2059-04-30 | QD34: 2059-05-31 | QE34: 2059-06-30 | QF34: =QF$27 -> 2059-07-31 | QG34: 2059-08-31 | QH34: 2059-09-30 | QI34: 2059-10-31 | QJ34: 2059-11-30 | QK34: 2059-12-31 | QL34: 2060-01-31 | QM34: 2060-02-29 | QN34: 2060-03-31 | QO34: 2060-04-30 | QP34: 2060-05-31 | QQ34: 2060-06-30 | QR34: 2060-07-31 | QS34: 2060-08-31 | QT34: 2060-09-30 | QU34: 2060-10-31 | QV34: 2060-11-30 | QW34: 2060-12-31 | QX34: 2061-01-31 | QY34: 2061-02-28 | QZ34: 2061-03-31 | RA34: 2061-04-30 | RB34: 2061-05-31 | RC34: 2061-06-30 | RD34: 2061-07-31 | RE34: 2061-08-31 | RF34: 2061-09-30 | RG34: 2061-10-31 | RH34: 2061-11-30 | RI34: 2061-12-31 | RJ34: 2062-01-31 | RK34: 2062-02-28 | RL34: 2062-03-31 | RM34: 2062-04-30 | RN34: 2062-05-31 | RO34: 2062-06-30 | RP34: 2062-07-31 | RQ34: 2062-08-31 | RR34: 2062-09-30 | RS34: 2062-10-31 | RT34: 2062-11-30 | RU34: 2062-12-31 | RV34: 2063-01-31 | RW34: 2063-02-28 | RX34: 2063-03-31 | RY34: 2063-04-30 | RZ34: 2063-05-31 | SA34: 2063-06-30 | SB34: 2063-07-31 | SC34: 2063-08-31 | SD34: 2063-09-30 | SE34: 2063-10-31 | SF34: 2063-11-30 | SG34: 2063-12-31 | SH34: 2064-01-31 | SI34: 2064-02-29 | SJ34: 2064-03-31 | SK34: 2064-04-30 | SL34: 2064-05-31 | SM34: 2064-06-30 | SN34: 2064-07-31 | SO34: 2064-08-31
E35: End of contract year flag | J35: =IF( MONTH(J34) = $F33, 1, 0) -> 1 | K35: 0 | L35: 0 | M35: 0 | N35: 0 | O35: 0 | P35: 0 | Q35: 0 | R35: 0 | S35: 0 | T35: 0 | U35: 0 | V35: 1 | W35: 0 | X35: 0 | Y35: 0 | Z35: 0 | AA35: 0 | AB35: 0 | AC35: 0 | AD35: 0 | AE35: 0 | AF35: 0 | AG35: 0 | AH35: 1 | AI35: 0 | AJ35: 0 | AK35: 0 | AL35: 0 | AM35: 0 | AN35: 0 | AO35: 0 | AP35: =IF( MONTH(AP34) = $F33, 1, 0) -> 0 | AQ35: 0 | AR35: 0 | AS35: 0 | AT35: 1 | AU35: 0 | AV35: 0 | AW35: 0 | AX35: 0 | AY35: 0 | AZ35: 0 | BA35: 0 | BB35: 0 | BC35: 0 | BD35: 0 | BE35: 0 | BF35: 1 | BG35: 0 | BH35: 0 | BI35: 0 | BJ35: 0 | BK35: 0 | BL35: 0 | BM35: 0 | BN35: 0 | BO35: 0 | BP35: 0 | BQ35: 0 | BR35: 1 | BS35: 0 | BT35: 0 | BU35: 0 | BV35: =IF( MONTH(BV34) = $F33, 1, 0) -> 0 | BW35: 0 | BX35: 0 | BY35: 0 | BZ35: 0 | CA35: 0 | CB35: 0 | CC35: 0 | CD35: 1 | CE35: 0 | CF35: 0 | CG35: 0 | CH35: 0 | CI35: 0 | CJ35: 0 | CK35: 0 | CL35: 0 | CM35: 0 | CN35: 0 | CO35: 0 | CP35: 1 | CQ35: 0 | CR35: 0 | CS35: 0 | CT35: 0 | CU35: 0 | CV35: 0 | CW35: 0 | CX35: 0 | CY35: 0 | CZ35: 0 | DA35: 0 | DB35: =IF( MONTH(DB34) = $F33, 1, 0) -> 1 | DC35: 0 | DD35: 0 | DE35: 0 | DF35: 0 | DG35: 0 | DH35: 0 | DI35: 0 | DJ35: 0 | DK35: 0 | DL35: 0 | DM35: 0 | DN35: 1 | DO35: 0 | DP35: 0 | DQ35: 0 | DR35: 0 | DS35: 0 | DT35: 0 | DU35: 0 | DV35: 0 | DW35: 0 | DX35: 0 | DY35: 0 | DZ35: 1 | EA35: 0 | EB35: 0 | EC35: 0 | ED35: 0 | EE35: 0 | EF35: 0 | EG35: 0 | EH35: =IF( MONTH(EH34) = $F33, 1, 0) -> 0 | EI35: 0 | EJ35: 0 | EK35: 0 | EL35: 1 | EM35: 0 | EN35: 0 | EO35: 0 | EP35: 0 | EQ35: 0 | ER35: 0 | ES35: 0 | ET35: 0 | EU35: 0 | EV35: 0 | EW35: 0 | EX35: 1 | EY35: 0 | EZ35: 0 | FA35: 0 | FB35: 0 | FC35: 0 | FD35: 0 | FE35: 0 | FF35: 0 | FG35: 0 | FH35: 0 | FI35: 0 | FJ35: 1 | FK35: 0 | FL35: 0 | FM35: 0 | FN35: =IF( MONTH(FN34) = $F33, 1, 0) -> 0 | FO35: 0 | FP35: 0 | FQ35: 0 | FR35: 0 | FS35: 0 | FT35: 0 | FU35: 0 | FV35: 1 | FW35: 0 | FX35: 0 | FY35: 0 | FZ35: 0 | GA35: 0 | GB35: 0 | GC35: 0 | GD35: 0 | GE35: 0 | GF35: 0 | GG35: 0 | GH35: =IF( MONTH(GH34) = $F33, 1, 0) -> 1 | GI35: 0 | GJ35: =IF( MONTH(GJ34) = $F33, 1, 0) -> 0 | GK35: 0 | GL35: 0 | GM35: 0 | GN35: 0 | GO35: 0 | GP35: 0 | GQ35: 0 | GR35: 0 | GS35: 0 | GT35: 1 | GU35: 0 | GV35: 0 | GW35: 0 | GX35: 0 | GY35: 0 | GZ35: 0 | HA35: 0 | HB35: 0 | HC35: 0 | HD35: 0 | HE35: 0 | HF35: 1 | HG35: 0 | HH35: 0 | HI35: 0 | HJ35: 0 | HK35: 0 | HL35: 0 | HM35: 0 | HN35: 0 | HO35: 0 | HP35: 0 | HQ35: 0 | HR35: 1 | HS35: 0 | HT35: 0 | HU35: 0 | HV35: 0 | HW35: 0 | HX35: 0 | HY35: 0 | HZ35: 0 | IA35: 0 | IB35: 0 | IC35: 0 | ID35: 1 | IE35: 0 | IF35: 0 | IG35: 0 | IH35: 0 | II35: 0 | IJ35: 0 | IK35: 0 | IL35: 0 | IM35: 0 | IN35: 0 | IO35: 0 | IP35: 1 | IQ35: 0 | IR35: 0 | IS35: 0 | IT35: 0 | IU35: 0 | IV35: =IF( MONTH(IV34) = $F33, 1, 0) -> 0 | IW35: 0 | IX35: 0 | IY35: 0 | IZ35: 0 | JA35: 0 | JB35: 1 | JC35: 0 | JD35: 0 | JE35: 0 | JF35: 0 | JG35: 0 | JH35: 0 | JI35: 0 | JJ35: 0 | JK35: 0 | JL35: 0 | JM35: 0 | JN35: 1 | JO35: 0 | JP35: 0 | JQ35: 0 | JR35: 0 | JS35: 0 | JT35: 0 | JU35: 0 | JV35: 0 | JW35: 0 | JX35: 0 | JY35: 0 | JZ35: 1 | KA35: 0 | KB35: 0 | KC35: 0 | KD35: 0 | KE35: 0 | KF35: 0 | KG35: 0 | KH35: 0 | KI35: 0 | KJ35: 0 | KK35: 0 | KL35: 1 | KM35: 0 | KN35: 0 | KO35: 0 | KP35: 0 | KQ35: 0 | KR35: 0 | KS35: 0 | KT35: 0 | KU35: 0 | KV35: 0 | KW35: 0 | KX35: 1 | KY35: 0 | KZ35: 0 | LA35: 0 | LB35: 0 | LC35: 0 | LD35: 0 | LE35: 0 | LF35: 0 | LG35: 0 | LH35: =IF( MONTH(LH34) = $F33, 1, 0) -> 0 | LI35: 0 | LJ35: 1 | LK35: 0 | LL35: 0 | LM35: 0 | LN35: 0 | LO35: 0 | LP35: 0 | LQ35: 0 | LR35: 0 | LS35: 0 | LT35: 0 | LU35: 0 | LV35: 1 | LW35: 0 | LX35: 0 | LY35: 0 | LZ35: 0 | MA35: 0 | MB35: 0 | MC35: 0 | MD35: 0 | ME35: 0 | MF35: 0 | MG35: 0 | MH35: 1 | MI35: 0 | MJ35: 0 | MK35: 0 | ML35: 0 | MM35: 0 | MN35: 0 | MO35: 0 | MP35: 0 | MQ35: 0 | MR35: 0 | MS35: 0 | MT35: 1 | MU35: 0 | MV35: 0 | MW35: 0 | MX35: 0 | MY35: 0 | MZ35: 0 | NA35: 0 | NB35: 0 | NC35: 0 | ND35: 0 | NE35: 0 | NF35: 1 | NG35: 0 | NH35: 0 | NI35: 0 | NJ35: 0 | NK35: 0 | NL35: 0 | NM35: 0 | NN35: 0 | NO35: 0 | NP35: 0 | NQ35: 0 | NR35: 1 | NS35: 0 | NT35: =IF( MONTH(NT34) = $F33, 1, 0) -> 0 | NU35: 0 | NV35: 0 | NW35: 0 | NX35: 0 | NY35: 0 | NZ35: 0 | OA35: 0 | OB35: 0 | OC35: 0 | OD35: 1 | OE35: 0 | OF35: 0 | OG35: 0 | OH35: 0 | OI35: 0 | OJ35: 0 | OK35: 0 | OL35: 0 | OM35: 0 | ON35: 0 | OO35: 0 | OP35: 1 | OQ35: 0 | OR35: 0 | OS35: 0 | OT35: 0 | OU35: 0 | OV35: 0 | OW35: 0 | OX35: 0 | OY35: 0 | OZ35: 0 | PA35: 0 | PB35: 1 | PC35: 0 | PD35: 0 | PE35: 0 | PF35: 0 | PG35: 0 | PH35: 0 | PI35: 0 | PJ35: 0 | PK35: 0 | PL35: 0 | PM35: 0 | PN35: 1 | PO35: 0 | PP35: 0 | PQ35: 0 | PR35: 0 | PS35: 0 | PT35: 0 | PU35: 0 | PV35: 0 | PW35: 0 | PX35: 0 | PY35: 0 | PZ35: 1 | QA35: 0 | QB35: 0 | QC35: 0 | QD35: 0 | QE35: 0 | QF35: =IF( MONTH(QF34) = $F33, 1, 0) -> 0 | QG35: 0 | QH35: 0 | QI35: 0 | QJ35: 0 | QK35: 0 | QL35: 1 | QM35: 0 | QN35: 0 | QO35: 0 | QP35: 0 | QQ35: 0 | QR35: 0 | QS35: 0 | QT35: 0 | QU35: 0 | QV35: 0 | QW35: 0 | QX35: 1 | QY35: 0 | QZ35: 0 | RA35: 0 | RB35: 0 | RC35: 0 | RD35: 0 | RE35: 0 | RF35: 0 | RG35: 0 | RH35: 0 | RI35: 0 | RJ35: 1 | RK35: 0 | RL35: 0 | RM35: 0 | RN35: 0 | RO35: 0 | RP35: 0 | RQ35: 0 | RR35: 0 | RS35: 0 | RT35: 0 | RU35: 0 | RV35: 1 | RW35: 0 | RX35: 0 | RY35: 0 | RZ35: 0 | SA35: 0 | SB35: 0 | SC35: 0 | SD35: 0 | SE35: 0 | SF35: 0 | SG35: 0 | SH35: 1 | SI35: 0 | SJ35: 0 | SK35: 0 | SL35: 0 | SM35: 0 | SN35: 0 | SO35: 0
E36: Contract year | G36: year number | J36: =YEAR(J34) -> 2023 | K36: 2023 | L36: 2023 | M36: 2023 | N36: 2023 | O36: 2023 | P36: 2023 | Q36: 2023 | R36: 2023 | S36: 2023 | T36: 2023 | U36: 2023 | V36: 2024 | W36: 2024 | X36: 2024 | Y36: 2024 | Z36: 2024 | AA36: 2024 | AB36: 2024 | AC36: 2024 | AD36: 2024 | AE36: 2024 | AF36: 2024 | AG36: 2024 | AH36: 2025 | AI36: 2025 | AJ36: 2025 | AK36: 2025 | AL36: 2025 | AM36: 2025 | AN36: 2025 | AO36: 2025 | AP36: 2025 | AQ36: 2025 | AR36: 2025 | AS36: 2025 | AT36: 2026 | AU36: 2026 | AV36: 2026 | AW36: 2026 | AX36: 2026 | AY36: 2026 | AZ36: 2026 | BA36: 2026 | BB36: 2026 | BC36: 2026 | BD36: 2026 | BE36: 2026 | BF36: 2027 | BG36: 2027 | BH36: 2027 | BI36: 2027 | BJ36: 2027 | BK36: 2027 | BL36: 2027 | BM36: 2027 | BN36: 2027 | BO36: 2027 | BP36: 2027 | BQ36: 2027 | BR36: 2028 | BS36: 2028 | BT36: 2028 | BU36: 2028 | BV36: =YEAR(BV34) -> 2028 | BW36: 2028 | BX36: 2028 | BY36: 2028 | BZ36: 2028 | CA36: 2028 | CB36: 2028 | CC36: 2028 | CD36: 2029 | CE36: 2029 | CF36: 2029 | CG36: 2029 | CH36: 2029 | CI36: 2029 | CJ36: 2029 | CK36: 2029 | CL36: 2029 | CM36: 2029 | CN36: 2029 | CO36: 2029 | CP36: 2030 | CQ36: 2030 | CR36: 2030 | CS36: 2030 | CT36: 2030 | CU36: 2030 | CV36: 2030 | CW36: 2030 | CX36: 2030 | CY36: 2030 | CZ36: 2030 | DA36: 2030 | DB36: 2031 | DC36: 2031 | DD36: 2031 | DE36: 2031 | DF36: 2031 | DG36: 2031 | DH36: 2031 | DI36: 2031 | DJ36: 2031 | DK36: 2031 | DL36: 2031 | DM36: 2031 | DN36: 2032 | DO36: 2032 | DP36: 2032 | DQ36: 2032 | DR36: 2032 | DS36: 2032 | DT36: 2032 | DU36: 2032 | DV36: 2032 | DW36: 2032 | DX36: 2032 | DY36: 2032 | DZ36: 2033 | EA36: 2033 | EB36: 2033 | EC36: 2033 | ED36: 2033 | EE36: 2033 | EF36: 2033 | EG36: 2033 | EH36: =YEAR(EH34) -> 2033 | EI36: 2033 | EJ36: 2033 | EK36: 2033 | EL36: 2034 | EM36: 2034 | EN36: 2034 | EO36: 2034 | EP36: 2034 | EQ36: 2034 | ER36: 2034 | ES36: 2034 | ET36: 2034 | EU36: 2034 | EV36: 2034 | EW36: 2034 | EX36: 2035 | EY36: 2035 | EZ36: 2035 | FA36: 2035 | FB36: 2035 | FC36: 2035 | FD36: 2035 | FE36: 2035 | FF36: 2035 | FG36: 2035 | FH36: 2035 | FI36: 2035 | FJ36: 2036 | FK36: 2036 | FL36: 2036 | FM36: 2036 | FN36: 2036 | FO36: 2036 | FP36: 2036 | FQ36: 2036 | FR36: 2036 | FS36: 2036 | FT36: 2036 | FU36: 2036 | FV36: 2037 | FW36: 2037 | FX36: 2037 | FY36: 2037 | FZ36: 2037 | GA36: 2037 | GB36: 2037 | GC36: 2037 | GD36: 2037 | GE36: 2037 | GF36: 2037 | GG36: 2037 | GH36: 2038 | GI36: 2038 | GJ36: 2038 | GK36: 2038 | GL36: 2038 | GM36: 2038 | GN36: 2038 | GO36: 2038 | GP36: 2038 | GQ36: 2038 | GR36: 2038 | GS36: 2038 | GT36: =YEAR(GT34) -> 2039 | GU36: 2039 | GV36: 2039 | GW36: 2039 | GX36: 2039 | GY36: 2039 | GZ36: 2039 | HA36: 2039 | HB36: 2039 | HC36: 2039 | HD36: 2039 | HE36: 2039 | HF36: 2040 | HG36: 2040 | HH36: 2040 | HI36: 2040 | HJ36: 2040 | HK36: 2040 | HL36: 2040 | HM36: 2040 | HN36: 2040 | HO36: 2040 | HP36: 2040 | HQ36: 2040 | HR36: 2041 | HS36: 2041 | HT36: 2041 | HU36: 2041 | HV36: 2041 | HW36: 2041 | HX36: 2041 | HY36: 2041 | HZ36: 2041 | IA36: 2041 | IB36: 2041 | IC36: 2041 | ID36: 2042 | IE36: 2042 | IF36: 2042 | IG36: 2042 | IH36: 2042 | II36: 2042 | IJ36: 2042 | IK36: 2042 | IL36: 2042 | IM36: 2042 | IN36: 2042 | IO36: 2042 | IP36: 2043 | IQ36: 2043 | IR36: 2043 | IS36: 2043 | IT36: 2043 | IU36: 2043 | IV36: 2043 | IW36: 2043 | IX36: 2043 | IY36: 2043 | IZ36: 2043 | JA36: 2043 | JB36: 2044 | JC36: 2044 | JD36: 2044 | JE36: 2044 | JF36: =YEAR(JF34) -> 2044 | JG36: 2044 | JH36: 2044 | JI36: 2044 | JJ36: 2044 | JK36: 2044 | JL36: 2044 | JM36: 2044 | JN36: 2045 | JO36: 2045 | JP36: 2045 | JQ36: 2045 | JR36: 2045 | JS36: 2045 | JT36: 2045 | JU36: 2045 | JV36: 2045 | JW36: 2045 | JX36: 2045 | JY36: 2045 | JZ36: 2046 | KA36: 2046 | KB36: 2046 | KC36: 2046 | KD36: 2046 | KE36: 2046 | KF36: 2046 | KG36: 2046 | KH36: 2046 | KI36: 2046 | KJ36: 2046 | KK36: 2046 | KL36: 2047 | KM36: 2047 | KN36: 2047 | KO36: 2047 | KP36: 2047 | KQ36: 2047 | KR36: 2047 | KS36: 2047 | KT36: 2047 | KU36: 2047 | KV36: 2047 | KW36: 2047 | KX36: 2048 | KY36: 2048 | KZ36: 2048 | LA36: 2048 | LB36: 2048 | LC36: 2048 | LD36: 2048 | LE36: 2048 | LF36: 2048 | LG36: 2048 | LH36: 2048 | LI36: 2048 | LJ36: 2049 | LK36: 2049 | LL36: 2049 | LM36: 2049 | LN36: 2049 | LO36: 2049 | LP36: 2049 | LQ36: 2049 | LR36: =YEAR(LR34) -> 2049 | LS36: 2049 | LT36: 2049 | LU36: 2049 | LV36: 2050 | LW36: 2050 | LX36: 2050 | LY36: 2050 | LZ36: 2050 | MA36: 2050 | MB36: 2050 | MC36: 2050 | MD36: 2050 | ME36: 2050 | MF36: 2050 | MG36: 2050 | MH36: 2051 | MI36: 2051 | MJ36: 2051 | MK36: 2051 | ML36: 2051 | MM36: 2051 | MN36: 2051 | MO36: 2051 | MP36: 2051 | MQ36: 2051 | MR36: 2051 | MS36: 2051 | MT36: 2052 | MU36: 2052 | MV36: 2052 | MW36: 2052 | MX36: 2052 | MY36: 2052 | MZ36: 2052 | NA36: 2052 | NB36: 2052 | NC36: 2052 | ND36: 2052 | NE36: 2052 | NF36: 2053 | NG36: 2053 | NH36: 2053 | NI36: 2053 | NJ36: 2053 | NK36: 2053 | NL36: 2053 | NM36: 2053 | NN36: 2053 | NO36: 2053 | NP36: 2053 | NQ36: 2053 | NR36: 2054 | NS36: 2054 | NT36: 2054 | NU36: 2054 | NV36: 2054 | NW36: 2054 | NX36: 2054 | NY36: 2054 | NZ36: 2054 | OA36: 2054 | OB36: 2054 | OC36: 2054 | OD36: =YEAR(OD34) -> 2055 | OE36: 2055 | OF36: 2055 | OG36: 2055 | OH36: 2055 | OI36: 2055 | OJ36: 2055 | OK36: 2055 | OL36: 2055 | OM36: 2055 | ON36: 2055 | OO36: 2055 | OP36: 2056 | OQ36: 2056 | OR36: 2056 | OS36: 2056 | OT36: 2056 | OU36: 2056 | OV36: 2056 | OW36: 2056 | OX36: 2056 | OY36: 2056 | OZ36: 2056 | PA36: 2056 | PB36: 2057 | PC36: 2057 | PD36: 2057 | PE36: 2057 | PF36: 2057 | PG36: 2057 | PH36: 2057 | PI36: 2057 | PJ36: 2057 | PK36: 2057 | PL36: 2057 | PM36: 2057 | PN36: 2058 | PO36: 2058 | PP36: 2058 | PQ36: 2058 | PR36: 2058 | PS36: 2058 | PT36: 2058 | PU36: 2058 | PV36: 2058 | PW36: 2058 | PX36: 2058 | PY36: 2058 | PZ36: 2059 | QA36: 2059 | QB36: 2059 | QC36: 2059 | QD36: 2059 | QE36: 2059 | QF36: 2059 | QG36: 2059 | QH36: 2059 | QI36: 2059 | QJ36: 2059 | QK36: 2059 | QL36: 2060 | QM36: 2060 | QN36: 2060 | QO36: 2060 | QP36: =YEAR(QP34) -> 2060 | QQ36: 2060 | QR36: 2060 | QS36: 2060 | QT36: 2060 | QU36: 2060 | QV36: 2060 | QW36: 2060 | QX36: 2061 | QY36: 2061 | QZ36: 2061 | RA36: 2061 | RB36: 2061 | RC36: 2061 | RD36: 2061 | RE36: 2061 | RF36: 2061 | RG36: 2061 | RH36: 2061 | RI36: 2061 | RJ36: 2062 | RK36: 2062 | RL36: 2062 | RM36: 2062 | RN36: 2062 | RO36: 2062 | RP36: 2062 | RQ36: 2062 | RR36: 2062 | RS36: 2062 | RT36: 2062 | RU36: 2062 | RV36: 2063 | RW36: 2063 | RX36: 2063 | RY36: 2063 | RZ36: 2063 | SA36: 2063 | SB36: 2063 | SC36: 2063 | SD36: 2063 | SE36: 2063 | SF36: 2063 | SG36: 2063 | SH36: 2064 | SI36: 2064 | SJ36: 2064 | SK36: 2064 | SL36: 2064 | SM36: 2064 | SN36: 2064 | SO36: 2064
E38: =InpC!E$14 -> Annual year end date of first operating period | F38: =InpC!F$14 -> 2023-01-01 | G38: =InpC!G$14 -> date
E39: =InpC!E$112 -> Months in year | F39: =InpC!F$112 -> 12 | G39: =InpC!G$112 -> months
E40: =E$17 -> First model column flag | F40: 0 | G40: flag | H40: 1 | I40: 0 | J40: 1 | K40: 0 | L40: 0 | M40: 0 | N40: 0 | O40: 0 | P40: 0 | Q40: 0 | R40: 0 | S40: 0 | T40: 0 | U40: 0 | V40: 0 | W40: 0 | X40: 0 | Y40: 0 | Z40: 0 | AA40: 0 | AB40: 0 | AC40: 0 | AD40: 0 | AE40: 0 | AF40: 0 | AG40: 0 | AH40: 0 | AI40: 0 | AJ40: 0 | AK40: 0 | AL40: 0 | AM40: 0 | AN40: 0 | AO40: 0 | AP40: 0 | AQ40: 0 | AR40: 0 | AS40: 0 | AT40: 0 | AU40: 0 | AV40: 0 | AW40: 0 | AX40: 0 | AY40: 0 | AZ40: 0 | BA40: 0 | BB40: 0 | BC40: 0 | BD40: 0 | BE40: 0 | BF40: 0 | BG40: 0 | BH40: 0 | BI40: 0 | BJ40: 0 | BK40: 0 | BL40: 0 | BM40: 0 | BN40: 0 | BO40: 0 | BP40: 0 | BQ40: =BQ$17 -> 0 | BR40: 0 | BS40: 0 | BT40: 0 | BU40: 0 | BV40: 0 | BW40: 0 | BX40: 0 | BY40: 0 | BZ40: 0 | CA40: 0 | CB40: 0 | CC40: 0 | CD40: 0 | CE40: 0 | CF40: 0 | CG40: 0 | CH40: 0 | CI40: 0 | CJ40: 0 | CK40: 0 | CL40: 0 | CM40: 0 | CN40: 0 | CO40: 0 | CP40: 0 | CQ40: 0 | CR40: 0 | CS40: 0 | CT40: 0 | CU40: 0 | CV40: 0 | CW40: 0 | CX40: 0 | CY40: 0 | CZ40: 0 | DA40: 0 | DB40: 0 | DC40: 0 | DD40: 0 | DE40: 0 | DF40: 0 | DG40: 0 | DH40: 0 | DI40: 0 | DJ40: 0 | DK40: 0 | DL40: 0 | DM40: 0 | DN40: 0 | DO40: 0 | DP40: 0 | DQ40: 0 | DR40: 0 | DS40: 0 | DT40: 0 | DU40: 0 | DV40: 0 | DW40: 0 | DX40: 0 | DY40: 0 | DZ40: 0 | EA40: 0 | EB40: 0 | EC40: =EC$17 -> 0 | ED40: 0 | EE40: 0 | EF40: 0 | EG40: 0 | EH40: 0 | EI40: 0 | EJ40: 0 | EK40: 0 | EL40: 0 | EM40: 0 | EN40: 0 | EO40: 0 | EP40: 0 | EQ40: 0 | ER40: 0 | ES40: 0 | ET40: 0 | EU40: 0 | EV40: 0 | EW40: 0 | EX40: 0 | EY40: 0 | EZ40: 0 | FA40: 0 | FB40: 0 | FC40: 0 | FD40: 0 | FE40: 0 | FF40: 0 | FG40: 0 | FH40: 0 | FI40: 0 | FJ40: 0 | FK40: 0 | FL40: 0 | FM40: 0 | FN40: 0 | FO40: 0 | FP40: 0 | FQ40: 0 | FR40: 0 | FS40: 0 | FT40: 0 | FU40: 0 | FV40: 0 | FW40: 0 | FX40: 0 | FY40: 0 | FZ40: 0 | GA40: 0 | GB40: 0 | GC40: 0 | GD40: 0 | GE40: 0 | GF40: 0 | GG40: 0 | GH40: 0 | GI40: 0 | GJ40: =GJ$17 -> 0 | GK40: 0 | GL40: 0 | GM40: 0 | GN40: 0 | GO40: 0 | GP40: 0 | GQ40: 0 | GR40: 0 | GS40: 0 | GT40: 0 | GU40: 0 | GV40: 0 | GW40: 0 | GX40: 0 | GY40: 0 | GZ40: 0 | HA40: 0 | HB40: 0 | HC40: 0 | HD40: 0 | HE40: 0 | HF40: 0 | HG40: 0 | HH40: 0 | HI40: 0 | HJ40: 0 | HK40: 0 | HL40: 0 | HM40: 0 | HN40: 0 | HO40: 0 | HP40: 0 | HQ40: 0 | HR40: 0 | HS40: 0 | HT40: 0 | HU40: 0 | HV40: 0 | HW40: 0 | HX40: 0 | HY40: 0 | HZ40: 0 | IA40: 0 | IB40: 0 | IC40: 0 | ID40: 0 | IE40: 0 | IF40: 0 | IG40: 0 | IH40: 0 | II40: 0 | IJ40: 0 | IK40: 0 | IL40: 0 | IM40: 0 | IN40: 0 | IO40: 0 | IP40: 0 | IQ40: 0 | IR40: 0 | IS40: 0 | IT40: 0 | IU40: 0 | IV40: =IV$17 -> 0 | IW40: 0 | IX40: 0 | IY40: 0 | IZ40: 0 | JA40: 0 | JB40: 0 | JC40: 0 | JD40: 0 | JE40: 0 | JF40: 0 | JG40: 0 | JH40: 0 | JI40: 0 | JJ40: 0 | JK40: 0 | JL40: 0 | JM40: 0 | JN40: 0 | JO40: 0 | JP40: 0 | JQ40: 0 | JR40: 0 | JS40: 0 | JT40: 0 | JU40: 0 | JV40: 0 | JW40: 0 | JX40: 0 | JY40: 0 | JZ40: 0 | KA40: 0 | KB40: 0 | KC40: 0 | KD40: 0 | KE40: 0 | KF40: 0 | KG40: 0 | KH40: 0 | KI40: 0 | KJ40: 0 | KK40: 0 | KL40: 0 | KM40: 0 | KN40: 0 | KO40: 0 | KP40: 0 | KQ40: 0 | KR40: 0 | KS40: 0 | KT40: 0 | KU40: 0 | KV40: 0 | KW40: 0 | KX40: 0 | KY40: 0 | KZ40: 0 | LA40: 0 | LB40: 0 | LC40: 0 | LD40: 0 | LE40: 0 | LF40: 0 | LG40: 0 | LH40: =LH$17 -> 0 | LI40: 0 | LJ40: 0 | LK40: 0 | LL40: 0 | LM40: 0 | LN40: 0 | LO40: 0 | LP40: 0 | LQ40: 0 | LR40: 0 | LS40: 0 | LT40: 0 | LU40: 0 | LV40: 0 | LW40: 0 | LX40: 0 | LY40: 0 | LZ40: 0 | MA40: 0 | MB40: 0 | MC40: 0 | MD40: 0 | ME40: 0 | MF40: 0 | MG40: 0 | MH40: 0 | MI40: 0 | MJ40: 0 | MK40: 0 | ML40: 0 | MM40: 0 | MN40: 0 | MO40: 0 | MP40: 0 | MQ40: 0 | MR40: 0 | MS40: 0 | MT40: 0 | MU40: 0 | MV40: 0 | MW40: 0 | MX40: 0 | MY40: 0 | MZ40: 0 | NA40: 0 | NB40: 0 | NC40: 0 | ND40: 0 | NE40: 0 | NF40: 0 | NG40: 0 | NH40: 0 | NI40: 0 | NJ40: 0 | NK40: 0 | NL40: 0 | NM40: 0 | NN40: 0 | NO40: 0 | NP40: 0 | NQ40: 0 | NR40: 0 | NS40: 0 | NT40: =NT$17 -> 0 | NU40: 0 | NV40: 0 | NW40: 0 | NX40: 0 | NY40: 0 | NZ40: 0 | OA40: 0 | OB40: 0 | OC40: 0 | OD40: 0 | OE40: 0 | OF40: 0 | OG40: 0 | OH40: 0 | OI40: 0 | OJ40: 0 | OK40: 0 | OL40: 0 | OM40: 0 | ON40: 0 | OO40: 0 | OP40: 0 | OQ40: 0 | OR40: 0 | OS40: 0 | OT40: 0 | OU40: 0 | OV40: 0 | OW40: 0 | OX40: 0 | OY40: 0 | OZ40: 0 | PA40: 0 | PB40: 0 | PC40: 0 | PD40: 0 | PE40: 0 | PF40: 0 | PG40: 0 | PH40: 0 | PI40: 0 | PJ40: 0 | PK40: 0 | PL40: 0 | PM40: 0 | PN40: 0 | PO40: 0 | PP40: 0 | PQ40: 0 | PR40: 0 | PS40: 0 | PT40: 0 | PU40: 0 | PV40: 0 | PW40: 0 | PX40: 0 | PY40: 0 | PZ40: 0 | QA40: 0 | QB40: 0 | QC40: 0 | QD40: 0 | QE40: 0 | QF40: =QF$17 -> 0 | QG40: 0 | QH40: 0 | QI40: 0 | QJ40: 0 | QK40: 0 | QL40: 0 | QM40: 0 | QN40: 0 | QO40: 0 | QP40: 0 | QQ40: 0 | QR40: 0 | QS40: 0 | QT40: 0 | QU40: 0 | QV40: 0 | QW40: 0 | QX40: 0 | QY40: 0 | QZ40: 0 | RA40: 0 | RB40: 0 | RC40: 0 | RD40: 0 | RE40: 0 | RF40: 0 | RG40: 0 | RH40: 0 | RI40: 0 | RJ40: 0 | RK40: 0 | RL40: 0 | RM40: 0 | RN40: 0 | RO40: 0 | RP40: 0 | RQ40: 0 | RR40: 0 | RS40: 0 | RT40: 0 | RU40: 0 | RV40: 0 | RW40: 0 | RX40: 0 | RY40: 0 | RZ40: 0 | SA40: 0 | SB40: 0 | SC40: 0 | SD40: 0 | SE40: 0 | SF40: 0 | SG40: 0 | SH40: 0 | SI40: 0 | SJ40: 0 | SK40: 0 | SL40: 0 | SM40: 0 | SN40: 0 | SO40: 0
E41: =E$35 -> End of contract year flag | F41: 0 | G41: 0 | H41: 0 | I41: 0 | J41: 1 | K41: 0 | L41: 0 | M41: 0 | N41: 0 | O41: 0 | P41: 0 | Q41: 0 | R41: 0 | S41: 0 | T41: 0 | U41: 0 | V41: 1 | W41: 0 | X41: 0 | Y41: 0 | Z41: 0 | AA41: 0 | AB41: 0 | AC41: 0 | AD41: 0 | AE41: 0 | AF41: 0 | AG41: 0 | AH41: 1 | AI41: 0 | AJ41: 0 | AK41: =AK$35 -> 0 | AL41: 0 | AM41: 0 | AN41: 0 | AO41: 0 | AP41: 0 | AQ41: 0 | AR41: 0 | AS41: 0 | AT41: 1 | AU41: 0 | AV41: 0 | AW41: 0 | AX41: 0 | AY41: 0 | AZ41: 0 | BA41: 0 | BB41: 0 | BC41: 0 | BD41: 0 | BE41: 0 | BF41: 1 | BG41: 0 | BH41: 0 | BI41: 0 | BJ41: 0 | BK41: 0 | BL41: 0 | BM41: 0 | BN41: 0 | BO41: 0 | BP41: 0 | BQ41: =BQ$35 -> 0 | BR41: 1 | BS41: 0 | BT41: 0 | BU41: 0 | BV41: 0 | BW41: 0 | BX41: 0 | BY41: 0 | BZ41: 0 | CA41: 0 | CB41: 0 | CC41: 0 | CD41: 1 | CE41: 0 | CF41: 0 | CG41: 0 | CH41: 0 | CI41: 0 | CJ41: 0 | CK41: 0 | CL41: 0 | CM41: 0 | CN41: 0 | CO41: 0 | CP41: 1 | CQ41: 0 | CR41: 0 | CS41: 0 | CT41: 0 | CU41: 0 | CV41: 0 | CW41: =CW$35 -> 0 | CX41: 0 | CY41: 0 | CZ41: 0 | DA41: 0 | DB41: 1 | DC41: 0 | DD41: 0 | DE41: 0 | DF41: 0 | DG41: 0 | DH41: 0 | DI41: 0 | DJ41: 0 | DK41: 0 | DL41: 0 | DM41: 0 | DN41: 1 | DO41: 0 | DP41: 0 | DQ41: 0 | DR41: 0 | DS41: 0 | DT41: 0 | DU41: 0 | DV41: 0 | DW41: 0 | DX41: 0 | DY41: 0 | DZ41: 1 | EA41: 0 | EB41: 0 | EC41: =EC$35 -> 0 | ED41: 0 | EE41: 0 | EF41: 0 | EG41: 0 | EH41: 0 | EI41: 0 | EJ41: 0 | EK41: 0 | EL41: 1 | EM41: 0 | EN41: 0 | EO41: 0 | EP41: 0 | EQ41: 0 | ER41: 0 | ES41: 0 | ET41: 0 | EU41: 0 | EV41: 0 | EW41: 0 | EX41: 1 | EY41: 0 | EZ41: 0 | FA41: 0 | FB41: 0 | FC41: 0 | FD41: 0 | FE41: 0 | FF41: 0 | FG41: 0 | FH41: 0 | FI41: =FI$35 -> 0 | FJ41: 1 | FK41: 0 | FL41: 0 | FM41: 0 | FN41: 0 | FO41: 0 | FP41: 0 | FQ41: 0 | FR41: 0 | FS41: 0 | FT41: 0 | FU41: 0 | FV41: 1 | FW41: 0 | FX41: 0 | FY41: 0 | FZ41: 0 | GA41: 0 | GB41: 0 | GC41: 0 | GD41: 0 | GE41: 0 | GF41: 0 | GG41: 0 | GH41: 1 | GI41: 0 | GJ41: =GJ$35 -> 0 | GK41: 0 | GL41: 0 | GM41: 0 | GN41: 0 | GO41: 0 | GP41: 0 | GQ41: 0 | GR41: 0 | GS41: 0 | GT41: 1 | GU41: 0 | GV41: 0 | GW41: 0 | GX41: 0 | GY41: 0 | GZ41: 0 | HA41: 0 | HB41: 0 | HC41: 0 | HD41: 0 | HE41: 0 | HF41: 1 | HG41: 0 | HH41: 0 | HI41: 0 | HJ41: 0 | HK41: 0 | HL41: 0 | HM41: 0 | HN41: 0 | HO41: 0 | HP41: 0 | HQ41: 0 | HR41: 1 | HS41: 0 | HT41: 0 | HU41: 0 | HV41: 0 | HW41: 0 | HX41: 0 | HY41: 0 | HZ41: 0 | IA41: 0 | IB41: 0 | IC41: 0 | ID41: 1 | IE41: 0 | IF41: 0 | IG41: 0 | IH41: 0 | II41: 0 | IJ41: 0 | IK41: 0 | IL41: 0 | IM41: 0 | IN41: 0 | IO41: 0 | IP41: 1 | IQ41: 0 | IR41: 0 | IS41: 0 | IT41: 0 | IU41: 0 | IV41: =IV$35 -> 0 | IW41: 0 | IX41: 0 | IY41: 0 | IZ41: 0 | JA41: 0 | JB41: 1 | JC41: 0 | JD41: 0 | JE41: 0 | JF41: 0 | JG41: 0 | JH41: 0 | JI41: 0 | JJ41: 0 | JK41: 0 | JL41: 0 | JM41: 0 | JN41: 1 | JO41: 0 | JP41: 0 | JQ41: 0 | JR41: 0 | JS41: 0 | JT41: 0 | JU41: 0 | JV41: 0 | JW41: 0 | JX41: 0 | JY41: 0 | JZ41: 1 | KA41: 0 | KB41: 0 | KC41: 0 | KD41: 0 | KE41: 0 | KF41: 0 | KG41: 0 | KH41: 0 | KI41: 0 | KJ41: 0 | KK41: 0 | KL41: 1 | KM41: 0 | KN41: 0 | KO41: 0 | KP41: 0 | KQ41: 0 | KR41: 0 | KS41: 0 | KT41: 0 | KU41: 0 | KV41: 0 | KW41: 0 | KX41: 1 | KY41: 0 | KZ41: 0 | LA41: 0 | LB41: 0 | LC41: 0 | LD41: 0 | LE41: 0 | LF41: 0 | LG41: 0 | LH41: =LH$35 -> 0 | LI41: 0 | LJ41: 1 | LK41: 0 | LL41: 0 | LM41: 0 | LN41: 0 | LO41: 0 | LP41: 0 | LQ41: 0 | LR41: 0 | LS41: 0 | LT41: 0 | LU41: 0 | LV41: 1 | LW41: 0 | LX41: 0 | LY41: 0 | LZ41: 0 | MA41: 0 | MB41: 0 | MC41: 0 | MD41: 0 | ME41: 0 | MF41: 0 | MG41: 0 | MH41: 1 | MI41: 0 | MJ41: 0 | MK41: 0 | ML41: 0 | MM41: 0 | MN41: 0 | MO41: 0 | MP41: 0 | MQ41: 0 | MR41: 0 | MS41: 0 | MT41: 1 | MU41: 0 | MV41: 0 | MW41: 0 | MX41: 0 | MY41: 0 | MZ41: 0 | NA41: 0 | NB41: 0 | NC41: 0 | ND41: 0 | NE41: 0 | NF41: 1 | NG41: 0 | NH41: 0 | NI41: 0 | NJ41: 0 | NK41: 0 | NL41: 0 | NM41: 0 | NN41: 0 | NO41: 0 | NP41: 0 | NQ41: 0 | NR41: 1 | NS41: 0 | NT41: =NT$35 -> 0 | NU41: 0 | NV41: 0 | NW41: 0 | NX41: 0 | NY41: 0 | NZ41: 0 | OA41: 0 | OB41: 0 | OC41: 0 | OD41: 1 | OE41: 0 | OF41: 0 | OG41: 0 | OH41: 0 | OI41: 0 | OJ41: 0 | OK41: 0 | OL41: 0 | OM41: 0 | ON41: 0 | OO41: 0 | OP41: 1 | OQ41: 0 | OR41: 0 | OS41: 0 | OT41: 0 | OU41: 0 | OV41: 0 | OW41: 0 | OX41: 0 | OY41: 0 | OZ41: 0 | PA41: 0 | PB41: 1 | PC41: 0 | PD41: 0 | PE41: 0 | PF41: 0 | PG41: 0 | PH41: 0 | PI41: 0 | PJ41: 0 | PK41: 0 | PL41: 0 | PM41: 0 | PN41: 1 | PO41: 0 | PP41: 0 | PQ41: 0 | PR41: 0 | PS41: 0 | PT41: 0 | PU41: 0 | PV41: 0 | PW41: 0 | PX41: 0 | PY41: 0 | PZ41: 1 | QA41: 0 | QB41: 0 | QC41: 0 | QD41: 0 | QE41: 0 | QF41: =QF$35 -> 0 | QG41: 0 | QH41: 0 | QI41: 0 | QJ41: 0 | QK41: 0 | QL41: 1 | QM41: 0 | QN41: 0 | QO41: 0 | QP41: 0 | QQ41: 0 | QR41: 0 | QS41: 0 | QT41: 0 | QU41: 0 | QV41: 0 | QW41: 0 | QX41: 1 | QY41: 0 | QZ41: 0 | RA41: 0 | RB41: 0 | RC41: 0 | RD41: 0 | RE41: 0 | RF41: 0 | RG41: 0 | RH41: 0 | RI41: 0 | RJ41: 1 | RK41: 0 | RL41: 0 | RM41: 0 | RN41: 0 | RO41: 0 | RP41: 0 | RQ41: 0 | RR41: 0 | RS41: 0 | RT41: 0 | RU41: 0 | RV41: 1 | RW41: 0 | RX41: 0 | RY41: 0 | RZ41: 0 | SA41: 0 | SB41: 0 | SC41: 0 | SD41: 0 | SE41: 0 | SF41: 0 | SG41: 0 | SH41: 1 | SI41: 0 | SJ41: 0 | SK41: 0 | SL41: 0 | SM41: 0 | SN41: 0 | SO41: 0
E42: Contract year applicable to period | G42: date | J42: =IF( J40 = 1, $F38, IF( I41 = 1, EOMONTH(I42, 12), I42)) -> 2023-01-01 | K42: 2024-01-31 | L42: 2024-01-31 | M42: 2024-01-31 | N42: 2024-01-31 | O42: 2024-01-31 | P42: 2024-01-31 | Q42: 2024-01-31 | R42: 2024-01-31 | S42: 2024-01-31 | T42: 2024-01-31 | U42: 2024-01-31 | V42: 2024-01-31 | W42: 2025-01-31 | X42: 2025-01-31 | Y42: 2025-01-31 | Z42: 2025-01-31 | AA42: 2025-01-31 | AB42: 2025-01-31 | AC42: 2025-01-31 | AD42: 2025-01-31 | AE42: 2025-01-31 | AF42: 2025-01-31 | AG42: 2025-01-31 | AH42: 2025-01-31 | AI42: 2026-01-31 | AJ42: 2026-01-31 | AK42: 2026-01-31 | AL42: 2026-01-31 | AM42: 2026-01-31 | AN42: 2026-01-31 | AO42: 2026-01-31 | AP42: =IF( AP40 = 1, $F38, IF( AO41 = 1, EOMONTH(AO42, 12), AO42)) -> 2026-01-31 | AQ42: 2026-01-31 | AR42: 2026-01-31 | AS42: 2026-01-31 | AT42: 2026-01-31 | AU42: 2027-01-31 | AV42: 2027-01-31 | AW42: 2027-01-31 | AX42: 2027-01-31 | AY42: 2027-01-31 | AZ42: 2027-01-31 | BA42: 2027-01-31 | BB42: 2027-01-31 | BC42: 2027-01-31 | BD42: 2027-01-31 | BE42: 2027-01-31 | BF42: 2027-01-31 | BG42: 2028-01-31 | BH42: 2028-01-31 | BI42: 2028-01-31 | BJ42: 2028-01-31 | BK42: 2028-01-31 | BL42: 2028-01-31 | BM42: 2028-01-31 | BN42: 2028-01-31 | BO42: 2028-01-31 | BP42: 2028-01-31 | BQ42: 2028-01-31 | BR42: 2028-01-31 | BS42: 2029-01-31 | BT42: 2029-01-31 | BU42: 2029-01-31 | BV42: =IF( BV40 = 1, $F38, IF( BU41 = 1, EOMONTH(BU42, 12), BU42)) -> 2029-01-31 | BW42: 2029-01-31 | BX42: 2029-01-31 | BY42: 2029-01-31 | BZ42: 2029-01-31 | CA42: 2029-01-31 | CB42: 2029-01-31 | CC42: 2029-01-31 | CD42: 2029-01-31 | CE42: 2030-01-31 | CF42: 2030-01-31 | CG42: 2030-01-31 | CH42: 2030-01-31 | CI42: 2030-01-31 | CJ42: 2030-01-31 | CK42: 2030-01-31 | CL42: 2030-01-31 | CM42: 2030-01-31 | CN42: 2030-01-31 | CO42: 2030-01-31 | CP42: 2030-01-31 | CQ42: 2031-01-31 | CR42: 2031-01-31 | CS42: 2031-01-31 | CT42: 2031-01-31 | CU42: 2031-01-31 | CV42: 2031-01-31 | CW42: 2031-01-31 | CX42: 2031-01-31 | CY42: 2031-01-31 | CZ42: 2031-01-31 | DA42: 2031-01-31 | DB42: =IF( DB40 = 1, $F38, IF( DA41 = 1, EOMONTH(DA42, 12), DA42)) -> 2031-01-31 | DC42: 2032-01-31 | DD42: 2032-01-31 | DE42: 2032-01-31 | DF42: 2032-01-31 | DG42: 2032-01-31 | DH42: 2032-01-31 | DI42: 2032-01-31 | DJ42: 2032-01-31 | DK42: 2032-01-31 | DL42: 2032-01-31 | DM42: 2032-01-31 | DN42: 2032-01-31 | DO42: 2033-01-31 | DP42: 2033-01-31 | DQ42: 2033-01-31 | DR42: 2033-01-31 | DS42: 2033-01-31 | DT42: 2033-01-31 | DU42: 2033-01-31 | DV42: 2033-01-31 | DW42: 2033-01-31 | DX42: 2033-01-31 | DY42: 2033-01-31 | DZ42: 2033-01-31 | EA42: 2034-01-31 | EB42: 2034-01-31 | EC42: 2034-01-31 | ED42: 2034-01-31 | EE42: 2034-01-31 | EF42: 2034-01-31 | EG42: 2034-01-31 | EH42: =IF( EH40 = 1, $F38, IF( EG41 = 1, EOMONTH(EG42, 12), EG42)) -> 2034-01-31 | EI42: 2034-01-31 | EJ42: 2034-01-31 | EK42: 2034-01-31 | EL42: 2034-01-31 | EM42: 2035-01-31 | EN42: 2035-01-31 | EO42: 2035-01-31 | EP42: 2035-01-31 | EQ42: 2035-01-31 | ER42: 2035-01-31 | ES42: 2035-01-31 | ET42: 2035-01-31 | EU42: 2035-01-31 | EV42: 2035-01-31 | EW42: 2035-01-31 | EX42: 2035-01-31 | EY42: 2036-01-31 | EZ42: 2036-01-31 | FA42: 2036-01-31 | FB42: 2036-01-31 | FC42: 2036-01-31 | FD42: 2036-01-31 | FE42: 2036-01-31 | FF42: 2036-01-31 | FG42: 2036-01-31 | FH42: 2036-01-31 | FI42: 2036-01-31 | FJ42: 2036-01-31 | FK42: 2037-01-31 | FL42: 2037-01-31 | FM42: 2037-01-31 | FN42: =IF( FN40 = 1, $F38, IF( FM41 = 1, EOMONTH(FM42, 12), FM42)) -> 2037-01-31 | FO42: 2037-01-31 | FP42: 2037-01-31 | FQ42: 2037-01-31 | FR42: 2037-01-31 | FS42: 2037-01-31 | FT42: 2037-01-31 | FU42: 2037-01-31 | FV42: 2037-01-31 | FW42: 2038-01-31 | FX42: 2038-01-31 | FY42: 2038-01-31 | FZ42: 2038-01-31 | GA42: 2038-01-31 | GB42: 2038-01-31 | GC42: 2038-01-31 | GD42: 2038-01-31 | GE42: 2038-01-31 | GF42: 2038-01-31 | GG42: 2038-01-31 | GH42: =IF( GH40 = 1, $F38, IF( GG41 = 1, EOMONTH(GG42, 12), GG42)) -> 2038-01-31 | GI42: 2039-01-31 | GJ42: =IF( GJ40 = 1, $F38, IF( GI41 = 1, EOMONTH(GI42, 12), GI42)) -> 2039-01-31 | GK42: 2039-01-31 | GL42: 2039-01-31 | GM42: 2039-01-31 | GN42: 2039-01-31 | GO42: 2039-01-31 | GP42: 2039-01-31 | GQ42: 2039-01-31 | GR42: 2039-01-31 | GS42: 2039-01-31 | GT42: 2039-01-31 | GU42: 2040-01-31 | GV42: 2040-01-31 | GW42: 2040-01-31 | GX42: 2040-01-31 | GY42: 2040-01-31 | GZ42: 2040-01-31 | HA42: 2040-01-31 | HB42: 2040-01-31 | HC42: 2040-01-31 | HD42: 2040-01-31 | HE42: 2040-01-31 | HF42: 2040-01-31 | HG42: 2041-01-31 | HH42: 2041-01-31 | HI42: 2041-01-31 | HJ42: 2041-01-31 | HK42: 2041-01-31 | HL42: 2041-01-31 | HM42: 2041-01-31 | HN42: 2041-01-31 | HO42: 2041-01-31 | HP42: 2041-01-31 | HQ42: 2041-01-31 | HR42: 2041-01-31 | HS42: 2042-01-31 | HT42: 2042-01-31 | HU42: 2042-01-31 | HV42: 2042-01-31 | HW42: 2042-01-31 | HX42: 2042-01-31 | HY42: 2042-01-31 | HZ42: 2042-01-31 | IA42: 2042-01-31 | IB42: 2042-01-31 | IC42: 2042-01-31 | ID42: 2042-01-31 | IE42: 2043-01-31 | IF42: 2043-01-31 | IG42: 2043-01-31 | IH42: 2043-01-31 | II42: 2043-01-31 | IJ42: 2043-01-31 | IK42: 2043-01-31 | IL42: 2043-01-31 | IM42: 2043-01-31 | IN42: 2043-01-31 | IO42: 2043-01-31 | IP42: 2043-01-31 | IQ42: 2044-01-31 | IR42: 2044-01-31 | IS42: 2044-01-31 | IT42: 2044-01-31 | IU42: 2044-01-31 | IV42: =IF( IV40 = 1, $F38, IF( IU41 = 1, EOMONTH(IU42, 12), IU42)) -> 2044-01-31 | IW42: 2044-01-31 | IX42: 2044-01-31 | IY42: 2044-01-31 | IZ42: 2044-01-31 | JA42: 2044-01-31 | JB42: 2044-01-31 | JC42: 2045-01-31 | JD42: 2045-01-31 | JE42: 2045-01-31 | JF42: 2045-01-31 | JG42: 2045-01-31 | JH42: 2045-01-31 | JI42: 2045-01-31 | JJ42: 2045-01-31 | JK42: 2045-01-31 | JL42: 2045-01-31 | JM42: 2045-01-31 | JN42: 2045-01-31 | JO42: 2046-01-31 | JP42: 2046-01-31 | JQ42: 2046-01-31 | JR42: 2046-01-31 | JS42: 2046-01-31 | JT42: 2046-01-31 | JU42: 2046-01-31 | JV42: 2046-01-31 | JW42: 2046-01-31 | JX42: 2046-01-31 | JY42: 2046-01-31 | JZ42: 2046-01-31 | KA42: 2047-01-31 | KB42: 2047-01-31 | KC42: 2047-01-31 | KD42: 2047-01-31 | KE42: 2047-01-31 | KF42: 2047-01-31 | KG42: 2047-01-31 | KH42: 2047-01-31 | KI42: 2047-01-31 | KJ42: 2047-01-31 | KK42: 2047-01-31 | KL42: 2047-01-31 | KM42: 2048-01-31 | KN42: 2048-01-31 | KO42: 2048-01-31 | KP42: 2048-01-31 | KQ42: 2048-01-31 | KR42: 2048-01-31 | KS42: 2048-01-31 | KT42: 2048-01-31 | KU42: 2048-01-31 | KV42: 2048-01-31 | KW42: 2048-01-31 | KX42: 2048-01-31 | KY42: 2049-01-31 | KZ42: 2049-01-31 | LA42: 2049-01-31 | LB42: 2049-01-31 | LC42: 2049-01-31 | LD42: 2049-01-31 | LE42: 2049-01-31 | LF42: 2049-01-31 | LG42: 2049-01-31 | LH42: =IF( LH40 = 1, $F38, IF( LG41 = 1, EOMONTH(LG42, 12), LG42)) -> 2049-01-31 | LI42: 2049-01-31 | LJ42: 2049-01-31 | LK42: 2050-01-31 | LL42: 2050-01-31 | LM42: 2050-01-31 | LN42: 2050-01-31 | LO42: 2050-01-31 | LP42: 2050-01-31 | LQ42: 2050-01-31 | LR42: 2050-01-31 | LS42: 2050-01-31 | LT42: 2050-01-31 | LU42: 2050-01-31 | LV42: 2050-01-31 | LW42: 2051-01-31 | LX42: 2051-01-31 | LY42: 2051-01-31 | LZ42: 2051-01-31 | MA42: 2051-01-31 | MB42: 2051-01-31 | MC42: 2051-01-31 | MD42: 2051-01-31 | ME42: 2051-01-31 | MF42: 2051-01-31 | MG42: 2051-01-31 | MH42: 2051-01-31 | MI42: 2052-01-31 | MJ42: 2052-01-31 | MK42: 2052-01-31 | ML42: 2052-01-31 | MM42: 2052-01-31 | MN42: 2052-01-31 | MO42: 2052-01-31 | MP42: 2052-01-31 | MQ42: 2052-01-31 | MR42: 2052-01-31 | MS42: 2052-01-31 | MT42: 2052-01-31 | MU42: 2053-01-31 | MV42: 2053-01-31 | MW42: 2053-01-31 | MX42: 2053-01-31 | MY42: 2053-01-31 | MZ42: 2053-01-31 | NA42: 2053-01-31 | NB42: 2053-01-31 | NC42: 2053-01-31 | ND42: 2053-01-31 | NE42: 2053-01-31 | NF42: 2053-01-31 | NG42: 2054-01-31 | NH42: 2054-01-31 | NI42: 2054-01-31 | NJ42: 2054-01-31 | NK42: 2054-01-31 | NL42: 2054-01-31 | NM42: 2054-01-31 | NN42: 2054-01-31 | NO42: 2054-01-31 | NP42: 2054-01-31 | NQ42: 2054-01-31 | NR42: 2054-01-31 | NS42: 2055-01-31 | NT42: =IF( NT40 = 1, $F38, IF( NS41 = 1, EOMONTH(NS42, 12), NS42)) -> 2055-01-31 | NU42: 2055-01-31 | NV42: 2055-01-31 | NW42: 2055-01-31 | NX42: 2055-01-31 | NY42: 2055-01-31 | NZ42: 2055-01-31 | OA42: 2055-01-31 | OB42: 2055-01-31 | OC42: 2055-01-31 | OD42: 2055-01-31 | OE42: 2056-01-31 | OF42: 2056-01-31 | OG42: 2056-01-31 | OH42: 2056-01-31 | OI42: 2056-01-31 | OJ42: 2056-01-31 | OK42: 2056-01-31 | OL42: 2056-01-31 | OM42: 2056-01-31 | ON42: 2056-01-31 | OO42: 2056-01-31 | OP42: 2056-01-31 | OQ42: 2057-01-31 | OR42: 2057-01-31 | OS42: 2057-01-31 | OT42: 2057-01-31 | OU42: 2057-01-31 | OV42: 2057-01-31 | OW42: 2057-01-31 | OX42: 2057-01-31 | OY42: 2057-01-31 | OZ42: 2057-01-31 | PA42: 2057-01-31 | PB42: 2057-01-31 | PC42: 2058-01-31 | PD42: 2058-01-31 | PE42: 2058-01-31 | PF42: 2058-01-31 | PG42: 2058-01-31 | PH42: 2058-01-31 | PI42: 2058-01-31 | PJ42: 2058-01-31 | PK42: 2058-01-31 | PL42: 2058-01-31 | PM42: 2058-01-31 | PN42: 2058-01-31 | PO42: 2059-01-31 | PP42: 2059-01-31 | PQ42: 2059-01-31 | PR42: 2059-01-31 | PS42: 2059-01-31 | PT42: 2059-01-31 | PU42: 2059-01-31 | PV42: 2059-01-31 | PW42: 2059-01-31 | PX42: 2059-01-31 | PY42: 2059-01-31 | PZ42: 2059-01-31 | QA42: 2060-01-31 | QB42: 2060-01-31 | QC42: 2060-01-31 | QD42: 2060-01-31 | QE42: 2060-01-31 | QF42: =IF( QF40 = 1, $F38, IF( QE41 = 1, EOMONTH(QE42, 12), QE42)) -> 2060-01-31 | QG42: 2060-01-31 | QH42: 2060-01-31 | QI42: 2060-01-31 | QJ42: 2060-01-31 | QK42: 2060-01-31 | QL42: 2060-01-31 | QM42: 2061-01-31 | QN42: 2061-01-31 | QO42: 2061-01-31 | QP42: 2061-01-31 | QQ42: 2061-01-31 | QR42: 2061-01-31 | QS42: 2061-01-31 | QT42: 2061-01-31 | QU42: 2061-01-31 | QV42: 2061-01-31 | QW42: 2061-01-31 | QX42: 2061-01-31 | QY42: 2062-01-31 | QZ42: 2062-01-31 | RA42: 2062-01-31 | RB42: 2062-01-31 | RC42: 2062-01-31 | RD42: 2062-01-31 | RE42: 2062-01-31 | RF42: 2062-01-31 | RG42: 2062-01-31 | RH42: 2062-01-31 | RI42: 2062-01-31 | RJ42: 2062-01-31 | RK42: 2063-01-31 | RL42: 2063-01-31 | RM42: 2063-01-31 | RN42: 2063-01-31 | RO42: 2063-01-31 | RP42: 2063-01-31 | RQ42: 2063-01-31 | RR42: 2063-01-31 | RS42: 2063-01-31 | RT42: 2063-01-31 | RU42: 2063-01-31 | RV42: 2063-01-31 | RW42: 2064-01-31 | RX42: 2064-01-31 | RY42: 2064-01-31 | RZ42: 2064-01-31 | SA42: 2064-01-31 | SB42: 2064-01-31 | SC42: 2064-01-31 | SD42: 2064-01-31 | SE42: 2064-01-31 | SF42: 2064-01-31 | SG42: 2064-01-31 | SH42: 2064-01-31 | SI42: 2065-01-31 | SJ42: 2065-01-31 | SK42: 2065-01-31 | SL42: 2065-01-31 | SM42: 2065-01-31 | SN42: 2065-01-31 | SO42: 2065-01-31
E44: =E$42 -> Contract year applicable to period | F44: 00:00:00 | G44: date | H44: 00:00:00 | I44: 00:00:00 | J44: 2023-01-01 | K44: 2024-01-31 | L44: 2024-01-31 | M44: 2024-01-31 | N44: 2024-01-31 | O44: 2024-01-31 | P44: 2024-01-31 | Q44: 2024-01-31 | R44: 2024-01-31 | S44: 2024-01-31 | T44: 2024-01-31 | U44: 2024-01-31 | V44: 2024-01-31 | W44: 2025-01-31 | X44: 2025-01-31 | Y44: 2025-01-31 | Z44: 2025-01-31 | AA44: 2025-01-31 | AB44: 2025-01-31 | AC44: 2025-01-31 | AD44: 2025-01-31 | AE44: 2025-01-31 | AF44: 2025-01-31 | AG44: 2025-01-31 | AH44: 2025-01-31 | AI44: 2026-01-31 | AJ44: 2026-01-31 | AK44: =AK$42 -> 2026-01-31 | AL44: 2026-01-31 | AM44: 2026-01-31 | AN44: 2026-01-31 | AO44: 2026-01-31 | AP44: 2026-01-31 | AQ44: 2026-01-31 | AR44: 2026-01-31 | AS44: 2026-01-31 | AT44: 2026-01-31 | AU44: 2027-01-31 | AV44: 2027-01-31 | AW44: 2027-01-31 | AX44: 2027-01-31 | AY44: 2027-01-31 | AZ44: 2027-01-31 | BA44: 2027-01-31 | BB44: 2027-01-31 | BC44: 2027-01-31 | BD44: 2027-01-31 | BE44: 2027-01-31 | BF44: 2027-01-31 | BG44: 2028-01-31 | BH44: 2028-01-31 | BI44: 2028-01-31 | BJ44: 2028-01-31 | BK44: 2028-01-31 | BL44: 2028-01-31 | BM44: 2028-01-31 | BN44: 2028-01-31 | BO44: 2028-01-31 | BP44: 2028-01-31 | BQ44: =BQ$42 -> 2028-01-31 | BR44: 2028-01-31 | BS44: 2029-01-31 | BT44: 2029-01-31 | BU44: 2029-01-31 | BV44: 2029-01-31 | BW44: 2029-01-31 | BX44: 2029-01-31 | BY44: 2029-01-31 | BZ44: 2029-01-31 | CA44: 2029-01-31 | CB44: 2029-01-31 | CC44: 2029-01-31 | CD44: 2029-01-31 | CE44: 2030-01-31 | CF44: 2030-01-31 | CG44: 2030-01-31 | CH44: 2030-01-31 | CI44: 2030-01-31 | CJ44: 2030-01-31 | CK44: 2030-01-31 | CL44: 2030-01-31 | CM44: 2030-01-31 | CN44: 2030-01-31 | CO44: 2030-01-31 | CP44: 2030-01-31 | CQ44: 2031-01-31 | CR44: 2031-01-31 | CS44: 2031-01-31 | CT44: 2031-01-31 | CU44: 2031-01-31 | CV44: 2031-01-31 | CW44: =CW$42 -> 2031-01-31 | CX44: 2031-01-31 | CY44: 2031-01-31 | CZ44: 2031-01-31 | DA44: 2031-01-31 | DB44: 2031-01-31 | DC44: 2032-01-31 | DD44: 2032-01-31 | DE44: 2032-01-31 | DF44: 2032-01-31 | DG44: 2032-01-31 | DH44: 2032-01-31 | DI44: 2032-01-31 | DJ44: 2032-01-31 | DK44: 2032-01-31 | DL44: 2032-01-31 | DM44: 2032-01-31 | DN44: 2032-01-31 | DO44: 2033-01-31 | DP44: 2033-01-31 | DQ44: 2033-01-31 | DR44: 2033-01-31 | DS44: 2033-01-31 | DT44: 2033-01-31 | DU44: 2033-01-31 | DV44: 2033-01-31 | DW44: 2033-01-31 | DX44: 2033-01-31 | DY44: 2033-01-31 | DZ44: 2033-01-31 | EA44: 2034-01-31 | EB44: 2034-01-31 | EC44: =EC$42 -> 2034-01-31 | ED44: 2034-01-31 | EE44: 2034-01-31 | EF44: 2034-01-31 | EG44: 2034-01-31 | EH44: 2034-01-31 | EI44: 2034-01-31 | EJ44: 2034-01-31 | EK44: 2034-01-31 | EL44: 2034-01-31 | EM44: 2035-01-31 | EN44: 2035-01-31 | EO44: 2035-01-31 | EP44: 2035-01-31 | EQ44: 2035-01-31 | ER44: 2035-01-31 | ES44: 2035-01-31 | ET44: 2035-01-31 | EU44: 2035-01-31 | EV44: 2035-01-31 | EW44: 2035-01-31 | EX44: 2035-01-31 | EY44: 2036-01-31 | EZ44: 2036-01-31 | FA44: 2036-01-31 | FB44: 2036-01-31 | FC44: 2036-01-31 | FD44: 2036-01-31 | FE44: 2036-01-31 | FF44: 2036-01-31 | FG44: 2036-01-31 | FH44: 2036-01-31 | FI44: =FI$42 -> 2036-01-31 | FJ44: 2036-01-31 | FK44: 2037-01-31 | FL44: 2037-01-31 | FM44: 2037-01-31 | FN44: 2037-01-31 | FO44: 2037-01-31 | FP44: 2037-01-31 | FQ44: 2037-01-31 | FR44: 2037-01-31 | FS44: 2037-01-31 | FT44: 2037-01-31 | FU44: 2037-01-31 | FV44: 2037-01-31 | FW44: 2038-01-31 | FX44: 2038-01-31 | FY44: 2038-01-31 | FZ44: 2038-01-31 | GA44: 2038-01-31 | GB44: 2038-01-31 | GC44: 2038-01-31 | GD44: 2038-01-31 | GE44: 2038-01-31 | GF44: 2038-01-31 | GG44: 2038-01-31 | GH44: 2038-01-31 | GI44: 2039-01-31 | GJ44: =GJ$42 -> 2039-01-31 | GK44: 2039-01-31 | GL44: 2039-01-31 | GM44: 2039-01-31 | GN44: 2039-01-31 | GO44: 2039-01-31 | GP44: 2039-01-31 | GQ44: 2039-01-31 | GR44: 2039-01-31 | GS44: 2039-01-31 | GT44: 2039-01-31 | GU44: 2040-01-31 | GV44: 2040-01-31 | GW44: 2040-01-31 | GX44: 2040-01-31 | GY44: 2040-01-31 | GZ44: 2040-01-31 | HA44: 2040-01-31 | HB44: 2040-01-31 | HC44: 2040-01-31 | HD44: 2040-01-31 | HE44: 2040-01-31 | HF44: 2040-01-31 | HG44: 2041-01-31 | HH44: 2041-01-31 | HI44: 2041-01-31 | HJ44: 2041-01-31 | HK44: 2041-01-31 | HL44: 2041-01-31 | HM44: 2041-01-31 | HN44: 2041-01-31 | HO44: 2041-01-31 | HP44: 2041-01-31 | HQ44: 2041-01-31 | HR44: 2041-01-31 | HS44: 2042-01-31 | HT44: 2042-01-31 | HU44: 2042-01-31 | HV44: 2042-01-31 | HW44: 2042-01-31 | HX44: 2042-01-31 | HY44: 2042-01-31 | HZ44: 2042-01-31 | IA44: 2042-01-31 | IB44: 2042-01-31 | IC44: 2042-01-31 | ID44: 2042-01-31 | IE44: 2043-01-31 | IF44: 2043-01-31 | IG44: 2043-01-31 | IH44: 2043-01-31 | II44: 2043-01-31 | IJ44: 2043-01-31 | IK44: 2043-01-31 | IL44: 2043-01-31 | IM44: 2043-01-31 | IN44: 2043-01-31 | IO44: 2043-01-31 | IP44: 2043-01-31 | IQ44: 2044-01-31 | IR44: 2044-01-31 | IS44: 2044-01-31 | IT44: 2044-01-31 | IU44: 2044-01-31 | IV44: =IV$42 -> 2044-01-31 | IW44: 2044-01-31 | IX44: 2044-01-31 | IY44: 2044-01-31 | IZ44: 2044-01-31 | JA44: 2044-01-31 | JB44: 2044-01-31 | JC44: 2045-01-31 | JD44: 2045-01-31 | JE44: 2045-01-31 | JF44: 2045-01-31 | JG44: 2045-01-31 | JH44: 2045-01-31 | JI44: 2045-01-31 | JJ44: 2045-01-31 | JK44: 2045-01-31 | JL44: 2045-01-31 | JM44: 2045-01-31 | JN44: 2045-01-31 | JO44: 2046-01-31 | JP44: 2046-01-31 | JQ44: 2046-01-31 | JR44: 2046-01-31 | JS44: 2046-01-31 | JT44: 2046-01-31 | JU44: 2046-01-31 | JV44: 2046-01-31 | JW44: 2046-01-31 | JX44: 2046-01-31 | JY44: 2046-01-31 | JZ44: 2046-01-31 | KA44: 2047-01-31 | KB44: 2047-01-31 | KC44: 2047-01-31 | KD44: 2047-01-31 | KE44: 2047-01-31 | KF44: 2047-01-31 | KG44: 2047-01-31 | KH44: 2047-01-31 | KI44: 2047-01-31 | KJ44: 2047-01-31 | KK44: 2047-01-31 | KL44: 2047-01-31 | KM44: 2048-01-31 | KN44: 2048-01-31 | KO44: 2048-01-31 | KP44: 2048-01-31 | KQ44: 2048-01-31 | KR44: 2048-01-31 | KS44: 2048-01-31 | KT44: 2048-01-31 | KU44: 2048-01-31 | KV44: 2048-01-31 | KW44: 2048-01-31 | KX44: 2048-01-31 | KY44: 2049-01-31 | KZ44: 2049-01-31 | LA44: 2049-01-31 | LB44: 2049-01-31 | LC44: 2049-01-31 | LD44: 2049-01-31 | LE44: 2049-01-31 | LF44: 2049-01-31 | LG44: 2049-01-31 | LH44: =LH$42 -> 2049-01-31 | LI44: 2049-01-31 | LJ44: 2049-01-31 | LK44: 2050-01-31 | LL44: 2050-01-31 | LM44: 2050-01-31 | LN44: 2050-01-31 | LO44: 2050-01-31 | LP44: 2050-01-31 | LQ44: 2050-01-31 | LR44: 2050-01-31 | LS44: 2050-01-31 | LT44: 2050-01-31 | LU44: 2050-01-31 | LV44: 2050-01-31 | LW44: 2051-01-31 | LX44: 2051-01-31 | LY44: 2051-01-31 | LZ44: 2051-01-31 | MA44: 2051-01-31 | MB44: 2051-01-31 | MC44: 2051-01-31 | MD44: 2051-01-31 | ME44: 2051-01-31 | MF44: 2051-01-31 | MG44: 2051-01-31 | MH44: 2051-01-31 | MI44: 2052-01-31 | MJ44: 2052-01-31 | MK44: 2052-01-31 | ML44: 2052-01-31 | MM44: 2052-01-31 | MN44: 2052-01-31 | MO44: 2052-01-31 | MP44: 2052-01-31 | MQ44: 2052-01-31 | MR44: 2052-01-31 | MS44: 2052-01-31 | MT44: 2052-01-31 | MU44: 2053-01-31 | MV44: 2053-01-31 | MW44: 2053-01-31 | MX44: 2053-01-31 | MY44: 2053-01-31 | MZ44: 2053-01-31 | NA44: 2053-01-31 | NB44: 2053-01-31 | NC44: 2053-01-31 | ND44: 2053-01-31 | NE44: 2053-01-31 | NF44: 2053-01-31 | NG44: 2054-01-31 | NH44: 2054-01-31 | NI44: 2054-01-31 | NJ44: 2054-01-31 | NK44: 2054-01-31 | NL44: 2054-01-31 | NM44: 2054-01-31 | NN44: 2054-01-31 | NO44: 2054-01-31 | NP44: 2054-01-31 | NQ44: 2054-01-31 | NR44: 2054-01-31 | NS44: 2055-01-31 | NT44: =NT$42 -> 2055-01-31 | NU44: 2055-01-31 | NV44: 2055-01-31 | NW44: 2055-01-31 | NX44: 2055-01-31 | NY44: 2055-01-31 | NZ44: 2055-01-31 | OA44: 2055-01-31 | OB44: 2055-01-31 | OC44: 2055-01-31 | OD44: 2055-01-31 | OE44: 2056-01-31 | OF44: 2056-01-31 | OG44: 2056-01-31 | OH44: 2056-01-31 | OI44: 2056-01-31 | OJ44: 2056-01-31 | OK44: 2056-01-31 | OL44: 2056-01-31 | OM44: 2056-01-31 | ON44: 2056-01-31 | OO44: 2056-01-31 | OP44: 2056-01-31 | OQ44: 2057-01-31 | OR44: 2057-01-31 | OS44: 2057-01-31 | OT44: 2057-01-31 | OU44: 2057-01-31 | OV44: 2057-01-31 | OW44: 2057-01-31 | OX44: 2057-01-31 | OY44: 2057-01-31 | OZ44: 2057-01-31 | PA44: 2057-01-31 | PB44: 2057-01-31 | PC44: 2058-01-31 | PD44: 2058-01-31 | PE44: 2058-01-31 | PF44: 2058-01-31 | PG44: 2058-01-31 | PH44: 2058-01-31 | PI44: 2058-01-31 | PJ44: 2058-01-31 | PK44: 2058-01-31 | PL44: 2058-01-31 | PM44: 2058-01-31 | PN44: 2058-01-31 | PO44: 2059-01-31 | PP44: 2059-01-31 | PQ44: 2059-01-31 | PR44: 2059-01-31 | PS44: 2059-01-31 | PT44: 2059-01-31 | PU44: 2059-01-31 | PV44: 2059-01-31 | PW44: 2059-01-31 | PX44: 2059-01-31 | PY44: 2059-01-31 | PZ44: 2059-01-31 | QA44: 2060-01-31 | QB44: 2060-01-31 | QC44: 2060-01-31 | QD44: 2060-01-31 | QE44: 2060-01-31 | QF44: =QF$42 -> 2060-01-31 | QG44: 2060-01-31 | QH44: 2060-01-31 | QI44: 2060-01-31 | QJ44: 2060-01-31 | QK44: 2060-01-31 | QL44: 2060-01-31 | QM44: 2061-01-31 | QN44: 2061-01-31 | QO44: 2061-01-31 | QP44: 2061-01-31 | QQ44: 2061-01-31 | QR44: 2061-01-31 | QS44: 2061-01-31 | QT44: 2061-01-31 | QU44: 2061-01-31 | QV44: 2061-01-31 | QW44: 2061-01-31 | QX44: 2061-01-31 | QY44: 2062-01-31 | QZ44: 2062-01-31 | RA44: 2062-01-31 | RB44: 2062-01-31 | RC44: 2062-01-31 | RD44: 2062-01-31 | RE44: 2062-01-31 | RF44: 2062-01-31 | RG44: 2062-01-31 | RH44: 2062-01-31 | RI44: 2062-01-31 | RJ44: 2062-01-31 | RK44: 2063-01-31 | RL44: 2063-01-31 | RM44: 2063-01-31 | RN44: 2063-01-31 | RO44: 2063-01-31 | RP44: 2063-01-31 | RQ44: 2063-01-31 | RR44: 2063-01-31 | RS44: 2063-01-31 | RT44: 2063-01-31 | RU44: 2063-01-31 | RV44: 2063-01-31 | RW44: 2064-01-31 | RX44: 2064-01-31 | RY44: 2064-01-31 | RZ44: 2064-01-31 | SA44: 2064-01-31 | SB44: 2064-01-31 | SC44: 2064-01-31 | SD44: 2064-01-31 | SE44: 2064-01-31 | SF44: 2064-01-31 | SG44: 2064-01-31 | SH44: 2064-01-31 | SI44: 2065-01-31 | SJ44: 2065-01-31 | SK44: 2065-01-31 | SL44: 2065-01-31 | SM44: 2065-01-31 | SN44: 2065-01-31 | SO44: 2065-01-31
E45: Contract year | G45: year # | J45: =YEAR(J44) -> 2023 | K45: =YEAR(K44) -> 2024 | L45: 2024 | M45: 2024 | N45: 2024 | O45: 2024 | P45: 2024 | Q45: 2024 | R45: 2024 | S45: 2024 | T45: 2024 | U45: 2024 | V45: 2024 | W45: 2025 | X45: 2025 | Y45: 2025 | Z45: 2025 | AA45: 2025 | AB45: 2025 | AC45: 2025 | AD45: 2025 | AE45: 2025 | AF45: 2025 | AG45: 2025 | AH45: 2025 | AI45: 2026 | AJ45: 2026 | AK45: 2026 | AL45: 2026 | AM45: 2026 | AN45: 2026 | AO45: 2026 | AP45: 2026 | AQ45: 2026 | AR45: 2026 | AS45: 2026 | AT45: 2026 | AU45: 2027 | AV45: 2027 | AW45: 2027 | AX45: 2027 | AY45: 2027 | AZ45: 2027 | BA45: 2027 | BB45: 2027 | BC45: 2027 | BD45: 2027 | BE45: 2027 | BF45: 2027 | BG45: 2028 | BH45: 2028 | BI45: 2028 | BJ45: 2028 | BK45: 2028 | BL45: 2028 | BM45: 2028 | BN45: 2028 | BO45: 2028 | BP45: 2028 | BQ45: 2028 | BR45: 2028 | BS45: 2029 | BT45: 2029 | BU45: 2029 | BV45: 2029 | BW45: =YEAR(BW44) -> 2029 | BX45: 2029 | BY45: 2029 | BZ45: 2029 | CA45: 2029 | CB45: 2029 | CC45: 2029 | CD45: 2029 | CE45: 2030 | CF45: 2030 | CG45: 2030 | CH45: 2030 | CI45: 2030 | CJ45: 2030 | CK45: 2030 | CL45: 2030 | CM45: 2030 | CN45: 2030 | CO45: 2030 | CP45: 2030 | CQ45: 2031 | CR45: 2031 | CS45: 2031 | CT45: 2031 | CU45: 2031 | CV45: 2031 | CW45: 2031 | CX45: 2031 | CY45: 2031 | CZ45: 2031 | DA45: 2031 | DB45: 2031 | DC45: 2032 | DD45: 2032 | DE45: 2032 | DF45: 2032 | DG45: 2032 | DH45: 2032 | DI45: 2032 | DJ45: 2032 | DK45: 2032 | DL45: 2032 | DM45: 2032 | DN45: 2032 | DO45: 2033 | DP45: 2033 | DQ45: 2033 | DR45: 2033 | DS45: 2033 | DT45: 2033 | DU45: 2033 | DV45: 2033 | DW45: 2033 | DX45: 2033 | DY45: 2033 | DZ45: 2033 | EA45: 2034 | EB45: 2034 | EC45: 2034 | ED45: 2034 | EE45: 2034 | EF45: 2034 | EG45: 2034 | EH45: 2034 | EI45: =YEAR(EI44) -> 2034 | EJ45: 2034 | EK45: 2034 | EL45: 2034 | EM45: 2035 | EN45: 2035 | EO45: 2035 | EP45: 2035 | EQ45: 2035 | ER45: 2035 | ES45: 2035 | ET45: 2035 | EU45: 2035 | EV45: 2035 | EW45: 2035 | EX45: 2035 | EY45: 2036 | EZ45: 2036 | FA45: 2036 | FB45: 2036 | FC45: 2036 | FD45: 2036 | FE45: 2036 | FF45: 2036 | FG45: 2036 | FH45: 2036 | FI45: 2036 | FJ45: 2036 | FK45: 2037 | FL45: 2037 | FM45: 2037 | FN45: 2037 | FO45: 2037 | FP45: 2037 | FQ45: 2037 | FR45: 2037 | FS45: 2037 | FT45: 2037 | FU45: 2037 | FV45: 2037 | FW45: 2038 | FX45: 2038 | FY45: 2038 | FZ45: 2038 | GA45: 2038 | GB45: 2038 | GC45: 2038 | GD45: 2038 | GE45: 2038 | GF45: 2038 | GG45: 2038 | GH45: =YEAR(GH44) -> 2038 | GI45: 2039 | GJ45: =YEAR(GJ44) -> 2039 | GK45: 2039 | GL45: 2039 | GM45: 2039 | GN45: 2039 | GO45: 2039 | GP45: 2039 | GQ45: 2039 | GR45: 2039 | GS45: 2039 | GT45: 2039 | GU45: 2040 | GV45: 2040 | GW45: 2040 | GX45: 2040 | GY45: 2040 | GZ45: 2040 | HA45: 2040 | HB45: 2040 | HC45: 2040 | HD45: 2040 | HE45: 2040 | HF45: 2040 | HG45: 2041 | HH45: 2041 | HI45: 2041 | HJ45: 2041 | HK45: 2041 | HL45: 2041 | HM45: 2041 | HN45: 2041 | HO45: 2041 | HP45: 2041 | HQ45: 2041 | HR45: 2041 | HS45: 2042 | HT45: 2042 | HU45: 2042 | HV45: 2042 | HW45: 2042 | HX45: 2042 | HY45: 2042 | HZ45: 2042 | IA45: 2042 | IB45: 2042 | IC45: 2042 | ID45: 2042 | IE45: 2043 | IF45: 2043 | IG45: 2043 | IH45: 2043 | II45: 2043 | IJ45: 2043 | IK45: 2043 | IL45: 2043 | IM45: 2043 | IN45: 2043 | IO45: 2043 | IP45: 2043 | IQ45: 2044 | IR45: 2044 | IS45: 2044 | IT45: 2044 | IU45: 2044 | IV45: =YEAR(IV44) -> 2044 | IW45: 2044 | IX45: 2044 | IY45: 2044 | IZ45: 2044 | JA45: 2044 | JB45: 2044 | JC45: 2045 | JD45: 2045 | JE45: 2045 | JF45: 2045 | JG45: 2045 | JH45: 2045 | JI45: 2045 | JJ45: 2045 | JK45: 2045 | JL45: 2045 | JM45: 2045 | JN45: 2045 | JO45: 2046 | JP45: 2046 | JQ45: 2046 | JR45: 2046 | JS45: 2046 | JT45: 2046 | JU45: 2046 | JV45: 2046 | JW45: 2046 | JX45: 2046 | JY45: 2046 | JZ45: 2046 | KA45: 2047 | KB45: 2047 | KC45: 2047 | KD45: 2047 | KE45: 2047 | KF45: 2047 | KG45: 2047 | KH45: 2047 | KI45: 2047 | KJ45: 2047 | KK45: 2047 | KL45: 2047 | KM45: 2048 | KN45: 2048 | KO45: 2048 | KP45: 2048 | KQ45: 2048 | KR45: 2048 | KS45: 2048 | KT45: 2048 | KU45: 2048 | KV45: 2048 | KW45: 2048 | KX45: 2048 | KY45: 2049 | KZ45: 2049 | LA45: 2049 | LB45: 2049 | LC45: 2049 | LD45: 2049 | LE45: 2049 | LF45: 2049 | LG45: 2049 | LH45: =YEAR(LH44) -> 2049 | LI45: 2049 | LJ45: 2049 | LK45: 2050 | LL45: 2050 | LM45: 2050 | LN45: 2050 | LO45: 2050 | LP45: 2050 | LQ45: 2050 | LR45: 2050 | LS45: 2050 | LT45: 2050 | LU45: 2050 | LV45: 2050 | LW45: 2051 | LX45: 2051 | LY45: 2051 | LZ45: 2051 | MA45: 2051 | MB45: 2051 | MC45: 2051 | MD45: 2051 | ME45: 2051 | MF45: 2051 | MG45: 2051 | MH45: 2051 | MI45: 2052 | MJ45: 2052 | MK45: 2052 | ML45: 2052 | MM45: 2052 | MN45: 2052 | MO45: 2052 | MP45: 2052 | MQ45: 2052 | MR45: 2052 | MS45: 2052 | MT45: 2052 | MU45: 2053 | MV45: 2053 | MW45: 2053 | MX45: 2053 | MY45: 2053 | MZ45: 2053 | NA45: 2053 | NB45: 2053 | NC45: 2053 | ND45: 2053 | NE45: 2053 | NF45: 2053 | NG45: 2054 | NH45: 2054 | NI45: 2054 | NJ45: 2054 | NK45: 2054 | NL45: 2054 | NM45: 2054 | NN45: 2054 | NO45: 2054 | NP45: 2054 | NQ45: 2054 | NR45: 2054 | NS45: 2055 | NT45: =YEAR(NT44) -> 2055 | NU45: 2055 | NV45: 2055 | NW45: 2055 | NX45: 2055 | NY45: 2055 | NZ45: 2055 | OA45: 2055 | OB45: 2055 | OC45: 2055 | OD45: 2055 | OE45: 2056 | OF45: 2056 | OG45: 2056 | OH45: 2056 | OI45: 2056 | OJ45: 2056 | OK45: 2056 | OL45: 2056 | OM45: 2056 | ON45: 2056 | OO45: 2056 | OP45: 2056 | OQ45: 2057 | OR45: 2057 | OS45: 2057 | OT45: 2057 | OU45: 2057 | OV45: 2057 | OW45: 2057 | OX45: 2057 | OY45: 2057 | OZ45: 2057 | PA45: 2057 | PB45: 2057 | PC45: 2058 | PD45: 2058 | PE45: 2058 | PF45: 2058 | PG45: 2058 | PH45: 2058 | PI45: 2058 | PJ45: 2058 | PK45: 2058 | PL45: 2058 | PM45: 2058 | PN45: 2058 | PO45: 2059 | PP45: 2059 | PQ45: 2059 | PR45: 2059 | PS45: 2059 | PT45: 2059 | PU45: 2059 | PV45: 2059 | PW45: 2059 | PX45: 2059 | PY45: 2059 | PZ45: 2059 | QA45: 2060 | QB45: 2060 | QC45: 2060 | QD45: 2060 | QE45: 2060 | QF45: =YEAR(QF44) -> 2060 | QG45: 2060 | QH45: 2060 | QI45: 2060 | QJ45: 2060 | QK45: 2060 | QL45: 2060 | QM45: 2061 | QN45: 2061 | QO45: 2061 | QP45: 2061 | QQ45: 2061 | QR45: 2061 | QS45: 2061 | QT45: 2061 | QU45: 2061 | QV45: 2061 | QW45: 2061 | QX45: 2061 | QY45: 2062 | QZ45: 2062 | RA45: 2062 | RB45: 2062 | RC45: 2062 | RD45: 2062 | RE45: 2062 | RF45: 2062 | RG45: 2062 | RH45: 2062 | RI45: 2062 | RJ45: 2062 | RK45: 2063 | RL45: 2063 | RM45: 2063 | RN45: 2063 | RO45: 2063 | RP45: 2063 | RQ45: 2063 | RR45: 2063 | RS45: 2063 | RT45: 2063 | RU45: 2063 | RV45: 2063 | RW45: 2064 | RX45: 2064 | RY45: 2064 | RZ45: 2064 | SA45: 2064 | SB45: 2064 | SC45: 2064 | SD45: 2064 | SE45: 2064 | SF45: 2064 | SG45: 2064 | SH45: 2064 | SI45: 2065 | SJ45: 2065 | SK45: 2065 | SL45: 2065 | SM45: 2065 | SN45: 2065 | SO45: 2065
B47: Annual timeline
E48: =InpC!E$14 -> Annual year end date of first operating period | F48: =InpC!F$14 -> 2023-01-01 | G48: =InpC!G$14 -> date
E49: =InpC!E$112 -> Months in year | F49: =InpC!F$112 -> 12 | G49: =InpC!G$112 -> months
